Workbook

Sheet Disclosures
A1: Option 2 Template Disclosures
A3: Option 2 Template is designed as prescribed in Schedule 2.6 of Conservator Rehabilitation Plan and information provided by California Insurance Department Actuary.
A5: DRAFT Template Delivery Date: April 15, 2026
A7: The intended purpose of this Option 2 Template is to help resolve pending and subsequent litigation against California Insurance Company and its affiliates relating to
A8: Solution One and EquityComp products.
A10: Actuarial Team:
A11: David S. Wolfe, ACAS, MAAA - Baker Tilly Advisory Group, LP
A12: Morgan Butz, FCAS, MAAA - Lewis & Ellis, LLC
A13: Joe Healey - Baker Tilly Advisory Group, LP
A15: The data included in this template is based on sample files provided by legal counsel for the Conservator and by California Insurance Department Actuary.
A16: The data included may not represent final documents to be provided at a later point.
A17: The data underlying this template has been reviewed for reasonableness and consistency, but has not been audited or verified.
A19: The California Insurance Company Rate Filings underlying this template were provided by legal counsel for the Conservator.
A21: Certain calculations within this Option 2 Template assume paid losses and case reserves are through December 31, 2025.

Sheet Index
A1: Please see below for the source for each tab within Schedule 2.6 of Conservator's Rehabilitation Plan for CIC or where guidance from the California Insurance Department Actuary was provided.
A3: Restitution Amount - Schedule 2.6, Section IV, Subsection 2
A5: Retrospective Premium - Schedule 2.6, Section IV, Subsection 2.a. Surcharge provisions based on communication with California Insurance Department Actuary.
A7: CA Standard Premium - Yr1 - Schedule 2.6, Section IV, Subsection 2.b
A9: CA Standard Premium - Yr2 - Schedule 2.6, Section IV, Subsection 2.b
A11: CA Standard Premium - Yr3 - Schedule 2.6, Section IV, Subsection 2.b
A13: Non-CA Standard Premium - Yr1 - Schedule 2.6, Section IV, Subsection 2.c
A15: Non-CA Standard Premium - Yr2 - Schedule 2.6, Section IV, Subsection 2.c
A17: Non-CA Standard Premium - Yr3 - Schedule 2.6, Section IV, Subsection 2.c
A19: Expense Ratio - Schedule 2.6, Section IV, Subsection 2.d
A21: Insurance Charge - Schedule 2.6, Section IV, Subsection 2.e
A23: Ultimate Loss Group - Schedule 2.6, Section IV, Subsection 2.e.i and communication with California Insurance Department Actuary
A25: Entry Ratio - Schedule 2.6, Section IV, Subsection 2.e.ii
A27: Actual Losses - Schedule 2.6, Section IV, Subsection 3 and communication with California Department Actuary
A29: Loss and DCCE Development - Schedule 2.6, Section IV, Subsection 3.c.i-ii and communication with California Insurance Department Actuary
A31: Tail Factor - Schedule 2.6, Section IV, Subsection 3.iii
A33: Interpolated Development - Schedule 2.6, Section IV, Subsection 3.iv and communication with California Insurance Department Actuary
A35: Average Surcharge % - Communication with California Insurance Department Actuary

Sheet Restitution Amount
A1: ='Interpolated Development'!A1 -> California Insurance Company Rehabilitation Plan
A2: ='Interpolated Development'!A2 -> Options to Settle Litigation Related to XYZ Company
A3: ='Interpolated Development'!A3 -> Equity Comp and Solution One Programs and RPA
A5: Option 2 - Restitution Amount
B7: Total Payments | C7: =ROUND(Inputs!D43,0) -> 1731228 | E7: From Input tab. | I7: NOTE: TOTAL PAYMENTS SHOWN HERE ARE NOT FINAL.
B9: Retrospective Premium | C9: =ROUND('Retrospective Premium'!F50,0) -> 676080 | E9: From Retrospective Premium tab, Line (29).
B11: Restitution Amount | C11: =ROUND(ABS(C7-C9),0) -> 1055148 | E11: =IF(C7-C9>0, "To be paid by CIC.", "To be paid by claimant.") -> To be paid by CIC.

Sheet Retrospective Premium
A1: ='Interpolated Development'!A1 -> California Insurance Company Rehabilitation Plan
A2: ='Interpolated Development'!A2 -> Options to Settle Litigation Related to XYZ Company
A3: ='Interpolated Development'!A3 -> Equity Comp and Solution One Programs and RPA
A5: Option 2 - Retrospective Premium
H6: Notes:
A7: -1 | E7: California Standard Premium - Year 1: | F7: ='CA Standard Premium - Yr1'!F96 -> 333530.36 | H7: From CA Standard Premium - Yr1 tab.
A9: =A7-1 -> -2 | E9: California Standard Premium - Year 2: | F9: ='CA Standard Premium - Yr2'!F96 -> 395321.3106 | H9: From CA Standard Premium - Yr2 tab.
A11: =A9-1 -> -3 | E11: California Standard Premium - Year 3: | F11: ='CA Standard Premium - Yr3'!F96 -> 350752.2979 | H11: From CA Standard Premium - Yr3 tab.
A13: =A11-1 -> -4 | E13: Non-California Standard Premium - Year 1: | F13: ='Non-CA Standard Premium - Yr1'!E35 -> 0 | H13: From Non- CA Standard Premium - Yr1 tab.
A15: =A13-1 -> -5 | E15: Non-California Standard Premium - Year 2: | F15: ='Non-CA Standard Premium - Yr2'!E35 -> 0 | H15: From Non-CA Standard Premium - Yr2 tab.
A17: =A15-1 -> -6 | E17: Non-California Standard Premium - Year 3: | F17: ='Non-CA Standard Premium - Yr3'!E35 -> 0 | H17: From Non-CA Standard Premium - Yr3 tab.
A19: =A17-1 -> -7 | E19: Total Standard Premium: | F19: =SUM(F7:F17) -> 1079603.968 | H19: Sum of (1) through (6)
A21: =A19-1 -> -8 | E21: Expense Ratio: | F21: ='Expense Ratio'!D43 -> 0.236 | H21: From Expense Ratio tab.
A23: =A21-1 -> -9 | E23: Insurance Charge: | F23: =ROUND('Insurance Charge'!D13,4) -> 0.2335 | H23: From Insurance Charge tab.
A25: =A23-1 -> -10 | E25: Three-Year Actual Losses: | F25: ='Actual Losses'!L21 -> 131495.7274 | H25: From Actual Losses tab.
A27: =A25-1 -> -11 | E27: Retrospective Premium, before assessments: | F27: =(F19*(F21+F23))+F25 -> 638369.7905 | H27: [(7) x [(8) + (9)] ] + (10)
A29: =A27-1 -> -12 | E29: CIGA California Domiciled Insureds: | F29: =F$27*E30 -> 12946.13935 | H29: (11) x (13)
A30: =A29-1 -> -13 | E30: ='Average Surcharge %'!F13 -> 0.02028 | H30: ="From Column ("&-'Average Surcharge %'!F$7&") of Average Premium % tab." -> From Column (5) of Average Premium % tab.
A31: =A30-1 -> -14 | E31: Workers Compensation Fraud Surcharge: | F31: =F$27*E32 -> 1738.28094 | H31: (11) x (15)
A32: =A31-1 -> -15 | E32: ='Average Surcharge %'!F15 -> 0.002723 | H32: ="From Column ("&-'Average Surcharge %'!F$7&") of Average Premium % tab." -> From Column (5) of Average Premium % tab.
A33: -16 | E33: User Funding Rate: | F33: =F$27*E34 -> 7032.919982 | H33: (11) x (17)
A34: -17 | E34: ='Average Surcharge %'!F17 -> 0.011017 | H34: ="From Column ("&-'Average Surcharge %'!F$7&") of Average Premium % tab." -> From Column (5) of Average Premium % tab.
A35: -18 | E35: Uninsured Employers Fund: | F35: =F$27*E36 -> 1315.680138 | H35: (11) x (19)
A36: -19 | E36: ='Average Surcharge %'!F19 -> 0.002061 | H36: ="From Column ("&-'Average Surcharge %'!F$7&") of Average Premium % tab." -> From Column (5) of Average Premium % tab.
A37: -20 | E37: Subsequent Injuries Benefit Fund: | F37: 752.6379831 | H37: (11) x (21)
A38: -21 | E38: ='Average Surcharge %'!F21 -> 0.001179 | H38: ="From Column ("&-'Average Surcharge %'!F$7&") of Average Premium % tab." -> From Column (5) of Average Premium % tab.
A39: -22 | E39: Occupational Safety & Health Fund: | F39: 1569.112945 | H39: (11) x (23)
A40: -23 | E40: ='Average Surcharge %'!F23 -> 0.002458 | H40: ="From Column ("&-'Average Surcharge %'!F$7&") of Average Premium % tab." -> From Column (5) of Average Premium % tab.
A41: -24 | E41: Labor Enforcement & Compliance Fund: | F41: =F$27*E42 -> 1365.472982 | H41: (11) x (25)
A42: -25 | E42: ='Average Surcharge %'!F25 -> 0.002139 | H42: ="From Column ("&-'Average Surcharge %'!F$7&") of Average Premium % tab." -> From Column (5) of Average Premium % tab.
A44: =A42-1 -> -26 | E44: Retrospective Premium, including assessments: | F44: =SUM(F27:F41) -> 665090.0349 | H44: Sum (11), (12), (14), (16), (18), (20), (22), and (24)
A46: =A44-1 -> -27 | E46: Plan Maximum Cost: | F46: =Inputs!D23*Inputs!D27 -> 2511152.8 | H46: Three-Year Loss Pick Containment Amount multiplied
H47: by Plan Maximum Factor. See Inputs tab.
A48: =A46-1 -> -28 | E48: Plan Minimum Cost: | F48: =Inputs!D23*Inputs!D29 -> 676079.6 | H48: Three-Year Loss Pick Containment Amount multiplied
H49: by Plan Minimum Factor. See Inputs tab.
A50: =A48-1 -> -29 | E50: Retrospective Premium, subject to max and min: | F50: =_xlfn.IFS(F44>F46,F46,F44<F48,F48, OR(F44<F46,F44>F48)=TRUE,F44) -> 676079.6

Sheet CA Standard Premium - Yr1
A1: ='Interpolated Development'!A1 -> California Insurance Company Rehabilitation Plan
A2: ='Interpolated Development'!A2 -> Options to Settle Litigation Related to XYZ Company
A3: ='Interpolated Development'!A3 -> Equity Comp and Solution One Programs and RPA
A5: Option 2 - California Standard Premium
B7: Policy Effective Date: | D7: =Inputs!D9 -> 2013-06-01
B9: =-1 -> -1 | C9: =B9-1 -> -2 | D9: =C9-1 -> -3 | E9: =D9-1 -> -4 | F9: =E9-1 -> -5
C10: Actual | D10: Payroll | E10: Pure Premium | F10: Expected
B11: Class Code | C11: Payroll | D11: Exposure | E11: Rate | F11: Losses
B13: =IF(ROWS($B$13:B13)<=Inputs!$B$46,TEXT(INDEX(Inputs!$A$49:$A$124,ROWS($B$13:B13)),"0000"),"") -> 3831 | C13: =IF(B13="","",INDEX(Inputs!$B$49:$B$124,ROWS($B$13:B13))) -> 8000000 | D13: =IF(C13="","",VALUE(C13)/100) -> 80000 | E13: =IF(B13="","",IFERROR(INDEX('Pure Premium Rates'!$B$2:$Q$569,MATCH(TEXT(B13,"0000"),INDEX(TEXT('Pure Premium Rates'!$A$2:$A$569,"0000"),0),0),MATCH($D$7,'Pure Premium Rates'!$B$1:$Q$1,1)),"")) -> 4.03 | F13: =IF(OR(D13="",E13=""),"",D13*E13) -> 322400 | I13: NOTE: ACTUAL PAYROLL TO BE USED. AMOUNTS SHOWN ARE UN-AUDITED.
B14: =IF(ROWS($B$13:B14)<=Inputs!$B$46,TEXT(INDEX(Inputs!$A$49:$A$124,ROWS($B$13:B14)),"0000"),"") -> 8810 | C14: =IF(B14="","",INDEX(Inputs!$B$49:$B$124,ROWS($B$13:B14))) -> 2800000 | D14: =IF(C14="","",VALUE(C14)/100) -> 28000 | E14: =IF(B14="","",IFERROR(INDEX('Pure Premium Rates'!$B$2:$Q$569,MATCH(TEXT(B14,"0000"),INDEX(TEXT('Pure Premium Rates'!$A$2:$A$569,"0000"),0),0),MATCH($D$7,'Pure Premium Rates'!$B$1:$Q$1,1)),"")) -> 0.53 | F14: =IF(OR(D14="",E14=""),"",D14*E14) -> 14840
B15: =IF(ROWS($B$13:B15)<=Inputs!$B$46,TEXT(INDEX(Inputs!$A$49:$A$124,ROWS($B$13:B15)),"0000"),"") ->  | C15: =IF(B15="","",INDEX(Inputs!$B$49:$B$124,ROWS($B$13:B15))) ->  | D15: =IF(C15="","",VALUE(C15)/100) ->  | E15: =IF(B15="","",IFERROR(INDEX('Pure Premium Rates'!$B$2:$Q$569,MATCH(TEXT(B15,"0000"),INDEX(TEXT('Pure Premium Rates'!$A$2:$A$569,"0000"),0),0),MATCH($D$7,'Pure Premium Rates'!$B$1:$Q$1,1)),"")) ->  | F15: =IF(OR(D15="",E15=""),"",D15*E15) -> 
B16: =IF(ROWS($B$13:B16)<=Inputs!$B$46,TEXT(INDEX(Inputs!$A$49:$A$124,ROWS($B$13:B16)),"0000"),"") ->  | C16: =IF(B16="","",INDEX(Inputs!$B$49:$B$124,ROWS($B$13:B16))) ->  | E16: =IF(B16="","",IFERROR(INDEX('Pure Premium Rates'!$B$2:$Q$569,MATCH(TEXT(B16,"0000"),INDEX(TEXT('Pure Premium Rates'!$A$2:$A$569,"0000"),0),0),MATCH($D$7,'Pure Premium Rates'!$B$1:$Q$1,1)),"")) -> 
B17: =IF(ROWS($B$13:B17)<=Inputs!$B$46,TEXT(INDEX(Inputs!$A$49:$A$124,ROWS($B$13:B17)),"0000"),"") ->  | C17: =IF(B17="","",INDEX(Inputs!$B$49:$B$124,ROWS($B$13:B17))) ->  | E17: =IF(B17="","",IFERROR(INDEX('Pure Premium Rates'!$B$2:$Q$569,MATCH(TEXT(B17,"0000"),INDEX(TEXT('Pure Premium Rates'!$A$2:$A$569,"0000"),0),0),MATCH($D$7,'Pure Premium Rates'!$B$1:$Q$1,1)),"")) -> 
B18: =IF(ROWS($B$13:B18)<=Inputs!$B$46,TEXT(INDEX(Inputs!$A$49:$A$124,ROWS($B$13:B18)),"0000"),"") ->  | C18: =IF(B18="","",INDEX(Inputs!$B$49:$B$124,ROWS($B$13:B18))) ->  | E18: =IF(B18="","",IFERROR(INDEX('Pure Premium Rates'!$B$2:$Q$569,MATCH(TEXT(B18,"0000"),INDEX(TEXT('Pure Premium Rates'!$A$2:$A$569,"0000"),0),0),MATCH($D$7,'Pure Premium Rates'!$B$1:$Q$1,1)),"")) -> 
B19: =IF(ROWS($B$13:B19)<=Inputs!$B$46,TEXT(INDEX(Inputs!$A$49:$A$124,ROWS($B$13:B19)),"0000"),"") ->  | C19: =IF(B19="","",INDEX(Inputs!$B$49:$B$124,ROWS($B$13:B19))) ->  | E19: =IF(B19="","",IFERROR(INDEX('Pure Premium Rates'!$B$2:$Q$569,MATCH(TEXT(B19,"0000"),INDEX(TEXT('Pure Premium Rates'!$A$2:$A$569,"0000"),0),0),MATCH($D$7,'Pure Premium Rates'!$B$1:$Q$1,1)),"")) -> 
B20: =IF(ROWS($B$13:B20)<=Inputs!$B$46,TEXT(INDEX(Inputs!$A$49:$A$124,ROWS($B$13:B20)),"0000"),"") ->  | C20: =IF(B20="","",INDEX(Inputs!$B$49:$B$124,ROWS($B$13:B20))) ->  | E20: =IF(B20="","",IFERROR(INDEX('Pure Premium Rates'!$B$2:$Q$569,MATCH(TEXT(B20,"0000"),INDEX(TEXT('Pure Premium Rates'!$A$2:$A$569,"0000"),0),0),MATCH($D$7,'Pure Premium Rates'!$B$1:$Q$1,1)),"")) -> 
B21: =IF(ROWS($B$13:B21)<=Inputs!$B$46,TEXT(INDEX(Inputs!$A$49:$A$124,ROWS($B$13:B21)),"0000"),"") ->  | C21: =IF(B21="","",INDEX(Inputs!$B$49:$B$124,ROWS($B$13:B21))) ->  | E21: =IF(B21="","",IFERROR(INDEX('Pure Premium Rates'!$B$2:$Q$569,MATCH(TEXT(B21,"0000"),INDEX(TEXT('Pure Premium Rates'!$A$2:$A$569,"0000"),0),0),MATCH($D$7,'Pure Premium Rates'!$B$1:$Q$1,1)),"")) -> 
B22: =IF(ROWS($B$13:B22)<=Inputs!$B$46,TEXT(INDEX(Inputs!$A$49:$A$124,ROWS($B$13:B22)),"0000"),"") ->  | C22: =IF(B22="","",INDEX(Inputs!$B$49:$B$124,ROWS($B$13:B22))) ->  | E22: =IF(B22="","",IFERROR(INDEX('Pure Premium Rates'!$B$2:$Q$569,MATCH(TEXT(B22,"0000"),INDEX(TEXT('Pure Premium Rates'!$A$2:$A$569,"0000"),0),0),MATCH($D$7,'Pure Premium Rates'!$B$1:$Q$1,1)),"")) -> 
B23: =IF(ROWS($B$13:B23)<=Inputs!$B$46,TEXT(INDEX(Inputs!$A$49:$A$124,ROWS($B$13:B23)),"0000"),"") ->  | C23: =IF(B23="","",INDEX(Inputs!$B$49:$B$124,ROWS($B$13:B23))) ->  | E23: =IF(B23="","",IFERROR(INDEX('Pure Premium Rates'!$B$2:$Q$569,MATCH(TEXT(B23,"0000"),INDEX(TEXT('Pure Premium Rates'!$A$2:$A$569,"0000"),0),0),MATCH($D$7,'Pure Premium Rates'!$B$1:$Q$1,1)),"")) -> 
B24: =IF(ROWS($B$13:B24)<=Inputs!$B$46,TEXT(INDEX(Inputs!$A$49:$A$124,ROWS($B$13:B24)),"0000"),"") ->  | C24: =IF(B24="","",INDEX(Inputs!$B$49:$B$124,ROWS($B$13:B24))) ->  | E24: =IF(B24="","",IFERROR(INDEX('Pure Premium Rates'!$B$2:$Q$569,MATCH(TEXT(B24,"0000"),INDEX(TEXT('Pure Premium Rates'!$A$2:$A$569,"0000"),0),0),MATCH($D$7,'Pure Premium Rates'!$B$1:$Q$1,1)),"")) -> 
B25: =IF(ROWS($B$13:B25)<=Inputs!$B$46,TEXT(INDEX(Inputs!$A$49:$A$124,ROWS($B$13:B25)),"0000"),"") ->  | C25: =IF(B25="","",INDEX(Inputs!$B$49:$B$124,ROWS($B$13:B25))) ->  | E25: =IF(B25="","",IFERROR(INDEX('Pure Premium Rates'!$B$2:$Q$569,MATCH(TEXT(B25,"0000"),INDEX(TEXT('Pure Premium Rates'!$A$2:$A$569,"0000"),0),0),MATCH($D$7,'Pure Premium Rates'!$B$1:$Q$1,1)),"")) -> 
B26: =IF(ROWS($B$13:B26)<=Inputs!$B$46,TEXT(INDEX(Inputs!$A$49:$A$124,ROWS($B$13:B26)),"0000"),"") ->  | C26: =IF(B26="","",INDEX(Inputs!$B$49:$B$124,ROWS($B$13:B26))) ->  | E26: =IF(B26="","",IFERROR(INDEX('Pure Premium Rates'!$B$2:$Q$569,MATCH(TEXT(B26,"0000"),INDEX(TEXT('Pure Premium Rates'!$A$2:$A$569,"0000"),0),0),MATCH($D$7,'Pure Premium Rates'!$B$1:$Q$1,1)),"")) -> 
B27: =IF(ROWS($B$13:B27)<=Inputs!$B$46,TEXT(INDEX(Inputs!$A$49:$A$124,ROWS($B$13:B27)),"0000"),"") ->  | C27: =IF(B27="","",INDEX(Inputs!$B$49:$B$124,ROWS($B$13:B27))) ->  | E27: =IF(B27="","",IFERROR(INDEX('Pure Premium Rates'!$B$2:$Q$569,MATCH(TEXT(B27,"0000"),INDEX(TEXT('Pure Premium Rates'!$A$2:$A$569,"0000"),0),0),MATCH($D$7,'Pure Premium Rates'!$B$1:$Q$1,1)),"")) -> 
B28: =IF(ROWS($B$13:B28)<=Inputs!$B$46,TEXT(INDEX(Inputs!$A$49:$A$124,ROWS($B$13:B28)),"0000"),"") ->  | C28: =IF(B28="","",INDEX(Inputs!$B$49:$B$124,ROWS($B$13:B28))) ->  | E28: =IF(B28="","",IFERROR(INDEX('Pure Premium Rates'!$B$2:$Q$569,MATCH(TEXT(B28,"0000"),INDEX(TEXT('Pure Premium Rates'!$A$2:$A$569,"0000"),0),0),MATCH($D$7,'Pure Premium Rates'!$B$1:$Q$1,1)),"")) -> 
B29: =IF(ROWS($B$13:B29)<=Inputs!$B$46,TEXT(INDEX(Inputs!$A$49:$A$124,ROWS($B$13:B29)),"0000"),"") ->  | C29: =IF(B29="","",INDEX(Inputs!$B$49:$B$124,ROWS($B$13:B29))) ->  | E29: =IF(B29="","",IFERROR(INDEX('Pure Premium Rates'!$B$2:$Q$569,MATCH(TEXT(B29,"0000"),INDEX(TEXT('Pure Premium Rates'!$A$2:$A$569,"0000"),0),0),MATCH($D$7,'Pure Premium Rates'!$B$1:$Q$1,1)),"")) -> 
B30: =IF(ROWS($B$13:B30)<=Inputs!$B$46,TEXT(INDEX(Inputs!$A$49:$A$124,ROWS($B$13:B30)),"0000"),"") ->  | C30: =IF(B30="","",INDEX(Inputs!$B$49:$B$124,ROWS($B$13:B30))) ->  | E30: =IF(B30="","",IFERROR(INDEX('Pure Premium Rates'!$B$2:$Q$569,MATCH(TEXT(B30,"0000"),INDEX(TEXT('Pure Premium Rates'!$A$2:$A$569,"0000"),0),0),MATCH($D$7,'Pure Premium Rates'!$B$1:$Q$1,1)),"")) -> 
B31: =IF(ROWS($B$13:B31)<=Inputs!$B$46,TEXT(INDEX(Inputs!$A$49:$A$124,ROWS($B$13:B31)),"0000"),"") ->  | C31: =IF(B31="","",INDEX(Inputs!$B$49:$B$124,ROWS($B$13:B31))) ->  | E31: =IF(B31="","",IFERROR(INDEX('Pure Premium Rates'!$B$2:$Q$569,MATCH(TEXT(B31,"0000"),INDEX(TEXT('Pure Premium Rates'!$A$2:$A$569,"0000"),0),0),MATCH($D$7,'Pure Premium Rates'!$B$1:$Q$1,1)),"")) -> 
B32: =IF(ROWS($B$13:B32)<=Inputs!$B$46,TEXT(INDEX(Inputs!$A$49:$A$124,ROWS($B$13:B32)),"0000"),"") ->  | C32: =IF(B32="","",INDEX(Inputs!$B$49:$B$124,ROWS($B$13:B32))) ->  | E32: =IF(B32="","",IFERROR(INDEX('Pure Premium Rates'!$B$2:$Q$569,MATCH(TEXT(B32,"0000"),INDEX(TEXT('Pure Premium Rates'!$A$2:$A$569,"0000"),0),0),MATCH($D$7,'Pure Premium Rates'!$B$1:$Q$1,1)),"")) -> 
B33: =IF(ROWS($B$13:B33)<=Inputs!$B$46,TEXT(INDEX(Inputs!$A$49:$A$124,ROWS($B$13:B33)),"0000"),"") ->  | C33: =IF(B33="","",INDEX(Inputs!$B$49:$B$124,ROWS($B$13:B33))) ->  | E33: =IF(B33="","",IFERROR(INDEX('Pure Premium Rates'!$B$2:$Q$569,MATCH(TEXT(B33,"0000"),INDEX(TEXT('Pure Premium Rates'!$A$2:$A$569,"0000"),0),0),MATCH($D$7,'Pure Premium Rates'!$B$1:$Q$1,1)),"")) -> 
B34: =IF(ROWS($B$13:B34)<=Inputs!$B$46,TEXT(INDEX(Inputs!$A$49:$A$124,ROWS($B$13:B34)),"0000"),"") ->  | C34: =IF(B34="","",INDEX(Inputs!$B$49:$B$124,ROWS($B$13:B34))) ->  | E34: =IF(B34="","",IFERROR(INDEX('Pure Premium Rates'!$B$2:$Q$569,MATCH(TEXT(B34,"0000"),INDEX(TEXT('Pure Premium Rates'!$A$2:$A$569,"0000"),0),0),MATCH($D$7,'Pure Premium Rates'!$B$1:$Q$1,1)),"")) -> 
B35: =IF(ROWS($B$13:B35)<=Inputs!$B$46,TEXT(INDEX(Inputs!$A$49:$A$124,ROWS($B$13:B35)),"0000"),"") ->  | C35: =IF(B35="","",INDEX(Inputs!$B$49:$B$124,ROWS($B$13:B35))) ->  | E35: =IF(B35="","",IFERROR(INDEX('Pure Premium Rates'!$B$2:$Q$569,MATCH(TEXT(B35,"0000"),INDEX(TEXT('Pure Premium Rates'!$A$2:$A$569,"0000"),0),0),MATCH($D$7,'Pure Premium Rates'!$B$1:$Q$1,1)),"")) -> 
B36: =IF(ROWS($B$13:B36)<=Inputs!$B$46,TEXT(INDEX(Inputs!$A$49:$A$124,ROWS($B$13:B36)),"0000"),"") ->  | C36: =IF(B36="","",INDEX(Inputs!$B$49:$B$124,ROWS($B$13:B36))) ->  | E36: =IF(B36="","",IFERROR(INDEX('Pure Premium Rates'!$B$2:$Q$569,MATCH(TEXT(B36,"0000"),INDEX(TEXT('Pure Premium Rates'!$A$2:$A$569,"0000"),0),0),MATCH($D$7,'Pure Premium Rates'!$B$1:$Q$1,1)),"")) -> 
B37: =IF(ROWS($B$13:B37)<=Inputs!$B$46,TEXT(INDEX(Inputs!$A$49:$A$124,ROWS($B$13:B37)),"0000"),"") ->  | C37: =IF(B37="","",INDEX(Inputs!$B$49:$B$124,ROWS($B$13:B37))) ->  | E37: =IF(B37="","",IFERROR(INDEX('Pure Premium Rates'!$B$2:$Q$569,MATCH(TEXT(B37,"0000"),INDEX(TEXT('Pure Premium Rates'!$A$2:$A$569,"0000"),0),0),MATCH($D$7,'Pure Premium Rates'!$B$1:$Q$1,1)),"")) -> 
B38: =IF(ROWS($B$13:B38)<=Inputs!$B$46,TEXT(INDEX(Inputs!$A$49:$A$124,ROWS($B$13:B38)),"0000"),"") ->  | C38: =IF(B38="","",INDEX(Inputs!$B$49:$B$124,ROWS($B$13:B38))) ->  | E38: =IF(B38="","",IFERROR(INDEX('Pure Premium Rates'!$B$2:$Q$569,MATCH(TEXT(B38,"0000"),INDEX(TEXT('Pure Premium Rates'!$A$2:$A$569,"0000"),0),0),MATCH($D$7,'Pure Premium Rates'!$B$1:$Q$1,1)),"")) -> 
B39: =IF(ROWS($B$13:B39)<=Inputs!$B$46,TEXT(INDEX(Inputs!$A$49:$A$124,ROWS($B$13:B39)),"0000"),"") ->  | C39: =IF(B39="","",INDEX(Inputs!$B$49:$B$124,ROWS($B$13:B39))) ->  | E39: =IF(B39="","",IFERROR(INDEX('Pure Premium Rates'!$B$2:$Q$569,MATCH(TEXT(B39,"0000"),INDEX(TEXT('Pure Premium Rates'!$A$2:$A$569,"0000"),0),0),MATCH($D$7,'Pure Premium Rates'!$B$1:$Q$1,1)),"")) -> 
B40: =IF(ROWS($B$13:B40)<=Inputs!$B$46,TEXT(INDEX(Inputs!$A$49:$A$124,ROWS($B$13:B40)),"0000"),"") ->  | C40: =IF(B40="","",INDEX(Inputs!$B$49:$B$124,ROWS($B$13:B40))) ->  | E40: =IF(B40="","",IFERROR(INDEX('Pure Premium Rates'!$B$2:$Q$569,MATCH(TEXT(B40,"0000"),INDEX(TEXT('Pure Premium Rates'!$A$2:$A$569,"0000"),0),0),MATCH($D$7,'Pure Premium Rates'!$B$1:$Q$1,1)),"")) -> 
B41: =IF(ROWS($B$13:B41)<=Inputs!$B$46,TEXT(INDEX(Inputs!$A$49:$A$124,ROWS($B$13:B41)),"0000"),"") ->  | C41: =IF(B41="","",INDEX(Inputs!$B$49:$B$124,ROWS($B$13:B41))) ->  | E41: =IF(B41="","",IFERROR(INDEX('Pure Premium Rates'!$B$2:$Q$569,MATCH(TEXT(B41,"0000"),INDEX(TEXT('Pure Premium Rates'!$A$2:$A$569,"0000"),0),0),MATCH($D$7,'Pure Premium Rates'!$B$1:$Q$1,1)),"")) -> 
B42: =IF(ROWS($B$13:B42)<=Inputs!$B$46,TEXT(INDEX(Inputs!$A$49:$A$124,ROWS($B$13:B42)),"0000"),"") ->  | C42: =IF(B42="","",INDEX(Inputs!$B$49:$B$124,ROWS($B$13:B42))) ->  | E42: =IF(B42="","",IFERROR(INDEX('Pure Premium Rates'!$B$2:$Q$569,MATCH(TEXT(B42,"0000"),INDEX(TEXT('Pure Premium Rates'!$A$2:$A$569,"0000"),0),0),MATCH($D$7,'Pure Premium Rates'!$B$1:$Q$1,1)),"")) -> 
B43: =IF(ROWS($B$13:B43)<=Inputs!$B$46,TEXT(INDEX(Inputs!$A$49:$A$124,ROWS($B$13:B43)),"0000"),"") ->  | C43: =IF(B43="","",INDEX(Inputs!$B$49:$B$124,ROWS($B$13:B43))) ->  | E43: =IF(B43="","",IFERROR(INDEX('Pure Premium Rates'!$B$2:$Q$569,MATCH(TEXT(B43,"0000"),INDEX(TEXT('Pure Premium Rates'!$A$2:$A$569,"0000"),0),0),MATCH($D$7,'Pure Premium Rates'!$B$1:$Q$1,1)),"")) -> 
B44: =IF(ROWS($B$13:B44)<=Inputs!$B$46,TEXT(INDEX(Inputs!$A$49:$A$124,ROWS($B$13:B44)),"0000"),"") ->  | C44: =IF(B44="","",INDEX(Inputs!$B$49:$B$124,ROWS($B$13:B44))) ->  | E44: =IF(B44="","",IFERROR(INDEX('Pure Premium Rates'!$B$2:$Q$569,MATCH(TEXT(B44,"0000"),INDEX(TEXT('Pure Premium Rates'!$A$2:$A$569,"0000"),0),0),MATCH($D$7,'Pure Premium Rates'!$B$1:$Q$1,1)),"")) -> 
B45: =IF(ROWS($B$13:B45)<=Inputs!$B$46,TEXT(INDEX(Inputs!$A$49:$A$124,ROWS($B$13:B45)),"0000"),"") ->  | C45: =IF(B45="","",INDEX(Inputs!$B$49:$B$124,ROWS($B$13:B45))) ->  | E45: =IF(B45="","",IFERROR(INDEX('Pure Premium Rates'!$B$2:$Q$569,MATCH(TEXT(B45,"0000"),INDEX(TEXT('Pure Premium Rates'!$A$2:$A$569,"0000"),0),0),MATCH($D$7,'Pure Premium Rates'!$B$1:$Q$1,1)),"")) -> 
B46: =IF(ROWS($B$13:B46)<=Inputs!$B$46,TEXT(INDEX(Inputs!$A$49:$A$124,ROWS($B$13:B46)),"0000"),"") ->  | C46: =IF(B46="","",INDEX(Inputs!$B$49:$B$124,ROWS($B$13:B46))) ->  | E46: =IF(B46="","",IFERROR(INDEX('Pure Premium Rates'!$B$2:$Q$569,MATCH(TEXT(B46,"0000"),INDEX(TEXT('Pure Premium Rates'!$A$2:$A$569,"0000"),0),0),MATCH($D$7,'Pure Premium Rates'!$B$1:$Q$1,1)),"")) -> 
B47: =IF(ROWS($B$13:B47)<=Inputs!$B$46,TEXT(INDEX(Inputs!$A$49:$A$124,ROWS($B$13:B47)),"0000"),"") ->  | C47: =IF(B47="","",INDEX(Inputs!$B$49:$B$124,ROWS($B$13:B47))) ->  | E47: =IF(B47="","",IFERROR(INDEX('Pure Premium Rates'!$B$2:$Q$569,MATCH(TEXT(B47,"0000"),INDEX(TEXT('Pure Premium Rates'!$A$2:$A$569,"0000"),0),0),MATCH($D$7,'Pure Premium Rates'!$B$1:$Q$1,1)),"")) -> 
B48: =IF(ROWS($B$13:B48)<=Inputs!$B$46,TEXT(INDEX(Inputs!$A$49:$A$124,ROWS($B$13:B48)),"0000"),"") ->  | C48: =IF(B48="","",INDEX(Inputs!$B$49:$B$124,ROWS($B$13:B48))) ->  | E48: =IF(B48="","",IFERROR(INDEX('Pure Premium Rates'!$B$2:$Q$569,MATCH(TEXT(B48,"0000"),INDEX(TEXT('Pure Premium Rates'!$A$2:$A$569,"0000"),0),0),MATCH($D$7,'Pure Premium Rates'!$B$1:$Q$1,1)),"")) -> 
B49: =IF(ROWS($B$13:B49)<=Inputs!$B$46,TEXT(INDEX(Inputs!$A$49:$A$124,ROWS($B$13:B49)),"0000"),"") ->  | C49: =IF(B49="","",INDEX(Inputs!$B$49:$B$124,ROWS($B$13:B49))) ->  | E49: =IF(B49="","",IFERROR(INDEX('Pure Premium Rates'!$B$2:$Q$569,MATCH(TEXT(B49,"0000"),INDEX(TEXT('Pure Premium Rates'!$A$2:$A$569,"0000"),0),0),MATCH($D$7,'Pure Premium Rates'!$B$1:$Q$1,1)),"")) -> 
B50: =IF(ROWS($B$13:B50)<=Inputs!$B$46,TEXT(INDEX(Inputs!$A$49:$A$124,ROWS($B$13:B50)),"0000"),"") ->  | C50: =IF(B50="","",INDEX(Inputs!$B$49:$B$124,ROWS($B$13:B50))) ->  | E50: =IF(B50="","",IFERROR(INDEX('Pure Premium Rates'!$B$2:$Q$569,MATCH(TEXT(B50,"0000"),INDEX(TEXT('Pure Premium Rates'!$A$2:$A$569,"0000"),0),0),MATCH($D$7,'Pure Premium Rates'!$B$1:$Q$1,1)),"")) -> 
B51: =IF(ROWS($B$13:B51)<=Inputs!$B$46,TEXT(INDEX(Inputs!$A$49:$A$124,ROWS($B$13:B51)),"0000"),"") ->  | C51: =IF(B51="","",INDEX(Inputs!$B$49:$B$124,ROWS($B$13:B51))) ->  | E51: =IF(B51="","",IFERROR(INDEX('Pure Premium Rates'!$B$2:$Q$569,MATCH(TEXT(B51,"0000"),INDEX(TEXT('Pure Premium Rates'!$A$2:$A$569,"0000"),0),0),MATCH($D$7,'Pure Premium Rates'!$B$1:$Q$1,1)),"")) -> 
B52: =IF(ROWS($B$13:B52)<=Inputs!$B$46,TEXT(INDEX(Inputs!$A$49:$A$124,ROWS($B$13:B52)),"0000"),"") ->  | C52: =IF(B52="","",INDEX(Inputs!$B$49:$B$124,ROWS($B$13:B52))) ->  | E52: =IF(B52="","",IFERROR(INDEX('Pure Premium Rates'!$B$2:$Q$569,MATCH(TEXT(B52,"0000"),INDEX(TEXT('Pure Premium Rates'!$A$2:$A$569,"0000"),0),0),MATCH($D$7,'Pure Premium Rates'!$B$1:$Q$1,1)),"")) -> 
B53: =IF(ROWS($B$13:B53)<=Inputs!$B$46,TEXT(INDEX(Inputs!$A$49:$A$124,ROWS($B$13:B53)),"0000"),"") ->  | C53: =IF(B53="","",INDEX(Inputs!$B$49:$B$124,ROWS($B$13:B53))) ->  | E53: =IF(B53="","",IFERROR(INDEX('Pure Premium Rates'!$B$2:$Q$569,MATCH(TEXT(B53,"0000"),INDEX(TEXT('Pure Premium Rates'!$A$2:$A$569,"0000"),0),0),MATCH($D$7,'Pure Premium Rates'!$B$1:$Q$1,1)),"")) -> 
B54: =IF(ROWS($B$13:B54)<=Inputs!$B$46,TEXT(INDEX(Inputs!$A$49:$A$124,ROWS($B$13:B54)),"0000"),"") ->  | C54: =IF(B54="","",INDEX(Inputs!$B$49:$B$124,ROWS($B$13:B54))) ->  | E54: =IF(B54="","",IFERROR(INDEX('Pure Premium Rates'!$B$2:$Q$569,MATCH(TEXT(B54,"0000"),INDEX(TEXT('Pure Premium Rates'!$A$2:$A$569,"0000"),0),0),MATCH($D$7,'Pure Premium Rates'!$B$1:$Q$1,1)),"")) -> 
B55: =IF(ROWS($B$13:B55)<=Inputs!$B$46,TEXT(INDEX(Inputs!$A$49:$A$124,ROWS($B$13:B55)),"0000"),"") ->  | C55: =IF(B55="","",INDEX(Inputs!$B$49:$B$124,ROWS($B$13:B55))) ->  | E55: =IF(B55="","",IFERROR(INDEX('Pure Premium Rates'!$B$2:$Q$569,MATCH(TEXT(B55,"0000"),INDEX(TEXT('Pure Premium Rates'!$A$2:$A$569,"0000"),0),0),MATCH($D$7,'Pure Premium Rates'!$B$1:$Q$1,1)),"")) -> 
B56: =IF(ROWS($B$13:B56)<=Inputs!$B$46,TEXT(INDEX(Inputs!$A$49:$A$124,ROWS($B$13:B56)),"0000"),"") ->  | C56: =IF(B56="","",INDEX(Inputs!$B$49:$B$124,ROWS($B$13:B56))) ->  | E56: =IF(B56="","",IFERROR(INDEX('Pure Premium Rates'!$B$2:$Q$569,MATCH(TEXT(B56,"0000"),INDEX(TEXT('Pure Premium Rates'!$A$2:$A$569,"0000"),0),0),MATCH($D$7,'Pure Premium Rates'!$B$1:$Q$1,1)),"")) -> 
B57: =IF(ROWS($B$13:B57)<=Inputs!$B$46,TEXT(INDEX(Inputs!$A$49:$A$124,ROWS($B$13:B57)),"0000"),"") ->  | C57: =IF(B57="","",INDEX(Inputs!$B$49:$B$124,ROWS($B$13:B57))) ->  | E57: =IF(B57="","",IFERROR(INDEX('Pure Premium Rates'!$B$2:$Q$569,MATCH(TEXT(B57,"0000"),INDEX(TEXT('Pure Premium Rates'!$A$2:$A$569,"0000"),0),0),MATCH($D$7,'Pure Premium Rates'!$B$1:$Q$1,1)),"")) -> 
B58: =IF(ROWS($B$13:B58)<=Inputs!$B$46,TEXT(INDEX(Inputs!$A$49:$A$124,ROWS($B$13:B58)),"0000"),"") ->  | C58: =IF(B58="","",INDEX(Inputs!$B$49:$B$124,ROWS($B$13:B58))) ->  | E58: =IF(B58="","",IFERROR(INDEX('Pure Premium Rates'!$B$2:$Q$569,MATCH(TEXT(B58,"0000"),INDEX(TEXT('Pure Premium Rates'!$A$2:$A$569,"0000"),0),0),MATCH($D$7,'Pure Premium Rates'!$B$1:$Q$1,1)),"")) -> 
B59: =IF(ROWS($B$13:B59)<=Inputs!$B$46,TEXT(INDEX(Inputs!$A$49:$A$124,ROWS($B$13:B59)),"0000"),"") ->  | C59: =IF(B59="","",INDEX(Inputs!$B$49:$B$124,ROWS($B$13:B59))) ->  | E59: =IF(B59="","",IFERROR(INDEX('Pure Premium Rates'!$B$2:$Q$569,MATCH(TEXT(B59,"0000"),INDEX(TEXT('Pure Premium Rates'!$A$2:$A$569,"0000"),0),0),MATCH($D$7,'Pure Premium Rates'!$B$1:$Q$1,1)),"")) -> 
B60: =IF(ROWS($B$13:B60)<=Inputs!$B$46,TEXT(INDEX(Inputs!$A$49:$A$124,ROWS($B$13:B60)),"0000"),"") ->  | C60: =IF(B60="","",INDEX(Inputs!$B$49:$B$124,ROWS($B$13:B60))) ->  | E60: =IF(B60="","",IFERROR(INDEX('Pure Premium Rates'!$B$2:$Q$569,MATCH(TEXT(B60,"0000"),INDEX(TEXT('Pure Premium Rates'!$A$2:$A$569,"0000"),0),0),MATCH($D$7,'Pure Premium Rates'!$B$1:$Q$1,1)),"")) -> 
B61: =IF(ROWS($B$13:B61)<=Inputs!$B$46,TEXT(INDEX(Inputs!$A$49:$A$124,ROWS($B$13:B61)),"0000"),"") ->  | C61: =IF(B61="","",INDEX(Inputs!$B$49:$B$124,ROWS($B$13:B61))) ->  | E61: =IF(B61="","",IFERROR(INDEX('Pure Premium Rates'!$B$2:$Q$569,MATCH(TEXT(B61,"0000"),INDEX(TEXT('Pure Premium Rates'!$A$2:$A$569,"0000"),0),0),MATCH($D$7,'Pure Premium Rates'!$B$1:$Q$1,1)),"")) -> 
B62: =IF(ROWS($B$13:B62)<=Inputs!$B$46,TEXT(INDEX(Inputs!$A$49:$A$124,ROWS($B$13:B62)),"0000"),"") ->  | C62: =IF(B62="","",INDEX(Inputs!$B$49:$B$124,ROWS($B$13:B62))) ->  | E62: =IF(B62="","",IFERROR(INDEX('Pure Premium Rates'!$B$2:$Q$569,MATCH(TEXT(B62,"0000"),INDEX(TEXT('Pure Premium Rates'!$A$2:$A$569,"0000"),0),0),MATCH($D$7,'Pure Premium Rates'!$B$1:$Q$1,1)),"")) -> 
B63: =IF(ROWS($B$13:B63)<=Inputs!$B$46,TEXT(INDEX(Inputs!$A$49:$A$124,ROWS($B$13:B63)),"0000"),"") ->  | C63: =IF(B63="","",INDEX(Inputs!$B$49:$B$124,ROWS($B$13:B63))) ->  | E63: =IF(B63="","",IFERROR(INDEX('Pure Premium Rates'!$B$2:$Q$569,MATCH(TEXT(B63,"0000"),INDEX(TEXT('Pure Premium Rates'!$A$2:$A$569,"0000"),0),0),MATCH($D$7,'Pure Premium Rates'!$B$1:$Q$1,1)),"")) -> 
B64: =IF(ROWS($B$13:B64)<=Inputs!$B$46,TEXT(INDEX(Inputs!$A$49:$A$124,ROWS($B$13:B64)),"0000"),"") ->  | C64: =IF(B64="","",INDEX(Inputs!$B$49:$B$124,ROWS($B$13:B64))) ->  | E64: =IF(B64="","",IFERROR(INDEX('Pure Premium Rates'!$B$2:$Q$569,MATCH(TEXT(B64,"0000"),INDEX(TEXT('Pure Premium Rates'!$A$2:$A$569,"0000"),0),0),MATCH($D$7,'Pure Premium Rates'!$B$1:$Q$1,1)),"")) -> 
B65: =IF(ROWS($B$13:B65)<=Inputs!$B$46,TEXT(INDEX(Inputs!$A$49:$A$124,ROWS($B$13:B65)),"0000"),"") ->  | C65: =IF(B65="","",INDEX(Inputs!$B$49:$B$124,ROWS($B$13:B65))) ->  | E65: =IF(B65="","",IFERROR(INDEX('Pure Premium Rates'!$B$2:$Q$569,MATCH(TEXT(B65,"0000"),INDEX(TEXT('Pure Premium Rates'!$A$2:$A$569,"0000"),0),0),MATCH($D$7,'Pure Premium Rates'!$B$1:$Q$1,1)),"")) -> 
B66: =IF(ROWS($B$13:B66)<=Inputs!$B$46,TEXT(INDEX(Inputs!$A$49:$A$124,ROWS($B$13:B66)),"0000"),"") ->  | C66: =IF(B66="","",INDEX(Inputs!$B$49:$B$124,ROWS($B$13:B66))) ->  | E66: =IF(B66="","",IFERROR(INDEX('Pure Premium Rates'!$B$2:$Q$569,MATCH(TEXT(B66,"0000"),INDEX(TEXT('Pure Premium Rates'!$A$2:$A$569,"0000"),0),0),MATCH($D$7,'Pure Premium Rates'!$B$1:$Q$1,1)),"")) -> 
B67: =IF(ROWS($B$13:B67)<=Inputs!$B$46,TEXT(INDEX(Inputs!$A$49:$A$124,ROWS($B$13:B67)),"0000"),"") ->  | C67: =IF(B67="","",INDEX(Inputs!$B$49:$B$124,ROWS($B$13:B67))) ->  | E67: =IF(B67="","",IFERROR(INDEX('Pure Premium Rates'!$B$2:$Q$569,MATCH(TEXT(B67,"0000"),INDEX(TEXT('Pure Premium Rates'!$A$2:$A$569,"0000"),0),0),MATCH($D$7,'Pure Premium Rates'!$B$1:$Q$1,1)),"")) -> 
B68: =IF(ROWS($B$13:B68)<=Inputs!$B$46,TEXT(INDEX(Inputs!$A$49:$A$124,ROWS($B$13:B68)),"0000"),"") ->  | C68: =IF(B68="","",INDEX(Inputs!$B$49:$B$124,ROWS($B$13:B68))) ->  | E68: =IF(B68="","",IFERROR(INDEX('Pure Premium Rates'!$B$2:$Q$569,MATCH(TEXT(B68,"0000"),INDEX(TEXT('Pure Premium Rates'!$A$2:$A$569,"0000"),0),0),MATCH($D$7,'Pure Premium Rates'!$B$1:$Q$1,1)),"")) -> 
B69: =IF(ROWS($B$13:B69)<=Inputs!$B$46,TEXT(INDEX(Inputs!$A$49:$A$124,ROWS($B$13:B69)),"0000"),"") ->  | C69: =IF(B69="","",INDEX(Inputs!$B$49:$B$124,ROWS($B$13:B69))) ->  | E69: =IF(B69="","",IFERROR(INDEX('Pure Premium Rates'!$B$2:$Q$569,MATCH(TEXT(B69,"0000"),INDEX(TEXT('Pure Premium Rates'!$A$2:$A$569,"0000"),0),0),MATCH($D$7,'Pure Premium Rates'!$B$1:$Q$1,1)),"")) -> 
B70: =IF(ROWS($B$13:B70)<=Inputs!$B$46,TEXT(INDEX(Inputs!$A$49:$A$124,ROWS($B$13:B70)),"0000"),"") ->  | C70: =IF(B70="","",INDEX(Inputs!$B$49:$B$124,ROWS($B$13:B70))) ->  | E70: =IF(B70="","",IFERROR(INDEX('Pure Premium Rates'!$B$2:$Q$569,MATCH(TEXT(B70,"0000"),INDEX(TEXT('Pure Premium Rates'!$A$2:$A$569,"0000"),0),0),MATCH($D$7,'Pure Premium Rates'!$B$1:$Q$1,1)),"")) -> 
B71: =IF(ROWS($B$13:B71)<=Inputs!$B$46,TEXT(INDEX(Inputs!$A$49:$A$124,ROWS($B$13:B71)),"0000"),"") ->  | C71: =IF(B71="","",INDEX(Inputs!$B$49:$B$124,ROWS($B$13:B71))) ->  | E71: =IF(B71="","",IFERROR(INDEX('Pure Premium Rates'!$B$2:$Q$569,MATCH(TEXT(B71,"0000"),INDEX(TEXT('Pure Premium Rates'!$A$2:$A$569,"0000"),0),0),MATCH($D$7,'Pure Premium Rates'!$B$1:$Q$1,1)),"")) -> 
B72: =IF(ROWS($B$13:B72)<=Inputs!$B$46,TEXT(INDEX(Inputs!$A$49:$A$124,ROWS($B$13:B72)),"0000"),"") ->  | C72: =IF(B72="","",INDEX(Inputs!$B$49:$B$124,ROWS($B$13:B72))) ->  | E72: =IF(B72="","",IFERROR(INDEX('Pure Premium Rates'!$B$2:$Q$569,MATCH(TEXT(B72,"0000"),INDEX(TEXT('Pure Premium Rates'!$A$2:$A$569,"0000"),0),0),MATCH($D$7,'Pure Premium Rates'!$B$1:$Q$1,1)),"")) -> 
B73: =IF(ROWS($B$13:B73)<=Inputs!$B$46,TEXT(INDEX(Inputs!$A$49:$A$124,ROWS($B$13:B73)),"0000"),"") ->  | C73: =IF(B73="","",INDEX(Inputs!$B$49:$B$124,ROWS($B$13:B73))) ->  | E73: =IF(B73="","",IFERROR(INDEX('Pure Premium Rates'!$B$2:$Q$569,MATCH(TEXT(B73,"0000"),INDEX(TEXT('Pure Premium Rates'!$A$2:$A$569,"0000"),0),0),MATCH($D$7,'Pure Premium Rates'!$B$1:$Q$1,1)),"")) -> 
B74: =IF(ROWS($B$13:B74)<=Inputs!$B$46,TEXT(INDEX(Inputs!$A$49:$A$124,ROWS($B$13:B74)),"0000"),"") ->  | C74: =IF(B74="","",INDEX(Inputs!$B$49:$B$124,ROWS($B$13:B74))) ->  | E74: =IF(B74="","",IFERROR(INDEX('Pure Premium Rates'!$B$2:$Q$569,MATCH(TEXT(B74,"0000"),INDEX(TEXT('Pure Premium Rates'!$A$2:$A$569,"0000"),0),0),MATCH($D$7,'Pure Premium Rates'!$B$1:$Q$1,1)),"")) -> 
B75: =IF(ROWS($B$13:B75)<=Inputs!$B$46,TEXT(INDEX(Inputs!$A$49:$A$124,ROWS($B$13:B75)),"0000"),"") ->  | C75: =IF(B75="","",INDEX(Inputs!$B$49:$B$124,ROWS($B$13:B75))) ->  | E75: =IF(B75="","",IFERROR(INDEX('Pure Premium Rates'!$B$2:$Q$569,MATCH(TEXT(B75,"0000"),INDEX(TEXT('Pure Premium Rates'!$A$2:$A$569,"0000"),0),0),MATCH($D$7,'Pure Premium Rates'!$B$1:$Q$1,1)),"")) -> 
B76: =IF(ROWS($B$13:B76)<=Inputs!$B$46,TEXT(INDEX(Inputs!$A$49:$A$124,ROWS($B$13:B76)),"0000"),"") ->  | C76: =IF(B76="","",INDEX(Inputs!$B$49:$B$124,ROWS($B$13:B76))) ->  | E76: =IF(B76="","",IFERROR(INDEX('Pure Premium Rates'!$B$2:$Q$569,MATCH(TEXT(B76,"0000"),INDEX(TEXT('Pure Premium Rates'!$A$2:$A$569,"0000"),0),0),MATCH($D$7,'Pure Premium Rates'!$B$1:$Q$1,1)),"")) -> 
B77: =IF(ROWS($B$13:B77)<=Inputs!$B$46,TEXT(INDEX(Inputs!$A$49:$A$124,ROWS($B$13:B77)),"0000"),"") ->  | C77: =IF(B77="","",INDEX(Inputs!$B$49:$B$124,ROWS($B$13:B77))) ->  | E77: =IF(B77="","",IFERROR(INDEX('Pure Premium Rates'!$B$2:$Q$569,MATCH(TEXT(B77,"0000"),INDEX(TEXT('Pure Premium Rates'!$A$2:$A$569,"0000"),0),0),MATCH($D$7,'Pure Premium Rates'!$B$1:$Q$1,1)),"")) -> 
B78: =IF(ROWS($B$13:B78)<=Inputs!$B$46,TEXT(INDEX(Inputs!$A$49:$A$124,ROWS($B$13:B78)),"0000"),"") ->  | C78: =IF(B78="","",INDEX(Inputs!$B$49:$B$124,ROWS($B$13:B78))) ->  | E78: =IF(B78="","",IFERROR(INDEX('Pure Premium Rates'!$B$2:$Q$569,MATCH(TEXT(B78,"0000"),INDEX(TEXT('Pure Premium Rates'!$A$2:$A$569,"0000"),0),0),MATCH($D$7,'Pure Premium Rates'!$B$1:$Q$1,1)),"")) -> 
B79: =IF(ROWS($B$13:B79)<=Inputs!$B$46,TEXT(INDEX(Inputs!$A$49:$A$124,ROWS($B$13:B79)),"0000"),"") ->  | C79: =IF(B79="","",INDEX(Inputs!$B$49:$B$124,ROWS($B$13:B79))) ->  | D79: =IF(C79="","",VALUE(C79)/100) ->  | E79: =IF(B79="","",IFERROR(INDEX('Pure Premium Rates'!$B$2:$Q$569,MATCH(TEXT(B79,"0000"),INDEX(TEXT('Pure Premium Rates'!$A$2:$A$569,"0000"),0),0),MATCH($D$7,'Pure Premium Rates'!$B$1:$Q$1,1)),"")) ->  | F79: =IF(OR(D79="",E79=""),"",D79*E79) -> 
B80: =IF(ROWS($B$13:B80)<=Inputs!$B$46,TEXT(INDEX(Inputs!$A$49:$A$124,ROWS($B$13:B80)),"0000"),"") ->  | C80: =IF(B80="","",INDEX(Inputs!$B$49:$B$124,ROWS($B$13:B80))) ->  | E80: =IF(B80="","",IFERROR(INDEX('Pure Premium Rates'!$B$2:$Q$569,MATCH(TEXT(B80,"0000"),INDEX(TEXT('Pure Premium Rates'!$A$2:$A$569,"0000"),0),0),MATCH($D$7,'Pure Premium Rates'!$B$1:$Q$1,1)),"")) -> 
B81: =IF(ROWS($B$13:B81)<=Inputs!$B$46,TEXT(INDEX(Inputs!$A$49:$A$124,ROWS($B$13:B81)),"0000"),"") ->  | C81: =IF(B81="","",INDEX(Inputs!$B$49:$B$124,ROWS($B$13:B81))) ->  | E81: =IF(B81="","",IFERROR(INDEX('Pure Premium Rates'!$B$2:$Q$569,MATCH(TEXT(B81,"0000"),INDEX(TEXT('Pure Premium Rates'!$A$2:$A$569,"0000"),0),0),MATCH($D$7,'Pure Premium Rates'!$B$1:$Q$1,1)),"")) -> 
B82: =IF(ROWS($B$13:B82)<=Inputs!$B$46,TEXT(INDEX(Inputs!$A$49:$A$124,ROWS($B$13:B82)),"0000"),"") ->  | C82: =IF(B82="","",INDEX(Inputs!$B$49:$B$124,ROWS($B$13:B82))) ->  | E82: =IF(B82="","",IFERROR(INDEX('Pure Premium Rates'!$B$2:$Q$569,MATCH(TEXT(B82,"0000"),INDEX(TEXT('Pure Premium Rates'!$A$2:$A$569,"0000"),0),0),MATCH($D$7,'Pure Premium Rates'!$B$1:$Q$1,1)),"")) -> 
B83: =IF(ROWS($B$13:B83)<=Inputs!$B$46,TEXT(INDEX(Inputs!$A$49:$A$124,ROWS($B$13:B83)),"0000"),"") ->  | C83: =IF(B83="","",INDEX(Inputs!$B$49:$B$124,ROWS($B$13:B83))) ->  | E83: =IF(B83="","",IFERROR(INDEX('Pure Premium Rates'!$B$2:$Q$569,MATCH(TEXT(B83,"0000"),INDEX(TEXT('Pure Premium Rates'!$A$2:$A$569,"0000"),0),0),MATCH($D$7,'Pure Premium Rates'!$B$1:$Q$1,1)),"")) -> 
B84: =IF(ROWS($B$13:B84)<=Inputs!$B$46,TEXT(INDEX(Inputs!$A$49:$A$124,ROWS($B$13:B84)),"0000"),"") ->  | C84: =IF(B84="","",INDEX(Inputs!$B$49:$B$124,ROWS($B$13:B84))) ->  | E84: =IF(B84="","",IFERROR(INDEX('Pure Premium Rates'!$B$2:$Q$569,MATCH(TEXT(B84,"0000"),INDEX(TEXT('Pure Premium Rates'!$A$2:$A$569,"0000"),0),0),MATCH($D$7,'Pure Premium Rates'!$B$1:$Q$1,1)),"")) -> 
B85: =IF(ROWS($B$13:B85)<=Inputs!$B$46,TEXT(INDEX(Inputs!$A$49:$A$124,ROWS($B$13:B85)),"0000"),"") ->  | C85: =IF(B85="","",INDEX(Inputs!$B$49:$B$124,ROWS($B$13:B85))) ->  | E85: =IF(B85="","",IFERROR(INDEX('Pure Premium Rates'!$B$2:$Q$569,MATCH(TEXT(B85,"0000"),INDEX(TEXT('Pure Premium Rates'!$A$2:$A$569,"0000"),0),0),MATCH($D$7,'Pure Premium Rates'!$B$1:$Q$1,1)),"")) -> 
B86: =IF(ROWS($B$13:B86)<=Inputs!$B$46,TEXT(INDEX(Inputs!$A$49:$A$124,ROWS($B$13:B86)),"0000"),"") ->  | C86: =IF(B86="","",INDEX(Inputs!$B$49:$B$124,ROWS($B$13:B86))) ->  | E86: =IF(B86="","",IFERROR(INDEX('Pure Premium Rates'!$B$2:$Q$569,MATCH(TEXT(B86,"0000"),INDEX(TEXT('Pure Premium Rates'!$A$2:$A$569,"0000"),0),0),MATCH($D$7,'Pure Premium Rates'!$B$1:$Q$1,1)),"")) -> 
B87: =IF(ROWS($B$13:B87)<=Inputs!$B$46,TEXT(INDEX(Inputs!$A$49:$A$124,ROWS($B$13:B87)),"0000"),"") ->  | C87: =IF(B87="","",INDEX(Inputs!$B$49:$B$124,ROWS($B$13:B87))) ->  | E87: =IF(B87="","",IFERROR(INDEX('Pure Premium Rates'!$B$2:$Q$569,MATCH(TEXT(B87,"0000"),INDEX(TEXT('Pure Premium Rates'!$A$2:$A$569,"0000"),0),0),MATCH($D$7,'Pure Premium Rates'!$B$1:$Q$1,1)),"")) -> 
B88: =IF(ROWS($B$13:B88)<=Inputs!$B$46,TEXT(INDEX(Inputs!$A$49:$A$124,ROWS($B$13:B88)),"0000"),"") ->  | C88: =IF(B88="","",INDEX(Inputs!$B$49:$B$124,ROWS($B$13:B88))) ->  | E88: =IF(B88="","",IFERROR(INDEX('Pure Premium Rates'!$B$2:$Q$569,MATCH(TEXT(B88,"0000"),INDEX(TEXT('Pure Premium Rates'!$A$2:$A$569,"0000"),0),0),MATCH($D$7,'Pure Premium Rates'!$B$1:$Q$1,1)),"")) -> 
A90: =F9-1 -> -6 | B90: Total | F90: =SUM(F13:INDEX(F:F,12+Inputs!$B$46)) -> 337240
A92: =A90-1 -> -7 | B92: Experience Modification Rating at policy inception date | F92: =Inputs!D21 -> 0.86
A94: =A92-1 -> -8 | B94: 1.15 Factor (Expense and Market Provision) | F94: 1.15
A96: =A94-1 -> -9 | B96: California Standard Premium | F96: =F90*F92*F94 -> 333530.36
B98: Notes
B99: =B9 -> -1 | C99: Provided by CIC.
B100: =B99-1 -> -2 | C100: Provided by CIC.
B101: -3 | C101: ="("&-C9&") / 100" -> (2) / 100
B102: -4 | C102: WCIRB pure premium rate effective at policy inception date.
B103: -5 | C103: ="("&-D9&") x ("&-E9&")" -> (3) x (4)
B104: -6 | C104: ="Sum of column ("&-F9&")." -> Sum of column (5).
B105: -7 | C105: Provided by CIC.
B106: -8 | C106: From Schedule 2.6, Section IV, Subsection 2.b.iv.
C107: of Conservator Rehabilitation Plan.
B108: =B106-1 -> -9 | C108: ="("&-A90&") x ("&-A92&") x ("&-A94&")" -> (6) x (7) x (8)

Sheet CA Standard Premium - Yr2
A1: ='Interpolated Development'!A1 -> California Insurance Company Rehabilitation Plan
A2: ='Interpolated Development'!A2 -> Options to Settle Litigation Related to XYZ Company
A3: ='Interpolated Development'!A3 -> Equity Comp and Solution One Programs and RPA
A5: Option 2 - California Standard Premium
B7: Policy Effective Date: | D7: ='CA Standard Premium - Yr1'!D7+365 -> 2014-06-01
B9: =-1 -> -1 | C9: =B9-1 -> -2 | D9: =C9-1 -> -3 | E9: =D9-1 -> -4 | F9: =E9-1 -> -5
C10: Actual | D10: Payroll | E10: Pure Premium | F10: Expected
B11: Class Code | C11: Payroll | D11: Exposure | E11: Rate | F11: Losses
B13: =IF(ROWS($B$13:B13)<=Inputs!$C$46,TEXT(INDEX(Inputs!$A$49:$A$124,ROWS($B$13:B13)),"0000"),"") -> 3831 | C13: =IF(B13="","",INDEX(Inputs!$C$49:$C$124,ROWS($B$13:B13))) -> 8108736 | D13: =IF(C13="","",VALUE(C13)/100) -> 81087.36 | E13: =IF(B13="","",IFERROR(INDEX('Pure Premium Rates'!$B$2:$Q$569,MATCH(TEXT(B13,"0000"),INDEX(TEXT('Pure Premium Rates'!$A$2:$A$569,"0000"),0),0),MATCH($D$7,'Pure Premium Rates'!$B$1:$Q$1,1)),"")) -> 4.69 | F13: =IF(OR(D13="",E13=""),"",D13*E13) -> 380299.7184 | I13: NOTE: ACTUAL PAYROLL TO BE USED. AMOUNTS SHOWN ARE UN-AUDITED.
B14: =IF(ROWS($B$13:B14)<=Inputs!$C$46,TEXT(INDEX(Inputs!$A$49:$A$124,ROWS($B$13:B14)),"0000"),"") -> 8810 | C14: =IF(B14="","",INDEX(Inputs!$C$49:$C$124,ROWS($B$13:B14))) -> 3530635 | D14: =IF(C14="","",VALUE(C14)/100) -> 35306.35 | E14: =IF(B14="","",IFERROR(INDEX('Pure Premium Rates'!$B$2:$Q$569,MATCH(TEXT(B14,"0000"),INDEX(TEXT('Pure Premium Rates'!$A$2:$A$569,"0000"),0),0),MATCH($D$7,'Pure Premium Rates'!$B$1:$Q$1,1)),"")) -> 0.55 | F14: =IF(OR(D14="",E14=""),"",D14*E14) -> 19418.4925
B15: =IF(ROWS($B$13:B15)<=Inputs!$C$46,TEXT(INDEX(Inputs!$A$49:$A$124,ROWS($B$13:B15)),"0000"),"") ->  | C15: =IF(B15="","",INDEX(Inputs!$C$49:$C$124,ROWS($B$13:B15))) ->  | D15: =IF(C15="","",VALUE(C15)/100) ->  | E15: =IF(B15="","",IFERROR(INDEX('Pure Premium Rates'!$B$2:$Q$569,MATCH(TEXT(B15,"0000"),INDEX(TEXT('Pure Premium Rates'!$A$2:$A$569,"0000"),0),0),MATCH($D$7,'Pure Premium Rates'!$B$1:$Q$1,1)),"")) ->  | F15: =IF(OR(D15="",E15=""),"",D15*E15) -> 
B16: =IF(ROWS($B$13:B16)<=Inputs!$C$46,TEXT(INDEX(Inputs!$A$49:$A$124,ROWS($B$13:B16)),"0000"),"") ->  | C16: =IF(B16="","",INDEX(Inputs!$C$49:$C$124,ROWS($B$13:B16))) ->  | E16: =IF(B16="","",IFERROR(INDEX('Pure Premium Rates'!$B$2:$Q$569,MATCH(TEXT(B16,"0000"),INDEX(TEXT('Pure Premium Rates'!$A$2:$A$569,"0000"),0),0),MATCH($D$7,'Pure Premium Rates'!$B$1:$Q$1,1)),"")) -> 
B17: =IF(ROWS($B$13:B17)<=Inputs!$C$46,TEXT(INDEX(Inputs!$A$49:$A$124,ROWS($B$13:B17)),"0000"),"") ->  | C17: =IF(B17="","",INDEX(Inputs!$C$49:$C$124,ROWS($B$13:B17))) ->  | E17: =IF(B17="","",IFERROR(INDEX('Pure Premium Rates'!$B$2:$Q$569,MATCH(TEXT(B17,"0000"),INDEX(TEXT('Pure Premium Rates'!$A$2:$A$569,"0000"),0),0),MATCH($D$7,'Pure Premium Rates'!$B$1:$Q$1,1)),"")) -> 
B18: =IF(ROWS($B$13:B18)<=Inputs!$C$46,TEXT(INDEX(Inputs!$A$49:$A$124,ROWS($B$13:B18)),"0000"),"") ->  | C18: =IF(B18="","",INDEX(Inputs!$C$49:$C$124,ROWS($B$13:B18))) ->  | E18: =IF(B18="","",IFERROR(INDEX('Pure Premium Rates'!$B$2:$Q$569,MATCH(TEXT(B18,"0000"),INDEX(TEXT('Pure Premium Rates'!$A$2:$A$569,"0000"),0),0),MATCH($D$7,'Pure Premium Rates'!$B$1:$Q$1,1)),"")) -> 
B19: =IF(ROWS($B$13:B19)<=Inputs!$C$46,TEXT(INDEX(Inputs!$A$49:$A$124,ROWS($B$13:B19)),"0000"),"") ->  | C19: =IF(B19="","",INDEX(Inputs!$C$49:$C$124,ROWS($B$13:B19))) ->  | E19: =IF(B19="","",IFERROR(INDEX('Pure Premium Rates'!$B$2:$Q$569,MATCH(TEXT(B19,"0000"),INDEX(TEXT('Pure Premium Rates'!$A$2:$A$569,"0000"),0),0),MATCH($D$7,'Pure Premium Rates'!$B$1:$Q$1,1)),"")) -> 
B20: =IF(ROWS($B$13:B20)<=Inputs!$C$46,TEXT(INDEX(Inputs!$A$49:$A$124,ROWS($B$13:B20)),"0000"),"") ->  | C20: =IF(B20="","",INDEX(Inputs!$C$49:$C$124,ROWS($B$13:B20))) ->  | E20: =IF(B20="","",IFERROR(INDEX('Pure Premium Rates'!$B$2:$Q$569,MATCH(TEXT(B20,"0000"),INDEX(TEXT('Pure Premium Rates'!$A$2:$A$569,"0000"),0),0),MATCH($D$7,'Pure Premium Rates'!$B$1:$Q$1,1)),"")) -> 
B21: =IF(ROWS($B$13:B21)<=Inputs!$C$46,TEXT(INDEX(Inputs!$A$49:$A$124,ROWS($B$13:B21)),"0000"),"") ->  | C21: =IF(B21="","",INDEX(Inputs!$C$49:$C$124,ROWS($B$13:B21))) ->  | E21: =IF(B21="","",IFERROR(INDEX('Pure Premium Rates'!$B$2:$Q$569,MATCH(TEXT(B21,"0000"),INDEX(TEXT('Pure Premium Rates'!$A$2:$A$569,"0000"),0),0),MATCH($D$7,'Pure Premium Rates'!$B$1:$Q$1,1)),"")) -> 
B22: =IF(ROWS($B$13:B22)<=Inputs!$C$46,TEXT(INDEX(Inputs!$A$49:$A$124,ROWS($B$13:B22)),"0000"),"") ->  | C22: =IF(B22="","",INDEX(Inputs!$C$49:$C$124,ROWS($B$13:B22))) ->  | E22: =IF(B22="","",IFERROR(INDEX('Pure Premium Rates'!$B$2:$Q$569,MATCH(TEXT(B22,"0000"),INDEX(TEXT('Pure Premium Rates'!$A$2:$A$569,"0000"),0),0),MATCH($D$7,'Pure Premium Rates'!$B$1:$Q$1,1)),"")) -> 
B23: =IF(ROWS($B$13:B23)<=Inputs!$C$46,TEXT(INDEX(Inputs!$A$49:$A$124,ROWS($B$13:B23)),"0000"),"") ->  | C23: =IF(B23="","",INDEX(Inputs!$C$49:$C$124,ROWS($B$13:B23))) ->  | E23: =IF(B23="","",IFERROR(INDEX('Pure Premium Rates'!$B$2:$Q$569,MATCH(TEXT(B23,"0000"),INDEX(TEXT('Pure Premium Rates'!$A$2:$A$569,"0000"),0),0),MATCH($D$7,'Pure Premium Rates'!$B$1:$Q$1,1)),"")) -> 
B24: =IF(ROWS($B$13:B24)<=Inputs!$C$46,TEXT(INDEX(Inputs!$A$49:$A$124,ROWS($B$13:B24)),"0000"),"") ->  | C24: =IF(B24="","",INDEX(Inputs!$C$49:$C$124,ROWS($B$13:B24))) ->  | E24: =IF(B24="","",IFERROR(INDEX('Pure Premium Rates'!$B$2:$Q$569,MATCH(TEXT(B24,"0000"),INDEX(TEXT('Pure Premium Rates'!$A$2:$A$569,"0000"),0),0),MATCH($D$7,'Pure Premium Rates'!$B$1:$Q$1,1)),"")) -> 
B25: =IF(ROWS($B$13:B25)<=Inputs!$C$46,TEXT(INDEX(Inputs!$A$49:$A$124,ROWS($B$13:B25)),"0000"),"") ->  | C25: =IF(B25="","",INDEX(Inputs!$C$49:$C$124,ROWS($B$13:B25))) ->  | E25: =IF(B25="","",IFERROR(INDEX('Pure Premium Rates'!$B$2:$Q$569,MATCH(TEXT(B25,"0000"),INDEX(TEXT('Pure Premium Rates'!$A$2:$A$569,"0000"),0),0),MATCH($D$7,'Pure Premium Rates'!$B$1:$Q$1,1)),"")) -> 
B26: =IF(ROWS($B$13:B26)<=Inputs!$C$46,TEXT(INDEX(Inputs!$A$49:$A$124,ROWS($B$13:B26)),"0000"),"") ->  | C26: =IF(B26="","",INDEX(Inputs!$C$49:$C$124,ROWS($B$13:B26))) ->  | E26: =IF(B26="","",IFERROR(INDEX('Pure Premium Rates'!$B$2:$Q$569,MATCH(TEXT(B26,"0000"),INDEX(TEXT('Pure Premium Rates'!$A$2:$A$569,"0000"),0),0),MATCH($D$7,'Pure Premium Rates'!$B$1:$Q$1,1)),"")) -> 
B27: =IF(ROWS($B$13:B27)<=Inputs!$C$46,TEXT(INDEX(Inputs!$A$49:$A$124,ROWS($B$13:B27)),"0000"),"") ->  | C27: =IF(B27="","",INDEX(Inputs!$C$49:$C$124,ROWS($B$13:B27))) ->  | E27: =IF(B27="","",IFERROR(INDEX('Pure Premium Rates'!$B$2:$Q$569,MATCH(TEXT(B27,"0000"),INDEX(TEXT('Pure Premium Rates'!$A$2:$A$569,"0000"),0),0),MATCH($D$7,'Pure Premium Rates'!$B$1:$Q$1,1)),"")) -> 
B28: =IF(ROWS($B$13:B28)<=Inputs!$C$46,TEXT(INDEX(Inputs!$A$49:$A$124,ROWS($B$13:B28)),"0000"),"") ->  | C28: =IF(B28="","",INDEX(Inputs!$C$49:$C$124,ROWS($B$13:B28))) ->  | E28: =IF(B28="","",IFERROR(INDEX('Pure Premium Rates'!$B$2:$Q$569,MATCH(TEXT(B28,"0000"),INDEX(TEXT('Pure Premium Rates'!$A$2:$A$569,"0000"),0),0),MATCH($D$7,'Pure Premium Rates'!$B$1:$Q$1,1)),"")) -> 
B29: =IF(ROWS($B$13:B29)<=Inputs!$C$46,TEXT(INDEX(Inputs!$A$49:$A$124,ROWS($B$13:B29)),"0000"),"") ->  | C29: =IF(B29="","",INDEX(Inputs!$C$49:$C$124,ROWS($B$13:B29))) ->  | E29: =IF(B29="","",IFERROR(INDEX('Pure Premium Rates'!$B$2:$Q$569,MATCH(TEXT(B29,"0000"),INDEX(TEXT('Pure Premium Rates'!$A$2:$A$569,"0000"),0),0),MATCH($D$7,'Pure Premium Rates'!$B$1:$Q$1,1)),"")) -> 
B30: =IF(ROWS($B$13:B30)<=Inputs!$C$46,TEXT(INDEX(Inputs!$A$49:$A$124,ROWS($B$13:B30)),"0000"),"") ->  | C30: =IF(B30="","",INDEX(Inputs!$C$49:$C$124,ROWS($B$13:B30))) ->  | E30: =IF(B30="","",IFERROR(INDEX('Pure Premium Rates'!$B$2:$Q$569,MATCH(TEXT(B30,"0000"),INDEX(TEXT('Pure Premium Rates'!$A$2:$A$569,"0000"),0),0),MATCH($D$7,'Pure Premium Rates'!$B$1:$Q$1,1)),"")) -> 
B31: =IF(ROWS($B$13:B31)<=Inputs!$C$46,TEXT(INDEX(Inputs!$A$49:$A$124,ROWS($B$13:B31)),"0000"),"") ->  | C31: =IF(B31="","",INDEX(Inputs!$C$49:$C$124,ROWS($B$13:B31))) ->  | E31: =IF(B31="","",IFERROR(INDEX('Pure Premium Rates'!$B$2:$Q$569,MATCH(TEXT(B31,"0000"),INDEX(TEXT('Pure Premium Rates'!$A$2:$A$569,"0000"),0),0),MATCH($D$7,'Pure Premium Rates'!$B$1:$Q$1,1)),"")) -> 
B32: =IF(ROWS($B$13:B32)<=Inputs!$C$46,TEXT(INDEX(Inputs!$A$49:$A$124,ROWS($B$13:B32)),"0000"),"") ->  | C32: =IF(B32="","",INDEX(Inputs!$C$49:$C$124,ROWS($B$13:B32))) ->  | E32: =IF(B32="","",IFERROR(INDEX('Pure Premium Rates'!$B$2:$Q$569,MATCH(TEXT(B32,"0000"),INDEX(TEXT('Pure Premium Rates'!$A$2:$A$569,"0000"),0),0),MATCH($D$7,'Pure Premium Rates'!$B$1:$Q$1,1)),"")) -> 
B33: =IF(ROWS($B$13:B33)<=Inputs!$C$46,TEXT(INDEX(Inputs!$A$49:$A$124,ROWS($B$13:B33)),"0000"),"") ->  | C33: =IF(B33="","",INDEX(Inputs!$C$49:$C$124,ROWS($B$13:B33))) ->  | E33: =IF(B33="","",IFERROR(INDEX('Pure Premium Rates'!$B$2:$Q$569,MATCH(TEXT(B33,"0000"),INDEX(TEXT('Pure Premium Rates'!$A$2:$A$569,"0000"),0),0),MATCH($D$7,'Pure Premium Rates'!$B$1:$Q$1,1)),"")) -> 
B34: =IF(ROWS($B$13:B34)<=Inputs!$C$46,TEXT(INDEX(Inputs!$A$49:$A$124,ROWS($B$13:B34)),"0000"),"") ->  | C34: =IF(B34="","",INDEX(Inputs!$C$49:$C$124,ROWS($B$13:B34))) ->  | E34: =IF(B34="","",IFERROR(INDEX('Pure Premium Rates'!$B$2:$Q$569,MATCH(TEXT(B34,"0000"),INDEX(TEXT('Pure Premium Rates'!$A$2:$A$569,"0000"),0),0),MATCH($D$7,'Pure Premium Rates'!$B$1:$Q$1,1)),"")) -> 
B35: =IF(ROWS($B$13:B35)<=Inputs!$C$46,TEXT(INDEX(Inputs!$A$49:$A$124,ROWS($B$13:B35)),"0000"),"") ->  | C35: =IF(B35="","",INDEX(Inputs!$C$49:$C$124,ROWS($B$13:B35))) ->  | E35: =IF(B35="","",IFERROR(INDEX('Pure Premium Rates'!$B$2:$Q$569,MATCH(TEXT(B35,"0000"),INDEX(TEXT('Pure Premium Rates'!$A$2:$A$569,"0000"),0),0),MATCH($D$7,'Pure Premium Rates'!$B$1:$Q$1,1)),"")) -> 
B36: =IF(ROWS($B$13:B36)<=Inputs!$C$46,TEXT(INDEX(Inputs!$A$49:$A$124,ROWS($B$13:B36)),"0000"),"") ->  | C36: =IF(B36="","",INDEX(Inputs!$C$49:$C$124,ROWS($B$13:B36))) ->  | E36: =IF(B36="","",IFERROR(INDEX('Pure Premium Rates'!$B$2:$Q$569,MATCH(TEXT(B36,"0000"),INDEX(TEXT('Pure Premium Rates'!$A$2:$A$569,"0000"),0),0),MATCH($D$7,'Pure Premium Rates'!$B$1:$Q$1,1)),"")) -> 
B37: =IF(ROWS($B$13:B37)<=Inputs!$C$46,TEXT(INDEX(Inputs!$A$49:$A$124,ROWS($B$13:B37)),"0000"),"") ->  | C37: =IF(B37="","",INDEX(Inputs!$C$49:$C$124,ROWS($B$13:B37))) ->  | E37: =IF(B37="","",IFERROR(INDEX('Pure Premium Rates'!$B$2:$Q$569,MATCH(TEXT(B37,"0000"),INDEX(TEXT('Pure Premium Rates'!$A$2:$A$569,"0000"),0),0),MATCH($D$7,'Pure Premium Rates'!$B$1:$Q$1,1)),"")) -> 
B38: =IF(ROWS($B$13:B38)<=Inputs!$C$46,TEXT(INDEX(Inputs!$A$49:$A$124,ROWS($B$13:B38)),"0000"),"") ->  | C38: =IF(B38="","",INDEX(Inputs!$C$49:$C$124,ROWS($B$13:B38))) ->  | E38: =IF(B38="","",IFERROR(INDEX('Pure Premium Rates'!$B$2:$Q$569,MATCH(TEXT(B38,"0000"),INDEX(TEXT('Pure Premium Rates'!$A$2:$A$569,"0000"),0),0),MATCH($D$7,'Pure Premium Rates'!$B$1:$Q$1,1)),"")) -> 
B39: =IF(ROWS($B$13:B39)<=Inputs!$C$46,TEXT(INDEX(Inputs!$A$49:$A$124,ROWS($B$13:B39)),"0000"),"") ->  | C39: =IF(B39="","",INDEX(Inputs!$C$49:$C$124,ROWS($B$13:B39))) ->  | E39: =IF(B39="","",IFERROR(INDEX('Pure Premium Rates'!$B$2:$Q$569,MATCH(TEXT(B39,"0000"),INDEX(TEXT('Pure Premium Rates'!$A$2:$A$569,"0000"),0),0),MATCH($D$7,'Pure Premium Rates'!$B$1:$Q$1,1)),"")) -> 
B40: =IF(ROWS($B$13:B40)<=Inputs!$C$46,TEXT(INDEX(Inputs!$A$49:$A$124,ROWS($B$13:B40)),"0000"),"") ->  | C40: =IF(B40="","",INDEX(Inputs!$C$49:$C$124,ROWS($B$13:B40))) ->  | E40: =IF(B40="","",IFERROR(INDEX('Pure Premium Rates'!$B$2:$Q$569,MATCH(TEXT(B40,"0000"),INDEX(TEXT('Pure Premium Rates'!$A$2:$A$569,"0000"),0),0),MATCH($D$7,'Pure Premium Rates'!$B$1:$Q$1,1)),"")) -> 
B41: =IF(ROWS($B$13:B41)<=Inputs!$C$46,TEXT(INDEX(Inputs!$A$49:$A$124,ROWS($B$13:B41)),"0000"),"") ->  | C41: =IF(B41="","",INDEX(Inputs!$C$49:$C$124,ROWS($B$13:B41))) ->  | E41: =IF(B41="","",IFERROR(INDEX('Pure Premium Rates'!$B$2:$Q$569,MATCH(TEXT(B41,"0000"),INDEX(TEXT('Pure Premium Rates'!$A$2:$A$569,"0000"),0),0),MATCH($D$7,'Pure Premium Rates'!$B$1:$Q$1,1)),"")) -> 
B42: =IF(ROWS($B$13:B42)<=Inputs!$C$46,TEXT(INDEX(Inputs!$A$49:$A$124,ROWS($B$13:B42)),"0000"),"") ->  | C42: =IF(B42="","",INDEX(Inputs!$C$49:$C$124,ROWS($B$13:B42))) ->  | E42: =IF(B42="","",IFERROR(INDEX('Pure Premium Rates'!$B$2:$Q$569,MATCH(TEXT(B42,"0000"),INDEX(TEXT('Pure Premium Rates'!$A$2:$A$569,"0000"),0),0),MATCH($D$7,'Pure Premium Rates'!$B$1:$Q$1,1)),"")) -> 
B43: =IF(ROWS($B$13:B43)<=Inputs!$C$46,TEXT(INDEX(Inputs!$A$49:$A$124,ROWS($B$13:B43)),"0000"),"") ->  | C43: =IF(B43="","",INDEX(Inputs!$C$49:$C$124,ROWS($B$13:B43))) ->  | E43: =IF(B43="","",IFERROR(INDEX('Pure Premium Rates'!$B$2:$Q$569,MATCH(TEXT(B43,"0000"),INDEX(TEXT('Pure Premium Rates'!$A$2:$A$569,"0000"),0),0),MATCH($D$7,'Pure Premium Rates'!$B$1:$Q$1,1)),"")) -> 
B44: =IF(ROWS($B$13:B44)<=Inputs!$C$46,TEXT(INDEX(Inputs!$A$49:$A$124,ROWS($B$13:B44)),"0000"),"") ->  | C44: =IF(B44="","",INDEX(Inputs!$C$49:$C$124,ROWS($B$13:B44))) ->  | E44: =IF(B44="","",IFERROR(INDEX('Pure Premium Rates'!$B$2:$Q$569,MATCH(TEXT(B44,"0000"),INDEX(TEXT('Pure Premium Rates'!$A$2:$A$569,"0000"),0),0),MATCH($D$7,'Pure Premium Rates'!$B$1:$Q$1,1)),"")) -> 
B45: =IF(ROWS($B$13:B45)<=Inputs!$C$46,TEXT(INDEX(Inputs!$A$49:$A$124,ROWS($B$13:B45)),"0000"),"") ->  | C45: =IF(B45="","",INDEX(Inputs!$C$49:$C$124,ROWS($B$13:B45))) ->  | E45: =IF(B45="","",IFERROR(INDEX('Pure Premium Rates'!$B$2:$Q$569,MATCH(TEXT(B45,"0000"),INDEX(TEXT('Pure Premium Rates'!$A$2:$A$569,"0000"),0),0),MATCH($D$7,'Pure Premium Rates'!$B$1:$Q$1,1)),"")) -> 
B46: =IF(ROWS($B$13:B46)<=Inputs!$C$46,TEXT(INDEX(Inputs!$A$49:$A$124,ROWS($B$13:B46)),"0000"),"") ->  | C46: =IF(B46="","",INDEX(Inputs!$C$49:$C$124,ROWS($B$13:B46))) ->  | E46: =IF(B46="","",IFERROR(INDEX('Pure Premium Rates'!$B$2:$Q$569,MATCH(TEXT(B46,"0000"),INDEX(TEXT('Pure Premium Rates'!$A$2:$A$569,"0000"),0),0),MATCH($D$7,'Pure Premium Rates'!$B$1:$Q$1,1)),"")) -> 
B47: =IF(ROWS($B$13:B47)<=Inputs!$C$46,TEXT(INDEX(Inputs!$A$49:$A$124,ROWS($B$13:B47)),"0000"),"") ->  | C47: =IF(B47="","",INDEX(Inputs!$C$49:$C$124,ROWS($B$13:B47))) ->  | E47: =IF(B47="","",IFERROR(INDEX('Pure Premium Rates'!$B$2:$Q$569,MATCH(TEXT(B47,"0000"),INDEX(TEXT('Pure Premium Rates'!$A$2:$A$569,"0000"),0),0),MATCH($D$7,'Pure Premium Rates'!$B$1:$Q$1,1)),"")) -> 
B48: =IF(ROWS($B$13:B48)<=Inputs!$C$46,TEXT(INDEX(Inputs!$A$49:$A$124,ROWS($B$13:B48)),"0000"),"") ->  | C48: =IF(B48="","",INDEX(Inputs!$C$49:$C$124,ROWS($B$13:B48))) ->  | E48: =IF(B48="","",IFERROR(INDEX('Pure Premium Rates'!$B$2:$Q$569,MATCH(TEXT(B48,"0000"),INDEX(TEXT('Pure Premium Rates'!$A$2:$A$569,"0000"),0),0),MATCH($D$7,'Pure Premium Rates'!$B$1:$Q$1,1)),"")) -> 
B49: =IF(ROWS($B$13:B49)<=Inputs!$C$46,TEXT(INDEX(Inputs!$A$49:$A$124,ROWS($B$13:B49)),"0000"),"") ->  | C49: =IF(B49="","",INDEX(Inputs!$C$49:$C$124,ROWS($B$13:B49))) ->  | E49: =IF(B49="","",IFERROR(INDEX('Pure Premium Rates'!$B$2:$Q$569,MATCH(TEXT(B49,"0000"),INDEX(TEXT('Pure Premium Rates'!$A$2:$A$569,"0000"),0),0),MATCH($D$7,'Pure Premium Rates'!$B$1:$Q$1,1)),"")) -> 
B50: =IF(ROWS($B$13:B50)<=Inputs!$C$46,TEXT(INDEX(Inputs!$A$49:$A$124,ROWS($B$13:B50)),"0000"),"") ->  | C50: =IF(B50="","",INDEX(Inputs!$C$49:$C$124,ROWS($B$13:B50))) ->  | E50: =IF(B50="","",IFERROR(INDEX('Pure Premium Rates'!$B$2:$Q$569,MATCH(TEXT(B50,"0000"),INDEX(TEXT('Pure Premium Rates'!$A$2:$A$569,"0000"),0),0),MATCH($D$7,'Pure Premium Rates'!$B$1:$Q$1,1)),"")) -> 
B51: =IF(ROWS($B$13:B51)<=Inputs!$C$46,TEXT(INDEX(Inputs!$A$49:$A$124,ROWS($B$13:B51)),"0000"),"") ->  | C51: =IF(B51="","",INDEX(Inputs!$C$49:$C$124,ROWS($B$13:B51))) ->  | E51: =IF(B51="","",IFERROR(INDEX('Pure Premium Rates'!$B$2:$Q$569,MATCH(TEXT(B51,"0000"),INDEX(TEXT('Pure Premium Rates'!$A$2:$A$569,"0000"),0),0),MATCH($D$7,'Pure Premium Rates'!$B$1:$Q$1,1)),"")) -> 
B52: =IF(ROWS($B$13:B52)<=Inputs!$C$46,TEXT(INDEX(Inputs!$A$49:$A$124,ROWS($B$13:B52)),"0000"),"") ->  | C52: =IF(B52="","",INDEX(Inputs!$C$49:$C$124,ROWS($B$13:B52))) ->  | E52: =IF(B52="","",IFERROR(INDEX('Pure Premium Rates'!$B$2:$Q$569,MATCH(TEXT(B52,"0000"),INDEX(TEXT('Pure Premium Rates'!$A$2:$A$569,"0000"),0),0),MATCH($D$7,'Pure Premium Rates'!$B$1:$Q$1,1)),"")) -> 
B53: =IF(ROWS($B$13:B53)<=Inputs!$C$46,TEXT(INDEX(Inputs!$A$49:$A$124,ROWS($B$13:B53)),"0000"),"") ->  | C53: =IF(B53="","",INDEX(Inputs!$C$49:$C$124,ROWS($B$13:B53))) ->  | E53: =IF(B53="","",IFERROR(INDEX('Pure Premium Rates'!$B$2:$Q$569,MATCH(TEXT(B53,"0000"),INDEX(TEXT('Pure Premium Rates'!$A$2:$A$569,"0000"),0),0),MATCH($D$7,'Pure Premium Rates'!$B$1:$Q$1,1)),"")) -> 
B54: =IF(ROWS($B$13:B54)<=Inputs!$C$46,TEXT(INDEX(Inputs!$A$49:$A$124,ROWS($B$13:B54)),"0000"),"") ->  | C54: =IF(B54="","",INDEX(Inputs!$C$49:$C$124,ROWS($B$13:B54))) ->  | E54: =IF(B54="","",IFERROR(INDEX('Pure Premium Rates'!$B$2:$Q$569,MATCH(TEXT(B54,"0000"),INDEX(TEXT('Pure Premium Rates'!$A$2:$A$569,"0000"),0),0),MATCH($D$7,'Pure Premium Rates'!$B$1:$Q$1,1)),"")) -> 
B55: =IF(ROWS($B$13:B55)<=Inputs!$C$46,TEXT(INDEX(Inputs!$A$49:$A$124,ROWS($B$13:B55)),"0000"),"") ->  | C55: =IF(B55="","",INDEX(Inputs!$C$49:$C$124,ROWS($B$13:B55))) ->  | E55: =IF(B55="","",IFERROR(INDEX('Pure Premium Rates'!$B$2:$Q$569,MATCH(TEXT(B55,"0000"),INDEX(TEXT('Pure Premium Rates'!$A$2:$A$569,"0000"),0),0),MATCH($D$7,'Pure Premium Rates'!$B$1:$Q$1,1)),"")) -> 
B56: =IF(ROWS($B$13:B56)<=Inputs!$C$46,TEXT(INDEX(Inputs!$A$49:$A$124,ROWS($B$13:B56)),"0000"),"") ->  | C56: =IF(B56="","",INDEX(Inputs!$C$49:$C$124,ROWS($B$13:B56))) ->  | E56: =IF(B56="","",IFERROR(INDEX('Pure Premium Rates'!$B$2:$Q$569,MATCH(TEXT(B56,"0000"),INDEX(TEXT('Pure Premium Rates'!$A$2:$A$569,"0000"),0),0),MATCH($D$7,'Pure Premium Rates'!$B$1:$Q$1,1)),"")) -> 
B57: =IF(ROWS($B$13:B57)<=Inputs!$C$46,TEXT(INDEX(Inputs!$A$49:$A$124,ROWS($B$13:B57)),"0000"),"") ->  | C57: =IF(B57="","",INDEX(Inputs!$C$49:$C$124,ROWS($B$13:B57))) ->  | E57: =IF(B57="","",IFERROR(INDEX('Pure Premium Rates'!$B$2:$Q$569,MATCH(TEXT(B57,"0000"),INDEX(TEXT('Pure Premium Rates'!$A$2:$A$569,"0000"),0),0),MATCH($D$7,'Pure Premium Rates'!$B$1:$Q$1,1)),"")) -> 
B58: =IF(ROWS($B$13:B58)<=Inputs!$C$46,TEXT(INDEX(Inputs!$A$49:$A$124,ROWS($B$13:B58)),"0000"),"") ->  | C58: =IF(B58="","",INDEX(Inputs!$C$49:$C$124,ROWS($B$13:B58))) ->  | E58: =IF(B58="","",IFERROR(INDEX('Pure Premium Rates'!$B$2:$Q$569,MATCH(TEXT(B58,"0000"),INDEX(TEXT('Pure Premium Rates'!$A$2:$A$569,"0000"),0),0),MATCH($D$7,'Pure Premium Rates'!$B$1:$Q$1,1)),"")) -> 
B59: =IF(ROWS($B$13:B59)<=Inputs!$C$46,TEXT(INDEX(Inputs!$A$49:$A$124,ROWS($B$13:B59)),"0000"),"") ->  | C59: =IF(B59="","",INDEX(Inputs!$C$49:$C$124,ROWS($B$13:B59))) ->  | E59: =IF(B59="","",IFERROR(INDEX('Pure Premium Rates'!$B$2:$Q$569,MATCH(TEXT(B59,"0000"),INDEX(TEXT('Pure Premium Rates'!$A$2:$A$569,"0000"),0),0),MATCH($D$7,'Pure Premium Rates'!$B$1:$Q$1,1)),"")) -> 
B60: =IF(ROWS($B$13:B60)<=Inputs!$C$46,TEXT(INDEX(Inputs!$A$49:$A$124,ROWS($B$13:B60)),"0000"),"") ->  | C60: =IF(B60="","",INDEX(Inputs!$C$49:$C$124,ROWS($B$13:B60))) ->  | E60: =IF(B60="","",IFERROR(INDEX('Pure Premium Rates'!$B$2:$Q$569,MATCH(TEXT(B60,"0000"),INDEX(TEXT('Pure Premium Rates'!$A$2:$A$569,"0000"),0),0),MATCH($D$7,'Pure Premium Rates'!$B$1:$Q$1,1)),"")) -> 
B61: =IF(ROWS($B$13:B61)<=Inputs!$C$46,TEXT(INDEX(Inputs!$A$49:$A$124,ROWS($B$13:B61)),"0000"),"") ->  | C61: =IF(B61="","",INDEX(Inputs!$C$49:$C$124,ROWS($B$13:B61))) ->  | E61: =IF(B61="","",IFERROR(INDEX('Pure Premium Rates'!$B$2:$Q$569,MATCH(TEXT(B61,"0000"),INDEX(TEXT('Pure Premium Rates'!$A$2:$A$569,"0000"),0),0),MATCH($D$7,'Pure Premium Rates'!$B$1:$Q$1,1)),"")) -> 
B62: =IF(ROWS($B$13:B62)<=Inputs!$C$46,TEXT(INDEX(Inputs!$A$49:$A$124,ROWS($B$13:B62)),"0000"),"") ->  | C62: =IF(B62="","",INDEX(Inputs!$C$49:$C$124,ROWS($B$13:B62))) ->  | E62: =IF(B62="","",IFERROR(INDEX('Pure Premium Rates'!$B$2:$Q$569,MATCH(TEXT(B62,"0000"),INDEX(TEXT('Pure Premium Rates'!$A$2:$A$569,"0000"),0),0),MATCH($D$7,'Pure Premium Rates'!$B$1:$Q$1,1)),"")) -> 
B63: =IF(ROWS($B$13:B63)<=Inputs!$C$46,TEXT(INDEX(Inputs!$A$49:$A$124,ROWS($B$13:B63)),"0000"),"") ->  | C63: =IF(B63="","",INDEX(Inputs!$C$49:$C$124,ROWS($B$13:B63))) ->  | E63: =IF(B63="","",IFERROR(INDEX('Pure Premium Rates'!$B$2:$Q$569,MATCH(TEXT(B63,"0000"),INDEX(TEXT('Pure Premium Rates'!$A$2:$A$569,"0000"),0),0),MATCH($D$7,'Pure Premium Rates'!$B$1:$Q$1,1)),"")) -> 
B64: =IF(ROWS($B$13:B64)<=Inputs!$C$46,TEXT(INDEX(Inputs!$A$49:$A$124,ROWS($B$13:B64)),"0000"),"") ->  | C64: =IF(B64="","",INDEX(Inputs!$C$49:$C$124,ROWS($B$13:B64))) ->  | E64: =IF(B64="","",IFERROR(INDEX('Pure Premium Rates'!$B$2:$Q$569,MATCH(TEXT(B64,"0000"),INDEX(TEXT('Pure Premium Rates'!$A$2:$A$569,"0000"),0),0),MATCH($D$7,'Pure Premium Rates'!$B$1:$Q$1,1)),"")) -> 
B65: =IF(ROWS($B$13:B65)<=Inputs!$C$46,TEXT(INDEX(Inputs!$A$49:$A$124,ROWS($B$13:B65)),"0000"),"") ->  | C65: =IF(B65="","",INDEX(Inputs!$C$49:$C$124,ROWS($B$13:B65))) ->  | E65: =IF(B65="","",IFERROR(INDEX('Pure Premium Rates'!$B$2:$Q$569,MATCH(TEXT(B65,"0000"),INDEX(TEXT('Pure Premium Rates'!$A$2:$A$569,"0000"),0),0),MATCH($D$7,'Pure Premium Rates'!$B$1:$Q$1,1)),"")) -> 
B66: =IF(ROWS($B$13:B66)<=Inputs!$C$46,TEXT(INDEX(Inputs!$A$49:$A$124,ROWS($B$13:B66)),"0000"),"") ->  | C66: =IF(B66="","",INDEX(Inputs!$C$49:$C$124,ROWS($B$13:B66))) ->  | E66: =IF(B66="","",IFERROR(INDEX('Pure Premium Rates'!$B$2:$Q$569,MATCH(TEXT(B66,"0000"),INDEX(TEXT('Pure Premium Rates'!$A$2:$A$569,"0000"),0),0),MATCH($D$7,'Pure Premium Rates'!$B$1:$Q$1,1)),"")) -> 
B67: =IF(ROWS($B$13:B67)<=Inputs!$C$46,TEXT(INDEX(Inputs!$A$49:$A$124,ROWS($B$13:B67)),"0000"),"") ->  | C67: =IF(B67="","",INDEX(Inputs!$C$49:$C$124,ROWS($B$13:B67))) ->  | E67: =IF(B67="","",IFERROR(INDEX('Pure Premium Rates'!$B$2:$Q$569,MATCH(TEXT(B67,"0000"),INDEX(TEXT('Pure Premium Rates'!$A$2:$A$569,"0000"),0),0),MATCH($D$7,'Pure Premium Rates'!$B$1:$Q$1,1)),"")) -> 
B68: =IF(ROWS($B$13:B68)<=Inputs!$C$46,TEXT(INDEX(Inputs!$A$49:$A$124,ROWS($B$13:B68)),"0000"),"") ->  | C68: =IF(B68="","",INDEX(Inputs!$C$49:$C$124,ROWS($B$13:B68))) ->  | E68: =IF(B68="","",IFERROR(INDEX('Pure Premium Rates'!$B$2:$Q$569,MATCH(TEXT(B68,"0000"),INDEX(TEXT('Pure Premium Rates'!$A$2:$A$569,"0000"),0),0),MATCH($D$7,'Pure Premium Rates'!$B$1:$Q$1,1)),"")) -> 
B69: =IF(ROWS($B$13:B69)<=Inputs!$C$46,TEXT(INDEX(Inputs!$A$49:$A$124,ROWS($B$13:B69)),"0000"),"") ->  | C69: =IF(B69="","",INDEX(Inputs!$C$49:$C$124,ROWS($B$13:B69))) ->  | E69: =IF(B69="","",IFERROR(INDEX('Pure Premium Rates'!$B$2:$Q$569,MATCH(TEXT(B69,"0000"),INDEX(TEXT('Pure Premium Rates'!$A$2:$A$569,"0000"),0),0),MATCH($D$7,'Pure Premium Rates'!$B$1:$Q$1,1)),"")) -> 
B70: =IF(ROWS($B$13:B70)<=Inputs!$C$46,TEXT(INDEX(Inputs!$A$49:$A$124,ROWS($B$13:B70)),"0000"),"") ->  | C70: =IF(B70="","",INDEX(Inputs!$C$49:$C$124,ROWS($B$13:B70))) ->  | E70: =IF(B70="","",IFERROR(INDEX('Pure Premium Rates'!$B$2:$Q$569,MATCH(TEXT(B70,"0000"),INDEX(TEXT('Pure Premium Rates'!$A$2:$A$569,"0000"),0),0),MATCH($D$7,'Pure Premium Rates'!$B$1:$Q$1,1)),"")) -> 
B71: =IF(ROWS($B$13:B71)<=Inputs!$C$46,TEXT(INDEX(Inputs!$A$49:$A$124,ROWS($B$13:B71)),"0000"),"") ->  | C71: =IF(B71="","",INDEX(Inputs!$C$49:$C$124,ROWS($B$13:B71))) ->  | E71: =IF(B71="","",IFERROR(INDEX('Pure Premium Rates'!$B$2:$Q$569,MATCH(TEXT(B71,"0000"),INDEX(TEXT('Pure Premium Rates'!$A$2:$A$569,"0000"),0),0),MATCH($D$7,'Pure Premium Rates'!$B$1:$Q$1,1)),"")) -> 
B72: =IF(ROWS($B$13:B72)<=Inputs!$C$46,TEXT(INDEX(Inputs!$A$49:$A$124,ROWS($B$13:B72)),"0000"),"") ->  | C72: =IF(B72="","",INDEX(Inputs!$C$49:$C$124,ROWS($B$13:B72))) ->  | E72: =IF(B72="","",IFERROR(INDEX('Pure Premium Rates'!$B$2:$Q$569,MATCH(TEXT(B72,"0000"),INDEX(TEXT('Pure Premium Rates'!$A$2:$A$569,"0000"),0),0),MATCH($D$7,'Pure Premium Rates'!$B$1:$Q$1,1)),"")) -> 
B73: =IF(ROWS($B$13:B73)<=Inputs!$C$46,TEXT(INDEX(Inputs!$A$49:$A$124,ROWS($B$13:B73)),"0000"),"") ->  | C73: =IF(B73="","",INDEX(Inputs!$C$49:$C$124,ROWS($B$13:B73))) ->  | E73: =IF(B73="","",IFERROR(INDEX('Pure Premium Rates'!$B$2:$Q$569,MATCH(TEXT(B73,"0000"),INDEX(TEXT('Pure Premium Rates'!$A$2:$A$569,"0000"),0),0),MATCH($D$7,'Pure Premium Rates'!$B$1:$Q$1,1)),"")) -> 
B74: =IF(ROWS($B$13:B74)<=Inputs!$C$46,TEXT(INDEX(Inputs!$A$49:$A$124,ROWS($B$13:B74)),"0000"),"") ->  | C74: =IF(B74="","",INDEX(Inputs!$C$49:$C$124,ROWS($B$13:B74))) ->  | E74: =IF(B74="","",IFERROR(INDEX('Pure Premium Rates'!$B$2:$Q$569,MATCH(TEXT(B74,"0000"),INDEX(TEXT('Pure Premium Rates'!$A$2:$A$569,"0000"),0),0),MATCH($D$7,'Pure Premium Rates'!$B$1:$Q$1,1)),"")) -> 
B75: =IF(ROWS($B$13:B75)<=Inputs!$C$46,TEXT(INDEX(Inputs!$A$49:$A$124,ROWS($B$13:B75)),"0000"),"") ->  | C75: =IF(B75="","",INDEX(Inputs!$C$49:$C$124,ROWS($B$13:B75))) ->  | E75: =IF(B75="","",IFERROR(INDEX('Pure Premium Rates'!$B$2:$Q$569,MATCH(TEXT(B75,"0000"),INDEX(TEXT('Pure Premium Rates'!$A$2:$A$569,"0000"),0),0),MATCH($D$7,'Pure Premium Rates'!$B$1:$Q$1,1)),"")) -> 
B76: =IF(ROWS($B$13:B76)<=Inputs!$C$46,TEXT(INDEX(Inputs!$A$49:$A$124,ROWS($B$13:B76)),"0000"),"") ->  | C76: =IF(B76="","",INDEX(Inputs!$C$49:$C$124,ROWS($B$13:B76))) ->  | E76: =IF(B76="","",IFERROR(INDEX('Pure Premium Rates'!$B$2:$Q$569,MATCH(TEXT(B76,"0000"),INDEX(TEXT('Pure Premium Rates'!$A$2:$A$569,"0000"),0),0),MATCH($D$7,'Pure Premium Rates'!$B$1:$Q$1,1)),"")) -> 
B77: =IF(ROWS($B$13:B77)<=Inputs!$C$46,TEXT(INDEX(Inputs!$A$49:$A$124,ROWS($B$13:B77)),"0000"),"") ->  | C77: =IF(B77="","",INDEX(Inputs!$C$49:$C$124,ROWS($B$13:B77))) ->  | E77: =IF(B77="","",IFERROR(INDEX('Pure Premium Rates'!$B$2:$Q$569,MATCH(TEXT(B77,"0000"),INDEX(TEXT('Pure Premium Rates'!$A$2:$A$569,"0000"),0),0),MATCH($D$7,'Pure Premium Rates'!$B$1:$Q$1,1)),"")) -> 
B78: =IF(ROWS($B$13:B78)<=Inputs!$C$46,TEXT(INDEX(Inputs!$A$49:$A$124,ROWS($B$13:B78)),"0000"),"") ->  | C78: =IF(B78="","",INDEX(Inputs!$C$49:$C$124,ROWS($B$13:B78))) ->  | E78: =IF(B78="","",IFERROR(INDEX('Pure Premium Rates'!$B$2:$Q$569,MATCH(TEXT(B78,"0000"),INDEX(TEXT('Pure Premium Rates'!$A$2:$A$569,"0000"),0),0),MATCH($D$7,'Pure Premium Rates'!$B$1:$Q$1,1)),"")) -> 
B79: =IF(ROWS($B$13:B79)<=Inputs!$C$46,TEXT(INDEX(Inputs!$A$49:$A$124,ROWS($B$13:B79)),"0000"),"") ->  | C79: =IF(B79="","",INDEX(Inputs!$C$49:$C$124,ROWS($B$13:B79))) ->  | D79: =IF(C79="","",VALUE(C79)/100) ->  | E79: =IF(B79="","",IFERROR(INDEX('Pure Premium Rates'!$B$2:$Q$569,MATCH(TEXT(B79,"0000"),INDEX(TEXT('Pure Premium Rates'!$A$2:$A$569,"0000"),0),0),MATCH($D$7,'Pure Premium Rates'!$B$1:$Q$1,1)),"")) ->  | F79: =IF(OR(D79="",E79=""),"",D79*E79) -> 
B80: =IF(ROWS($B$13:B80)<=Inputs!$C$46,TEXT(INDEX(Inputs!$A$49:$A$124,ROWS($B$13:B80)),"0000"),"") ->  | C80: =IF(B80="","",INDEX(Inputs!$C$49:$C$124,ROWS($B$13:B80))) ->  | E80: =IF(B80="","",IFERROR(INDEX('Pure Premium Rates'!$B$2:$Q$569,MATCH(TEXT(B80,"0000"),INDEX(TEXT('Pure Premium Rates'!$A$2:$A$569,"0000"),0),0),MATCH($D$7,'Pure Premium Rates'!$B$1:$Q$1,1)),"")) -> 
B81: =IF(ROWS($B$13:B81)<=Inputs!$C$46,TEXT(INDEX(Inputs!$A$49:$A$124,ROWS($B$13:B81)),"0000"),"") ->  | C81: =IF(B81="","",INDEX(Inputs!$C$49:$C$124,ROWS($B$13:B81))) ->  | E81: =IF(B81="","",IFERROR(INDEX('Pure Premium Rates'!$B$2:$Q$569,MATCH(TEXT(B81,"0000"),INDEX(TEXT('Pure Premium Rates'!$A$2:$A$569,"0000"),0),0),MATCH($D$7,'Pure Premium Rates'!$B$1:$Q$1,1)),"")) -> 
B82: =IF(ROWS($B$13:B82)<=Inputs!$C$46,TEXT(INDEX(Inputs!$A$49:$A$124,ROWS($B$13:B82)),"0000"),"") ->  | C82: =IF(B82="","",INDEX(Inputs!$C$49:$C$124,ROWS($B$13:B82))) ->  | E82: =IF(B82="","",IFERROR(INDEX('Pure Premium Rates'!$B$2:$Q$569,MATCH(TEXT(B82,"0000"),INDEX(TEXT('Pure Premium Rates'!$A$2:$A$569,"0000"),0),0),MATCH($D$7,'Pure Premium Rates'!$B$1:$Q$1,1)),"")) -> 
B83: =IF(ROWS($B$13:B83)<=Inputs!$C$46,TEXT(INDEX(Inputs!$A$49:$A$124,ROWS($B$13:B83)),"0000"),"") ->  | C83: =IF(B83="","",INDEX(Inputs!$C$49:$C$124,ROWS($B$13:B83))) ->  | E83: =IF(B83="","",IFERROR(INDEX('Pure Premium Rates'!$B$2:$Q$569,MATCH(TEXT(B83,"0000"),INDEX(TEXT('Pure Premium Rates'!$A$2:$A$569,"0000"),0),0),MATCH($D$7,'Pure Premium Rates'!$B$1:$Q$1,1)),"")) -> 
B84: =IF(ROWS($B$13:B84)<=Inputs!$C$46,TEXT(INDEX(Inputs!$A$49:$A$124,ROWS($B$13:B84)),"0000"),"") ->  | C84: =IF(B84="","",INDEX(Inputs!$C$49:$C$124,ROWS($B$13:B84))) ->  | E84: =IF(B84="","",IFERROR(INDEX('Pure Premium Rates'!$B$2:$Q$569,MATCH(TEXT(B84,"0000"),INDEX(TEXT('Pure Premium Rates'!$A$2:$A$569,"0000"),0),0),MATCH($D$7,'Pure Premium Rates'!$B$1:$Q$1,1)),"")) -> 
B85: =IF(ROWS($B$13:B85)<=Inputs!$C$46,TEXT(INDEX(Inputs!$A$49:$A$124,ROWS($B$13:B85)),"0000"),"") ->  | C85: =IF(B85="","",INDEX(Inputs!$C$49:$C$124,ROWS($B$13:B85))) ->  | E85: =IF(B85="","",IFERROR(INDEX('Pure Premium Rates'!$B$2:$Q$569,MATCH(TEXT(B85,"0000"),INDEX(TEXT('Pure Premium Rates'!$A$2:$A$569,"0000"),0),0),MATCH($D$7,'Pure Premium Rates'!$B$1:$Q$1,1)),"")) -> 
B86: =IF(ROWS($B$13:B86)<=Inputs!$C$46,TEXT(INDEX(Inputs!$A$49:$A$124,ROWS($B$13:B86)),"0000"),"") ->  | C86: =IF(B86="","",INDEX(Inputs!$C$49:$C$124,ROWS($B$13:B86))) ->  | E86: =IF(B86="","",IFERROR(INDEX('Pure Premium Rates'!$B$2:$Q$569,MATCH(TEXT(B86,"0000"),INDEX(TEXT('Pure Premium Rates'!$A$2:$A$569,"0000"),0),0),MATCH($D$7,'Pure Premium Rates'!$B$1:$Q$1,1)),"")) -> 
B87: =IF(ROWS($B$13:B87)<=Inputs!$C$46,TEXT(INDEX(Inputs!$A$49:$A$124,ROWS($B$13:B87)),"0000"),"") ->  | C87: =IF(B87="","",INDEX(Inputs!$C$49:$C$124,ROWS($B$13:B87))) ->  | E87: =IF(B87="","",IFERROR(INDEX('Pure Premium Rates'!$B$2:$Q$569,MATCH(TEXT(B87,"0000"),INDEX(TEXT('Pure Premium Rates'!$A$2:$A$569,"0000"),0),0),MATCH($D$7,'Pure Premium Rates'!$B$1:$Q$1,1)),"")) -> 
B88: =IF(ROWS($B$13:B88)<=Inputs!$C$46,TEXT(INDEX(Inputs!$A$49:$A$124,ROWS($B$13:B88)),"0000"),"") ->  | C88: =IF(B88="","",INDEX(Inputs!$C$49:$C$124,ROWS($B$13:B88))) ->  | E88: =IF(B88="","",IFERROR(INDEX('Pure Premium Rates'!$B$2:$Q$569,MATCH(TEXT(B88,"0000"),INDEX(TEXT('Pure Premium Rates'!$A$2:$A$569,"0000"),0),0),MATCH($D$7,'Pure Premium Rates'!$B$1:$Q$1,1)),"")) -> 
A90: =F9-1 -> -6 | B90: Total | F90: =SUM(F13:INDEX(F:F,12+Inputs!$C$46)) -> 399718.2109
A92: =A90-1 -> -7 | B92: Experience Modification Rating at policy inception date | F92: =Inputs!D21 -> 0.86
A94: =A92-1 -> -8 | B94: 1.15 Factor (Expense and Market Provision) | F94: 1.15
A96: =A94-1 -> -9 | B96: California Standard Premium | F96: =F90*F92*F94 -> 395321.3106
B98: Notes
B99: =B9 -> -1 | C99: Provided by CIC.
B100: =B99-1 -> -2 | C100: Provided by CIC.
B101: -3 | C101: ="("&-C9&") / 100" -> (2) / 100
B102: -4 | C102: WCIRB pure premium rate effective at policy inception date.
B103: -5 | C103: ="("&-D9&") x ("&-E9&")" -> (3) x (4)
B104: -6 | C104: ="Sum of column ("&-F9&")." -> Sum of column (5).
B105: -7 | C105: Provided by CIC.
B106: -8 | C106: From Schedule 2.6, Section IV, Subsection 2.b.iv.
C107: of Conservator Rehabilitation Plan.
B108: =B106-1 -> -9 | C108: ="("&-A90&") x ("&-A92&") x ("&-A94&")" -> (6) x (7) x (8)

Sheet CA Standard Premium - Yr3
A1: ='Interpolated Development'!A1 -> California Insurance Company Rehabilitation Plan
A2: ='Interpolated Development'!A2 -> Options to Settle Litigation Related to XYZ Company
A3: ='Interpolated Development'!A3 -> Equity Comp and Solution One Programs and RPA
A5: Option 2 - California Standard Premium
B7: Policy Effective Date: | D7: ='CA Standard Premium - Yr2'!D7+365 -> 2015-06-01
B9: =-1 -> -1 | C9: =B9-1 -> -2 | D9: =C9-1 -> -3 | E9: =D9-1 -> -4 | F9: =E9-1 -> -5
C10: Actual | D10: Payroll | E10: Pure Premium | F10: Expected
B11: Class Code | C11: Payroll | D11: Exposure | E11: Rate | F11: Losses
B13: =IF(ROWS($B$13:B13)<=Inputs!$D$46,TEXT(INDEX(Inputs!$A$49:$A$124,ROWS($B$13:B13)),"0000"),"") -> 3831 | C13: =IF(B13="","",INDEX(Inputs!$D$49:$D$124,ROWS($B$13:B13))) -> 7101861 | D13: =IF(C13="","",VALUE(C13)/100) -> 71018.61 | E13: =IF(B13="","",IFERROR(INDEX('Pure Premium Rates'!$B$2:$Q$569,MATCH(TEXT(B13,"0000"),INDEX(TEXT('Pure Premium Rates'!$A$2:$A$569,"0000"),0),0),MATCH($D$7,'Pure Premium Rates'!$B$1:$Q$1,1)),"")) -> 4.74 | F13: =IF(OR(D13="",E13=""),"",D13*E13) -> 336628.2114 | I13: NOTE: ACTUAL PAYROLL TO BE USED. AMOUNTS SHOWN ARE UN-AUDITED.
B14: =IF(ROWS($B$13:B14)<=Inputs!$D$46,TEXT(INDEX(Inputs!$A$49:$A$124,ROWS($B$13:B14)),"0000"),"") -> 8810 | C14: =IF(B14="","",INDEX(Inputs!$D$49:$D$124,ROWS($B$13:B14))) -> 3466399 | D14: =IF(C14="","",VALUE(C14)/100) -> 34663.99 | E14: =IF(B14="","",IFERROR(INDEX('Pure Premium Rates'!$B$2:$Q$569,MATCH(TEXT(B14,"0000"),INDEX(TEXT('Pure Premium Rates'!$A$2:$A$569,"0000"),0),0),MATCH($D$7,'Pure Premium Rates'!$B$1:$Q$1,1)),"")) -> 0.52 | F14: =IF(OR(D14="",E14=""),"",D14*E14) -> 18025.2748
B15: =IF(ROWS($B$13:B15)<=Inputs!$D$46,TEXT(INDEX(Inputs!$A$49:$A$124,ROWS($B$13:B15)),"0000"),"") ->  | C15: =IF(B15="","",INDEX(Inputs!$D$49:$D$124,ROWS($B$13:B15))) ->  | D15: =IF(C15="","",VALUE(C15)/100) ->  | E15: =IF(B15="","",IFERROR(INDEX('Pure Premium Rates'!$B$2:$Q$569,MATCH(TEXT(B15,"0000"),INDEX(TEXT('Pure Premium Rates'!$A$2:$A$569,"0000"),0),0),MATCH($D$7,'Pure Premium Rates'!$B$1:$Q$1,1)),"")) ->  | F15: =IF(OR(D15="",E15=""),"",D15*E15) -> 
B16: =IF(ROWS($B$13:B16)<=Inputs!$D$46,TEXT(INDEX(Inputs!$A$49:$A$124,ROWS($B$13:B16)),"0000"),"") ->  | C16: =IF(B16="","",INDEX(Inputs!$D$49:$D$124,ROWS($B$13:B16))) ->  | E16: =IF(B16="","",IFERROR(INDEX('Pure Premium Rates'!$B$2:$Q$569,MATCH(TEXT(B16,"0000"),INDEX(TEXT('Pure Premium Rates'!$A$2:$A$569,"0000"),0),0),MATCH($D$7,'Pure Premium Rates'!$B$1:$Q$1,1)),"")) -> 
B17: =IF(ROWS($B$13:B17)<=Inputs!$D$46,TEXT(INDEX(Inputs!$A$49:$A$124,ROWS($B$13:B17)),"0000"),"") ->  | C17: =IF(B17="","",INDEX(Inputs!$D$49:$D$124,ROWS($B$13:B17))) ->  | E17: =IF(B17="","",IFERROR(INDEX('Pure Premium Rates'!$B$2:$Q$569,MATCH(TEXT(B17,"0000"),INDEX(TEXT('Pure Premium Rates'!$A$2:$A$569,"0000"),0),0),MATCH($D$7,'Pure Premium Rates'!$B$1:$Q$1,1)),"")) -> 
B18: =IF(ROWS($B$13:B18)<=Inputs!$D$46,TEXT(INDEX(Inputs!$A$49:$A$124,ROWS($B$13:B18)),"0000"),"") ->  | C18: =IF(B18="","",INDEX(Inputs!$D$49:$D$124,ROWS($B$13:B18))) ->  | E18: =IF(B18="","",IFERROR(INDEX('Pure Premium Rates'!$B$2:$Q$569,MATCH(TEXT(B18,"0000"),INDEX(TEXT('Pure Premium Rates'!$A$2:$A$569,"0000"),0),0),MATCH($D$7,'Pure Premium Rates'!$B$1:$Q$1,1)),"")) -> 
B19: =IF(ROWS($B$13:B19)<=Inputs!$D$46,TEXT(INDEX(Inputs!$A$49:$A$124,ROWS($B$13:B19)),"0000"),"") ->  | C19: =IF(B19="","",INDEX(Inputs!$D$49:$D$124,ROWS($B$13:B19))) ->  | E19: =IF(B19="","",IFERROR(INDEX('Pure Premium Rates'!$B$2:$Q$569,MATCH(TEXT(B19,"0000"),INDEX(TEXT('Pure Premium Rates'!$A$2:$A$569,"0000"),0),0),MATCH($D$7,'Pure Premium Rates'!$B$1:$Q$1,1)),"")) -> 
B20: =IF(ROWS($B$13:B20)<=Inputs!$D$46,TEXT(INDEX(Inputs!$A$49:$A$124,ROWS($B$13:B20)),"0000"),"") ->  | C20: =IF(B20="","",INDEX(Inputs!$D$49:$D$124,ROWS($B$13:B20))) ->  | E20: =IF(B20="","",IFERROR(INDEX('Pure Premium Rates'!$B$2:$Q$569,MATCH(TEXT(B20,"0000"),INDEX(TEXT('Pure Premium Rates'!$A$2:$A$569,"0000"),0),0),MATCH($D$7,'Pure Premium Rates'!$B$1:$Q$1,1)),"")) -> 
B21: =IF(ROWS($B$13:B21)<=Inputs!$D$46,TEXT(INDEX(Inputs!$A$49:$A$124,ROWS($B$13:B21)),"0000"),"") ->  | C21: =IF(B21="","",INDEX(Inputs!$D$49:$D$124,ROWS($B$13:B21))) ->  | E21: =IF(B21="","",IFERROR(INDEX('Pure Premium Rates'!$B$2:$Q$569,MATCH(TEXT(B21,"0000"),INDEX(TEXT('Pure Premium Rates'!$A$2:$A$569,"0000"),0),0),MATCH($D$7,'Pure Premium Rates'!$B$1:$Q$1,1)),"")) -> 
B22: =IF(ROWS($B$13:B22)<=Inputs!$D$46,TEXT(INDEX(Inputs!$A$49:$A$124,ROWS($B$13:B22)),"0000"),"") ->  | C22: =IF(B22="","",INDEX(Inputs!$D$49:$D$124,ROWS($B$13:B22))) ->  | E22: =IF(B22="","",IFERROR(INDEX('Pure Premium Rates'!$B$2:$Q$569,MATCH(TEXT(B22,"0000"),INDEX(TEXT('Pure Premium Rates'!$A$2:$A$569,"0000"),0),0),MATCH($D$7,'Pure Premium Rates'!$B$1:$Q$1,1)),"")) -> 
B23: =IF(ROWS($B$13:B23)<=Inputs!$D$46,TEXT(INDEX(Inputs!$A$49:$A$124,ROWS($B$13:B23)),"0000"),"") ->  | C23: =IF(B23="","",INDEX(Inputs!$D$49:$D$124,ROWS($B$13:B23))) ->  | E23: =IF(B23="","",IFERROR(INDEX('Pure Premium Rates'!$B$2:$Q$569,MATCH(TEXT(B23,"0000"),INDEX(TEXT('Pure Premium Rates'!$A$2:$A$569,"0000"),0),0),MATCH($D$7,'Pure Premium Rates'!$B$1:$Q$1,1)),"")) -> 
B24: =IF(ROWS($B$13:B24)<=Inputs!$D$46,TEXT(INDEX(Inputs!$A$49:$A$124,ROWS($B$13:B24)),"0000"),"") ->  | C24: =IF(B24="","",INDEX(Inputs!$D$49:$D$124,ROWS($B$13:B24))) ->  | E24: =IF(B24="","",IFERROR(INDEX('Pure Premium Rates'!$B$2:$Q$569,MATCH(TEXT(B24,"0000"),INDEX(TEXT('Pure Premium Rates'!$A$2:$A$569,"0000"),0),0),MATCH($D$7,'Pure Premium Rates'!$B$1:$Q$1,1)),"")) -> 
B25: =IF(ROWS($B$13:B25)<=Inputs!$D$46,TEXT(INDEX(Inputs!$A$49:$A$124,ROWS($B$13:B25)),"0000"),"") ->  | C25: =IF(B25="","",INDEX(Inputs!$D$49:$D$124,ROWS($B$13:B25))) ->  | E25: =IF(B25="","",IFERROR(INDEX('Pure Premium Rates'!$B$2:$Q$569,MATCH(TEXT(B25,"0000"),INDEX(TEXT('Pure Premium Rates'!$A$2:$A$569,"0000"),0),0),MATCH($D$7,'Pure Premium Rates'!$B$1:$Q$1,1)),"")) -> 
B26: =IF(ROWS($B$13:B26)<=Inputs!$D$46,TEXT(INDEX(Inputs!$A$49:$A$124,ROWS($B$13:B26)),"0000"),"") ->  | C26: =IF(B26="","",INDEX(Inputs!$D$49:$D$124,ROWS($B$13:B26))) ->  | E26: =IF(B26="","",IFERROR(INDEX('Pure Premium Rates'!$B$2:$Q$569,MATCH(TEXT(B26,"0000"),INDEX(TEXT('Pure Premium Rates'!$A$2:$A$569,"0000"),0),0),MATCH($D$7,'Pure Premium Rates'!$B$1:$Q$1,1)),"")) -> 
B27: =IF(ROWS($B$13:B27)<=Inputs!$D$46,TEXT(INDEX(Inputs!$A$49:$A$124,ROWS($B$13:B27)),"0000"),"") ->  | C27: =IF(B27="","",INDEX(Inputs!$D$49:$D$124,ROWS($B$13:B27))) ->  | E27: =IF(B27="","",IFERROR(INDEX('Pure Premium Rates'!$B$2:$Q$569,MATCH(TEXT(B27,"0000"),INDEX(TEXT('Pure Premium Rates'!$A$2:$A$569,"0000"),0),0),MATCH($D$7,'Pure Premium Rates'!$B$1:$Q$1,1)),"")) -> 
B28: =IF(ROWS($B$13:B28)<=Inputs!$D$46,TEXT(INDEX(Inputs!$A$49:$A$124,ROWS($B$13:B28)),"0000"),"") ->  | C28: =IF(B28="","",INDEX(Inputs!$D$49:$D$124,ROWS($B$13:B28))) ->  | E28: =IF(B28="","",IFERROR(INDEX('Pure Premium Rates'!$B$2:$Q$569,MATCH(TEXT(B28,"0000"),INDEX(TEXT('Pure Premium Rates'!$A$2:$A$569,"0000"),0),0),MATCH($D$7,'Pure Premium Rates'!$B$1:$Q$1,1)),"")) -> 
B29: =IF(ROWS($B$13:B29)<=Inputs!$D$46,TEXT(INDEX(Inputs!$A$49:$A$124,ROWS($B$13:B29)),"0000"),"") ->  | C29: =IF(B29="","",INDEX(Inputs!$D$49:$D$124,ROWS($B$13:B29))) ->  | E29: =IF(B29="","",IFERROR(INDEX('Pure Premium Rates'!$B$2:$Q$569,MATCH(TEXT(B29,"0000"),INDEX(TEXT('Pure Premium Rates'!$A$2:$A$569,"0000"),0),0),MATCH($D$7,'Pure Premium Rates'!$B$1:$Q$1,1)),"")) -> 
B30: =IF(ROWS($B$13:B30)<=Inputs!$D$46,TEXT(INDEX(Inputs!$A$49:$A$124,ROWS($B$13:B30)),"0000"),"") ->  | C30: =IF(B30="","",INDEX(Inputs!$D$49:$D$124,ROWS($B$13:B30))) ->  | E30: =IF(B30="","",IFERROR(INDEX('Pure Premium Rates'!$B$2:$Q$569,MATCH(TEXT(B30,"0000"),INDEX(TEXT('Pure Premium Rates'!$A$2:$A$569,"0000"),0),0),MATCH($D$7,'Pure Premium Rates'!$B$1:$Q$1,1)),"")) -> 
B31: =IF(ROWS($B$13:B31)<=Inputs!$D$46,TEXT(INDEX(Inputs!$A$49:$A$124,ROWS($B$13:B31)),"0000"),"") ->  | C31: =IF(B31="","",INDEX(Inputs!$D$49:$D$124,ROWS($B$13:B31))) ->  | E31: =IF(B31="","",IFERROR(INDEX('Pure Premium Rates'!$B$2:$Q$569,MATCH(TEXT(B31,"0000"),INDEX(TEXT('Pure Premium Rates'!$A$2:$A$569,"0000"),0),0),MATCH($D$7,'Pure Premium Rates'!$B$1:$Q$1,1)),"")) -> 
B32: =IF(ROWS($B$13:B32)<=Inputs!$D$46,TEXT(INDEX(Inputs!$A$49:$A$124,ROWS($B$13:B32)),"0000"),"") ->  | C32: =IF(B32="","",INDEX(Inputs!$D$49:$D$124,ROWS($B$13:B32))) ->  | E32: =IF(B32="","",IFERROR(INDEX('Pure Premium Rates'!$B$2:$Q$569,MATCH(TEXT(B32,"0000"),INDEX(TEXT('Pure Premium Rates'!$A$2:$A$569,"0000"),0),0),MATCH($D$7,'Pure Premium Rates'!$B$1:$Q$1,1)),"")) -> 
B33: =IF(ROWS($B$13:B33)<=Inputs!$D$46,TEXT(INDEX(Inputs!$A$49:$A$124,ROWS($B$13:B33)),"0000"),"") ->  | C33: =IF(B33="","",INDEX(Inputs!$D$49:$D$124,ROWS($B$13:B33))) ->  | E33: =IF(B33="","",IFERROR(INDEX('Pure Premium Rates'!$B$2:$Q$569,MATCH(TEXT(B33,"0000"),INDEX(TEXT('Pure Premium Rates'!$A$2:$A$569,"0000"),0),0),MATCH($D$7,'Pure Premium Rates'!$B$1:$Q$1,1)),"")) -> 
B34: =IF(ROWS($B$13:B34)<=Inputs!$D$46,TEXT(INDEX(Inputs!$A$49:$A$124,ROWS($B$13:B34)),"0000"),"") ->  | C34: =IF(B34="","",INDEX(Inputs!$D$49:$D$124,ROWS($B$13:B34))) ->  | E34: =IF(B34="","",IFERROR(INDEX('Pure Premium Rates'!$B$2:$Q$569,MATCH(TEXT(B34,"0000"),INDEX(TEXT('Pure Premium Rates'!$A$2:$A$569,"0000"),0),0),MATCH($D$7,'Pure Premium Rates'!$B$1:$Q$1,1)),"")) -> 
B35: =IF(ROWS($B$13:B35)<=Inputs!$D$46,TEXT(INDEX(Inputs!$A$49:$A$124,ROWS($B$13:B35)),"0000"),"") ->  | C35: =IF(B35="","",INDEX(Inputs!$D$49:$D$124,ROWS($B$13:B35))) ->  | E35: =IF(B35="","",IFERROR(INDEX('Pure Premium Rates'!$B$2:$Q$569,MATCH(TEXT(B35,"0000"),INDEX(TEXT('Pure Premium Rates'!$A$2:$A$569,"0000"),0),0),MATCH($D$7,'Pure Premium Rates'!$B$1:$Q$1,1)),"")) -> 
B36: =IF(ROWS($B$13:B36)<=Inputs!$D$46,TEXT(INDEX(Inputs!$A$49:$A$124,ROWS($B$13:B36)),"0000"),"") ->  | C36: =IF(B36="","",INDEX(Inputs!$D$49:$D$124,ROWS($B$13:B36))) ->  | E36: =IF(B36="","",IFERROR(INDEX('Pure Premium Rates'!$B$2:$Q$569,MATCH(TEXT(B36,"0000"),INDEX(TEXT('Pure Premium Rates'!$A$2:$A$569,"0000"),0),0),MATCH($D$7,'Pure Premium Rates'!$B$1:$Q$1,1)),"")) -> 
B37: =IF(ROWS($B$13:B37)<=Inputs!$D$46,TEXT(INDEX(Inputs!$A$49:$A$124,ROWS($B$13:B37)),"0000"),"") ->  | C37: =IF(B37="","",INDEX(Inputs!$D$49:$D$124,ROWS($B$13:B37))) ->  | E37: =IF(B37="","",IFERROR(INDEX('Pure Premium Rates'!$B$2:$Q$569,MATCH(TEXT(B37,"0000"),INDEX(TEXT('Pure Premium Rates'!$A$2:$A$569,"0000"),0),0),MATCH($D$7,'Pure Premium Rates'!$B$1:$Q$1,1)),"")) -> 
B38: =IF(ROWS($B$13:B38)<=Inputs!$D$46,TEXT(INDEX(Inputs!$A$49:$A$124,ROWS($B$13:B38)),"0000"),"") ->  | C38: =IF(B38="","",INDEX(Inputs!$D$49:$D$124,ROWS($B$13:B38))) ->  | E38: =IF(B38="","",IFERROR(INDEX('Pure Premium Rates'!$B$2:$Q$569,MATCH(TEXT(B38,"0000"),INDEX(TEXT('Pure Premium Rates'!$A$2:$A$569,"0000"),0),0),MATCH($D$7,'Pure Premium Rates'!$B$1:$Q$1,1)),"")) -> 
B39: =IF(ROWS($B$13:B39)<=Inputs!$D$46,TEXT(INDEX(Inputs!$A$49:$A$124,ROWS($B$13:B39)),"0000"),"") ->  | C39: =IF(B39="","",INDEX(Inputs!$D$49:$D$124,ROWS($B$13:B39))) ->  | E39: =IF(B39="","",IFERROR(INDEX('Pure Premium Rates'!$B$2:$Q$569,MATCH(TEXT(B39,"0000"),INDEX(TEXT('Pure Premium Rates'!$A$2:$A$569,"0000"),0),0),MATCH($D$7,'Pure Premium Rates'!$B$1:$Q$1,1)),"")) -> 
B40: =IF(ROWS($B$13:B40)<=Inputs!$D$46,TEXT(INDEX(Inputs!$A$49:$A$124,ROWS($B$13:B40)),"0000"),"") ->  | C40: =IF(B40="","",INDEX(Inputs!$D$49:$D$124,ROWS($B$13:B40))) ->  | E40: =IF(B40="","",IFERROR(INDEX('Pure Premium Rates'!$B$2:$Q$569,MATCH(TEXT(B40,"0000"),INDEX(TEXT('Pure Premium Rates'!$A$2:$A$569,"0000"),0),0),MATCH($D$7,'Pure Premium Rates'!$B$1:$Q$1,1)),"")) -> 
B41: =IF(ROWS($B$13:B41)<=Inputs!$D$46,TEXT(INDEX(Inputs!$A$49:$A$124,ROWS($B$13:B41)),"0000"),"") ->  | C41: =IF(B41="","",INDEX(Inputs!$D$49:$D$124,ROWS($B$13:B41))) ->  | E41: =IF(B41="","",IFERROR(INDEX('Pure Premium Rates'!$B$2:$Q$569,MATCH(TEXT(B41,"0000"),INDEX(TEXT('Pure Premium Rates'!$A$2:$A$569,"0000"),0),0),MATCH($D$7,'Pure Premium Rates'!$B$1:$Q$1,1)),"")) -> 
B42: =IF(ROWS($B$13:B42)<=Inputs!$D$46,TEXT(INDEX(Inputs!$A$49:$A$124,ROWS($B$13:B42)),"0000"),"") ->  | C42: =IF(B42="","",INDEX(Inputs!$D$49:$D$124,ROWS($B$13:B42))) ->  | E42: =IF(B42="","",IFERROR(INDEX('Pure Premium Rates'!$B$2:$Q$569,MATCH(TEXT(B42,"0000"),INDEX(TEXT('Pure Premium Rates'!$A$2:$A$569,"0000"),0),0),MATCH($D$7,'Pure Premium Rates'!$B$1:$Q$1,1)),"")) -> 
B43: =IF(ROWS($B$13:B43)<=Inputs!$D$46,TEXT(INDEX(Inputs!$A$49:$A$124,ROWS($B$13:B43)),"0000"),"") ->  | C43: =IF(B43="","",INDEX(Inputs!$D$49:$D$124,ROWS($B$13:B43))) ->  | E43: =IF(B43="","",IFERROR(INDEX('Pure Premium Rates'!$B$2:$Q$569,MATCH(TEXT(B43,"0000"),INDEX(TEXT('Pure Premium Rates'!$A$2:$A$569,"0000"),0),0),MATCH($D$7,'Pure Premium Rates'!$B$1:$Q$1,1)),"")) -> 
B44: =IF(ROWS($B$13:B44)<=Inputs!$D$46,TEXT(INDEX(Inputs!$A$49:$A$124,ROWS($B$13:B44)),"0000"),"") ->  | C44: =IF(B44="","",INDEX(Inputs!$D$49:$D$124,ROWS($B$13:B44))) ->  | E44: =IF(B44="","",IFERROR(INDEX('Pure Premium Rates'!$B$2:$Q$569,MATCH(TEXT(B44,"0000"),INDEX(TEXT('Pure Premium Rates'!$A$2:$A$569,"0000"),0),0),MATCH($D$7,'Pure Premium Rates'!$B$1:$Q$1,1)),"")) -> 
B45: =IF(ROWS($B$13:B45)<=Inputs!$D$46,TEXT(INDEX(Inputs!$A$49:$A$124,ROWS($B$13:B45)),"0000"),"") ->  | C45: =IF(B45="","",INDEX(Inputs!$D$49:$D$124,ROWS($B$13:B45))) ->  | E45: =IF(B45="","",IFERROR(INDEX('Pure Premium Rates'!$B$2:$Q$569,MATCH(TEXT(B45,"0000"),INDEX(TEXT('Pure Premium Rates'!$A$2:$A$569,"0000"),0),0),MATCH($D$7,'Pure Premium Rates'!$B$1:$Q$1,1)),"")) -> 
B46: =IF(ROWS($B$13:B46)<=Inputs!$D$46,TEXT(INDEX(Inputs!$A$49:$A$124,ROWS($B$13:B46)),"0000"),"") ->  | C46: =IF(B46="","",INDEX(Inputs!$D$49:$D$124,ROWS($B$13:B46))) ->  | E46: =IF(B46="","",IFERROR(INDEX('Pure Premium Rates'!$B$2:$Q$569,MATCH(TEXT(B46,"0000"),INDEX(TEXT('Pure Premium Rates'!$A$2:$A$569,"0000"),0),0),MATCH($D$7,'Pure Premium Rates'!$B$1:$Q$1,1)),"")) -> 
B47: =IF(ROWS($B$13:B47)<=Inputs!$D$46,TEXT(INDEX(Inputs!$A$49:$A$124,ROWS($B$13:B47)),"0000"),"") ->  | C47: =IF(B47="","",INDEX(Inputs!$D$49:$D$124,ROWS($B$13:B47))) ->  | E47: =IF(B47="","",IFERROR(INDEX('Pure Premium Rates'!$B$2:$Q$569,MATCH(TEXT(B47,"0000"),INDEX(TEXT('Pure Premium Rates'!$A$2:$A$569,"0000"),0),0),MATCH($D$7,'Pure Premium Rates'!$B$1:$Q$1,1)),"")) -> 
B48: =IF(ROWS($B$13:B48)<=Inputs!$D$46,TEXT(INDEX(Inputs!$A$49:$A$124,ROWS($B$13:B48)),"0000"),"") ->  | C48: =IF(B48="","",INDEX(Inputs!$D$49:$D$124,ROWS($B$13:B48))) ->  | E48: =IF(B48="","",IFERROR(INDEX('Pure Premium Rates'!$B$2:$Q$569,MATCH(TEXT(B48,"0000"),INDEX(TEXT('Pure Premium Rates'!$A$2:$A$569,"0000"),0),0),MATCH($D$7,'Pure Premium Rates'!$B$1:$Q$1,1)),"")) -> 
B49: =IF(ROWS($B$13:B49)<=Inputs!$D$46,TEXT(INDEX(Inputs!$A$49:$A$124,ROWS($B$13:B49)),"0000"),"") ->  | C49: =IF(B49="","",INDEX(Inputs!$D$49:$D$124,ROWS($B$13:B49))) ->  | E49: =IF(B49="","",IFERROR(INDEX('Pure Premium Rates'!$B$2:$Q$569,MATCH(TEXT(B49,"0000"),INDEX(TEXT('Pure Premium Rates'!$A$2:$A$569,"0000"),0),0),MATCH($D$7,'Pure Premium Rates'!$B$1:$Q$1,1)),"")) -> 
B50: =IF(ROWS($B$13:B50)<=Inputs!$D$46,TEXT(INDEX(Inputs!$A$49:$A$124,ROWS($B$13:B50)),"0000"),"") ->  | C50: =IF(B50="","",INDEX(Inputs!$D$49:$D$124,ROWS($B$13:B50))) ->  | E50: =IF(B50="","",IFERROR(INDEX('Pure Premium Rates'!$B$2:$Q$569,MATCH(TEXT(B50,"0000"),INDEX(TEXT('Pure Premium Rates'!$A$2:$A$569,"0000"),0),0),MATCH($D$7,'Pure Premium Rates'!$B$1:$Q$1,1)),"")) -> 
B51: =IF(ROWS($B$13:B51)<=Inputs!$D$46,TEXT(INDEX(Inputs!$A$49:$A$124,ROWS($B$13:B51)),"0000"),"") ->  | C51: =IF(B51="","",INDEX(Inputs!$D$49:$D$124,ROWS($B$13:B51))) ->  | E51: =IF(B51="","",IFERROR(INDEX('Pure Premium Rates'!$B$2:$Q$569,MATCH(TEXT(B51,"0000"),INDEX(TEXT('Pure Premium Rates'!$A$2:$A$569,"0000"),0),0),MATCH($D$7,'Pure Premium Rates'!$B$1:$Q$1,1)),"")) -> 
B52: =IF(ROWS($B$13:B52)<=Inputs!$D$46,TEXT(INDEX(Inputs!$A$49:$A$124,ROWS($B$13:B52)),"0000"),"") ->  | C52: =IF(B52="","",INDEX(Inputs!$D$49:$D$124,ROWS($B$13:B52))) ->  | E52: =IF(B52="","",IFERROR(INDEX('Pure Premium Rates'!$B$2:$Q$569,MATCH(TEXT(B52,"0000"),INDEX(TEXT('Pure Premium Rates'!$A$2:$A$569,"0000"),0),0),MATCH($D$7,'Pure Premium Rates'!$B$1:$Q$1,1)),"")) -> 
B53: =IF(ROWS($B$13:B53)<=Inputs!$D$46,TEXT(INDEX(Inputs!$A$49:$A$124,ROWS($B$13:B53)),"0000"),"") ->  | C53: =IF(B53="","",INDEX(Inputs!$D$49:$D$124,ROWS($B$13:B53))) ->  | E53: =IF(B53="","",IFERROR(INDEX('Pure Premium Rates'!$B$2:$Q$569,MATCH(TEXT(B53,"0000"),INDEX(TEXT('Pure Premium Rates'!$A$2:$A$569,"0000"),0),0),MATCH($D$7,'Pure Premium Rates'!$B$1:$Q$1,1)),"")) -> 
B54: =IF(ROWS($B$13:B54)<=Inputs!$D$46,TEXT(INDEX(Inputs!$A$49:$A$124,ROWS($B$13:B54)),"0000"),"") ->  | C54: =IF(B54="","",INDEX(Inputs!$D$49:$D$124,ROWS($B$13:B54))) ->  | E54: =IF(B54="","",IFERROR(INDEX('Pure Premium Rates'!$B$2:$Q$569,MATCH(TEXT(B54,"0000"),INDEX(TEXT('Pure Premium Rates'!$A$2:$A$569,"0000"),0),0),MATCH($D$7,'Pure Premium Rates'!$B$1:$Q$1,1)),"")) -> 
B55: =IF(ROWS($B$13:B55)<=Inputs!$D$46,TEXT(INDEX(Inputs!$A$49:$A$124,ROWS($B$13:B55)),"0000"),"") ->  | C55: =IF(B55="","",INDEX(Inputs!$D$49:$D$124,ROWS($B$13:B55))) ->  | E55: =IF(B55="","",IFERROR(INDEX('Pure Premium Rates'!$B$2:$Q$569,MATCH(TEXT(B55,"0000"),INDEX(TEXT('Pure Premium Rates'!$A$2:$A$569,"0000"),0),0),MATCH($D$7,'Pure Premium Rates'!$B$1:$Q$1,1)),"")) -> 
B56: =IF(ROWS($B$13:B56)<=Inputs!$D$46,TEXT(INDEX(Inputs!$A$49:$A$124,ROWS($B$13:B56)),"0000"),"") ->  | C56: =IF(B56="","",INDEX(Inputs!$D$49:$D$124,ROWS($B$13:B56))) ->  | E56: =IF(B56="","",IFERROR(INDEX('Pure Premium Rates'!$B$2:$Q$569,MATCH(TEXT(B56,"0000"),INDEX(TEXT('Pure Premium Rates'!$A$2:$A$569,"0000"),0),0),MATCH($D$7,'Pure Premium Rates'!$B$1:$Q$1,1)),"")) -> 
B57: =IF(ROWS($B$13:B57)<=Inputs!$D$46,TEXT(INDEX(Inputs!$A$49:$A$124,ROWS($B$13:B57)),"0000"),"") ->  | C57: =IF(B57="","",INDEX(Inputs!$D$49:$D$124,ROWS($B$13:B57))) ->  | E57: =IF(B57="","",IFERROR(INDEX('Pure Premium Rates'!$B$2:$Q$569,MATCH(TEXT(B57,"0000"),INDEX(TEXT('Pure Premium Rates'!$A$2:$A$569,"0000"),0),0),MATCH($D$7,'Pure Premium Rates'!$B$1:$Q$1,1)),"")) -> 
B58: =IF(ROWS($B$13:B58)<=Inputs!$D$46,TEXT(INDEX(Inputs!$A$49:$A$124,ROWS($B$13:B58)),"0000"),"") ->  | C58: =IF(B58="","",INDEX(Inputs!$D$49:$D$124,ROWS($B$13:B58))) ->  | E58: =IF(B58="","",IFERROR(INDEX('Pure Premium Rates'!$B$2:$Q$569,MATCH(TEXT(B58,"0000"),INDEX(TEXT('Pure Premium Rates'!$A$2:$A$569,"0000"),0),0),MATCH($D$7,'Pure Premium Rates'!$B$1:$Q$1,1)),"")) -> 
B59: =IF(ROWS($B$13:B59)<=Inputs!$D$46,TEXT(INDEX(Inputs!$A$49:$A$124,ROWS($B$13:B59)),"0000"),"") ->  | C59: =IF(B59="","",INDEX(Inputs!$D$49:$D$124,ROWS($B$13:B59))) ->  | E59: =IF(B59="","",IFERROR(INDEX('Pure Premium Rates'!$B$2:$Q$569,MATCH(TEXT(B59,"0000"),INDEX(TEXT('Pure Premium Rates'!$A$2:$A$569,"0000"),0),0),MATCH($D$7,'Pure Premium Rates'!$B$1:$Q$1,1)),"")) -> 
B60: =IF(ROWS($B$13:B60)<=Inputs!$D$46,TEXT(INDEX(Inputs!$A$49:$A$124,ROWS($B$13:B60)),"0000"),"") ->  | C60: =IF(B60="","",INDEX(Inputs!$D$49:$D$124,ROWS($B$13:B60))) ->  | E60: =IF(B60="","",IFERROR(INDEX('Pure Premium Rates'!$B$2:$Q$569,MATCH(TEXT(B60,"0000"),INDEX(TEXT('Pure Premium Rates'!$A$2:$A$569,"0000"),0),0),MATCH($D$7,'Pure Premium Rates'!$B$1:$Q$1,1)),"")) -> 
B61: =IF(ROWS($B$13:B61)<=Inputs!$D$46,TEXT(INDEX(Inputs!$A$49:$A$124,ROWS($B$13:B61)),"0000"),"") ->  | C61: =IF(B61="","",INDEX(Inputs!$D$49:$D$124,ROWS($B$13:B61))) ->  | E61: =IF(B61="","",IFERROR(INDEX('Pure Premium Rates'!$B$2:$Q$569,MATCH(TEXT(B61,"0000"),INDEX(TEXT('Pure Premium Rates'!$A$2:$A$569,"0000"),0),0),MATCH($D$7,'Pure Premium Rates'!$B$1:$Q$1,1)),"")) -> 
B62: =IF(ROWS($B$13:B62)<=Inputs!$D$46,TEXT(INDEX(Inputs!$A$49:$A$124,ROWS($B$13:B62)),"0000"),"") ->  | C62: =IF(B62="","",INDEX(Inputs!$D$49:$D$124,ROWS($B$13:B62))) ->  | E62: =IF(B62="","",IFERROR(INDEX('Pure Premium Rates'!$B$2:$Q$569,MATCH(TEXT(B62,"0000"),INDEX(TEXT('Pure Premium Rates'!$A$2:$A$569,"0000"),0),0),MATCH($D$7,'Pure Premium Rates'!$B$1:$Q$1,1)),"")) -> 
B63: =IF(ROWS($B$13:B63)<=Inputs!$D$46,TEXT(INDEX(Inputs!$A$49:$A$124,ROWS($B$13:B63)),"0000"),"") ->  | C63: =IF(B63="","",INDEX(Inputs!$D$49:$D$124,ROWS($B$13:B63))) ->  | E63: =IF(B63="","",IFERROR(INDEX('Pure Premium Rates'!$B$2:$Q$569,MATCH(TEXT(B63,"0000"),INDEX(TEXT('Pure Premium Rates'!$A$2:$A$569,"0000"),0),0),MATCH($D$7,'Pure Premium Rates'!$B$1:$Q$1,1)),"")) -> 
B64: =IF(ROWS($B$13:B64)<=Inputs!$D$46,TEXT(INDEX(Inputs!$A$49:$A$124,ROWS($B$13:B64)),"0000"),"") ->  | C64: =IF(B64="","",INDEX(Inputs!$D$49:$D$124,ROWS($B$13:B64))) ->  | E64: =IF(B64="","",IFERROR(INDEX('Pure Premium Rates'!$B$2:$Q$569,MATCH(TEXT(B64,"0000"),INDEX(TEXT('Pure Premium Rates'!$A$2:$A$569,"0000"),0),0),MATCH($D$7,'Pure Premium Rates'!$B$1:$Q$1,1)),"")) -> 
B65: =IF(ROWS($B$13:B65)<=Inputs!$D$46,TEXT(INDEX(Inputs!$A$49:$A$124,ROWS($B$13:B65)),"0000"),"") ->  | C65: =IF(B65="","",INDEX(Inputs!$D$49:$D$124,ROWS($B$13:B65))) ->  | E65: =IF(B65="","",IFERROR(INDEX('Pure Premium Rates'!$B$2:$Q$569,MATCH(TEXT(B65,"0000"),INDEX(TEXT('Pure Premium Rates'!$A$2:$A$569,"0000"),0),0),MATCH($D$7,'Pure Premium Rates'!$B$1:$Q$1,1)),"")) -> 
B66: =IF(ROWS($B$13:B66)<=Inputs!$D$46,TEXT(INDEX(Inputs!$A$49:$A$124,ROWS($B$13:B66)),"0000"),"") ->  | C66: =IF(B66="","",INDEX(Inputs!$D$49:$D$124,ROWS($B$13:B66))) ->  | E66: =IF(B66="","",IFERROR(INDEX('Pure Premium Rates'!$B$2:$Q$569,MATCH(TEXT(B66,"0000"),INDEX(TEXT('Pure Premium Rates'!$A$2:$A$569,"0000"),0),0),MATCH($D$7,'Pure Premium Rates'!$B$1:$Q$1,1)),"")) -> 
B67: =IF(ROWS($B$13:B67)<=Inputs!$D$46,TEXT(INDEX(Inputs!$A$49:$A$124,ROWS($B$13:B67)),"0000"),"") ->  | C67: =IF(B67="","",INDEX(Inputs!$D$49:$D$124,ROWS($B$13:B67))) ->  | E67: =IF(B67="","",IFERROR(INDEX('Pure Premium Rates'!$B$2:$Q$569,MATCH(TEXT(B67,"0000"),INDEX(TEXT('Pure Premium Rates'!$A$2:$A$569,"0000"),0),0),MATCH($D$7,'Pure Premium Rates'!$B$1:$Q$1,1)),"")) -> 
B68: =IF(ROWS($B$13:B68)<=Inputs!$D$46,TEXT(INDEX(Inputs!$A$49:$A$124,ROWS($B$13:B68)),"0000"),"") ->  | C68: =IF(B68="","",INDEX(Inputs!$D$49:$D$124,ROWS($B$13:B68))) ->  | E68: =IF(B68="","",IFERROR(INDEX('Pure Premium Rates'!$B$2:$Q$569,MATCH(TEXT(B68,"0000"),INDEX(TEXT('Pure Premium Rates'!$A$2:$A$569,"0000"),0),0),MATCH($D$7,'Pure Premium Rates'!$B$1:$Q$1,1)),"")) -> 
B69: =IF(ROWS($B$13:B69)<=Inputs!$D$46,TEXT(INDEX(Inputs!$A$49:$A$124,ROWS($B$13:B69)),"0000"),"") ->  | C69: =IF(B69="","",INDEX(Inputs!$D$49:$D$124,ROWS($B$13:B69))) ->  | E69: =IF(B69="","",IFERROR(INDEX('Pure Premium Rates'!$B$2:$Q$569,MATCH(TEXT(B69,"0000"),INDEX(TEXT('Pure Premium Rates'!$A$2:$A$569,"0000"),0),0),MATCH($D$7,'Pure Premium Rates'!$B$1:$Q$1,1)),"")) -> 
B70: =IF(ROWS($B$13:B70)<=Inputs!$D$46,TEXT(INDEX(Inputs!$A$49:$A$124,ROWS($B$13:B70)),"0000"),"") ->  | C70: =IF(B70="","",INDEX(Inputs!$D$49:$D$124,ROWS($B$13:B70))) ->  | E70: =IF(B70="","",IFERROR(INDEX('Pure Premium Rates'!$B$2:$Q$569,MATCH(TEXT(B70,"0000"),INDEX(TEXT('Pure Premium Rates'!$A$2:$A$569,"0000"),0),0),MATCH($D$7,'Pure Premium Rates'!$B$1:$Q$1,1)),"")) -> 
B71: =IF(ROWS($B$13:B71)<=Inputs!$D$46,TEXT(INDEX(Inputs!$A$49:$A$124,ROWS($B$13:B71)),"0000"),"") ->  | C71: =IF(B71="","",INDEX(Inputs!$D$49:$D$124,ROWS($B$13:B71))) ->  | E71: =IF(B71="","",IFERROR(INDEX('Pure Premium Rates'!$B$2:$Q$569,MATCH(TEXT(B71,"0000"),INDEX(TEXT('Pure Premium Rates'!$A$2:$A$569,"0000"),0),0),MATCH($D$7,'Pure Premium Rates'!$B$1:$Q$1,1)),"")) -> 
B72: =IF(ROWS($B$13:B72)<=Inputs!$D$46,TEXT(INDEX(Inputs!$A$49:$A$124,ROWS($B$13:B72)),"0000"),"") ->  | C72: =IF(B72="","",INDEX(Inputs!$D$49:$D$124,ROWS($B$13:B72))) ->  | E72: =IF(B72="","",IFERROR(INDEX('Pure Premium Rates'!$B$2:$Q$569,MATCH(TEXT(B72,"0000"),INDEX(TEXT('Pure Premium Rates'!$A$2:$A$569,"0000"),0),0),MATCH($D$7,'Pure Premium Rates'!$B$1:$Q$1,1)),"")) -> 
B73: =IF(ROWS($B$13:B73)<=Inputs!$D$46,TEXT(INDEX(Inputs!$A$49:$A$124,ROWS($B$13:B73)),"0000"),"") ->  | C73: =IF(B73="","",INDEX(Inputs!$D$49:$D$124,ROWS($B$13:B73))) ->  | E73: =IF(B73="","",IFERROR(INDEX('Pure Premium Rates'!$B$2:$Q$569,MATCH(TEXT(B73,"0000"),INDEX(TEXT('Pure Premium Rates'!$A$2:$A$569,"0000"),0),0),MATCH($D$7,'Pure Premium Rates'!$B$1:$Q$1,1)),"")) -> 
B74: =IF(ROWS($B$13:B74)<=Inputs!$D$46,TEXT(INDEX(Inputs!$A$49:$A$124,ROWS($B$13:B74)),"0000"),"") ->  | C74: =IF(B74="","",INDEX(Inputs!$D$49:$D$124,ROWS($B$13:B74))) ->  | E74: =IF(B74="","",IFERROR(INDEX('Pure Premium Rates'!$B$2:$Q$569,MATCH(TEXT(B74,"0000"),INDEX(TEXT('Pure Premium Rates'!$A$2:$A$569,"0000"),0),0),MATCH($D$7,'Pure Premium Rates'!$B$1:$Q$1,1)),"")) -> 
B75: =IF(ROWS($B$13:B75)<=Inputs!$D$46,TEXT(INDEX(Inputs!$A$49:$A$124,ROWS($B$13:B75)),"0000"),"") ->  | C75: =IF(B75="","",INDEX(Inputs!$D$49:$D$124,ROWS($B$13:B75))) ->  | E75: =IF(B75="","",IFERROR(INDEX('Pure Premium Rates'!$B$2:$Q$569,MATCH(TEXT(B75,"0000"),INDEX(TEXT('Pure Premium Rates'!$A$2:$A$569,"0000"),0),0),MATCH($D$7,'Pure Premium Rates'!$B$1:$Q$1,1)),"")) -> 
B76: =IF(ROWS($B$13:B76)<=Inputs!$D$46,TEXT(INDEX(Inputs!$A$49:$A$124,ROWS($B$13:B76)),"0000"),"") ->  | C76: =IF(B76="","",INDEX(Inputs!$D$49:$D$124,ROWS($B$13:B76))) ->  | E76: =IF(B76="","",IFERROR(INDEX('Pure Premium Rates'!$B$2:$Q$569,MATCH(TEXT(B76,"0000"),INDEX(TEXT('Pure Premium Rates'!$A$2:$A$569,"0000"),0),0),MATCH($D$7,'Pure Premium Rates'!$B$1:$Q$1,1)),"")) -> 
B77: =IF(ROWS($B$13:B77)<=Inputs!$D$46,TEXT(INDEX(Inputs!$A$49:$A$124,ROWS($B$13:B77)),"0000"),"") ->  | C77: =IF(B77="","",INDEX(Inputs!$D$49:$D$124,ROWS($B$13:B77))) ->  | E77: =IF(B77="","",IFERROR(INDEX('Pure Premium Rates'!$B$2:$Q$569,MATCH(TEXT(B77,"0000"),INDEX(TEXT('Pure Premium Rates'!$A$2:$A$569,"0000"),0),0),MATCH($D$7,'Pure Premium Rates'!$B$1:$Q$1,1)),"")) -> 
B78: =IF(ROWS($B$13:B78)<=Inputs!$D$46,TEXT(INDEX(Inputs!$A$49:$A$124,ROWS($B$13:B78)),"0000"),"") ->  | C78: =IF(B78="","",INDEX(Inputs!$D$49:$D$124,ROWS($B$13:B78))) ->  | E78: =IF(B78="","",IFERROR(INDEX('Pure Premium Rates'!$B$2:$Q$569,MATCH(TEXT(B78,"0000"),INDEX(TEXT('Pure Premium Rates'!$A$2:$A$569,"0000"),0),0),MATCH($D$7,'Pure Premium Rates'!$B$1:$Q$1,1)),"")) -> 
B79: =IF(ROWS($B$13:B79)<=Inputs!$D$46,TEXT(INDEX(Inputs!$A$49:$A$124,ROWS($B$13:B79)),"0000"),"") ->  | C79: =IF(B79="","",INDEX(Inputs!$D$49:$D$124,ROWS($B$13:B79))) ->  | D79: =IF(C79="","",VALUE(C79)/100) ->  | E79: =IF(B79="","",IFERROR(INDEX('Pure Premium Rates'!$B$2:$Q$569,MATCH(TEXT(B79,"0000"),INDEX(TEXT('Pure Premium Rates'!$A$2:$A$569,"0000"),0),0),MATCH($D$7,'Pure Premium Rates'!$B$1:$Q$1,1)),"")) ->  | F79: =IF(OR(D79="",E79=""),"",D79*E79) -> 
B80: =IF(ROWS($B$13:B80)<=Inputs!$D$46,TEXT(INDEX(Inputs!$A$49:$A$124,ROWS($B$13:B80)),"0000"),"") ->  | C80: =IF(B80="","",INDEX(Inputs!$D$49:$D$124,ROWS($B$13:B80))) ->  | E80: =IF(B80="","",IFERROR(INDEX('Pure Premium Rates'!$B$2:$Q$569,MATCH(TEXT(B80,"0000"),INDEX(TEXT('Pure Premium Rates'!$A$2:$A$569,"0000"),0),0),MATCH($D$7,'Pure Premium Rates'!$B$1:$Q$1,1)),"")) -> 
B81: =IF(ROWS($B$13:B81)<=Inputs!$D$46,TEXT(INDEX(Inputs!$A$49:$A$124,ROWS($B$13:B81)),"0000"),"") ->  | C81: =IF(B81="","",INDEX(Inputs!$D$49:$D$124,ROWS($B$13:B81))) ->  | E81: =IF(B81="","",IFERROR(INDEX('Pure Premium Rates'!$B$2:$Q$569,MATCH(TEXT(B81,"0000"),INDEX(TEXT('Pure Premium Rates'!$A$2:$A$569,"0000"),0),0),MATCH($D$7,'Pure Premium Rates'!$B$1:$Q$1,1)),"")) -> 
B82: =IF(ROWS($B$13:B82)<=Inputs!$D$46,TEXT(INDEX(Inputs!$A$49:$A$124,ROWS($B$13:B82)),"0000"),"") ->  | C82: =IF(B82="","",INDEX(Inputs!$D$49:$D$124,ROWS($B$13:B82))) ->  | E82: =IF(B82="","",IFERROR(INDEX('Pure Premium Rates'!$B$2:$Q$569,MATCH(TEXT(B82,"0000"),INDEX(TEXT('Pure Premium Rates'!$A$2:$A$569,"0000"),0),0),MATCH($D$7,'Pure Premium Rates'!$B$1:$Q$1,1)),"")) -> 
B83: =IF(ROWS($B$13:B83)<=Inputs!$D$46,TEXT(INDEX(Inputs!$A$49:$A$124,ROWS($B$13:B83)),"0000"),"") ->  | C83: =IF(B83="","",INDEX(Inputs!$D$49:$D$124,ROWS($B$13:B83))) ->  | E83: =IF(B83="","",IFERROR(INDEX('Pure Premium Rates'!$B$2:$Q$569,MATCH(TEXT(B83,"0000"),INDEX(TEXT('Pure Premium Rates'!$A$2:$A$569,"0000"),0),0),MATCH($D$7,'Pure Premium Rates'!$B$1:$Q$1,1)),"")) -> 
B84: =IF(ROWS($B$13:B84)<=Inputs!$D$46,TEXT(INDEX(Inputs!$A$49:$A$124,ROWS($B$13:B84)),"0000"),"") ->  | C84: =IF(B84="","",INDEX(Inputs!$D$49:$D$124,ROWS($B$13:B84))) ->  | E84: =IF(B84="","",IFERROR(INDEX('Pure Premium Rates'!$B$2:$Q$569,MATCH(TEXT(B84,"0000"),INDEX(TEXT('Pure Premium Rates'!$A$2:$A$569,"0000"),0),0),MATCH($D$7,'Pure Premium Rates'!$B$1:$Q$1,1)),"")) -> 
B85: =IF(ROWS($B$13:B85)<=Inputs!$D$46,TEXT(INDEX(Inputs!$A$49:$A$124,ROWS($B$13:B85)),"0000"),"") ->  | C85: =IF(B85="","",INDEX(Inputs!$D$49:$D$124,ROWS($B$13:B85))) ->  | E85: =IF(B85="","",IFERROR(INDEX('Pure Premium Rates'!$B$2:$Q$569,MATCH(TEXT(B85,"0000"),INDEX(TEXT('Pure Premium Rates'!$A$2:$A$569,"0000"),0),0),MATCH($D$7,'Pure Premium Rates'!$B$1:$Q$1,1)),"")) -> 
B86: =IF(ROWS($B$13:B86)<=Inputs!$D$46,TEXT(INDEX(Inputs!$A$49:$A$124,ROWS($B$13:B86)),"0000"),"") ->  | C86: =IF(B86="","",INDEX(Inputs!$D$49:$D$124,ROWS($B$13:B86))) ->  | E86: =IF(B86="","",IFERROR(INDEX('Pure Premium Rates'!$B$2:$Q$569,MATCH(TEXT(B86,"0000"),INDEX(TEXT('Pure Premium Rates'!$A$2:$A$569,"0000"),0),0),MATCH($D$7,'Pure Premium Rates'!$B$1:$Q$1,1)),"")) -> 
B87: =IF(ROWS($B$13:B87)<=Inputs!$D$46,TEXT(INDEX(Inputs!$A$49:$A$124,ROWS($B$13:B87)),"0000"),"") ->  | C87: =IF(B87="","",INDEX(Inputs!$D$49:$D$124,ROWS($B$13:B87))) ->  | E87: =IF(B87="","",IFERROR(INDEX('Pure Premium Rates'!$B$2:$Q$569,MATCH(TEXT(B87,"0000"),INDEX(TEXT('Pure Premium Rates'!$A$2:$A$569,"0000"),0),0),MATCH($D$7,'Pure Premium Rates'!$B$1:$Q$1,1)),"")) -> 
B88: =IF(ROWS($B$13:B88)<=Inputs!$D$46,TEXT(INDEX(Inputs!$A$49:$A$124,ROWS($B$13:B88)),"0000"),"") ->  | C88: =IF(B88="","",INDEX(Inputs!$D$49:$D$124,ROWS($B$13:B88))) ->  | E88: =IF(B88="","",IFERROR(INDEX('Pure Premium Rates'!$B$2:$Q$569,MATCH(TEXT(B88,"0000"),INDEX(TEXT('Pure Premium Rates'!$A$2:$A$569,"0000"),0),0),MATCH($D$7,'Pure Premium Rates'!$B$1:$Q$1,1)),"")) -> 
A90: =F9-1 -> -6 | B90: Total | F90: =SUM(F13:INDEX(F:F,12+Inputs!$D$46)) -> 354653.4862
A92: =A90-1 -> -7 | B92: Experience Modification Rating at policy inception date | F92: =Inputs!D21 -> 0.86
A94: =A92-1 -> -8 | B94: 1.15 Factor (Expense and Market Provision) | F94: 1.15
A96: =A94-1 -> -9 | B96: California Standard Premium | F96: =F90*F92*F94 -> 350752.2979
B98: Notes
B99: =B9 -> -1 | C99: Provided by CIC.
B100: =B99-1 -> -2 | C100: Provided by CIC.
B101: -3 | C101: ="("&-C9&") / 100" -> (2) / 100
B102: -4 | C102: WCIRB pure premium rate effective at policy inception date.
B103: -5 | C103: ="("&-D9&") x ("&-E9&")" -> (3) x (4)
B104: -6 | C104: ="Sum of column ("&-F9&")." -> Sum of column (5).
B105: -7 | C105: Provided by CIC.
B106: -8 | C106: From Schedule 2.6, Section IV, Subsection 2.b.iv.
C107: of Conservator Rehabilitation Plan.
B108: =B106-1 -> -9 | C108: ="("&-A90&") x ("&-A92&") x ("&-A94&")" -> (6) x (7) x (8)

Sheet Non-CA Standard Premium - Yr1
A1: ='Interpolated Development'!A1 -> California Insurance Company Rehabilitation Plan
A2: ='Interpolated Development'!A2 -> Options to Settle Litigation Related to XYZ Company
A3: ='Interpolated Development'!A3 -> Equity Comp and Solution One Programs and RPA
A5: Option 2 - Non-California Standard Premium
B7: Policy Effective Date: | D7: ='CA Standard Premium - Yr1'!D7 -> 2013-06-01
B9: =-1 -> -1 | C9: =B9-1 -> -2 | D9: =C9-1 -> -3 | E9: =D9-1 -> -4
E11: Non-California
C12: Guaranteed | D12: Experience | E12: Standard
B13: State | C13: Cost Premium | D13: Modification | E13: Premium
E15: =PRODUCT(C15:D15) -> 0
E16: =PRODUCT(C16:D16) -> 0
A35: =E9-1 -> -5 | B35: Total | E35: =SUM(E15:E16) -> 0
B37: Notes
B38: =B9 -> -1 | C38: Provided by CIC.
B39: =B38-1 -> -2 | C39: Provided by CIC.
B40: =B39-1 -> -3 | C40: Provided by CIC.
B41: =B40-1 -> -4 | C41: ="("&-C9&") x ("&-D9&")" -> (2) x (3)
B42: =B41-1 -> -5 | C42: ="Sum of column ("&-E9&")." -> Sum of column (4).

Sheet Non-CA Standard Premium - Yr2
A1: ='Interpolated Development'!A1 -> California Insurance Company Rehabilitation Plan
A2: ='Interpolated Development'!A2 -> Options to Settle Litigation Related to XYZ Company
A3: ='Interpolated Development'!A3 -> Equity Comp and Solution One Programs and RPA
A5: Option 2 - Non-California Standard Premium
B7: Policy Effective Date: | D7: ='Non-CA Standard Premium - Yr1'!D7+365 -> 2014-06-01
B9: =-1 -> -1 | C9: =B9-1 -> -2 | D9: =C9-1 -> -3 | E9: =D9-1 -> -4
E11: Non-California
C12: Guaranteed | D12: Experience | E12: Standard
B13: State | C13: Cost Premium | D13: Modification | E13: Premium
E15: =PRODUCT(C15:D15) -> 0
E16: =PRODUCT(C16:D16) -> 0
A35: =E9-1 -> -5 | B35: Total | E35: =SUM(E15:E16) -> 0
B37: Notes
B38: =B9 -> -1 | C38: Provided by CIC.
B39: =B38-1 -> -2 | C39: Provided by CIC.
B40: =B39-1 -> -3 | C40: Provided by CIC.
B41: =B40-1 -> -4 | C41: ="("&-C9&") x ("&-D9&")" -> (2) x (3)
B42: =B41-1 -> -5 | C42: ="Sum of column ("&-E9&")." -> Sum of column (4).

Sheet Non-CA Standard Premium - Yr3
A1: ='Interpolated Development'!A1 -> California Insurance Company Rehabilitation Plan
A2: ='Interpolated Development'!A2 -> Options to Settle Litigation Related to XYZ Company
A3: ='Interpolated Development'!A3 -> Equity Comp and Solution One Programs and RPA
A5: Option 2 - Non-California Standard Premium
B7: Policy Effective Date: | D7: ='Non-CA Standard Premium - Yr2'!D7+365 -> 2015-06-01
B9: =-1 -> -1 | C9: =B9-1 -> -2 | D9: =C9-1 -> -3 | E9: =D9-1 -> -4
E11: Non-California
C12: Guaranteed | D12: Experience | E12: Standard
B13: State | C13: Cost Premium | D13: Modification | E13: Premium
E15: =PRODUCT(C15:D15) -> 0
E16: =PRODUCT(C16:D16) -> 0
A35: =E9-1 -> -5 | B35: Total | E35: =SUM(E15:E16) -> 0
B37: Notes
B38: =B9 -> -1 | C38: Provided by CIC.
B39: =B38-1 -> -2 | C39: Provided by CIC.
B40: =B39-1 -> -3 | C40: Provided by CIC.
B41: =B40-1 -> -4 | C41: ="("&-C9&") x ("&-D9&")" -> (2) x (3)
B42: =B41-1 -> -5 | C42: ="Sum of column ("&-E9&")." -> Sum of column (4).

Sheet Expense Ratio
A1: ='Interpolated Development'!A1 -> California Insurance Company Rehabilitation Plan
A2: ='Interpolated Development'!A2 -> Options to Settle Litigation Related to XYZ Company
A3: ='Interpolated Development'!A3 -> Equity Comp and Solution One Programs and RPA
A5: Option 2 - Expense Ratio
C7: =-1 -> -1 | D7: =C7-1 -> -2 | E7: -3
B8: Accident | C8: Loss and | D8: Combined | E8: Expense
B9: Year | C9: ALAE Ratio | D9: Ratio | E9: Ratio
B10: 2008 | C10: 0.85 | D10: 1.1 | E10: =D10-C10 -> 0.25
B11: 2009 | C11: 1 | D11: 1.29 | E11: 0.29
B12: 2010 | C12: 0.98 | D12: 1.27 | E12: 0.29
B13: 2011 | C13: 0.92 | D13: 1.21 | E13: 0.29
B14: 2012 | C14: 0.81 | D14: 1.07 | E14: 0.26
B15: 2013 | C15: 0.68 | D15: 0.92 | E15: 0.24
B16: 2014 | C16: 0.62 | D16: 0.85 | E16: 0.23
B17: 2015 | C17: 0.6 | D17: 0.84 | E17: 0.24
B18: 2016 | C18: 0.56 | D18: 0.81 | E18: 0.25
B19: 2017 | C19: 0.58 | D19: 0.84 | E19: 0.26
B20: 2018 | C20: 0.62 | D20: 0.89 | E20: 0.27
B21: 2019 | C21: 0.69 | D21: 0.95 | E21: 0.26
A23: Year 1 | C23: Policy Effective Date | D23: ='CA Standard Premium - Yr1'!D7 -> 2013-06-01 | F23: Provided by CIC.
C24: CA Standard Premium | D24: ='CA Standard Premium - Yr1'!F96 -> 333530.36 | F24: CA Standard Premium - Yr1 tab.
C25: Non-CA Standard Premium | D25: ='Non-CA Standard Premium - Yr1'!E35 -> 0 | F25: Non-CA Standard Premium - Yr1 tab.
C26: Total | D26: =SUM(D24:D25) -> 333530.36
C27: Expense Ratio | D27: =VLOOKUP(YEAR(D23),$B$10:$E$21,4) -> 0.24 | F27: (3) based on Policy Effective Year.
A29: Year 2 | C29: Policy Effective Date | D29: =D23+365 -> 2014-06-01 | F29: Provided by CIC.
C30: CA Standard Premium | D30: ='CA Standard Premium - Yr2'!F96 -> 395321.3106 | F30: CA Standard Premium - Yr2 tab.
C31: Non-CA Standard Premium | D31: ='Non-CA Standard Premium - Yr2'!E35 -> 0 | F31: Non-CA Standard Premium - Yr2 tab.
C32: Total | D32: =SUM(D30:D31) -> 395321.3106
C33: Expense Ratio | D33: =VLOOKUP(YEAR(D29),$B$10:$E$21,4) -> 0.23 | F33: (3) based on Policy Effective Year.
A35: Year 3 | C35: Policy Effective Date | D35: =D29+365 -> 2015-06-01 | F35: Provided by CIC.
C36: CA Standard Premium | D36: ='CA Standard Premium - Yr3'!F96 -> 350752.2979 | F36: CA Standard Premium - Yr3 tab.
C37: Non-CA Standard Premium | D37: ='Non-CA Standard Premium - Yr3'!E35 -> 0 | F37: Non-CA Standard Premium - Yr13 tab.
C38: Total | D38: =SUM(D36:D37) -> 350752.2979
C39: Expense Ratio | D39: =VLOOKUP(YEAR(D35),$B$10:$E$21,4) -> 0.24 | F39: (3) based on Policy Effective Year.
C41: Total Standard Premium | D41: =SUM(D38,D32,D26) -> 1079603.968
C43: Expense Ratio | D43: =ROUND(((D27*D26)+(D33*D32)+(D39*D38))/D41,3) -> 0.236 | F43: Weighted-average of Yr1, Yr2 and Yr3
F44: expense ratios on total standard
F45: premium.
A46: Notes:
A47: =C7 -> -1 | B47: From WCIRB's Quarterly Experience Report
B48: as of December 31, 2019 Page 5.
A49: =A47-1 -> -2 | B49: From WCIRB's Quarterly Experience Report
B50: as of December 31, 2019 Page 6.
A51: =A49-1 -> -3 | B51: ="("&-D7&") - ("&-C7&")" -> (2) - (1)

Sheet Insurance Charge
A1: ='Interpolated Development'!A1 -> California Insurance Company Rehabilitation Plan
A2: ='Interpolated Development'!A2 -> Options to Settle Litigation Related to XYZ Company
A3: ='Interpolated Development'!A3 -> Equity Comp and Solution One Programs and RPA
A5: Option 2 - Insurance Charge
C7: First Policy Effective Date: | D7: =Inputs!D9 -> 2013-06-01 | F7: Provided by CIC.
C9: Ultimate Loss Group: | D9: ='Ultimate Loss Group'!J21 -> 41 | F9: From Ultimate Loss Group tab Line (7).
C11: Entry Ratio: | D11: ='Entry Ratio'!D25 -> 2 | F11: From Entry Ratio tab Line (5).
C13: Insurance Charge: | D13: =IFERROR( IF(D7<DATE(2011,1,1), INDEX('2008 Table MA'!$B$6:$ZZ$500, MATCH(ROUND(D11,2),'2008 Table MA'!$A$6:$A$500,0), MATCH(D9,'2008 Table MA'!$B$3:$ZZ$3,0) ), IF(D7<DATE(2013,1,1), INDEX('2011 Table MA'!$B$6:$ZZ$500, MATCH(ROUND(D11,2),'2011 Table MA'!$A$6:$A$500,0), MATCH(D9,'2011 Table MA'!$B$3:$ZZ$3,0) ), INDEX('2013 Table MA'!$B$6:$ZZ$500, MATCH(ROUND(D11,2),'2013 Table MA'!$A$6:$A$500,0), MATCH(D9,'2013 Table MA'!$B$3:$ZZ$3,0) ) )), "") -> 0.2335366776 | F13: From Table MA effective at time of first policy effective date
F14: using (2) and (3).

Sheet Ultimate Loss Group
A1: ='Interpolated Development'!A1 -> California Insurance Company Rehabilitation Plan
A2: ='Interpolated Development'!A2 -> Options to Settle Litigation Related to XYZ Company
A3: ='Interpolated Development'!A3 -> Equity Comp and Solution One Programs and RPA
A5: Option 2 - Ultimate Loss Group for Insurance Charge
F7: -1 | G7: =F7-1 -> -2 | H7: =G7-1 -> -3 | I7: -4 | J7: -5
F9: California | G9: Non-California | H9: Total | I9: Expected Loss | J9: Total
F10: Standard | G10: Standard | H10: Standard | I10: and ALAE | J10: Expected
F11: Premium | G11: Premium | H11: Premium | I11: Ratio | J11: Losses
C13: Policy Effective Date (Year 1): | D13: ='CA Standard Premium - Yr1'!D7 -> 2013-06-01 | F13: ='CA Standard Premium - Yr1'!F96 -> 333530.36 | G13: ='Non-CA Standard Premium - Yr1'!E35 -> 0 | H13: =SUM(F13:G13) -> 333530.36 | I13: =VLOOKUP(YEAR(D13),'Entry Ratio'!B$11:D$20,3,FALSE) -> 0.6490909091 | J13: =I13*H13 -> 216491.5246
C15: Policy Effective Date (Year 2): | D15: ='CA Standard Premium - Yr2'!D7 -> 2014-06-01 | F15: ='CA Standard Premium - Yr2'!F96 -> 395321.3106 | G15: ='Non-CA Standard Premium - Yr2'!E35 -> 0 | H15: =SUM(F15:G15) -> 395321.3106 | I15: =VLOOKUP(YEAR(D15),'Entry Ratio'!B$11:D$20,3,FALSE) -> 0.6627272727 | J15: =I15*H15 -> 261990.214
C17: Policy Effective Date (Year 3): | D17: ='CA Standard Premium - Yr3'!D7 -> 2015-06-01 | F17: ='CA Standard Premium - Yr3'!F96 -> 350752.2979 | G17: ='Non-CA Standard Premium - Yr3'!E35 -> 0 | H17: =SUM(F17:G17) -> 350752.2979 | I17: =VLOOKUP(YEAR(D17),'Entry Ratio'!B$11:D$20,3,FALSE) -> 0.6672727273 | J17: =I17*H17 -> 234047.4424
G19: =J7-1 -> -6 | I19: Total | J19: =SUM(J13:J17) -> 712529.181
G21: =G19-1 -> -7 | I21: Ultimate Loss Group: | J21: =_xlfn.LET( _xlpm.TableYear,LOOKUP(YEAR(D13),{2008,2011,2013},{2008,2011,2013}), _xlpm.Losses,J19, _xlfn.XLOOKUP( _xlpm.Losses, CHOOSE(MATCH(_xlpm.TableYear,{2008,2011,2013},0), '2008 Table MA Ult Loss Grouping'!B:B, '2011 Table MA Ult Loss Grouping'!B:B, '2013 Table MA Ult Loss Grouping'!B:B), CHOOSE(MATCH(_xlpm.TableYear,{2008,2011,2013},0), '2008 Table MA Ult Loss Grouping'!A:A, '2011 Table MA Ult Loss Grouping'!A:A, '2013 Table MA Ult Loss Grouping'!A:A), , -1 ) ) -> 41
B23: Notes
B24: =F7 -> -1 | C24: From respective year California Standard Premium tab.
B25: =G7 -> -2 | C25: From respective year Non-California Standard Premium tab.
B26: =H7 -> -3 | C26: ="("&-F7&") + ("&-G7&")" -> (1) + (2)
B27: =I7 -> -4 | C27: Based on Entry Ratio tab Column (2).
B28: =J7 -> -5 | C28: ="("&-H7&") x ("&-I7&")" -> (3) x (4)
B29: =B28-1 -> -6 | C29: Sum of Column (5).
B30: =B29-1 -> -7 | C30: Determined based on (6), Policy Effective Date for Year 1 and the corresponding Table MA Ultimate Loss
C31: Grouping.

Sheet Entry Ratio
A1: ='Interpolated Development'!A1 -> California Insurance Company Rehabilitation Plan
A2: ='Interpolated Development'!A2 -> Options to Settle Litigation Related to XYZ Company
A3: ='Interpolated Development'!A3 -> Equity Comp and Solution One Programs and RPA
A5: Option 2 - Entry Ratio
C7: -1 | D7: =C7-1 -> -2
C8: Permissible | D8: Expected
C9: Loss and | D9: Loss and
B10: Year | C10: LAE Ratio | D10: ALAE Ratio
B11: 2009 | C11: 0.734 | D11: =C11/1.1 -> 0.6672727273
B12: =B11+1 -> 2010 | C12: 0.734 | D12: =C12/1.1 -> 0.6672727273
B13: =B12+1 -> 2011 | C13: 0.714 | D13: 0.6490909091
B14: 2012 | C14: =C13 -> 0.714 | D14: =C14/1.1 -> 0.6490909091
B15: 2013 | C15: 0.714 | D15: =C15/1.1 -> 0.6490909091
B16: 2014 | C16: 0.729 | D16: 0.6627272727
B17: 2015 | C17: 0.734 | D17: 0.6672727273
B18: 2016 | C18: 0.749 | D18: 0.6809090909
B19: 2017 | C19: 0.749 | D19: 0.6809090909
B20: =B19+1 -> 2018 | C20: 0.749 | D20: 0.6809090909
C22: First Policy Effective Date | D22: ='Insurance Charge'!D7 -> 2013-06-01
A23: =D7-1 -> -3 | C23: Maximum Loss and ALAE | D23: =Inputs!D27 -> 1.3
A24: =A23-1 -> -4 | C24: Expected Loss and ALAE | D24: =VLOOKUP(YEAR(D22),B11:D20,3,FALSE) -> 0.6490909091
A25: =A24-1 -> -5 | C25: Entry Ratio | D25: =ROUND(D23/D24,2) -> 2
A27: Notes:
A28: =C7 -> -1 | B28: Based on California Insurance Company Rate Filings in California.
B29: 2009 assumed to be the same as 2010.
A30: =D7 -> -2 | B30: ="("&-C7&") / 1.1 per Schedule 2.6, Section IV, Subsection 2.e.ii.2" -> (1) / 1.1 per Schedule 2.6, Section IV, Subsection 2.e.ii.2
B31: of Conservator Rehabilitation Plan.
A32: =A23 -> -3 | B32: Provided by CIC.
A33: =A24 -> -4 | B33: Based on Column (2) and Policy effective date.
A34: -5 | B34: ="("&-A23&") / ("&-A24&") per Schedule 2.6, Section IV, Subsection 2.e.ii" -> (3) / (4) per Schedule 2.6, Section IV, Subsection 2.e.ii
B35: of Conservator Rehabilitation Plan.

Sheet Actual Losses
A1: ='Interpolated Development'!A1 -> California Insurance Company Rehabilitation Plan
A2: ='Interpolated Development'!A2 -> Options to Settle Litigation Related to XYZ Company
A3: ='Interpolated Development'!A3 -> Equity Comp and Solution One Programs and RPA
A5: Option 2 - Actual Losses
A6: Data as of
A7: 2025-12-31
C9: -1 | D9: =C9-1 -> -2 | E9: -3 | F9: -4 | G9: -5 | H9: -6 | I9: -7 | J9: -8 | K9: -9 | L9: -10
C11: Policy | D11: Policy | G11: Age-to- | J11: IBNR | K11: IBNR
C12: Effective | D12: Expiry | F12: Maturity | G12: Ultimate | H12: Paid | I12: Case | J12: Reserves | K12: Reserves | L12: Actual
C13: Date | D13: Date | E13: Midpoint | F13: (in months) | G13: Factor | H13: Losses | I13: Reserves | J13: Undiscounted | K13: Discounted | L13: Losses
A15: Policy Year 1: | C15: =Inputs!D9 -> 2013-06-01 | D15: =Inputs!D11 -> 2014-05-31 | E15: =(((D15)-(C15))/2)+(C15)-1 -> 2013-11-29 | F15: =ROUND((_xlfn.DAYS(A$7,E15)/365*12)+6,0) -> 151 | G15: =ROUND(VLOOKUP(F15,'Interpolated Development'!C13:E149,3,FALSE),4) -> 1.0341 | H15: =Inputs!D31 -> 66447 | I15: =Inputs!D37 -> 0 | J15: =(G15-1)*(H15+I15) -> 2265.8427 | K15: =J15*0.9 -> 2039.25843 | L15: =SUM(H15,I15,K15) -> 68486.25843
A17: Policy Year 2: | C17: =Inputs!D13 -> 2014-06-01 | D17: =Inputs!D15 -> 2015-05-31 | E17: =(((D17)-(C17))/2)+(C17)-1 -> 2014-11-29 | F17: =ROUND((_xlfn.DAYS(A$7,E17)/365*12)+6,0) -> 139 | G17: =ROUND(VLOOKUP(F17,'Interpolated Development'!C15:E151,3,FALSE),4) -> 1.0363 | H17: =Inputs!D33 -> 1994 | I17: =Inputs!D39 -> 0 | J17: =(G17-1)*(H17+I17) -> 72.3822 | K17: =J17*0.9 -> 65.14398 | L17: =SUM(H17,I17,K17) -> 2059.14398
A19: Policy Year 3: | C19: =Inputs!D17 -> 2015-06-01 | D19: =Inputs!D19 -> 2016-05-31 | E19: =(((D19)-(C19))/2)+(C19)-1 -> 2015-11-29T12:00:00 | F19: =ROUND((_xlfn.DAYS(A$7,E19)/365*12)+6,0) -> 127 | G19: =ROUND(VLOOKUP(F19,'Interpolated Development'!C17:E153,3,FALSE),4) -> 1.0386 | H19: =Inputs!D35 -> 58904 | I19: =Inputs!D41 -> 0 | J19: =(G19-1)*(H19+I19) -> 2273.6944 | K19: =J19*0.9 -> 2046.32496 | L19: =SUM(H19,I19,K19) -> 60950.32496
G21: =L9-1 -> -11 | K21: Total | L21: =SUM(L15:L19) -> 131495.7274
G23: =G21-1 -> -12 | K23: Three-Year Loss Pick Containment Amount: | L23: =Inputs!D23 -> 1931656
G25: =G23-1 -> -13 | K25: Aggregate Retention Factor: | L25: =Inputs!D25 -> 0.94
G27: =G25-1 -> -14 | K27: Aggregate Retention: | L27: =L23*L25 -> 1815756.64
G29: =G27-1 -> -15 | K29: Actual Losses subject to Aggregate Retention: | L29: =MIN(L27,L21) -> 131495.7274
A31: Notes:
A32: =C9 -> -1 | B32: Provided by CIC.
A33: =A32-1 -> -2 | B33: Provided by CIC.
A34: =A33-1 -> -3 | B34: Midpoint of (1) and (2).
A35: -4 | B35: Number of months from Column (3) to December 31, 2025.
A36: -5 | B36: From Interpolated Development tab using Column (4).
A37: -6 | B37: Provided by CIC.
A38: =A37-1 -> -7 | B38: Provided by CIC.
A39: -8 | B39: [(5) - 1.0] x [(6) + (7)]
A40: =A39-1 -> -9 | B40: (8) x 0.9, per Schedule 2.6, Section IV, Subsection 3.c.vii. of Conservator Rehabilitation Plan.
A41: =A40-1 -> -10 | B41: (6) + (7) + (9)
A42: =A41-1 -> -11 | B42: Sum of Column (10).
A43: =A42-1 -> -12 | B43: Provided by CIC.
A44: -13 | B44: Provided by CIC.
A45: -14 | B45: (12) x (13)
A46: =A45-1 -> -15 | B46: Minimum of (11) and (14).

Sheet Loss and DCCE Development
A1: ='Interpolated Development'!A1 -> California Insurance Company Rehabilitation Plan
A2: ='Interpolated Development'!A2 -> Options to Settle Litigation Related to XYZ Company
A3: ='Interpolated Development'!A3 -> Equity Comp and Solution One Programs and RPA
A5: Option 2 - Incurred Loss and DCCE Development Pattern
A7: Accident | B7: Maturity (in months)
A8: Year | B8: 12 | C8: 24 | D8: 36 | E8: 48 | F8: 60 | G8: 72 | H8: 84 | I8: 96 | J8: 108 | K8: 120
A9: 2009 | B9: 37492 | C9: 51558 | D9: 54328 | E9: 58689 | F9: 57827 | G9: 57970 | H9: 55834 | I9: 56584 | J9: 57617 | K9: 58215
A10: 2010 | B10: 39200 | C10: 54117 | D10: 62865 | E10: 63471 | F10: 65244 | G10: 62197 | H10: 60670 | I10: 61155 | J10: 61876
A11: 2011 | B11: 46760 | C11: 67587 | D11: 72296 | E11: 79403 | F11: 78228 | G11: 77848 | H11: 78213 | I11: 79408
A12: 2012 | B12: 55142 | C12: 81675 | D12: 99409 | E12: 97682 | F12: 99510 | G12: 101902 | H12: 101565
A13: 2013 | B13: 76940 | C13: 130887 | D13: 145430 | E13: 154995 | F13: 163077 | G13: 166385
A14: 2014 | B14: 113867 | C14: 172795 | D14: 206747 | E14: 222794 | F14: 228952
A15: 2015 | B15: 113068 | C15: 190975 | D15: 232527 | E15: 244724
A16: 2016 | B16: 107825 | C16: 181017 | D16: 202906
A17: 2017 | B17: 92355 | C17: 144045
A18: 2018 | B18: 74215
B20: Development Factors
B21: =B8&"-"&C8 -> 12-24 | C21: =C8&"-"&D8 -> 24-36 | D21: 36-48 | E21: 48-60 | F21: 60-72 | G21: 72-84 | H21: 84-96 | I21: 96-108 | J21: 108-120
A22: 2009 | B22: =C9/B9 -> 1.37517337 | C22: =D9/C9 -> 1.053725901 | D22: 1.080271683 | E22: 0.9853124095 | F22: 1.002472893 | G22: 0.9631533552 | H22: 1.013432675 | I22: 1.018256044 | J22: 1.010378881
A23: 2010 | B23: 1.380535714 | C23: =D10/C10 -> 1.161649759 | D23: 1.009639704 | E23: 1.027934017 | F23: 0.9532983876 | G23: 0.9754489766 | H23: 1.007994066 | I23: 1.011789715
A24: 2011 | B24: 1.445402053 | C24: 1.069673162 | D24: 1.098304194 | E24: 0.9852020705 | F24: 0.9951424043 | G24: 1.004688624 | H24: 1.01527879
A25: 2012 | B25: 1.481175873 | C25: =D12/C12 -> 1.217128864 | D25: =E12/D12 -> 0.9826273275 | E25: =F12/E12 -> 1.018713786 | F25: =G12/F12 -> 1.024037785 | G25: =H12/G12 -> 0.996692901
A26: 2013 | B26: 1.701156746 | C26: =D13/C13 -> 1.111111111 | D26: =E13/D13 -> 1.065770474 | E26: =F13/E13 -> 1.052143618 | F26: =G13/F13 -> 1.020284896
A27: 2014 | B27: 1.517516049 | C27: =D14/C14 -> 1.196487167 | D27: =E14/D14 -> 1.077616604 | E27: =F14/E14 -> 1.027639883
A28: 2015 | B28: 1.689027842 | C28: =D15/C15 -> 1.217578217 | D28: =E15/D15 -> 1.052454124
A29: 2016 | B29: 1.678803617 | C29: =D16/C16 -> 1.120922344
A30: 2017 | B30: 1.55968816
K31: Tail
A32: All-Year Denominator
A33: Weighted Average | B33: =SUM(C$9:C17)/SUM(B$9:B17) -> 1.574243865 | C33: =SUM(D$9:D16)/SUM(C$9:C16) -> 1.156775495 | D33: =SUM(E$9:E15)/SUM(D$9:D15) -> 1.0551235 | E33: =SUM(F$9:F14)/SUM(E$9:E14) -> 1.023342993 | F33: =SUM(G$9:G13)/SUM(F$9:F13) -> 1.005208176 | G33: =SUM(H$9:H12)/SUM(G$9:G12) -> 0.9878799801 | H33: =SUM(I$9:I11)/SUM(H$9:H11) -> 1.01247965 | I33: =SUM(J$9:J10)/SUM(I$9:I10) -> 1.014897358 | J33: =SUM(K$9:K9)/SUM(J$9:J9) -> 1.010378881 | K33: ='Tail Factor'!H12 -> 1.04
A34: Final Age-to-Ultimate | B34: =PRODUCT(B33:$K$33) -> 2.108297173 | C34: =PRODUCT(C33:$K$33) -> 1.339244332 | D34: =PRODUCT(D33:$K$33) -> 1.157739197 | E34: =PRODUCT(E33:$K$33) -> 1.097254678 | F34: =PRODUCT(F33:$K$33) -> 1.072225721 | G34: =PRODUCT(G33:$K$33) -> 1.066670314 | H34: =PRODUCT(H33:$K$33) -> 1.07975699 | I34: =PRODUCT(I33:$K$33) -> 1.066448091 | J34: =PRODUCT(J33:$K$33) -> 1.050794036 | K34: =PRODUCT(K33:$K$33) -> 1.04
A36: Implied Percent Reported | B36: =1/B34 -> 0.4743164354 | C36: =1/C34 -> 0.7466897383 | D36: 0.8637523915 | E36: 0.9113654467 | F36: 0.932639444 | G36: 0.9374967945 | H36: 0.9261343147 | I36: 0.9376921468 | J36: 0.9516612821 | K36: 0.9615384615
A38: Source: | B38: Each diagonal is based on corresponding CIC Annual Statements from 2009-2018, Schedule P, Part 1 - Workers' Compensation.
B39: Each point along a diagonal is the sum of Schedule P, Part 1 - Workers' Compensation Columns (4), (6), (13) and (17) for
B40: the corresponding accident period from the corresponding Annual Statement.
A42: Notes: | B42: Tail Factor is from Tail Factor tab Column (7).
B43: Implied percent reported is 1.0 / Final Age-to-Ultimate.

Sheet Tail Factor
A1: ='Interpolated Development'!A1 -> California Insurance Company Rehabilitation Plan
A2: ='Interpolated Development'!A2 -> Options to Settle Litigation Related to XYZ Company
A3: ='Interpolated Development'!A3 -> Equity Comp and Solution One Programs and RPA
A5: Option 2 - Tail Factor Calculation
B7: -1 | C7: =B7-1 -> -2 | D7: -3 | E7: -4 | F7: -5 | G7: -6 | H7: -7
G9: Indicated | H9: Selected
C10: Case | D10: Ultimate | E10: Unadjusted | F10: Maturity | G10: CDF at | H10: Tail
B11: IBNR | C11: Incurred | D11: Losses | E11: Tail Factor | F11: Adjustment | G11: 120 Months | H11: Factor
A12: 2009 | B12: 2009 | C12: ='Loss and DCCE Development'!K9 -> 58215 | D12: =B12+C12 -> 60224 | E12: =D12/C12 -> 1.034510006 | F12: 1 | G12: =E12/F12 -> 1.034510006 | H12: =ROUND(AVERAGE(G12:G14),3) -> 1.04
A13: 2010 | B13: 3294 | C13: ='Loss and DCCE Development'!J10 -> 61876 | D13: =B13+C13 -> 65170 | E13: =D13/C13 -> 1.053235503 | F13: ='Loss and DCCE Development'!J33 -> 1.010378881 | G13: =E13/F13 -> 1.042416387
A14: 2011 | B14: 5492 | C14: ='Loss and DCCE Development'!I11 -> 79408 | D14: 84900 | E14: 1.069161797 | F14: =('Loss and DCCE Development'!I33*'Loss and DCCE Development'!J33) -> 1.025430857 | G14: =E14/F14 -> 1.042646406
A16: Notes:
A17: =B7 -> -1 | B17: From CIC 2018 Annual Statement, Schedule P, Part 1 - Workers' Compensation
B18: Column (15) plus Column (19).
A19: =A17-1 -> -2 | B19: From Loss and DCCE Development tab, last diagonal.
A20: =A19-1 -> -3 | B20: (1) + (2)
A21: -4 | B21: (3) / (2)
A22: -5 | B22: 2010 equals 108-120 All Year Denominator Weighted-Average in Loss and DCCE
B23: Development tab. 2011 equals product of 96-108 and 108-120 All Year Denominator
B24: Weighted-Averages in Loss and DCCE Development tab.
A25: =A22-1 -> -6 | B25: (4) / (5)
A26: -7 | B26: Average of Column (6)

Sheet Interpolated Development
A1: =Inputs!A1 -> California Insurance Company Rehabilitation Plan
A2: =Inputs!A2 -> Options to Settle Litigation Related to XYZ Company
A3: =Inputs!A3 -> Equity Comp and Solution One Programs and RPA
A5: Option 2 - Interpolated Incurred Loss and DCCE Development Pattern
C7: =-1 -> -1 | D7: =C7-1 -> -2 | E7: =D7-1 -> -3
E9: Implied
D10: Estimated | E10: Cumulative
C11: Maturity | D11: Percent | E11: Development
C12: (in months) | D12: Reported | E12: Factor | G12: Notes:
C13: 60 | D13: ='Loss and DCCE Development'!F36 -> 0.932639444 | E13: =1/D13 -> 1.072225721 | G13: Bold entries in Column (2) from "Loss and DCCE
C14: =C13+1 -> 61 | D14: =$D$13*($D$25/$D$13)^((C14-$C$13)/(12)) -> 0.9330432602 | E14: =1/D14 -> 1.071761667 | G14: Development" tab corresponding Implied Percent Reported row.
C15: 62 | D15: =$D$13*($D$25/$D$13)^((C15-60)/(12)) -> 0.9334472512 | E15: 1.071297814
C16: 63 | D16: 0.9338514171 | E16: 1.070834162 | G16: Non-bold entries in Column (2) based on exponential interpolation.
C17: 64 | D17: 0.9342557581 | E17: 1.070370711
C18: 65 | D18: 0.9346602741 | E18: 1.06990746 | G18: Column (3) = 1 / Column (2) for Maturity less than or equal to 120.
C19: 66 | D19: 0.9350649652 | E19: 1.06944441 | G19: For Maturity greater than 120, Column (3) is judgmentally selected as the
C20: 67 | D20: 0.9354698316 | E20: 1.06898156 | G20: 120 month estimated percent reported decayed at 0.995.
C21: 68 | D21: 0.9358748733 | E21: 1.068518911
C22: 69 | D22: 0.9362800903 | E22: 1.068056461
C23: 70 | D23: 0.9366854828 | E23: 1.067594212
C24: 71 | D24: 0.9370910509 | E24: 1.067132163
C25: 72 | D25: ='Loss and DCCE Development'!G36 -> 0.9374967945 | E25: 1.066670314
C26: 73 | D26: =$D$25*($D$37/$D$25)^((C26-$C$25)/(12)) -> 0.9365446202 | E26: 1.067754785
C27: 74 | D27: 0.935593413 | E27: 1.06884036
C28: 75 | D28: 0.9346431719 | E28: 1.069927037
C29: 76 | D29: 0.9336938959 | E29: 1.07101482
C30: 77 | D30: 0.932745584 | E30: 1.072103709
C31: 78 | D31: 0.9317982353 | E31: 1.073193704
C32: 79 | D32: 0.9308518488 | E32: 1.074284808
C33: 80 | D33: 0.9299064235 | E33: 1.075377022
C34: 81 | D34: 0.9289619584 | E34: 1.076470345
C35: 82 | D35: 0.9280184525 | E35: 1.07756478
C36: 83 | D36: 0.927075905 | E36: 1.078660328
C37: 84 | D37: ='Loss and DCCE Development'!H36 -> 0.9261343147 | E37: 1.07975699
C38: 85 | D38: =$D$37*($D$49/$D$37)^((C38-$C$37)/(12)) -> 0.9270920018 | E38: 1.0786416
C39: 86 | D39: 0.9280506793 | E39: 1.077527362
C40: 87 | D40: 0.9290103481 | E40: 1.076414275
C41: 88 | D41: 0.9299710092 | E41: 1.075302338
C42: 89 | D42: 0.9309326637 | E42: 1.074191549
C43: 90 | D43: 0.9318953127 | E43: 1.073081908
C44: 91 | D44: 0.9328589571 | E44: 1.071973413
C45: 92 | D45: 0.9338235979 | E45: 1.070866063
C46: =C45+1 -> 93 | D46: 0.9347892363 | E46: 1.069759857
C47: 94 | D47: 0.9357558732 | E47: 1.068654794
C48: 95 | D48: 0.9367235097 | E48: 1.067550872
C49: 96 | D49: ='Loss and DCCE Development'!I36 -> 0.9376921468 | E49: 1.066448091
C50: 97 | D50: =$D$49*($D$61/$D$49)^((C50-$C$49)/(12)) -> 0.9388483678 | E50: 1.065134727
C51: 98 | D51: 0.9400060146 | E51: 1.06382298
C52: 99 | D52: 0.9411650888 | E52: 1.062512849
C53: 100 | D53: 0.9423255921 | E53: 1.061204331
C54: 101 | D54: 0.9434875265 | E54: 1.059897425
C55: 102 | D55: 0.9446508935 | E55: 1.058592128
C56: 103 | D56: 0.9458156951 | E56: 1.057288439
C57: 104 | D57: 0.9469819329 | E57: 1.055986355
C58: 105 | D58: 0.9481496087 | E58: 1.054685875
C59: 106 | D59: 0.9493187243 | E59: 1.053386997
C60: 107 | D60: 0.9504892815 | E60: 1.052089718
C61: 108 | D61: ='Loss and DCCE Development'!J36 -> 0.9516612821 | E61: 1.050794036
C62: 109 | D62: =$D$61*($D$73/$D$61)^((C62-$C$61)/(12)) -> 0.9524804907 | E62: 1.04989027
C63: 110 | D63: 0.9533004045 | E63: 1.048987282
C64: 111 | D64: 0.9541210241 | E64: 1.04808507
C65: 112 | D65: 0.95494235 | E65: 1.047183634
C66: 113 | D66: 0.955764383 | E66: 1.046282973
C67: 114 | D67: 0.9565871236 | E67: 1.045383087
C68: 115 | D68: 0.9574105725 | E68: 1.044483975
C69: 116 | D69: 0.9582347302 | E69: 1.043585636
C70: 117 | D70: 0.9590595973 | E70: 1.042688069
C71: 118 | D71: 0.9598851745 | E71: 1.041791275
C72: 119 | D72: 0.9607114624 | E72: 1.040895252
C73: 120 | D73: ='Loss and DCCE Development'!K36 -> 0.9615384615 | E73: 1.04
C74: 121 | D74: =1/E74 -> 0.9617270411 | E74: =E73^0.995 -> 1.039796072
C75: 122 | D75: =1/E75 -> 0.9619147146 | E75: =E74^0.995 -> 1.039593204
C76: 123 | D76: 0.962101486 | E76: 1.039391389
C77: 124 | D77: 0.9622873595 | E77: 1.039190622
C78: =C77+1 -> 125 | D78: 0.9624723393 | E78: 1.038990898
C79: 126 | D79: 0.9626564295 | E79: 1.03879221
C80: 127 | D80: 0.9628396342 | E80: 1.038594553
C81: 128 | D81: 0.9630219575 | E81: 1.038397922
C82: 129 | D82: 0.9632034034 | E82: 1.038202312
C83: 130 | D83: 0.9633839761 | E83: 1.038007715
C84: 131 | D84: 0.9635636794 | E84: 1.037814128
C85: 132 | D85: 0.9637425176 | E85: 1.037621545
C86: 133 | D86: 0.9639204944 | E86: 1.03742996
C87: 134 | D87: 0.9640976141 | E87: 1.037239368
C88: 135 | D88: 0.9642738804 | E88: 1.037049764
C89: 136 | D89: 0.9644492973 | E89: 1.036861142
C90: 137 | D90: 0.9646238689 | E90: 1.036673498
C91: 138 | D91: 0.964797599 | E91: 1.036486825
C92: 139 | D92: 0.9649704914 | E92: 1.036301119
C93: 140 | D93: 0.9651425502 | E93: 1.036116375
C94: 141 | D94: 0.9653137791 | E94: 1.035932587
C95: 142 | D95: 0.965484182 | E95: 1.03574975
C96: 143 | D96: 0.9656537628 | E96: 1.035567859
C97: 144 | D97: 0.9658225252 | E97: 1.03538691
C98: 145 | D98: 0.965990473 | E98: 1.035206897
C99: 146 | D99: 0.9661576102 | E99: 1.035027815
C100: 147 | D100: 0.9663239403 | E100: 1.034849659
C101: 148 | D101: 0.9664894672 | E101: 1.034672424
C102: 149 | D102: 0.9666541946 | E102: 1.034496106
C103: 150 | D103: 0.9668181263 | E103: 1.034320699
C104: 151 | D104: 0.9669812659 | E104: 1.034146198
C105: 152 | D105: 0.9671436171 | E105: 1.0339726
C106: 153 | D106: 0.9673051836 | E106: 1.033799898
C107: 154 | D107: 0.967465969 | E107: 1.033628088
C108: 155 | D108: 0.9676259771 | E108: 1.033457166
C109: 156 | D109: 0.9677852113 | E109: 1.033287126
C110: =C109+1 -> 157 | D110: 0.9679436755 | E110: 1.033117965
C111: 158 | D111: 0.968101373 | E111: 1.032949676
C112: 159 | D112: 0.9682583076 | E112: 1.032782257
C113: 160 | D113: 0.9684144827 | E113: 1.032615701
C114: 161 | D114: 0.968569902 | E114: 1.032450005
C115: 162 | D115: 0.9687245689 | E115: 1.032285164
C116: 163 | D116: 0.968878487 | E116: 1.032121172
C117: 164 | D117: 0.9690316598 | E117: 1.031958027
C118: 165 | D118: 0.9691840907 | E118: 1.031795723
C119: 166 | D119: 0.9693357833 | E119: 1.031634256
C120: 167 | D120: 0.969486741 | E120: 1.031473622
C121: 168 | D121: 0.9696369673 | E121: 1.031313815
C122: 169 | D122: 0.9697864655 | E122: 1.031154832
C123: 170 | D123: 0.9699352391 | E123: 1.030996668
C124: 171 | D124: 0.9700832915 | E124: 1.030839319
C125: 172 | D125: 0.970230626 | E125: 1.030682781
C126: 173 | D126: 0.9703772461 | E126: 1.030527049
C127: 174 | D127: 0.9705231551 | E127: 1.030372119
C128: 175 | D128: 0.9706683563 | E128: 1.030217987
C129: 176 | D129: 0.9708128531 | E129: 1.030064648
C130: 177 | D130: 0.9709566487 | E130: 1.029912099
C131: 178 | D131: 0.9710997465 | E131: 1.029760335
C132: 179 | D132: 0.9712421497 | E132: 1.029609352
C133: 180 | D133: 0.9713838617 | E133: 1.029459145
C134: 181 | D134: 0.9715248856 | E134: 1.029309712
C135: 182 | D135: 0.9716652247 | E135: 1.029161047
C136: 183 | D136: 0.9718048822 | E136: 1.029013147
C137: 184 | D137: 0.9719438614 | E137: 1.028866007
C138: 185 | D138: 0.9720821654 | E138: 1.028719624
C139: 186 | D139: =1/E139 -> 0.9722197974 | E139: =E138^0.995 -> 1.028573994
C140: 187 | D140: 0.9723567606 | E140: 1.028429112
C141: 188 | D141: 0.9724930581 | E141: 1.028284975
C142: =C141+1 -> 189 | D142: 0.9726286931 | E142: 1.028141579
C143: 190 | D143: 0.9727636687 | E143: 1.027998919
C144: 191 | D144: 0.972897988 | E144: 1.027856993
C145: 192 | D145: 0.9730316542 | E145: 1.027715795
C146: 193 | D146: 0.9731646702 | E146: 1.027575323
C147: 194 | D147: 0.9732970392 | E147: 1.027435572
C148: 195 | D148: 0.9734287642 | E148: 1.027296539
C149: 196 | D149: 0.9735598483 | E149: 1.027158219

Sheet Average Surcharge %
A1: ='Interpolated Development'!A1 -> California Insurance Company Rehabilitation Plan
A2: ='Interpolated Development'!A2 -> Options to Settle Litigation Related to XYZ Company
A3: ='Interpolated Development'!A3 -> Equity Comp and Solution One Programs and RPA
A5: Option 2 - Average Surcharge Percentage
B7: -1 | C7: =B7-1 -> -2 | D7: -3 | E7: -4 | F7: -5
C9: Policy | D9: Policy | E9: Policy
C10: Effective | D10: Effective | E10: Effective
B11: Surcharge | C11: =Inputs!D9 -> 2013-06-01 | D11: =Inputs!D13 -> 2014-06-01 | E11: =Inputs!D17 -> 2015-06-01 | F11: Average
B13: CIGA California Domiciled Insureds | C13: 0.02 | D13: 0.0225 | E13: 0.018341 | F13: =ROUND(AVERAGE(C13:E13),6) -> 0.02028
B15: Workers Compensation Fraud Surcharge: | C15: 0.00381 | D15: 0.002544 | E15: 0.001814 | F15: =ROUND(AVERAGE(C15:E15),6) -> 0.002723
B17: User Funding Rate | C17: 0.013704 | D17: 0.012247 | E17: 0.0071 | F17: =ROUND(AVERAGE(C17:E17),6) -> 0.011017
B19: Uninsured Employers Fund | C19: 0.00341 | D19: 0.001603 | E19: 0.001171 | F19: =ROUND(AVERAGE(C19:E19),6) -> 0.002061
B21: Subsequent Injuries Benefit Fund | C21: 0.001707 | D21: 0.001291 | E21: 0.000538 | F21: =ROUND(AVERAGE(C21:E21),6) -> 0.001179
B23: Occupational Safety & Health Fund | C23: 0.002859 | D23: 0.002166 | E23: 0.002348 | F23: =ROUND(AVERAGE(C23:E23),6) -> 0.002458
B25: Labor Enforcement & Compliance Fund | C25: 0.002747 | D25: 0.002166 | E25: 0.001505 | F25: =ROUND(AVERAGE(C25:E25),6) -> 0.002139
A28: Notes
A29: =B7 -> -1 | B29: Surcharges as identified in guranteed cost policy.
A30: =C7 -> -2 | B30: ="From guaranteed cost policy effective "&TEXT(Inputs!D9,"m/dd/yyy")&"." -> From guaranteed cost policy effective 6/01/2013.
A31: =D7 -> -3 | B31: ="From guaranteed cost policy effective "&TEXT(Inputs!D13,"m/dd/yyy")&"." -> From guaranteed cost policy effective 6/01/2014.
A32: =E7 -> -4 | B32: ="From guaranteed cost policy effective "&TEXT(Inputs!D17,"m/dd/yyy")&"." -> From guaranteed cost policy effective 6/01/2015.
A33: =F7 -> -5 | B33: ="Average of ("&-C7&"), ("&-D7&"), ("&-E7&")" -> Average of (2), (3), (4)
A36: Notes:
A37: =B7 -> -1 | B37: From CIC 2018 Annual Statement, Schedule P, Part 1 - Workers' Compensation
B38: Column (15) plus Column (19).
A39: =A37-1 -> -2 | B39: From Loss and DCCE Development tab, last diagonal.
A40: =A39-1 -> -3 | B40: (1) + (2)
A41: -4 | B41: (3) / (2)
A42: -5 | B42: 2010 equals 108-120 All Year Denominator Weighted-Average in Loss and DCCE
B43: Development tab. 2011 equals product of 96-108 and 108-120 All Year Denominator
B44: Weighted-Averages in Loss and DCCE Development tab.
A45: =A42-1 -> -6 | B45: (4) / (5)
A46: -7 | B46: Average of Column (6)

Sheet Inputs
A1: California Insurance Company Rehabilitation Plan
A2: ="Options to Settle Litigation Related to "& Insured -> Options to Settle Litigation Related to XYZ Company
A3: Equity Comp and Solution One Programs and RPA
A5: Option 2 - Inputs
C7: Insured: | D7: XYZ Company
C9: First Policy Effective Date: | D9: 2013-06-01
C11: First Policy Expiry Date: | D11: =EDATE(D9,12)-1 -> 2014-05-31
C13: Second Policy Effective Date: | D13: 2014-06-01
C15: Second Policy Expiry Date: | D15: =EDATE(D13,12)-1 -> 2015-05-31
C17: Third Policy Effective Date: | D17: 2015-06-01
C19: Third Policy Expiry Date: | D19: =EDATE(D17,12)-1 -> 2016-05-31
C21: First Policy Xmod Rating: | D21: 0.86
C23: Three-Year Loss Pick Containment Amount: | D23: 1931656
C25: Aggregate Retention (Loss Limit): | D25: 0.94
C27: Maximum Cost Factor: | D27: 1.3
C29: Minimum Cost Factor: | D29: 0.35
C31: First Policy, Paid Losses as of 12/31/2025: | D31: 66447
C33: Second Policy, Paid Losses as of 12/31/2025: | D33: 1994
C35: Third Policy, Paid Losses as of 12/31/2025: | D35: 58904
C37: First Policy, Case Reserves as of 12/31/2025: | D37: 0
C39: Second Policy, Case Reserves as of 12/31/2025: | D39: 0
C41: Third Policy, Case Reserves as of 12/31/2025: | D41: 0
C43: Total Payments: | D43: 1731227.86
B45: Year 1 | C45: Year 2 | D45: Year 3
A46: # Class Codes | B46: 2 | C46: 2 | D46: 2
A48: Class Codes | B48: Payroll | C48: Payroll | D48: Payroll
A49: 3831 | B49: 8000000 | C49: 8108736 | D49: 7101861
A50: 8810 | B50: 2800000 | C50: 3530635 | D50: 3466399

Sheet Industry Tables --->

Sheet Pure Premium Rates
A1: Class Code | B1: 2008-01-01 | C1: 2009-01-01 | D1: 2010-01-01 | E1: 2011-01-01 | F1: 2012-01-01 | G1: 2012-07-01 | H1: 2013-01-01 | I1: 2014-01-01 | J1: 2015-01-01 | K1: 2015-07-01 | L1: 2016-01-01 | M1: 2016-07-01 | N1: 2017-01-01 | O1: 2017-07-01 | P1: 2018-01-01 | Q1: 2018-07-01
A2: 0005 | B2: 4.55 | C2: 4.14 | D2: 3.89 | E2: 3.95 | F2: 5.12 | G2: 5.54 | H2: 4.89 | I2: 5.99 | J2: 6.35 | K2: 5.7 | L2: 6.17 | M2: 5.86 | N2: 6.08 | O2: 5.61 | P2: 5.8 | Q2: 5.2
A3: 0016 | B3: 5.86 | C3: 6.83 | D3: 6.37 | E3: 5.5 | F3: 8.22 | G3: 8.9 | H3: 9.27 | I3: 10.48 | J3: 11.14 | K3: 10 | L3: 9.81 | M3: 9.32 | N3: 10.26 | O3: 9.46 | P3: 8.36 | Q3: 7.5
A4: 0034 | B4: 5.46 | C4: 5.03 | D4: 5.16 | E4: 5.88 | F4: 7.33 | G4: 7.94 | H4: 9.15 | I4: 9.14 | J4: 9.42 | K4: 8.46 | L4: 9.15 | M4: 8.7 | N4: 8.22 | O4: 7.58 | P4: 7.48 | Q4: 6.71
A5: 0035 | B5: 4.14 | C5: 4.07 | D5: 3.19 | E5: 3.12 | F5: 4.12 | G5: 4.46 | H5: 4.58 | I5: 5.35 | J5: 6.16 | K5: 5.53 | L5: 6.45 | M5: 6.13 | N5: 6.28 | O5: 5.79 | P5: 5.96 | Q5: 5.35
A6: 0036 | B6: 6.25 | C6: 5.52 | D6: 5.17 | E6: 4.63 | F6: 7.89 | G6: 8.54 | H6: 8.89 | I6: 9.36 | J6: 11.17 | K6: 10.03 | L6: 10.32 | M6: 9.81 | N6: 9.47 | O6: 8.73 | P6: 9.14 | Q6: 8.2
A7: 0038 | B7: 7.5 | C7: 7.85 | D7: 9.72 | E7: 8.35 | F7: 12.75 | G7: 13.8 | H7: 16.76 | I7: 19.45 | J7: 21.78 | K7: 19.55 | L7: 18.07 | M7: 17.17 | N7: 13.87 | O7: 12.79 | P7: 12.36 | Q7: 11.09
A8: 0040 | B8: 3.29 | C8: 4.06 | D8: 3.55 | E8: 3.06 | F8: 4.43 | G8: 4.8 | H8: 4.75 | I8: 5.61 | J8: 6.39 | K8: 5.74 | L8: 5.58 | M8: 5.3 | N8: 5.07 | O8: 4.68 | P8: 4.56 | Q8: 4.09
A9: 0041 | B9: 4.15 | C9: 4.69 | D9: 5.09 | E9: 4.76 | F9: 6.66 | G9: 7.21 | H9: 8.36 | I9: 7.86 | J9: 8.55 | K9: 7.68 | L9: 7.31 | M9: 6.95 | N9: 7.11 | O9: 6.56 | P9: 6.36 | Q9: 5.7
A10: 0042 | B10: 4.61 | C10: 4.94 | D10: 5.07 | E10: 4.77 | F10: 7.24 | G10: 7.84 | H10: 8.16 | I10: 9.32 | J10: 9.83 | K10: 8.83 | L10: 9.02 | M10: 8.57 | N10: 8.45 | O10: 7.79 | P10: 7.95 | Q10: 7.13
A11: 0044 | B11: 4.34 | C11: 4.89 | D11: 5.28 | E11: 5.13 | F11: 8.07 | G11: 8.74 | H11: 9.61 | I11: 9.38 | J11: 9.74 | K11: 8.74 | L11: 7.53 | M11: 7.16 | N11: 6.28 | O11: 5.79 | P11: 5.05 | Q11: 4.53
A12: 0045 | B12: 4.1 | C12: 3.89 | D12: 3.69 | E12: 3.85 | F12: 5.29 | G12: 5.73 | H12: 5.51 | I12: 6.62 | J12: 7.43 | K12: 6.67 | L12: 5.99 | M12: 5.69 | N12: 6 | O12: 5.53 | P12: 5.55 | Q12: 4.98
A13: 0050 | B13: 6.81 | C13: 5.35 | D13: 5.17 | E13: 5.07 | F13: 7.54 | G13: 8.16 | H13: 10.6 | I13: 10.97 | J13: 10.22 | K13: 9.18 | L13: 9.18 | M13: 8.72 | N13: 8.32 | O13: 7.67 | P13: 7.38 | Q13: 6.62
A14: 0079 | B14: 3.66 | C14: 3.37 | D14: 2.85 | E14: 2.75 | F14: 3.5 | G14: 3.79 | H14: 4.43 | I14: 5.37 | J14: 5.79 | K14: 5.2 | L14: 5.37 | M14: 5.1 | N14: 5.16 | O14: 4.76 | P14: 5.39 | Q14: 4.83
A15: 0096 | D15: 4.04 | E15: 4.73 | F15: 6.55 | G15: 7.09 | H15: 7.76 | I15: 7.67 | J15: 7.75 | K15: 6.96 | L15: 7.33 | M15: 6.97 | N15: 7.07 | O15: 6.52 | P15: 6.69 | Q15: 6
A16: 0106 | B16: 15.84 | C16: 16.92 | D16: 12.52 | E16: 12.73 | F16: 17.97 | G16: 19.45 | H16: 24.67 | I16: 26.88 | J16: 26.63 | K16: 23.91 | L16: 20.92 | M16: 19.88 | N16: 18.32 | O16: 16.9 | P16: 15.59 | Q16: 13.98
A17: 0171 | B17: 5.11 | C17: 5.47 | D17: 6.44 | E17: 6.19 | F17: 8.16 | G17: 8.83 | H17: 9.3 | I17: 10.06 | J17: 11.19 | K17: 10.05 | L17: 9.51 | M17: 9.04 | N17: 8.92 | O17: 8.23 | P17: 7.25 | Q17: 6.5
A18: 0172 | B18: 4.18 | C18: 4.15 | D18: 4.29 | E18: 3.8 | F18: 5.74 | G18: 6.21 | H18: 6.63 | I18: 6.83 | J18: 7.19 | K18: 6.46 | L18: 6.9 | M18: 6.56 | N18: 5.96 | O18: 5.5 | P18: 5.05 | Q18: 4.53
A19: 0251 | B19: 3.3 | C19: 3.65 | D19: 3.86 | E19: 3.86 | F19: 5.81 | G19: 6.29 | H19: 6.45 | I19: 7.14 | J19: 7.83 | K19: 7.03 | L19: 6.99 | M19: 6.64 | N19: 5.69 | O19: 5.25 | P19: 5.36 | Q19: 4.81
A20: 0400 | B20: 4.15 | C20: 4.13 | D20: 3.82 | E20: 3.87 | F20: 4.78 | G20: 5.17 | H20: 5.61 | I20: 5.85 | J20: 5.66 | K20: 5.08 | L20: 4.99 | M20: 4.74 | N20: 4.05 | O20: 3.74 | P20: 2.74 | Q20: 2.46
A21: 0401 | B21: 6.51 | C21: 8.98 | D21: 10.97 | E21: 12.71 | F21: 17.86 | G21: 19.34 | H21: 17.69 | I21: 17.22 | J21: 17.81 | K21: 15.99 | L21: 15.58 | M21: 14.81 | N21: 13.13 | O21: 12.11 | P21: 10.46 | Q21: 9.38
A22: 1122 | B22: 5.71 | C22: 6.98 | D22: 6.72 | E22: 7.45 | F22: 9.76 | G22: 10.57 | H22: 13.15 | I22: 13.36 | J22: 13.2 | K22: 11.85 | L22: 10.26 | M22: 9.75 | N22: 8.33 | O22: 7.68 | P22: 5.99 | Q22: 5.37
A23: 1123 | B23: 9.89 | C23: 10.06 | D23: 10.37 | E23: 11.64 | F23: 17.36 | G23: 18.79 | H23: 20.59 | I23: 28.17 | J23: 35.89 | K23: 32.22 | L23: 39.99 | M23: 38.01 | N23: 40.97 | O23: 37.79 | P23: 36.02 | Q23: 32.31
A24: 1124 | B24: 6.34 | C24: 6.51 | D24: 7.36 | E24: 7.61 | F24: 10.13 | G24: 10.97 | H24: 11.38 | I24: 11.81 | J24: 12.52 | K24: 11.24 | L24: 11.49 | M24: 10.92 | N24: 10 | O24: 9.22 | P24: 7.59 | Q24: 6.81
A25: 1320 | B25: 2.4 | C25: 2.9 | D25: 3.3 | E25: 3.27 | F25: 3.46 | G25: 3.75 | H25: 2.99 | I25: 2.92 | J25: 2.26 | K25: 2.03 | L25: 1.85 | M25: 1.76 | N25: 1.65 | O25: 1.52 | P25: 1.64 | Q25: 1.47
A26: 1322 | B26: 7.74 | C26: 10.23 | D26: 7.52 | E26: 5.6 | F26: 5.68 | G26: 6.15 | H26: 5.41 | I26: 5.79 | J26: 5.5 | K26: 4.94 | L26: 4.8 | M26: 4.56 | N26: 3.53 | O26: 3.26 | P26: 3.03 | Q26: 2.72
A27: 1330 | B27: 7.03 | C27: 7.05 | D27: 5.88 | E27: 5.46 | F27: 7.76 | G27: 8.4 | H27: 10.19 | I27: 12.43 | J27: 14.5 | K27: 13.02 | L27: 11.33 | M27: 10.77 | N27: 8.24 | O27: 7.6 | P27: 5.52 | Q27: 4.95
A28: 1438 | B28: 5.81 | C28: 6.4 | D28: 6.28 | E28: 6.2 | F28: 7.82 | G28: 8.47 | H28: 9.05 | I28: 9.33 | J28: 8.94 | K28: 8.03 | L28: 7.76 | M28: 7.38 | N28: 6.12 | O28: 5.64 | P28: 4.88 | Q28: 4.38
A29: 1452 | B29: 2.67 | C29: 2.83 | D29: 3.12 | E29: 2.81 | F29: 3.52 | G29: 3.81 | H29: 3.77 | I29: 4.19 | J29: 4.7 | K29: 4.22 | L29: 3.76 | M29: 3.57 | N29: 3.22 | O29: 2.97 | P29: 2.67 | Q29: 2.39
A30: 1463 | B30: 8.71 | C30: 6.79 | D30: 6.49 | E30: 4.81 | F30: 6.02 | G30: 6.52 | H30: 6.97 | I30: 5.73 | J30: 5.65 | K30: 5.07 | L30: 5.27 | M30: 5.01 | N30: 4.25 | O30: 3.92 | P30: 3.86 | Q30: 3.46
A31: 1624 | B31: 5.71 | C31: 6.98 | D31: 6.72 | E31: 7.45 | F31: 9.76 | G31: 10.57 | H31: 13.15 | I31: 13.36 | J31: 14.79 | K31: 13.28 | L31: 13.29 | M31: 12.63 | N31: 12.46 | O31: 11.49 | P31: 9.4 | Q31: 8.43
A32: 1699 | B32: 2.54 | C32: 2.22 | D32: 1.86 | E32: 1.68 | F32: 2.22 | G32: 2.4 | H32: 2.94 | I32: 3.76 | J32: 4.4 | K32: 3.95 | L32: 4.69 | M32: 4.46 | N32: 4.63 | O32: 4.27 | P32: 3.55 | Q32: 3.18
A33: 1701 | B33: 6.46 | C33: 6.24 | D33: 5.49 | E33: 5.19 | F33: 6.88 | G33: 7.45 | H33: 6.94 | I33: 7.64 | J33: 8.68 | K33: 7.79 | L33: 7.33 | M33: 6.97 | N33: 6.45 | O33: 5.95 | P33: 5.39 | Q33: 4.83
A34: 1710 | B34: 4.5 | C34: 5.7 | D34: 5.05 | E34: 4.85 | F34: 7 | G34: 7.58 | H34: 8.22 | I34: 7.69 | J34: 7.94 | K34: 7.13 | L34: 7.99 | M34: 7.59 | N34: 6.89 | O34: 6.36 | P34: 5.93 | Q34: 5.32
A35: 1741 | B35: 4.04 | C35: 4.26 | D35: 3.49 | E35: 3.94 | F35: 5.6 | G35: 6.06 | H35: 6.84 | I35: 8 | J35: 10.04 | K35: 9.01 | L35: 9.16 | M35: 8.71 | N35: 7.53 | O35: 6.95 | P35: 5.95 | Q35: 5.34
A36: 1803 | B36: 4.6 | C36: 5.38 | D36: 6.18 | E36: 6.78 | F36: 8.73 | G36: 9.45 | H36: 11.26 | I36: 12.1 | J36: 14.49 | K36: 13.01 | L36: 14.57 | M36: 13.85 | N36: 13.43 | O36: 12.39 | P36: 11.63 | Q36: 10.43
A37: 1925 | B37: 8.42 | C37: 9.51 | D37: 9.91 | E37: 9.91 | F37: 13.73 | G37: 14.86 | H37: 16.34 | I37: 15.22 | J37: 15.54 | K37: 13.95 | L37: 14.42 | M37: 13.7 | N37: 11.82 | O37: 10.9 | P37: 9.52 | Q37: 8.54
A38: 2002 | B38: 6.68 | C38: 6.91 | D38: 6.26 | E38: 6.47 | F38: 7.62 | G38: 8.25 | H38: 8.28 | I38: 9.73 | J38: 10.87 | K38: 9.76 | L38: 11.37 | M38: 10.81 | N38: 12.3 | O38: 11.35 | P38: 11.66 | Q38: 10.46
A39: 2003 | B39: 5.06 | C39: 4.94 | D39: 4.6 | E39: 5.27 | F39: 6.42 | G39: 6.95 | H39: 7.63 | I39: 8.97 | J39: 9.92 | K39: 8.91 | L39: 9.59 | M39: 9.11 | N39: 9.11 | O39: 8.4 | P39: 8.58 | Q39: 7.7
A40: 2004
A41: 2014 | B41: 5.05 | C41: 5.57 | D41: 5.13 | E41: 6.3 | F41: 8.29 | G41: 8.97 | H41: 8.86 | I41: 9.02 | J41: 9.12 | K41: 8.19 | L41: 6.96 | M41: 6.61 | N41: 5.84 | O41: 5.39 | P41: 5.56 | Q41: 4.99
A42: 2030 | B42: 5.08 | C42: 5.43 | D42: 5.67 | E42: 5.61 | F42: 7.57 | G42: 8.2 | H42: 8.05 | I42: 8.19 | J42: 8.09 | K42: 7.26 | L42: 6.87 | M42: 6.53 | N42: 5.91 | O42: 5.45 | P42: 4.81 | Q42: 4.31
A43: 2063 | B43: 4.39 | C43: 4.36 | D43: 4 | E43: 4.11 | F43: 5.16 | G43: 5.59 | H43: 5.89 | I43: 6.07 | J43: 5.6 | K43: 5.03 | L43: 5.26 | M43: 5 | N43: 5.34 | O43: 4.93 | P43: 4.92 | Q43: 4.41
A44: 2081 | B44: 8.77 | C44: 9.14 | D44: 8.1 | E44: 6.8 | F44: 8.97 | G44: 9.71 | H44: 10.54 | I44: 9.46 | J44: 10.22 | K44: 9.18 | L44: 9.92 | M44: 9.43 | N44: 8.83 | O44: 8.14 | P44: 9.83 | Q44: 8.82
A45: 2095 | B45: 6.07 | C45: 6.3 | D45: 7.13 | E45: 7.58 | F45: 10.86 | G45: 11.76 | H45: 11.18 | I45: 14.08 | J45: 12.64 | K45: 11.35 | L45: 10.62 | M45: 10.09 | N45: 9.63 | O45: 8.88 | P45: 9.57 | Q45: 8.58
A46: 2102 | B46: 3.78 | C46: 4.4 | D46: 4.8 | E46: 4.83 | F46: 6.84 | G46: 7.41 | H46: 8.3 | I46: 8.29 | J46: 8.13 | K46: 7.3 | L46: 7.07 | M46: 6.72 | N46: 6.09 | O46: 5.62 | P46: 5.02 | Q46: 4.5
A47: 2106 | B47: 4.43
A48: 2107 | B48: 4.46 | C48: 4.74 | D48: 4.94 | E48: 4.21 | F48: 5.68 | G48: 6.15 | H48: 5.62 | I48: 5.74 | J48: 6.14 | K48: 5.51 | L48: 5.8 | M48: 5.51 | N48: 5.74 | O48: 5.29 | P48: 5.28 | Q48: 4.74
A49: 2108 | B49: 6.62 | C49: 6.44 | D49: 5.97 | E49: 5.44 | F49: 6.97 | G49: 7.55 | H49: 7.66 | I49: 8.52 | J49: 9.65 | K49: 8.66 | L49: 9.44 | M49: 8.97 | N49: 9.23 | O49: 8.51 | P49: 7.25 | Q49: 6.5
A50: 2109 | B50: 5.31 | C50: 6.12 | D50: 6.02 | E50: 6.2 | F50: 8.59 | G50: 9.3 | H50: 9.42 | I50: 9.52 | J50: 9.63 | K50: 8.65 | L50: 7.47 | M50: 7.1 | N50: 6.93 | O50: 6.39 | P50: 6.07 | Q50: 5.44
A51: 2111 | B51: 4.81 | C51: 4.91 | D51: 5.92 | E51: 4.72 | F51: 6.3 | G51: 6.82 | H51: 6.29 | I51: 6.99 | J51: 7.05 | K51: 6.33 | L51: 6.22 | M51: 5.91 | N51: 5.26 | O51: 4.85 | P51: 5.21 | Q51: 4.67
A52: 2113 | B52: 8.18 | C52: 9.35 | D52: 9.76 | E52: 10.04 | F52: 13.61 | G52: 14.73 | H52: 16.27 | I52: 18.97 | J52: 20.22 | K52: 18.15 | L52: 16.55 | M52: 15.73 | N52: 13.48 | O52: 12.43 | P52: 10.99 | Q52: 9.86
A53: 2116 | B53: 5.17 | C53: 5.12 | D53: 4.89 | E53: 4.49 | F53: 5.87 | G53: 6.35 | H53: 6.14 | I53: 6.52 | J53: 5.81 | K53: 5.22 | L53: 5.3 | M53: 5.04 | N53: 4.83 | O53: 4.46 | P53: 4.46 | Q53: 4
A54: 2117 | B54: 7.84 | C54: 8.39 | D54: 7.4 | E54: 7.51 | F54: 10.28 | G54: 11.13 | H54: 11.17 | I54: 11.03 | J54: 11.73 | K54: 10.53 | L54: 10.57 | M54: 10.05 | N54: 9.94 | O54: 9.17 | P54: 8.62 | Q54: 7.73
A55: 2121 | B55: 3.63 | C55: 4.24 | D55: 3.16 | E55: 3.51 | F55: 4.88 | G55: 5.28 | H55: 6 | I55: 6.59 | J55: 6.49 | K55: 5.83 | L55: 5.28 | M55: 5.02 | N55: 5.52 | O55: 5.09 | P55: 3.78 | Q55: 3.39
A56: 2123 | D56: 4.91 | E56: 4.94 | F56: 6.01 | G56: 6.51 | H56: 6.27 | I56: 6.88 | J56: 7.35 | K56: 6.6 | L56: 7.34 | M56: 6.98 | N56: 6.97 | O56: 6.43 | P56: 5.89 | Q56: 5.28
A57: 2142 | B57: 2.59 | C57: 3.26 | D57: 3.04 | E57: 3.18 | F57: 3.69 | G57: 3.99 | H57: 3.99 | I57: 4.39 | J57: 4.17 | K57: 3.74 | L57: 3.72 | M57: 3.54 | N57: 3.15 | O57: 2.91 | P57: 2.8 | Q57: 2.51
A58: 2150 | B58: 5.47 | C58: 6.53 | D58: 7.25 | E58: 7.39 | F58: 10.32 | G58: 11.17 | H58: 12.11 | I58: 12.6 | J58: 11.96 | K58: 10.74 | L58: 9.44 | M58: 8.97 | N58: 7.45 | O58: 6.87 | P58: 5.25 | Q58: 4.71
A59: 2163 | B59: 5.06 | C59: 5.95 | D59: 6.13 | E59: 4.62 | F59: 7.74 | G59: 8.38 | H59: 10.1 | I59: 11.25 | J59: 10.11 | K59: 9.08 | L59: 7.5 | M59: 7.13 | N59: 7.35 | O59: 6.78 | P59: 8.23 | Q59: 7.38
A60: 2211 | B60: 7.78 | C60: 7.71 | D60: 8.92 | E60: 10.55 | F60: 14.76 | G60: 15.98 | H60: 17.34 | I60: 20.33 | J60: 22.71 | K60: 20.39 | L60: 19.96 | M60: 18.97 | N60: 19.11 | O60: 17.63 | P60: 16.44 | Q60: 14.75
A61: 2222 | B61: 4.63 | C61: 4.62 | D61: 4.77 | E61: 5.01 | F61: 6.64 | G61: 7.19 | H61: 6.54 | I61: 6.7 | J61: 7.41 | K61: 6.65 | L61: 7.18 | M61: 6.82 | N61: 7.71 | O61: 7.11 | P61: 7.35 | Q61: 6.59
A62: 2362 | B62: 6.75 | C62: 7.26 | D62: 7.5 | E62: 7.96 | F62: 10.95 | G62: 11.85 | H62: 12.5 | I62: 14.85 | J62: 17.51 | K62: 15.72 | L62: 17.4 | M62: 16.54 | N62: 16.94 | O62: 15.63 | P62: 17.09 | Q62: 15.33
A63: 2402 | B63: 4.55 | C63: 4.89 | D63: 5.38 | E63: 5.53 | F63: 7.73 | G63: 8.37 | H63: 8.83 | I63: 9.2 | J63: 9.8 | K63: 8.8 | L63: 9.09 | M63: 8.64 | N63: 8.08 | O63: 7.45 | P63: 6.39 | Q63: 5.73
A64: 2413 | B64: 6.14 | C64: 6.27 | D64: 5.22 | E64: 5.4 | F64: 8.47 | G64: 9.17 | H64: 9.97 | I64: 8.93 | J64: 8.57 | K64: 7.69 | L64: 6.62 | M64: 6.29 | N64: 5.87 | O64: 5.41 | P64: 4.76 | Q64: 4.27
A65: 2501 | B65: 3.25 | C65: 3.09 | D65: 2.92 | E65: 3.17 | F65: 4.7 | G65: 5.09 | H65: 6.05 | I65: 7.2 | J65: 7.8 | K65: 7 | L65: 7.11 | M65: 6.76 | N65: 7.08 | O65: 6.53 | P65: 6.95 | Q65: 6.23
A66: 2570 | B66: 4.96 | C66: 5.45 | D66: 5.84 | E66: 6.47 | F66: 10.36 | G66: 11.22 | H66: 13.64 | I66: 13.89 | J66: 15.32 | K66: 13.75 | L66: 14.87 | M66: 14.13 | N66: 13.25 | O66: 12.22 | P66: 12.06 | Q66: 10.82
A67: 2571 | B67: 5.6 | C67: 6.04 | D67: 6.72 | E67: 7.23 | F67: 10.08 | G67: 10.91 | H67: 11.98 | I67: 13.07 | J67: 13.08 | K67: 11.74 | L67: 12.96 | M67: 12.32 | N67: 11.85 | O67: 10.93 | P67: 10.62 | Q67: 9.53
A68: 2576 | B68: 5.13 | C68: 4.6 | D68: 5.16 | E68: 5.78 | F68: 7 | G68: 7.58 | H68: 7.96 | I68: 8 | J68: 9.18 | K68: 8.24 | L68: 9.45 | M68: 8.98 | N68: 9.3 | O68: 8.58 | P68: 7.95 | Q68: 7.13
A69: 2578
A70: 2584 | B70: 4.55 | C70: 4.61 | D70: 5.65 | E70: 5.4 | F70: 7.09 | G70: 7.68 | H70: 8.38 | I70: 10.01 | J70: 10.36 | K70: 9.3 | L70: 10.61 | M70: 10.08 | N70: 9.32 | O70: 8.6 | P70: 8.31 | Q70: 7.45
A71: 2585 | B71: 7.62 | C71: 7.51 | D71: 7.77 | E71: 8.16 | F71: 9.48 | G71: 10.26 | H71: 11.2 | I71: 13.39 | J71: 13.62 | K71: 12.23 | L71: 11.49 | M71: 10.92 | N71: 11.63 | O71: 10.73 | P71: 9.37 | Q71: 8.4
A72: 2586 | B72: 4.38 | C72: 4.29 | D72: 4.68 | E72: 4.16 | F72: 5.36 | G72: 5.8 | H72: 7.69
A73: 2589 | B73: 4.38 | C73: 4.29 | D73: 4.68 | E73: 4.16 | F73: 5.36 | G73: 5.8 | H73: 5.32 | I73: 6.39 | J73: 6.76 | K73: 6.07 | L73: 6.57 | M73: 6.24 | N73: 6.78 | O73: 6.25 | P73: 5.37 | Q73: 4.82
A74: 2623 | B74: 4.96
A75: 2660 | B75: 3.2 | C75: 3.01 | D75: 2.82 | E75: 2.7 | F75: 3.66 | G75: 3.96 | H75: 4.59 | I75: 5.36 | J75: 6.85 | K75: 6.15 | L75: 7.55 | M75: 7.18 | N75: 8.48 | O75: 7.82 | P75: 8.74 | Q75: 7.84
A76: 2683 | B76: 4.65 | C76: 4.42 | D76: 4.53 | E76: 4.66 | F76: 6.5 | G76: 7.04 | H76: 7.13 | I76: 7.27 | J76: 7.47 | K76: 6.71 | L76: 6.6 | M76: 6.27 | N76: 6.1 | O76: 5.63 | P76: 5.61 | Q76: 5.03
A77: 2688 | B77: 4.46 | C77: 4.38 | D77: 4.77 | E77: 5.28 | F77: 7.15 | G77: 7.74 | H77: 8.55 | I77: 9.41 | J77: 8.7 | K77: 7.81 | L77: 7.13 | M77: 6.78 | N77: 5.93 | O77: 5.47 | P77: 5.1 | Q77: 4.57
A78: 2702 | B78: 13.28 | C78: 17.13 | D78: 19.98 | E78: 16.85 | F78: 23.28 | G78: 25.2 | H78: 28.07 | I78: 26.64 | J78: 30.94 | K78: 27.78 | L78: 28.5 | M78: 27.09 | N78: 26.98 | O78: 24.89 | P78: 24.9 | Q78: 22.33
A79: 2710 | B79: 6.29 | C79: 6.76 | D79: 6.81 | E79: 6.68 | F79: 8.38 | G79: 9.07 | H79: 8.27 | I79: 8.69 | J79: 8.56 | K79: 7.69 | L79: 8.31 | M79: 7.9 | N79: 7.83 | O79: 7.22 | P79: 7.12 | Q79: 6.39
A80: 2727 | B80: 11.7 | C80: 12.19 | D80: 12.22 | E80: 12.91 | F80: 16.43 | G80: 17.79 | H80: 17.91 | I80: 17.38 | J80: 21 | K80: 18.85 | L80: 20.47 | M80: 19.45 | N80: 19.25 | O80: 17.76 | P80: 16.07 | Q80: 14.41
A81: 2731 | B81: 5.88 | C81: 6.6 | D81: 5.53 | E81: 4.66 | F81: 6.44 | G81: 6.97 | H81: 6.71 | I81: 7.49 | J81: 7.5 | K81: 6.73 | L81: 6.27 | M81: 5.96 | N81: 5.73 | O81: 5.29 | P81: 5.29 | Q81: 4.74
A82: 2757 | B82: 6.48 | C82: 6.7 | D82: 6.95 | E82: 6.86 | F82: 10.17 | G82: 11.01 | H82: 12 | I82: 14.13 | J82: 14.31 | K82: 12.85 | L82: 12.25 | M82: 11.64 | N82: 11.53 | O82: 10.63 | P82: 11.54 | Q82: 10.35
A83: 2759 | B83: 5.38 | C83: 5.54 | D83: 5.96 | E83: 5.92 | F83: 8.75 | G83: 9.47 | H83: 10.94 | I83: 12.6 | J83: 14.32 | K83: 12.86 | L83: 13.71 | M83: 13.03 | N83: 11.74 | O83: 10.83 | P83: 8.59 | Q83: 7.7
A84: 2790 | B84: 3.25 | C84: 3.12 | D84: 3.38 | E84: 3.22 | F84: 3.94 | G84: 4.27 | H84: 3.7 | I84: 3.73 | J84: 3.78 | K84: 3.39 | L84: 2.92 | M84: 2.78 | N84: 2.69 | O84: 2.48 | P84: 2.26 | Q84: 2.03
A85: 2797 | B85: 6.29 | C85: 6.48 | D85: 6.68 | E85: 6.6 | F85: 9.68 | G85: 10.48 | H85: 11.4 | I85: 11.15 | J85: 12.96 | K85: 11.64 | L85: 10.54 | M85: 10.02 | N85: 9.1 | O85: 8.39 | P85: 8.99 | Q85: 8.06
A86: 2806 | B86: 5.54 | C86: 5.42 | D86: 5.2 | E86: 4.4 | F86: 6.25 | G86: 6.77 | H86: 7.45 | I86: 8.39 | J86: 9.67 | K86: 8.68 | L86: 9.02 | M86: 8.57 | N86: 8.12 | O86: 7.49 | P86: 7.98 | Q86: 7.16
A87: 2812 | B87: 4.64 | C87: 5.64 | D87: 6.02 | E87: 5.66 | F87: 6.88 | G87: 7.45 | H87: 8.88 | I87: 9.69 | J87: 10.03 | K87: 9.01 | L87: 8.96 | M87: 8.52 | N87: 7.75 | O87: 7.15 | P87: 7.26 | Q87: 6.51
A88: 2819 | B88: 6.86 | C88: 7.4 | D88: 6.92 | E88: 7.13 | F88: 9.43 | G88: 10.21 | H88: 11.52 | I88: 13.62 | J88: 13.78 | K88: 12.37 | L88: 13.17 | M88: 12.52 | N88: 11.53 | O88: 10.63 | P88: 9 | Q88: 8.07
A89: 2840 | B89: 5.7 | C89: 5.58 | D89: 5.5 | E89: 5.82 | F89: 7.78 | G89: 8.42 | H89: 8.16 | I89: 8.64 | J89: 9.04 | K89: 8.12 | L89: 8.01 | M89: 7.61 | N89: 7.08 | O89: 6.53 | P89: 6.08 | Q89: 5.45
A90: 2842 | B90: 6.91 | C90: 6.77 | D90: 7.1 | E90: 6.35 | F90: 8.85 | G90: 9.58 | H90: 11.22 | I90: 11.82 | J90: 12.59 | K90: 11.3 | L90: 11.51 | M90: 10.94 | N90: 10.45 | O90: 9.64 | P90: 9.45 | Q90: 8.48
A91: 2852 | B91: 6.58 | C91: 6.34 | D91: 6.48 | E91: 6.58 | F91: 10.71 | G91: 11.59 | H91: 12.17 | I91: 13.7 | J91: 12.66 | K91: 11.37 | L91: 10.54 | M91: 10.02 | N91: 8.45 | O91: 7.79 | P91: 6.81 | Q91: 6.11
A92: 2881 | B92: 7.08 | C92: 7.38 | D92: 7.4 | E92: 7.69 | F92: 10.34 | G92: 11.19 | H92: 11.72 | I92: 13.67 | J92: 13.7 | K92: 12.3 | L92: 12.62 | M92: 11.99 | N92: 11.56 | O92: 10.66 | P92: 9.64 | Q92: 8.65
A93: 2883 | B93: 6.95 | C93: 6.35 | D93: 6.51 | E93: 7.39 | F93: 9.94 | G93: 10.76 | H93: 12.36 | I93: 14.14 | J93: 15.99 | K93: 14.36 | L93: 14.23 | M93: 13.52 | N93: 14.43 | O93: 13.31 | P93: 14.1 | Q93: 12.65
A94: 2915 | B94: 4.53 | C94: 4.58 | D94: 5.09 | E94: 4.49 | F94: 5.98 | G94: 6.47 | H94: 7.98 | I94: 9.31 | J94: 9.38 | K94: 8.42 | L94: 8.45 | M94: 8.03 | N94: 8.68 | O94: 8.01 | P94: 7.57 | Q94: 6.79
A95: 2923 | B95: 4.69 | C95: 4.92 | D95: 5.09 | E95: 4.93 | F95: 7.39 | G95: 8 | H95: 8.06 | I95: 7.59 | J95: 7.78 | K95: 6.98 | L95: 6.8 | M95: 6.46 | N95: 5.79 | O95: 5.34 | P95: 5.24 | Q95: 4.7
A96: 2960
A97: 3004
A98: 3018 | B98: 2.71 | C98: 2.36 | D98: 2.03 | E98: 1.88 | F98: 2.33 | G98: 2.52 | H98: 2.94 | I98: 3.49 | J98: 3.65 | K98: 3.28 | L98: 3.42 | M98: 3.25 | N98: 2.89 | O98: 2.67 | P98: 2.67 | Q98: 2.39
A99: 3022 | B99: 3.28 | C99: 3.37 | D99: 3.63 | E99: 4.34 | F99: 5.87 | G99: 6.35 | H99: 7.57 | I99: 8.51 | J99: 9.29 | K99: 8.34 | L99: 8.6 | M99: 8.17 | N99: 7.33 | O99: 6.76 | P99: 5.8 | Q99: 5.2
A100: 3028
A101: 3030 | B101: 6.28 | C101: 6.69 | D101: 7.6 | E101: 7.83 | F101: 9.24 | G101: 10 | H101: 11.18 | I101: 12.25 | J101: 11.56 | K101: 10.38 | L101: 10.49 | M101: 9.97 | N101: 10.02 | O101: 9.24 | P101: 10.23 | Q101: 9.18
A102: 3039 | B102: 6.47 | C102: 6.5 | D102: 6.19 | E102: 6.51 | F102: 8.53 | G102: 9.23 | H102: 10.9 | I102: 12.04 | J102: 11.86 | K102: 10.65 | L102: 9.48 | M102: 9.01 | N102: 9.12 | O102: 8.41 | P102: 7.67 | Q102: 6.88
A103: 3040 | B103: 4.89 | C103: 5.71 | D103: 6.86 | E103: 6.1 | F103: 9.64 | G103: 10.44 | H103: 11.8 | I103: 11.18 | J103: 11.41 | K103: 10.24 | L103: 10.68 | M103: 10.15 | N103: 8.73 | O103: 8.05 | P103: 8.03 | Q103: 7.2
A104: 3060 | B104: 5.2 | C104: 6.11 | D104: 5.4 | E104: 5.58 | F104: 7.51 | G104: 8.13 | H104: 10.5 | I104: 10.12 | J104: 10.33 | K104: 9.27 | L104: 10 | M104: 9.5 | N104: 9.63 | O104: 8.88 | P104: 7.17 | Q104: 6.43
A105: 3066 | B105: 4.14 | C105: 3.9 | D105: 4.06 | E105: 3.76 | F105: 5.49 | G105: 5.94 | H105: 6.56 | I105: 6.9 | J105: 6.56 | K105: 5.89 | L105: 5.94 | M105: 5.65 | N105: 5.29 | O105: 4.88 | P105: 4.27 | Q105: 3.83
A106: 3070 | B106: 0.59 | C106: 0.55 | D106: 0.53 | E106: 0.47 | F106: 0.61 | G106: 0.66 | H106: 0.68 | I106: 0.71 | J106: 0.64 | K106: 0.57 | L106: 0.51 | M106: 0.48 | N106: 0.4 | O106: 0.37 | P106: 0.36 | Q106: 0.32
A107: 3076 | B107: 5.43 | C107: 6.06 | D107: 5.05 | E107: 5.18 | F107: 7.87 | G107: 8.52 | H107: 9.08 | I107: 10.96 | J107: 10.09 | K107: 9.06 | L107: 8.42 | M107: 8 | N107: 7.74 | O107: 7.14 | P107: 6.4 | Q107: 5.74
A108: 3081 | B108: 5.51 | C108: 5.89 | D108: 6.48 | E108: 6.7 | F108: 8.39 | G108: 9.08 | H108: 10.48 | I108: 12.67 | J108: 13.72 | K108: 12.32 | L108: 12.8 | M108: 12.17 | N108: 12.68 | O108: 11.7 | P108: 10.37 | Q108: 9.3
A109: 3082 | B109: 6.33 | C109: 6.85 | D109: 7.41 | E109: 7.34 | F109: 9.15 | G109: 9.91 | H109: 10.71 | I109: 11.64 | J109: 14.85 | K109: 13.33 | L109: 16.43 | M109: 15.62 | N109: 18.53 | O109: 17.09 | P109: 15.95 | Q109: 14.31
A110: 3085 | B110: 6.25 | C110: 6.97 | D110: 7.65 | E110: 7.57 | F110: 10.51 | G110: 11.38 | H110: 13.34 | I110: 13.34 | J110: 13.19 | K110: 11.84 | L110: 11.01 | M110: 10.46 | N110: 10.13 | O110: 9.34 | P110: 8.94 | Q110: 8.02
A111: 3099 | B111: 3.87 | C111: 3.51 | D111: 3.28 | E111: 3.25 | F111: 4.48 | G111: 4.85 | H111: 5.2 | I111: 5.63 | J111: 6.1 | K111: 5.48 | L111: 5.37 | M111: 5.1 | N111: 4.59 | O111: 4.23 | P111: 4.21 | Q111: 3.78
A112: 3110 | B112: 5.21 | C112: 5.4 | D112: 6.95 | E112: 7.07 | F112: 9.91 | G112: 10.73 | H112: 12.98 | I112: 12.09 | J112: 11.62 | K112: 10.43 | L112: 9.1 | M112: 8.65 | N112: 7.88 | O112: 7.27 | P112: 6.85 | Q112: 6.14
A113: 3111
A114: 3131 | B114: 2.81 | C114: 3.35 | D114: 3.71 | E114: 3.73 | F114: 5.2 | G114: 5.63 | H114: 6.52 | I114: 7.31 | J114: 7.27 | K114: 6.53 | L114: 7.01 | M114: 6.66 | N114: 6.13 | O114: 5.65 | P114: 4.97 | Q114: 4.46
A115: 3146 | B115: 4.42 | C115: 4.1 | D115: 4.17 | E115: 3.9 | F115: 4.9 | G115: 5.3 | H115: 5.28 | I115: 5.14 | J115: 5.39 | K115: 4.84 | L115: 4.78 | M115: 4.54 | N115: 4.35 | O115: 4.01 | P115: 3.62 | Q115: 3.25
A116: 3152 | B116: 2.62 | C116: 2.64 | D116: 2.78 | E116: 2.53 | F116: 2.95 | G116: 3.19 | H116: 3.54 | I116: 4.11 | J116: 3.46 | K116: 3.11 | L116: 3.35 | M116: 3.18 | N116: 3.58 | O116: 3.3 | P116: 3.58 | Q116: 3.21
A117: 3165 | B117: 2.91 | C117: 2.94 | D117: 3.05 | E117: 3.03 | F117: 3.99 | G117: 4.32 | H117: 4.76 | I117: 5.92 | J117: 5.68 | K117: 5.1 | L117: 4.93 | M117: 4.69 | N117: 4.69 | O117: 4.33 | P117: 4.56 | Q117: 4.09
A118: 3169 | B118: 4.13 | C118: 4.06 | D118: 4.22 | E118: 4.06 | F118: 5.28 | G118: 5.72 | H118: 5.26 | I118: 5.75 | J118: 6.55 | K118: 5.88 | L118: 6.36 | M118: 6.04 | N118: 6.21 | O118: 5.73 | P118: 5.52 | Q118: 4.95
A119: 3175 | B119: 4.66 | C119: 4.78 | D119: 5.04 | E119: 5.54 | F119: 7.37 | G119: 7.98 | H119: 7.54 | I119: 7.18 | J119: 7.3 | K119: 6.55 | L119: 5.88 | M119: 5.59 | N119: 5.42 | O119: 5 | P119: 4.69 | Q119: 4.21
A120: 3178 | B120: 2.36 | C120: 2.51 | D120: 1.97 | E120: 2.16 | F120: 3.05 | G120: 3.3 | H120: 3.48 | I120: 3.47 | J120: 3.4 | K120: 3.05 | L120: 3.33 | M120: 3.16 | N120: 2.63 | O120: 2.43 | P120: 2.35 | Q120: 2.11
A121: 3179 | B121: 3.68 | C121: 3.45 | D121: 3.57 | E121: 2.97 | F121: 3.87 | G121: 4.19 | H121: 5.32 | I121: 5.58 | J121: 5.54 | K121: 4.97 | L121: 3.92 | M121: 3.73 | N121: 3.67 | O121: 3.39 | P121: 2.98 | Q121: 2.67
A122: 3180 | B122: 3.79 | C122: 3.76 | D122: 4.2 | E122: 4.65 | F122: 6.7 | G122: 7.25 | H122: 8.34 | I122: 8.99 | J122: 9.06 | K122: 8.13 | L122: 8.57 | M122: 8.15 | N122: 7.8 | O122: 7.19 | P122: 6.91 | Q122: 6.2
A123: 3220 | B123: 3.39 | C123: 3.59 | D123: 3.07 | E123: 3.33 | F123: 4.59 | G123: 4.97 | H123: 5.15 | I123: 4.78 | J123: 4.96 | K123: 4.45 | L123: 4.56 | M123: 4.33 | N123: 4.25 | O123: 3.92 | P123: 3.2 | Q123: 2.87
A124: 3241 | B124: 4.06 | C124: 4.18 | D124: 4.23 | E124: 4.26 | F124: 5.96 | G124: 6.45 | H124: 6.08 | I124: 5.86 | J124: 5.88 | K124: 5.28 | L124: 4.82 | M124: 4.58 | N124: 4.06 | O124: 3.74 | P124: 3.41 | Q124: 3.06
A125: 3255
A126: 3257 | B126: 4.42 | C126: 4.34 | D126: 4.65 | E126: 4.64 | F126: 6.58 | G126: 7.12 | H126: 7.1 | I126: 7.75 | J126: 8.12 | K126: 7.29 | L126: 7.12 | M126: 6.77 | N126: 6.16 | O126: 5.68 | P126: 5.36 | Q126: 4.81
A127: 3300 | B127: 6.89 | C127: 6.78 | D127: 6.93
A128: 3339 | B128: 4.58 | C128: 4.36 | D128: 4.26 | E128: 4.8 | F128: 6.98 | G128: 7.56 | H128: 8.18 | I128: 9.37 | J128: 8.65 | K128: 7.77 | L128: 8.07 | M128: 7.67 | N128: 7.34 | O128: 6.77 | P128: 7.38 | Q128: 6.62
A129: 3365 | B129: 7.31 | C129: 7.67 | D129: 6.9 | E129: 5.78 | F129: 7.37 | G129: 7.98 | H129: 8.08 | I129: 8.1 | J129: 7.71 | K129: 6.92 | L129: 6.69 | M129: 6.36 | N129: 6.08 | O129: 5.61 | P129: 5.57 | Q129: 5
A130: 3372 | B130: 4.78 | C130: 5.09 | D130: 5 | E130: 4.49 | F130: 6 | G130: 6.5 | H130: 7.42 | I130: 8.88 | J130: 9.45 | K130: 8.48 | L130: 8.04 | M130: 7.64 | N130: 7.78 | O130: 7.18 | P130: 6.73 | Q130: 6.04
A131: 3373
A132: 3383 | B132: 2.13 | C132: 2.28 | D132: 2.35 | E132: 2.33 | F132: 3.63 | G132: 3.93 | H132: 4.45 | I132: 4.98 | J132: 4.72 | K132: 4.24 | L132: 4.53 | M132: 4.31 | N132: 3.66 | O132: 3.38 | P132: 3.15 | Q132: 2.83
A133: 3400 | B133: 4.94 | C133: 5.29 | D133: 5.78 | E133: 5.47 | F133: 6.11 | G133: 6.61 | H133: 7.43 | I133: 7.46 | J133: 8.79 | K133: 7.89 | L133: 8.12 | M133: 7.72 | N133: 8.09 | O133: 7.46 | P133: 8.02 | Q133: 7.19
A134: 3401 | B134: 4.53 | C134: 4.46 | D134: 4.49 | E134: 4.73 | F134: 6.44 | G134: 6.97 | H134: 7.21 | I134: 7.94 | J134: 7.83 | K134: 7.03 | L134: 6.57 | M134: 6.24 | N134: 6.11 | O134: 5.64 | P134: 5.79 | Q134: 5.19
A135: 3501 | B135: 3.66 | C135: 3.92 | D135: 4.49 | E135: 4.75 | F135: 5.79 | G135: 6.27 | H135: 6.02 | I135: 5.99 | J135: 6.93 | K135: 6.22 | L135: 6.58 | M135: 6.25 | N135: 6.92 | O135: 6.38 | P135: 6.74 | Q135: 6.05
A136: 3507 | B136: 4.48 | C136: 6.06 | D136: 5.06 | E136: 5.45 | F136: 6.73 | G136: 7.29 | H136: 6.53 | I136: 7.42 | J136: 7.51 | K136: 6.74 | L136: 6.11 | M136: 5.81 | N136: 5.89 | O136: 5.43 | P136: 5.2 | Q136: 4.66
A137: 3560 | B137: 3.16 | C137: 3.25 | D137: 3.19 | E137: 3.54 | F137: 5.05 | G137: 5.47 | H137: 5.19 | I137: 5.07 | J137: 4.41 | K137: 3.96 | L137: 3.93 | M137: 3.74 | N137: 3.7 | O137: 3.41 | P137: 3.4 | Q137: 3.05
A138: 3566
A139: 3567
A140: 3568 | B140: 1.82 | C140: 1.84 | D140: 1.72 | E140: 1.64 | F140: 2.4 | G140: 2.6 | H140: 3.11 | I140: 3.27 | J140: 3.44 | K140: 3.09 | L140: 3.22 | M140: 3.06 | N140: 2.87 | O140: 2.65 | P140: 2.59 | Q140: 2.32
A141: 3569 | B141: 2.29 | C141: 2.9 | D141: 3.09 | E141: 2.84 | F141: 3.57 | G141: 3.86 | H141: 4.4 | I141: 4.49 | J141: 4.53 | K141: 4.07 | L141: 4.08 | M141: 3.88 | N141: 3.38 | O141: 3.12 | P141: 2.61 | Q141: 2.34
A142: 3570 | B142: 3.68 | C142: 3.45 | D142: 3.57 | E142: 2.97 | F142: 3.87 | G142: 4.19 | H142: 5.32 | I142: 5.58 | J142: 6.41 | K142: 5.75 | L142: 5.78 | M142: 5.49 | N142: 5.11 | O142: 4.71 | P142: 5.01 | Q142: 4.49
A143: 3572 | B143: 1.02 | C143: 1.17 | D143: 1.27 | E143: 1.15 | F143: 1.46 | G143: 1.58 | H143: 1.42 | I143: 1.59 | J143: 1.61 | K143: 1.45 | L143: 1.29 | M143: 1.23 | N143: 1.23 | O143: 1.13 | P143: 0.99 | Q143: 0.89
A144: 3573 | B144: 1.44 | C144: 1.53 | D144: 1.51 | E144: 1.52 | F144: 2.14 | G144: 2.32 | H144: 2.53 | I144: 2.25 | J144: 2.09 | K144: 1.88 | L144: 1.77 | M144: 1.68 | N144: 1.57 | O144: 1.45 | P144: 1.47 | Q144: 1.32
A145: 3574 | B145: 3.81 | C145: 3.66 | D145: 3.44 | E145: 3.41 | F145: 4.25 | G145: 4.6 | H145: 4.05 | I145: 4.32 | J145: 4.16 | K145: 3.73 | L145: 3.62 | M145: 3.44 | N145: 3.89 | O145: 3.59 | P145: 4.33 | Q145: 3.88
A146: 3577 | B146: 1.09 | C146: 1.2 | D146: 1.25 | E146: 1.37 | F146: 1.94 | G146: 2.1 | H146: 2 | I146: 2.04 | J146: 1.98 | K146: 1.78 | L146: 1.77 | M146: 1.68 | N146: 1.54 | O146: 1.42 | P146: 1.49 | Q146: 1.34
A147: 3578
A148: 3579
A149: 3612 | B149: 2.97 | C149: 3.04 | D149: 3.08 | E149: 3.42 | F149: 4.65 | G149: 5.03 | H149: 4.97 | I149: 5.28 | J149: 4.57 | K149: 4.1 | L149: 3.9 | M149: 3.71 | N149: 3.81 | O149: 3.51 | P149: 3.44 | Q149: 3.09
A150: 3620 | B150: 7.52 | C150: 8.11 | D150: 6.3 | E150: 6.02 | F150: 6.58 | G150: 7.12 | H150: 7.44 | I150: 8.53 | J150: 9.4 | K150: 8.44 | L150: 8.49 | M150: 8.07 | N150: 7.69 | O150: 7.09 | P150: 7.63 | Q150: 6.84
A151: 3632 | B151: 3.19 | C151: 3.7 | D151: 3.22 | E151: 3.22 | F151: 4.88 | G151: 5.28 | H151: 6.01 | I151: 5.2 | J151: 4.96 | K151: 4.45 | L151: 4.32 | M151: 4.11 | N151: 3.98 | O151: 3.67 | P151: 3.4 | Q151: 3.05
A152: 3634 | B152: 3.11 | C152: 3.24 | D152: 3.64 | E152: 4.3 | F152: 5.78 | G152: 6.26 | H152: 7.23 | I152: 7.71 | J152: 6.98 | K152: 6.27 | L152: 5.56 | M152: 5.28 | N152: 4.29 | O152: 3.96 | P152: 3.62 | Q152: 3.25
A153: 3643 | B153: 2.1 | C153: 2.5 | D153: 2.29 | E153: 2.3 | F153: 3.41 | G153: 3.69 | H153: 4.13 | I153: 4.51 | J153: 4.36 | K153: 3.91 | L153: 4.25 | M153: 4.04 | N153: 3.8 | O153: 3.51 | P153: 3.62 | Q153: 3.25
A154: 3647 | B154: 4.19 | C154: 4.68 | D154: 5.75 | E154: 5.78 | F154: 7.59 | G154: 8.22 | H154: 8.32 | I154: 9.42 | J154: 10.16 | K154: 9.12 | L154: 8.7 | M154: 8.27 | N154: 7.17 | O154: 6.61 | P154: 5.75 | Q154: 5.16
A155: 3651 | B155: 2.44 | C155: 2.15 | D155: 2.08 | E155: 2.06 | F155: 3.12 | G155: 3.38 | H155: 3.56 | I155: 3.74 | J155: 4 | K155: 3.59 | L155: 3.51 | M155: 3.34 | N155: 2.93 | O155: 2.7 | P155: 2.82 | Q155: 2.53
A156: 3681 | B156: 1.19 | C156: 1.21 | D156: 1.15 | E156: 1.03 | F156: 1.4 | G156: 1.52 | H156: 1.5 | I156: 1.53 | J156: 1.52 | K156: 1.36 | L156: 1.36 | M156: 1.29 | N156: 1.2 | O156: 1.11 | P156: 0.95 | Q156: 0.85
A157: 3682 | B157: 1.82 | C157: 1.71 | D157: 1.62 | E157: 1.32 | F157: 1.82 | G157: 1.97 | H157: 2.18 | I157: 2.16 | J157: 2.07 | K157: 1.86 | L157: 1.6 | M157: 1.52 | N157: 1.63 | O157: 1.5 | P157: 1.41 | Q157: 1.26
A158: 3683 | B158: 2.59 | C158: 2.88 | D158: 3.03 | E158: 3.88 | F158: 5.06 | G158: 5.48 | H158: 7.23 | I158: 9.71 | J158: 11.32 | K158: 10.16 | L158: 9 | M158: 8.55 | N158: 7.34 | O158: 6.77 | P158: 4.93 | Q158: 4.42
A159: 3719 | B159: 2.3 | C159: 2.6 | D159: 2.65 | E159: 2.12 | F159: 2.61 | G159: 2.83 | H159: 2.31 | I159: 2.49 | J159: 2.73 | K159: 2.45 | L159: 2.72 | M159: 2.59 | N159: 2.26 | O159: 2.08 | P159: 2.03 | Q159: 1.82
A160: 3724 | B160: 4.29 | C160: 4.55 | D160: 4.69 | E160: 4.36 | F160: 4.97 | G160: 5.38 | H160: 6.75 | I160: 7.38 | J160: 7.03 | K160: 6.31 | L160: 5.95 | M160: 5.65 | N160: 5.32 | O160: 4.91 | P160: 4.96 | Q160: 4.45
A161: 3726 | B161: 4.04 | C161: 4.63 | D161: 4.43 | E161: 4 | F161: 4.32 | G161: 4.68 | H161: 4.48 | I161: 4.53 | J161: 4.59 | K161: 4.12 | L161: 4.58 | M161: 4.35 | N161: 4.78 | O161: 4.41 | P161: 4.16 | Q161: 3.73
A162: 3805 | B162: 1.3 | C162: 1.3 | D162: 1.18 | E162: 1.1 | F162: 1.48 | G162: 1.6 | H162: 1.47 | I162: 1.44 | J162: 1.5 | K162: 1.35 | L162: 1.28 | M162: 1.22 | N162: 1.15 | O162: 1.06 | P162: 1.06 | Q162: 0.95
A163: 3807 | B163: 3.18 | C163: 3.24 | D163: 3.51
A164: 3808 | B164: 2.26 | C164: 2.37 | D164: 2.97 | E164: 3.64 | F164: 5.28 | G164: 5.72 | H164: 5.37 | I164: 5.44 | J164: 5.54 | K164: 4.97 | L164: 3.82 | M164: 3.63 | N164: 3.74 | O164: 3.45 | P164: 4.19 | Q164: 3.76
A165: 3815 | B165: 4.74 | C165: 5.32 | D165: 5.46 | E165: 5.34 | F165: 6.82 | G165: 7.38 | H165: 7.26 | I165: 6.88 | J165: 7.1 | K165: 6.37 | L165: 7.03 | M165: 6.68 | N165: 6.53 | O165: 6.02 | P165: 6.33 | Q165: 5.68
A166: 3821 | B166: 5.69 | C166: 6.4 | D166: 6.83 | E166: 8.09 | F166: 12.11 | G166: 13.11 | H166: 14.06 | I166: 15.73 | J166: 15.7 | K166: 14.1 | L166: 13.96 | M166: 13.27 | N166: 12.04 | O166: 11.11 | P166: 10.33 | Q166: 9.27
A167: 3828 | B167: 3.86 | C167: 3.79 | D167: 4.11 | E167: 4.43 | F167: 5.59 | G167: 6.05 | H167: 5.83 | I167: 6.76 | J167: 7.05 | K167: 6.33 | L167: 5.37 | M167: 5.1 | N167: 4.85 | O167: 4.47 | P167: 4.25 | Q167: 3.81
A168: 3830 | B168: 2.5 | C168: 1.95 | D168: 1.74 | E168: 1.49 | F168: 2.23 | G168: 2.41 | H168: 2.66 | I168: 2.81 | J168: 3.15 | K168: 2.83 | L168: 2.85 | M168: 2.71 | N168: 2.89 | O168: 2.67 | P168: 2.91 | Q168: 2.61
A169: 3831 | B169: 2 | C169: 2.01 | D169: 2.26 | E169: 2.52 | F169: 3.48 | G169: 3.77 | H169: 4.03 | I169: 4.69 | J169: 4.74 | K169: 4.26 | L169: 3.33 | M169: 3.16 | N169: 2.94 | O169: 2.71 | P169: 3.23 | Q169: 2.9
A170: 3840 | B170: 3.83 | C170: 4.4 | D170: 4.53 | E170: 4.55 | F170: 6.24 | G170: 6.76 | H170: 6.8 | I170: 7.66 | J170: 7.3 | K170: 6.55 | L170: 6.63 | M170: 6.3 | N170: 5.65 | O170: 5.21 | P170: 5.25 | Q170: 4.71
A171: 4000 | B171: 2.87 | C171: 3.64 | D171: 4.23 | E171: 4.39 | F171: 5.48 | G171: 5.93 | H171: 6.2 | I171: 6.63 | J171: 7.16 | K171: 6.43 | L171: 6.62 | M171: 6.29 | N171: 4.93 | O171: 4.55 | P171: 3.75 | Q171: 3.36
A172: 4034 | B172: 5.41 | C172: 5.96 | D172: 7.1 | E172: 6.59 | F172: 8.58 | G172: 9.29 | H172: 9.09 | I172: 9.55 | J172: 10.12 | K172: 9.09 | L172: 9.07 | M172: 8.62 | N172: 8.06 | O172: 7.43 | P172: 8.17 | Q172: 7.33
A173: 4036 | B173: 1.62 | C173: 1.93 | D173: 1.86 | E173: 2.12 | F173: 2.94 | G173: 3.18 | H173: 3.54 | I173: 4.06 | J173: 4.75 | K173: 4.26 | L173: 5.27 | M173: 5.01 | N173: 5.89 | O173: 5.43 | P173: 5.72 | Q173: 5.13
A174: 4038 | B174: 4.94 | C174: 5.49 | D174: 5.66 | E174: 6.02 | F174: 8.67 | G174: 9.39 | H174: 10.79 | I174: 12.11 | J174: 13.16 | K174: 11.82 | L174: 10.67 | M174: 10.14 | N174: 9.4 | O174: 8.67 | P174: 6.43 | Q174: 5.77
A175: 4041 | B175: 4.01 | C175: 4.22 | D175: 4.65 | E175: 4.76 | F175: 6.82 | G175: 7.38 | H175: 8.52 | I175: 8.43 | J175: 7.8 | K175: 7 | L175: 7.09 | M175: 6.74 | N175: 6.17 | O175: 5.69 | P175: 5.39 | Q175: 4.83
A176: 4049 | B176: 4.03 | C176: 4.1 | D176: 4.18 | E176: 4.21 | F176: 5.4 | G176: 5.85 | H176: 6.62 | I176: 6.64 | J176: 7.36 | K176: 6.61 | L176: 6.76 | M176: 6.42 | N176: 6.2 | O176: 5.72 | P176: 5.16 | Q176: 4.63
A177: 4111 | B177: 1.8 | C177: 1.93 | D177: 1.8 | E177: 1.79 | F177: 2.52 | G177: 2.73 | H177: 2.92 | I177: 3.01 | J177: 3.46 | K177: 3.11 | L177: 3.36 | M177: 3.19 | N177: 3.32 | O177: 3.06 | P177: 3.01 | Q177: 2.7
A178: 4112 | B178: 0.65 | C178: 0.68 | D178: 0.64 | E178: 0.58 | F178: 0.8 | G178: 0.87 | H178: 0.99 | I178: 1.02 | J178: 0.98 | K178: 0.88 | L178: 0.78 | M178: 0.74 | N178: 0.71 | O178: 0.65 | P178: 0.58 | Q178: 0.52
A179: 4114 | B179: 4.67 | C179: 5.47 | D179: 6.58 | E179: 7.78 | F179: 10.25 | G179: 11.1 | H179: 12.12 | I179: 10.85 | J179: 8.89 | K179: 7.98 | L179: 7.21 | M179: 6.85 | N179: 5.69 | O179: 5.25 | P179: 4.59 | Q179: 4.12
A180: 4130 | B180: 5.86 | C180: 6.3 | D180: 6.72 | E180: 6.74 | F180: 9.27 | G180: 10.04 | H180: 9.57 | I180: 10.56 | J180: 11.49 | K180: 10.32 | L180: 10.41 | M180: 9.89 | N180: 8.68 | O180: 8.01 | P180: 7.85 | Q180: 7.04
A181: 4133
A182: 4150 | B182: 2.79 | C182: 2.99 | D182: 2.83 | E182: 2.88 | F182: 3.79 | G182: 4.1 | H182: 3.46 | I182: 3.93 | J182: 4.26 | K182: 3.82 | L182: 4.13 | M182: 3.93 | N182: 3.88 | O182: 3.58 | P182: 3.76 | Q182: 3.37
A183: 4239 | B183: 3.74 | C183: 3.51 | D183: 3.63 | E183: 3.79 | F183: 5.36 | G183: 5.8 | H183: 6.39 | I183: 7.53 | J183: 8.21 | K183: 7.37 | L183: 7.74 | M183: 7.36 | N183: 6.83 | O183: 6.3 | P183: 5.28 | Q183: 4.74
A184: 4240 | B184: 5.93 | C184: 6.88 | D184: 8.71 | E184: 10.55 | F184: 16.72 | G184: 18.1 | H184: 19.49 | I184: 15.77 | J184: 12.66 | K184: 11.37 | L184: 9.77 | M184: 9.29 | N184: 8.43 | O184: 7.78 | P184: 7.63 | Q184: 6.84
A185: 4243 | B185: 4.19 | C185: 4.39 | D185: 4.44 | E185: 4.88 | F185: 6.39 | G185: 6.92 | H185: 6.18 | I185: 6.31 | J185: 6.35 | K185: 5.7 | L185: 6.18 | M185: 5.87 | N185: 5.42 | O185: 5 | P185: 5.14 | Q185: 4.61
A186: 4244 | B186: 4.22 | C186: 4.19 | D186: 4.61 | E186: 4.7 | F186: 7.59 | G186: 8.22 | H186: 8.34 | I186: 7.39 | J186: 7.53 | K186: 6.76 | L186: 6.47 | M186: 6.15 | N186: 5.46 | O186: 5.04 | P186: 5.14 | Q186: 4.61
A187: 4250 | B187: 3.58 | C187: 3.37 | D187: 3.82 | E187: 3.65 | F187: 4.84 | G187: 5.24 | H187: 4.64 | I187: 4.71 | J187: 4.61 | K187: 4.14 | L187: 4.05 | M187: 3.85 | N187: 3.86 | O187: 3.56 | P187: 4.03 | Q187: 3.61
A188: 4251 | B188: 2.96 | C188: 2.94 | D188: 3.24 | E188: 3.92 | F188: 5.86 | G188: 6.34 | H188: 7.53 | I188: 8.8 | J188: 8.86 | K188: 7.95 | L188: 8.07 | M188: 7.67 | N188: 7.47 | O188: 6.89 | P188: 6.37 | Q188: 5.71
A189: 4279 | B189: 4.24 | C189: 4.1 | D189: 4.41 | E189: 4.23 | F189: 6.04 | G189: 6.54 | H189: 6.16 | I189: 6.92 | J189: 8.06 | K189: 7.24 | L189: 7.21 | M189: 6.85 | N189: 7.33 | O189: 6.76 | P189: 6.83 | Q189: 6.13
A190: 4283 | B190: 4.48 | C190: 4.68 | D190: 4.07 | E190: 3.39 | F190: 4.14 | G190: 4.48 | H190: 4.68 | I190: 4.54 | J190: 4.06 | K190: 3.65 | L190: 3.64 | M190: 3.46 | N190: 3.79 | O190: 3.5 | P190: 3.39 | Q190: 3.04
A191: 4286 | B191: 5.2 | C191: 5.98 | D191: 6.24 | E191: 6 | F191: 7.53 | G191: 8.15 | H191: 7.78 | I191: 7.76 | J191: 8.56 | K191: 7.69 | L191: 8.02 | M191: 7.62 | N191: 8.12 | O191: 7.49 | P191: 8 | Q191: 7.18
A192: 4295 | B192: 3.67 | C192: 3.73 | D192: 4.2 | E192: 4.21 | F192: 5.48 | G192: 5.93 | H192: 7.54 | I192: 8.47 | J192: 8.94 | K192: 8.03 | L192: 7.65 | M192: 7.27 | N192: 7.83 | O192: 7.22 | P192: 6.86 | Q192: 6.15
A193: 4297 | B193: 0.39 | C193: 0.41 | D193: 0.46 | E193: 0.42 | F193: 0.51 | G193: 0.55 | H193: 0.55 | I193: 0.49 | J193: 0.39 | K193: 0.35 | L193: 0.31 | M193: 0.29 | N193: 0.27 | O193: 0.25 | P193: 0.21 | Q193: 0.19
A194: 4299 | B194: 3.2 | C194: 3.08 | D194: 3.21 | E194: 3.88 | F194: 5.51 | G194: 5.97 | H194: 6.61 | I194: 7.23 | J194: 7.03 | K194: 6.31 | L194: 5.82 | M194: 5.53 | N194: 6.24 | O194: 5.76 | P194: 5.22 | Q194: 4.68
A195: 4304 | B195: 5.52 | C195: 6.63 | D195: 5.56 | E195: 6.42 | F195: 10.29 | G195: 11.14 | H195: 11.65 | I195: 12.68 | J195: 11.87 | K195: 10.66 | L195: 10.09 | M195: 9.59 | N195: 8.89 | O195: 8.2 | P195: 7.84 | Q195: 7.03
A196: 4312 | B196: 4.59 | C196: 4.85 | D196: 5.46 | E196: 4.68 | F196: 5.71 | G196: 6.18 | H196: 6.04 | I196: 6.77 | J196: 7.45 | K196: 6.69 | L196: 5.94 | M196: 5.65 | N196: 5.22 | O196: 4.81 | P196: 4.33 | Q196: 3.88
A197: 4351 | B197: 1.6 | C197: 1.58 | D197: 1.73 | E197: 1.86 | F197: 2.61 | G197: 2.83 | H197: 3.35 | I197: 3.68 | J197: 3.6 | K197: 3.23 | L197: 3.28 | M197: 3.12 | N197: 2.96 | O197: 2.73 | P197: 2.67 | Q197: 2.39
A198: 4354 | B198: 1.69 | C198: 1.81 | D198: 1.76 | E198: 1.8 | F198: 2.35 | G198: 2.54 | H198: 3.02 | I198: 3.36 | J198: 3.41 | K198: 3.06 | L198: 2.94 | M198: 2.79 | N198: 2.67 | O198: 2.46 | P198: 2.34 | Q198: 2.1
A199: 4360
A200: 4361 | B200: 2.15 | C200: 2.51 | D200: 2.62 | E200: 2.18 | F200: 2.55 | G200: 2.76 | H200: 2.8 | I200: 3.13 | J200: 2.96 | K200: 2.66 | L200: 2.89 | M200: 2.75 | N200: 2.61 | O200: 2.41 | P200: 2.1 | Q200: 1.88
... 369 more rows

Sheet 2008 Table MA Ult Loss Grouping
A1: Table MA | F1: Source: | G1: Provided by California Insurance Department Actuary.
A2: Expected Loss | B2: Expected Unlimited
A3: & ALAE Group | B3: Loss & ALAE Range
A4: 95 | B4: 7021.944439 | C4: --- | D4: 8599.090439
A5: 94 | B5: 8600.090439 | C5: --- | D5: 10174.76424
A6: 93 | B6: 10175.76424 | C6: --- | D6: 11748.96044
A7: 92 | B7: 11749.96044 | C7: --- | D7: 13322.20282
A8: 91 | B8: 13323.20282 | C8: --- | D8: 14894.79359
A9: 90 | B9: 14895.79359 | C9: --- | D9: 16466.91943
A10: 89 | B10: 16467.91943 | C10: --- | D10: 18038.70189
A11: 88 | B11: 18039.70189 | C11: --- | D11: 19610.22354
A12: 87 | B12: 19611.22354 | C12: --- | D12: 21181.54243
A13: 86 | B13: 21182.54243 | C13: --- | D13: 22752.70055
A14: 85 | B14: 22753.70055 | C14: --- | D14: 24323.72907
A15: 84 | B15: 24324.72907 | C15: --- | D15: 25894.65157
A16: 83 | B16: 25895.65157 | C16: --- | D16: 27465.48624
A17: 82 | B17: 27466.48624 | C17: --- | D17: 29036.24734
A18: 81 | B18: 29037.24734 | C18: --- | D18: 30606.9462
A19: 80 | B19: 30607.9462 | C19: --- | D19: 32177.59192
A20: 79 | B20: 32178.59192 | C20: --- | D20: 33748.19192
A21: 78 | B21: 33749.19192 | C21: --- | D21: 35318.75232
A22: 77 | B22: 35319.75232 | C22: --- | D22: 36889.27815
A23: 76 | B23: 36890.27815 | C23: --- | D23: 38459.77367
A24: 75 | B24: 38460.77367 | C24: --- | D24: 40030.24243
A25: 74 | B25: 40031.24243 | C25: --- | D25: 41600.68747
A26: 73 | B26: 41601.68747 | C26: --- | D26: 43171.11137
A27: 72 | B27: 43172.11137 | C27: --- | D27: 44741.51636
A28: 71 | B28: 44742.51636 | C28: --- | D28: 46311.90437
A29: 70 | B29: 46312.90437 | C29: --- | D29: 48256.22034
A30: 69 | B30: 48257.22034 | C30: --- | D30: 50765.42672
A31: 68 | B31: 50766.42672 | C31: --- | D31: 53458.85915
A32: 67 | B32: 53459.85915 | C32: --- | D32: 56421.02337
A33: 66 | B33: 56422.02337 | C33: --- | D33: 59672.30453
A34: 65 | B34: 59673.30453 | C34: --- | D34: 62967.47958
A35: 64 | B35: 62968.47958 | C35: --- | D35: 66646.39959
A36: 63 | B36: 66647.39959 | C36: --- | D36: 70688.80487
A37: 62 | B37: 70689.80487 | C37: --- | D37: 74731.02088
A38: 61 | B38: 74732.02088 | C38: --- | D38: 79237.24978
A39: 60 | B39: 79238.24978 | C39: --- | D39: 84270.40004
A40: 59 | B40: 84271.40004 | C40: --- | D40: 89340.38455
A41: 58 | B41: 89341.38455 | C41: --- | D41: 94933.00647
A42: 57 | B42: 94934.00647 | C42: --- | D42: 101264.4083
A43: 56 | B43: 101265.4083 | C43: --- | D43: 107791.0276
A44: 55 | B44: 107792.0276 | C44: --- | D44: 114939.0239
A45: 54 | B45: 114940.0239 | C45: --- | D45: 123180.6849
A46: 53 | B46: 123181.6849 | C46: --- | D46: 131883.6685
A47: 52 | B47: 131884.6685 | C47: --- | D47: 140586.0256
A48: 51 | B48: 140587.0256 | C48: --- | D48: 151002.7965
A49: 50 | B49: 151003.7965 | C49: --- | D49: 163494.6175
A50: 49 | B50: 163495.6175 | C50: --- | D50: 176237.3056
A51: 48 | B51: 176238.3056 | C51: --- | D51: 188978.7866
A52: 47 | B52: 188979.7866 | C52: --- | D52: 203034.6299
A53: 46 | B53: 203035.6299 | C53: --- | D53: 220040.4745
A54: 45 | B54: 220041.4745 | C54: --- | D54: 238711.1196
A55: 44 | B55: 238712.1196 | C55: --- | D55: 257779.9603
A56: 43 | B56: 257780.9603 | C56: --- | D56: 279543.3213
A57: 42 | B57: 279544.3213 | C57: --- | D57: 305438.9607
A58: 41 | B58: 305439.9607 | C58: --- | D58: 334237.9995
A59: 40 | B59: 334238.9995 | C59: --- | D59: 367737.2187
A60: 39 | B60: 367738.2187 | C60: --- | D60: 405759.914
A61: 38 | B61: 405760.914 | C61: --- | D61: 448504.3476
A62: 37 | B62: 448505.3476 | C62: --- | D62: 498219.9812
A63: 36 | B63: 498220.9812 | C63: --- | D63: 554664.6621
A64: 35 | B64: 554665.6621 | C64: --- | D64: 618995.9643
A65: 34 | B65: 618996.9643 | C65: --- | D65: 692912.1979
A66: 33 | B66: 692913.1979 | C66: --- | D66: 777417.931
A67: 32 | B67: 777418.931 | C67: --- | D67: 871710.8978
A68: 31 | B68: 871711.8978 | C68: --- | D68: 978953.0882
A69: 30 | B69: 978954.0882 | C69: --- | D69: 1102586.262
A70: 29 | B70: 1102587.262 | C70: --- | D70: 1246692.245
A71: 28 | B71: 1246693.245 | C71: --- | D71: 1417467.931
A72: 27 | B72: 1417468.931 | C72: --- | D72: 1625176.208
A73: 26 | B73: 1625177.208 | C73: --- | D73: 1902380.907
A74: 25 | B74: 1902381.907 | C74: --- | D74: 2311641.849
A75: 24 | B75: 2311642.849 | C75: --- | D75: 2968673.411
A76: 23 | B76: 2968674.411 | C76: --- | D76: 3999483.328
A77: 22 | B77: 3999484.328 | C77: --- | D77: 5555299.054
A78: 21 | B78: 5555300.054 | C78: --- | D78: 7736953.735
A79: 20 | B79: 7736954.735 | C79: --- | D79: 999999999

Sheet 2011 Table MA Ult Loss Grouping
A1: Table MA | F1: Source: | G1: Provided by California Insurance Department Actuary.
A2: Expected Loss | B2: Expected Unlimited
A3: & ALAE Group | B3: Loss & ALAE Range
A4: 99 | B4: 1 | C4: --- | D4: 4586.802002
A5: 98 | B5: 4587.802002 | C5: --- | D5: 7944.574112
A6: 97 | B6: 7945.574112 | C6: --- | D6: 11235.32446
A7: 96 | B7: 11236.32446 | C7: --- | D7: 14504.7415
A8: 95 | B8: 14505.7415 | C8: --- | D8: 17764.60777
A9: 94 | B9: 17765.60777 | C9: --- | D9: 21019.36737
A10: 93 | B10: 21020.36737 | C10: --- | D10: 24271.07482
A11: 92 | B11: 24272.07482 | C11: --- | D11: 27520.81201
A12: 91 | B12: 27521.81201 | C12: --- | D12: 30769.20323
A13: 90 | B13: 30770.20323 | C13: --- | D13: 34016.63407
A14: 89 | B14: 34017.63407 | C14: --- | D14: 37263.35562
A15: 88 | B15: 37264.35562 | C15: --- | D15: 40509.53842
A16: 87 | B16: 40510.53842 | C16: --- | D16: 43755.30239
A17: 86 | B17: 43756.30239 | C17: --- | D17: 46946.30613
A18: 85 | B18: 46947.30613 | C18: --- | D18: 49829.45214
A19: 84 | B19: 49830.45214 | C19: --- | D19: 52448.04788
A20: 83 | B20: 52449.04788 | C20: --- | D20: 55161.70081
A21: 82 | B21: 55162.70081 | C21: --- | D21: 58130.40778
A22: 81 | B22: 58131.40778 | C22: --- | D22: 61262.43933
A23: 80 | B23: 61263.43933 | C23: --- | D23: 64492.5761
A24: 79 | B24: 64493.5761 | C24: --- | D24: 68054.88117
A25: 78 | B25: 68055.88117 | C25: --- | D25: 71858.59576
A26: 77 | B26: 71859.59576 | C26: --- | D26: 75662.16911
A27: 76 | B27: 75663.16911 | C27: --- | D27: 79881.34675
A28: 75 | B28: 79882.34675 | C28: --- | D28: 84595.94639
A29: 74 | B29: 84596.94639 | C29: --- | D29: 89370.28909
A30: 73 | B30: 89371.28909 | C30: --- | D30: 94144.44956
A31: 72 | B31: 94145.44956 | C31: --- | D31: 99585.65437
A32: 71 | B32: 99586.65437 | C32: --- | D32: 105746.1365
A33: 70 | B33: 105747.1365 | C33: --- | D33: 111920.746
A34: 69 | B34: 111921.746 | C34: --- | D34: 118095.0959
A35: 68 | B35: 118096.0959 | C35: --- | D35: 125203.3198
A36: 67 | B36: 125204.3198 | C36: --- | D36: 133393.9628
A37: 66 | B37: 133394.9628 | C37: --- | D37: 141682.3304
A38: 65 | B38: 141683.3304 | C38: --- | D38: 149970.2825
A39: 64 | B39: 149971.2825 | C39: --- | D39: 159486.1432
A40: 63 | B40: 159487.1432 | C40: --- | D40: 170784.1918
A41: 62 | B41: 170785.1918 | C41: --- | D41: 182591.2767
A42: 61 | B42: 182592.2767 | C42: --- | D42: 194397.5619
A43: 60 | B43: 194398.5619 | C43: --- | D43: 206203.1847
A44: 59 | B44: 206204.1847 | C44: --- | D44: 219481.3789
A45: 58 | B45: 219482.3789 | C45: --- | D45: 235480.3187
A46: 57 | B46: 235481.3187 | C46: --- | D46: 252715.2928
A47: 56 | B47: 252716.2928 | C47: --- | D47: 269948.8971
A48: 55 | B48: 269949.8971 | C48: --- | D48: 288683.5101
A49: 54 | B49: 288684.5101 | C49: --- | D49: 310249.5535
A50: 53 | B50: 310250.5535 | C50: --- | D50: 334980.1664
A51: 52 | B51: 334981.1664 | C51: --- | D51: 362387.502
A52: 51 | B52: 362388.502 | C52: --- | D52: 393263.6417
A53: 50 | B53: 393264.6417 | C53: --- | D53: 428271.4755
A54: 49 | B54: 428272.4755 | C54: --- | D54: 466689.4919
A55: 48 | B55: 466690.4919 | C55: --- | D55: 510511.9746
A56: 47 | B56: 510512.9746 | C56: --- | D56: 560925.068
A57: 46 | B57: 560926.068 | C57: --- | D57: 619334.2342
A58: 45 | B58: 619335.2342 | C58: --- | D58: 687267.8354
A59: 44 | B59: 687268.8354 | C59: --- | D59: 765752.0467
A60: 43 | B60: 765753.0467 | C60: --- | D60: 852500.9356
A61: 42 | B61: 852501.9356 | C61: --- | D61: 949237.126
A62: 41 | B62: 949238.126 | C62: --- | D62: 1057804.904
A63: 40 | B63: 1057805.904 | C63: --- | D63: 1175496.12
A64: 39 | B64: 1175497.12 | C64: --- | D64: 1302718.343
A65: 38 | B65: 1302719.343 | C65: --- | D65: 1440559.955
A66: 37 | B66: 1440560.955 | C66: --- | D66: 1589021.382
A67: 36 | B67: 1589022.382 | C67: --- | D67: 1748678.575
A68: 35 | B68: 1748679.575 | C68: --- | D68: 1921679.355
A69: 34 | B69: 1921680.355 | C69: --- | D69: 2108089.218
A70: 33 | B70: 2108090.218 | C70: --- | D70: 2313998.041
A71: 32 | B71: 2313999.041 | C71: --- | D71: 2542423.988
A72: 31 | B72: 2542424.988 | C72: --- | D72: 2794542.524
A73: 30 | B73: 2794543.524 | C73: --- | D73: 3085349.636
A74: 29 | B74: 3085350.636 | C74: --- | D74: 3433323.9
A75: 28 | B75: 3433324.9 | C75: --- | D75: 3838906.103
A76: 27 | B76: 3838907.103 | C76: --- | D76: 4326328.435
A77: 26 | B77: 4326329.435 | C77: --- | D77: 4910360.347
A78: 25 | B78: 4910361.347 | C78: --- | D78: 5637220.724
A79: 24 | B79: 5637221.724 | C79: --- | D79: 6480973.473
A80: 23 | B80: 6480974.473 | C80: --- | D80: 7576812.635
A81: 22 | B81: 7576813.635 | C81: --- | D81: 9188258.937
A82: 21 | B82: 9188259.937 | C82: --- | D82: 11064752.82
A83: 20 | B83: 11064753.82 | C83: --- | D83: 12938930.59
A84: 19 | B84: 12938931.59 | C84: --- | D84: 14811671.48
A85: 18 | B85: 14811672.48 | C85: --- | D85: 999999999

Sheet 2013 Table MA Ult Loss Grouping
A1: Table MA | F1: Source: | G1: Provided by California Insurance Department Actuary.
A2: Expected Loss | B2: Expected Unlimited
A3: & ALAE Group | B3: Loss & ALAE Range
A4: 99 | B4: 1 | C4: --- | D4: 3758
A5: 98 | B5: 3759 | C5: --- | D5: 6510
A6: 97 | B6: 6511 | C6: --- | D6: 9206
A7: 96 | B7: 9207 | C7: --- | D7: 11885
A8: 95 | B8: 11886 | C8: --- | D8: 14556
A9: 94 | B9: 14557 | C9: --- | D9: 17223
A10: 93 | B10: 17224 | C10: --- | D10: 19888
A11: 92 | B11: 19889 | C11: --- | D11: 22551
A12: 91 | B12: 22552 | C12: --- | D12: 25213
A13: 90 | B13: 25214 | C13: --- | D13: 27874
A14: 89 | B14: 27875 | C14: --- | D14: 30534
A15: 88 | B15: 30535 | C15: --- | D15: 33194
A16: 87 | B16: 33195 | C16: --- | D16: 35853
A17: 86 | B17: 35854 | C17: --- | D17: 38513
A18: 85 | B18: 38514 | C18: --- | D18: 41172
A19: 84 | B19: 41173 | C19: --- | D19: 43831
A20: 83 | B20: 43832 | C20: --- | D20: 46490
A21: 82 | B21: 46491 | C21: --- | D21: 49148
A22: 81 | B22: 49149 | C22: --- | D22: 51998
A23: 80 | B23: 51999 | C23: --- | D23: 55557
A24: 79 | B24: 55558 | C24: --- | D24: 59758
A25: 78 | B25: 59759 | C25: --- | D25: 64200
A26: 77 | B26: 64201 | C26: --- | D26: 68884
A27: 76 | B27: 68885 | C27: --- | D27: 73895
A28: 75 | B28: 73896 | C28: --- | D28: 79141
A29: 74 | B29: 79142 | C29: --- | D29: 84749
A30: 73 | B30: 84750 | C30: --- | D30: 90856
A31: 72 | B31: 90857 | C31: --- | D31: 97083
A32: 71 | B32: 97084 | C32: --- | D32: 103709
A33: 70 | B33: 103710 | C33: --- | D33: 110871
A34: 69 | B34: 110872 | C34: --- | D34: 118149
A35: 68 | B35: 118150 | C35: --- | D35: 125743
A36: 67 | B36: 125744 | C36: --- | D36: 134246
A37: 66 | B37: 134247 | C37: --- | D37: 143359
A38: 65 | B38: 143360 | C38: --- | D38: 152471
A39: 64 | B39: 152472 | C39: --- | D39: 162335
A40: 63 | B40: 162336 | C40: --- | D40: 173682
A41: 62 | B41: 173683 | C41: --- | D41: 185758
A42: 61 | B42: 185759 | C42: --- | D42: 197833
A43: 60 | B43: 197834 | C43: --- | D43: 209908
A44: 59 | B44: 209909 | C44: --- | D44: 223103
A45: 58 | B45: 223104 | C45: --- | D45: 238243
A46: 57 | B46: 238244 | C46: --- | D46: 254187
A47: 56 | B47: 254188 | C47: --- | D47: 270129
A48: 55 | B48: 270130 | C48: --- | D48: 286598
A49: 54 | B49: 286599 | C49: --- | D49: 304554
A50: 53 | B50: 304555 | C50: --- | D50: 323854
A51: 52 | B51: 323855 | C51: --- | D51: 344784
A52: 51 | B52: 344785 | C52: --- | D52: 367044
A53: 50 | B53: 367045 | C53: --- | D53: 390847
A54: 49 | B54: 390848 | C54: --- | D54: 416912
A55: 48 | B55: 416913 | C55: --- | D55: 443635
A56: 47 | B56: 443636 | C56: --- | D56: 473317
A57: 46 | B57: 473318 | C57: --- | D57: 506654
A58: 45 | B58: 506655 | C58: --- | D58: 541905
A59: 44 | B59: 541906 | C59: --- | D59: 580831
A60: 43 | B60: 580832 | C60: --- | D60: 624573
A61: 42 | B61: 624574 | C61: --- | D61: 672001
A62: 41 | B62: 672002 | C62: --- | D62: 724040
A63: 40 | B63: 724041 | C63: --- | D63: 782403
A64: 39 | B64: 782404 | C64: --- | D64: 845482
A65: 38 | B65: 845483 | C65: --- | D65: 913064
A66: 37 | B66: 913065 | C66: --- | D66: 988674
A67: 36 | B67: 988675 | C67: --- | D67: 1080003
A68: 35 | B68: 1080004 | C68: --- | D68: 1184801
A69: 34 | B69: 1184802 | C69: --- | D69: 1297831
A70: 33 | B70: 1297832 | C70: --- | D70: 1423520
A71: 32 | B71: 1423521 | C71: --- | D71: 1571405
A72: 31 | B72: 1571406 | C72: --- | D72: 1745068
A73: 30 | B73: 1745069 | C73: --- | D73: 1948248
A74: 29 | B74: 1948249 | C74: --- | D74: 2188356
A75: 28 | B75: 2188357 | C75: --- | D75: 2476006
A76: 27 | B76: 2476007 | C76: --- | D76: 2817486
A77: 26 | B77: 2817487 | C77: --- | D77: 3221564
A78: 25 | B78: 3221565 | C78: --- | D78: 3726802
A79: 24 | B79: 3726803 | C79: --- | D79: 4322628
A80: 23 | B80: 4322629 | C80: --- | D80: 5115646
A81: 22 | B81: 5115647 | C81: --- | D81: 6153748
A82: 21 | B82: 6153749 | C82: --- | D82: 7535808
A83: 20 | B83: 7535809 | C83: --- | D83: 9269219
A84: 19 | B84: 9269220 | C84: --- | D84: 10999754
A85: 18 | B85: 10999755 | C85: --- | D85: 12728587
A86: 17 | B86: 12728588 | C86: --- | D86: 999999999

Sheet 2008 Table MA
A1: Source: | B1: Provided by California Insurance Department Actuary through WCIRB.
B3: 20 | C3: 21 | D3: 22 | E3: 23 | F3: 24 | G3: 25 | H3: 26 | I3: 27 | J3: 28 | K3: 29 | L3: 30 | M3: 31 | N3: 32 | O3: 33 | P3: 34 | Q3: 35 | R3: 36 | S3: 37 | T3: 38 | U3: 39 | V3: 40 | W3: 41 | X3: 42 | Y3: 43 | Z3: 44 | AA3: 45 | AB3: 46 | AC3: 47 | AD3: 48 | AE3: 49 | AF3: 50 | AG3: 51 | AH3: 52 | AI3: 53 | AJ3: 54 | AK3: 55 | AL3: 56 | AM3: 57 | AN3: 58 | AO3: 59 | AP3: 60 | AQ3: 61 | AR3: 62 | AS3: 63 | AT3: 64 | AU3: 65 | AV3: 66 | AW3: 67 | AX3: 68 | AY3: 69 | AZ3: 70 | BA3: 71 | BB3: 72 | BC3: 73 | BD3: 74 | BE3: 75 | BF3: 76 | BG3: 77 | BH3: 78 | BI3: 79 | BJ3: 80 | BK3: 81 | BL3: 82 | BM3: 83 | BN3: 84 | BO3: 85 | BP3: 86 | BQ3: 87 | BR3: 88 | BS3: 89 | BT3: 90 | BU3: 91 | BV3: 92 | BW3: 93 | BX3: 94 | BY3: 95 | BZ3: 96 | CA3: 97 | CB3: 98 | CC3: 99
A4: Entry | B4: 7736954.735 | C4: 5555300.054 | D4: 3999484.328 | E4: 2968674.411 | F4: 2311642.849 | G4: 1902381.907 | H4: 1625177.208 | I4: 1417468.931 | J4: 1246693.245 | K4: 1102587.262 | L4: 978954.0882 | M4: 871711.8978 | N4: 777418.931 | O4: 692913.1979 | P4: 618996.9643 | Q4: 554665.6621 | R4: 498220.9812 | S4: 448505.3476 | T4: 405760.914 | U4: 367738.2187 | V4: 334238.9995 | W4: 305439.9607 | X4: 279544.3213 | Y4: 257780.9603 | Z4: 238712.1196 | AA4: 220041.4745 | AB4: 203035.6299 | AC4: 188979.7866 | AD4: 176238.3056 | AE4: 163495.6175 | AF4: 151003.7965 | AG4: 140587.0256 | AH4: 131884.6685 | AI4: 123181.6849 | AJ4: 114940.0239 | AK4: 107792.0276 | AL4: 101265.4083 | AM4: 94934.00647 | AN4: 89341.38455 | AO4: 84271.40004 | AP4: 79238.24978 | AQ4: 74732.02088 | AR4: 70689.80487 | AS4: 66647.39959 | AT4: 62968.47958 | AU4: 59673.30453 | AV4: 56422.02337 | AW4: 53459.85915 | AX4: 50766.42672 | AY4: 48257.22034 | AZ4: 46312.90437 | BA4: 44742.51636 | BB4: 43172.11137 | BC4: 41601.68747 | BD4: 40031.24243 | BE4: 38460.77367 | BF4: 36890.27815 | BG4: 35319.75232 | BH4: 33749.19192 | BI4: 32178.59192 | BJ4: 30607.9462 | BK4: 29037.24734 | BL4: 27466.48624 | BM4: 25895.65157 | BN4: 24324.72907 | BO4: 22753.70055 | BP4: 21182.54243 | BQ4: 19611.22354 | BR4: 18039.70189 | BS4: 16467.91943 | BT4: 14895.79359 | BU4: 13323.20282 | BV4: 11749.96044 | BW4: 10175.76424 | BX4: 8600.090439 | BY4: 7021.944439 | BZ4: 5439.174774 | CA4: 3846.077367 | CB4: 2220.533803 | CC4: 39.6251752
A5: Ratio | B5: and Over | C5: 7736953.735 | D5: 5555299.054 | E5: 3999483.328 | F5: 2968673.411 | G5: 2311641.849 | H5: 1902380.907 | I5: 1625176.208 | J5: 1417467.931 | K5: 1246692.245 | L5: 1102586.262 | M5: 978953.0882 | N5: 871710.8978 | O5: 777417.931 | P5: 692912.1979 | Q5: 618995.9643 | R5: 554664.6621 | S5: 498219.9812 | T5: 448504.3476 | U5: 405759.914 | V5: 367737.2187 | W5: 334237.9995 | X5: 305438.9607 | Y5: 279543.3213 | Z5: 257779.9603 | AA5: 238711.1196 | AB5: 220040.4745 | AC5: 203034.6299 | AD5: 188978.7866 | AE5: 176237.3056 | AF5: 163494.6175 | AG5: 151002.7965 | AH5: 140586.0256 | AI5: 131883.6685 | AJ5: 123180.6849 | AK5: 114939.0239 | AL5: 107791.0276 | AM5: 101264.4083 | AN5: 94933.00647 | AO5: 89340.38455 | AP5: 84270.40004 | AQ5: 79237.24978 | AR5: 74731.02088 | AS5: 70688.80487 | AT5: 66646.39959 | AU5: 62967.47958 | AV5: 59672.30453 | AW5: 56421.02337 | AX5: 53458.85915 | AY5: 50765.42672 | AZ5: 48256.22034 | BA5: 46311.90437 | BB5: 44741.51636 | BC5: 43171.11137 | BD5: 41600.68747 | BE5: 40030.24243 | BF5: 38459.77367 | BG5: 36889.27815 | BH5: 35318.75232 | BI5: 33748.19192 | BJ5: 32177.59192 | BK5: 30606.9462 | BL5: 29036.24734 | BM5: 27465.48624 | BN5: 25894.65157 | BO5: 24323.72907 | BP5: 22752.70055 | BQ5: 21181.54243 | BR5: 19610.22354 | BS5: 18038.70189 | BT5: 16466.91943 | BU5: 14894.79359 | BV5: 13322.20282 | BW5: 11748.96044 | BX5: 10174.76424 | BY5: 8599.090439 | BZ5: 7020.944439 | CA5: 5438.174774 | CB5: 3845.077367 | CC5: 2219.533803
A6: 0 | B6: 1 | C6: 1 | D6: 1 | E6: 1 | F6: 1 | G6: 1 | H6: 1 | I6: 1 | J6: 1 | K6: 1 | L6: 1 | M6: 1 | N6: 1 | O6: 1 | P6: 1 | Q6: 1 | R6: 1 | S6: 1 | T6: 1 | U6: 1 | V6: 1 | W6: 1 | X6: 1 | Y6: 1 | Z6: 1 | AA6: 1 | AB6: 1 | AC6: 1 | AD6: 1 | AE6: 1 | AF6: 1 | AG6: 1 | AH6: 1 | AI6: 1 | AJ6: 1 | AK6: 1 | AL6: 1 | AM6: 1 | AN6: 1 | AO6: 1 | AP6: 1 | AQ6: 1 | AR6: 1 | AS6: 1 | AT6: 1 | AU6: 1 | AV6: 1 | AW6: 1 | AX6: 1 | AY6: 1 | AZ6: 1 | BA6: 1 | BB6: 1 | BC6: 1 | BD6: 1 | BE6: 1 | BF6: 1 | BG6: 1 | BH6: 1 | BI6: 1 | BJ6: 1 | BK6: 1 | BL6: 1 | BM6: 1 | BN6: 1 | BO6: 1 | BP6: 1 | BQ6: 1 | BR6: 1 | BS6: 1 | BT6: 1 | BU6: 1 | BV6: 1 | BW6: 1 | BX6: 1 | BY6: 1 | BZ6: 1 | CA6: 1 | CB6: 1 | CC6: 1
A7: 0.01 | B7: 0.99 | C7: 0.99 | D7: 0.99 | E7: 0.99 | F7: 0.99 | G7: 0.99 | H7: 0.99 | I7: 0.99 | J7: 0.99 | K7: 0.99 | L7: 0.99 | M7: 0.990062 | N7: 0.9901 | O7: 0.990124183 | P7: 0.9901895425 | Q7: 0.9902651163 | R7: 0.9903 | S7: 0.9903279221 | T7: 0.9903928571 | U7: 0.9904481081 | V7: 0.9905024242 | W7: 0.9905630303 | X7: 0.9906 | Y7: 0.9906 | Z7: 0.9906513595 | AA7: 0.9907117825 | AB7: 0.9907722054 | AC7: 0.9908122172 | AD7: 0.9908348416 | AE7: 0.9908574661 | AF7: 0.9908800905 | AG7: 0.9909032345 | AH7: 0.9909301887 | AI7: 0.9909571429 | AJ7: 0.990984097 | AK7: 0.9910130159 | AL7: 0.9910447619 | AM7: 0.9910765079 | AN7: 0.9911081505 | AO7: 0.9911394984 | AP7: 0.9911708464 | AQ7: 0.9912022082 | AR7: 0.9912337539 | AS7: 0.9912652997 | AT7: 0.9912968454 | AU7: 0.99133125 | AV7: 0.9913659722 | AW7: 0.9914 | AX7: 0.9914 | AY7: 0.9914 | AZ7: 0.9914907652 | BA7: 0.9917744063 | BB7: 0.9920580475 | BC7: 0.9923416887 | BD7: 0.9926253298 | BE7: 0.992908971 | BF7: 0.9931926121 | BG7: 0.9934762533 | BH7: 0.9937598945 | BI7: 0.9940435356 | BJ7: 0.9943271768 | BK7: 0.9946108179 | BL7: 0.9948944591 | BM7: 0.9951781003 | BN7: 0.9954617414 | BO7: 0.9957453826 | BP7: 0.9960290237 | BQ7: 0.9963126649 | BR7: 0.9965963061 | BS7: 0.9968799472 | BT7: 0.9971635884 | BU7: 0.9974472296 | BV7: 0.9977308707 | BW7: 0.9980145119 | BX7: 0.998298153 | BY7: 0.9985817942 | BZ7: 0.9988654354 | CA7: 0.9991490765 | CB7: 0.9994327177 | CC7: 0.9997163588
A8: 0.02 | B8: 0.98 | C8: 0.98 | D8: 0.98 | E8: 0.98 | F8: 0.98 | G8: 0.98 | H8: 0.98 | I8: 0.98 | J8: 0.9800344828 | K8: 0.9801724138 | L8: 0.9802677966 | M8: 0.980362 | N8: 0.9804992 | O8: 0.980624183 | P8: 0.9806895425 | Q8: 0.9808302326 | R8: 0.9809491071 | S8: 0.9810279221 | T8: 0.9810928571 | U8: 0.9811962162 | V8: 0.9813024242 | W8: 0.9813630303 | X8: 0.9814506494 | Y8: 0.9815805195 | Z8: 0.9816513595 | AA8: 0.9817117825 | AB8: 0.9817722054 | AC8: 0.9818366516 | AD8: 0.9819045249 | AE8: 0.9819723982 | AF8: 0.9820402715 | AG8: 0.9821097035 | AH8: 0.982190566 | AI8: 0.9822714286 | AJ8: 0.9823522911 | AK8: 0.9824260317 | AL8: 0.9824895238 | AM8: 0.9825530159 | AN8: 0.9826081505 | AO8: 0.9826394984 | AP8: 0.9826708464 | AQ8: 0.9827044164 | AR8: 0.9827675079 | AS8: 0.9828305994 | AT8: 0.9828936909 | AU8: 0.9829625 | AV8: 0.9830319444 | AW8: 0.9831007407 | AX8: 0.9831377778 | AY8: 0.9831748148 | AZ8: 0.9833773087 | BA8: 0.9839313984 | BB8: 0.9844854881 | BC8: 0.9850395778 | BD8: 0.9855936675 | BE8: 0.9861477573 | BF8: 0.986701847 | BG8: 0.9872559367 | BH8: 0.9878100264 | BI8: 0.9883641161 | BJ8: 0.9889182058 | BK8: 0.9894722955 | BL8: 0.9900263852 | BM8: 0.9905804749 | BN8: 0.9911345646 | BO8: 0.9916886544 | BP8: 0.9922427441 | BQ8: 0.9927968338 | BR8: 0.9933509235 | BS8: 0.9939050132 | BT8: 0.9944591029 | BU8: 0.9950131926 | BV8: 0.9955672823 | BW8: 0.996121372 | BX8: 0.9966754617 | BY8: 0.9972295515 | BZ8: 0.9977836412 | CA8: 0.9983377309 | CB8: 0.9988918206 | CC8: 0.9994459103
A9: 0.03 | B9: 0.97 | C9: 0.97 | D9: 0.97 | E9: 0.97 | F9: 0.97 | G9: 0.97 | H9: 0.97 | I9: 0.9700469388 | J9: 0.9702517241 | K9: 0.9704586207 | L9: 0.9706355932 | M9: 0.970762 | N9: 0.9708992 | O9: 0.971072549 | P9: 0.9712686275 | Q9: 0.9714302326 | R9: 0.9715982143 | S9: 0.9717558442 | T9: 0.9718857143 | U9: 0.9720443243 | V9: 0.9722048485 | W9: 0.9723260606 | X9: 0.9724506494 | Y9: 0.9725805195 | Z9: 0.972702719 | AA9: 0.972823565 | AB9: 0.9729444109 | AC9: 0.973061086 | AD9: 0.9731742081 | AE9: 0.9732873303 | AF9: 0.9734004525 | AG9: 0.973512938 | AH9: 0.9736207547 | AI9: 0.9737285714 | AJ9: 0.9738363881 | AK9: 0.9739390476 | AL9: 0.9740342857 | AM9: 0.9741295238 | AN9: 0.9742244514 | AO9: 0.9743184953 | AP9: 0.9744125392 | AQ9: 0.9745066246 | AR9: 0.9746012618 | AS9: 0.9746958991 | AT9: 0.9747905363 | AU9: 0.9748625 | AV9: 0.9749319444 | AW9: 0.9750014815 | AX9: 0.9750755556 | AY9: 0.9751496296 | AZ9: 0.9754617414 | BA9: 0.9762796834 | BB9: 0.9770976253 | BC9: 0.9779155673 | BD9: 0.9787335092 | BE9: 0.9795514512 | BF9: 0.9803693931 | BG9: 0.9811873351 | BH9: 0.982005277 | BI9: 0.982823219 | BJ9: 0.9836411609 | BK9: 0.9844591029 | BL9: 0.9852770449 | BM9: 0.9860949868 | BN9: 0.9869129288 | BO9: 0.9877308707 | BP9: 0.9885488127 | BQ9: 0.9893667546 | BR9: 0.9901846966 | BS9: 0.9910026385 | BT9: 0.9918205805 | BU9: 0.9926385224 | BV9: 0.9934564644 | BW9: 0.9942744063 | BX9: 0.9950923483 | BY9: 0.9959102902 | BZ9: 0.9967282322 | CA9: 0.9975461741 | CB9: 0.9983641161 | CC9: 0.999182058
A10: 0.04 | B10: 0.96 | C10: 0.96 | D10: 0.96 | E10: 0.96 | F10: 0.96 | G10: 0.96 | H10: 0.96 | I10: 0.9601704082 | J10: 0.9604689655 | K10: 0.9607448276 | L10: 0.9610033898 | M10: 0.961224 | N10: 0.9614488 | O10: 0.961696732 | P10: 0.9619581699 | Q10: 0.9621953488 | R10: 0.9624473214 | S10: 0.9627116883 | T10: 0.9629714286 | U10: 0.9631924324 | V10: 0.9634072727 | W10: 0.9635890909 | X10: 0.963775974 | Y10: 0.9639707792 | Z10: 0.9641540785 | AA10: 0.9643353474 | AB10: 0.9645166163 | AC10: 0.9646977376 | AD10: 0.964878733 | AE10: 0.9650597285 | AF10: 0.965240724 | AG10: 0.9654161725 | AH10: 0.9655509434 | AI10: 0.9656857143 | AJ10: 0.9658204852 | AK10: 0.9659650794 | AL10: 0.9661238095 | AM10: 0.9662825397 | AN10: 0.9664326019 | AO10: 0.9665579937 | AP10: 0.9666833856 | AQ10: 0.966811041 | AR10: 0.9669687697 | AS10: 0.9671264984 | AT10: 0.9672842271 | AU10: 0.96739375 | AV10: 0.9674979167 | AW10: 0.967602963 | AX10: 0.9677511111 | AY10: 0.9678992593 | AZ10: 0.9683377309 | BA10: 0.9693931398 | BB10: 0.9704485488 | BC10: 0.9715039578 | BD10: 0.9725593668 | BE10: 0.9736147757 | BF10: 0.9746701847 | BG10: 0.9757255937 | BH10: 0.9767810026 | BI10: 0.9778364116 | BJ10: 0.9788918206 | BK10: 0.9799472296 | BL10: 0.9810026385 | BM10: 0.9820580475 | BN10: 0.9831134565 | BO10: 0.9841688654 | BP10: 0.9852242744 | BQ10: 0.9862796834 | BR10: 0.9873350923 | BS10: 0.9883905013 | BT10: 0.9894459103 | BU10: 0.9905013193 | BV10: 0.9915567282 | BW10: 0.9926121372 | BX10: 0.9936675462 | BY10: 0.9947229551 | BZ10: 0.9957783641 | CA10: 0.9968337731 | CB10: 0.9978891821 | CC10: 0.998944591
A11: 0.05 | B11: 0.95 | C11: 0.95 | D11: 0.95 | E11: 0.95 | F11: 0.95 | G11: 0.95 | H11: 0.95 | I11: 0.9502938776 | J11: 0.9506862069 | K11: 0.9510310345 | L11: 0.9513711864 | M11: 0.951748 | N11: 0.9520984 | O11: 0.952420915 | P11: 0.9527477124 | Q11: 0.9530604651 | R11: 0.9533964286 | S11: 0.9537396104 | T11: 0.9540642857 | U11: 0.9543886486 | V11: 0.954709697 | W11: 0.9549521212 | X11: 0.9552266234 | Y11: 0.9555512987 | Z11: 0.9558054381 | AA11: 0.9560471299 | AB11: 0.9562888218 | AC11: 0.9565343891 | AD11: 0.9567832579 | AE11: 0.9570321267 | AF11: 0.9572809955 | AG11: 0.957525876 | AH11: 0.9577415094 | AI11: 0.9579571429 | AJ11: 0.9581727763 | AK11: 0.9584301587 | AL11: 0.958747619 | AM11: 0.9590650794 | AN11: 0.9593489028 | AO11: 0.9595369906 | AP11: 0.9597250784 | AQ11: 0.9599154574 | AR11: 0.9601362776 | AS11: 0.9603570978 | AT11: 0.960577918 | AU11: 0.9607875 | AV11: 0.9609958333 | AW11: 0.961202963 | AX11: 0.9613511111 | AY11: 0.9614992593 | AZ11: 0.962005277 | BA11: 0.9632717678 | BB11: 0.9645382586 | BC11: 0.9658047493 | BD11: 0.9670712401 | BE11: 0.9683377309 | BF11: 0.9696042216 | BG11: 0.9708707124 | BH11: 0.9721372032 | BI11: 0.9734036939 | BJ11: 0.9746701847 | BK11: 0.9759366755 | BL11: 0.9772031662 | BM11: 0.978469657 | BN11: 0.9797361478 | BO11: 0.9810026385 | BP11: 0.9822691293 | BQ11: 0.9835356201 | BR11: 0.9848021108 | BS11: 0.9860686016 | BT11: 0.9873350923 | BU11: 0.9886015831 | BV11: 0.9898680739 | BW11: 0.9911345646 | BX11: 0.9924010554 | BY11: 0.9936675462 | BZ11: 0.9949340369 | CA11: 0.9962005277 | CB11: 0.9974670185 | CC11: 0.9987335092
A12: 0.06 | B12: 0.94 | C12: 0.94 | D12: 0.94 | E12: 0.94 | F12: 0.94 | G12: 0.94 | H12: 0.94 | I12: 0.9403173469 | J12: 0.9408206897 | K12: 0.9413034483 | L12: 0.9418067797 | M12: 0.942248 | N12: 0.9426976 | O12: 0.943145098 | P12: 0.9435372549 | Q12: 0.9439906977 | R12: 0.9444455357 | S12: 0.9448675325 | T12: 0.9452571429 | U12: 0.9456848649 | V12: 0.9461145455 | W12: 0.9464781818 | X12: 0.9468519481 | Y12: 0.9472415584 | Z12: 0.9476338369 | AA12: 0.9480265861 | AB12: 0.9484193353 | AC12: 0.9487832579 | AD12: 0.9491226244 | AE12: 0.949461991 | AF12: 0.9498013575 | AG12: 0.9501355795 | AH12: 0.9504320755 | AI12: 0.9507285714 | AJ12: 0.9510250674 | AK12: 0.9513171429 | AL12: 0.9516028571 | AM12: 0.9518885714 | AN12: 0.9521733542 | AO12: 0.9524554859 | AP12: 0.9527376176 | AQ12: 0.9530176656 | AR12: 0.9532700315 | AS12: 0.9535223975 | AT12: 0.9537747634 | AU12: 0.95401875 | AV12: 0.9542618056 | AW12: 0.9545044444 | AX12: 0.9547266667 | AY12: 0.9549488889 | AZ12: 0.9555738786 | BA12: 0.9570547493 | BB12: 0.9585356201 | BC12: 0.9600164908 | BD12: 0.9614973615 | BE12: 0.9629782322 | BF12: 0.9644591029 | BG12: 0.9659399736 | BH12: 0.9674208443 | BI12: 0.968901715 | BJ12: 0.9703825858 | BK12: 0.9718634565 | BL12: 0.9733443272 | BM12: 0.9748251979 | BN12: 0.9763060686 | BO12: 0.9777869393 | BP12: 0.97926781 | BQ12: 0.9807486807 | BR12: 0.9822295515 | BS12: 0.9837104222 | BT12: 0.9851912929 | BU12: 0.9866721636 | BV12: 0.9881530343 | BW12: 0.989633905 | BX12: 0.9911147757 | BY12: 0.9925956464 | BZ12: 0.9940765172 | CA12: 0.9955573879 | CB12: 0.9970382586 | CC12: 0.9985191293
A13: 0.07 | B13: 0.93 | C13: 0.93 | D13: 0.93 | E13: 0.93 | F13: 0.93 | G13: 0.93 | H13: 0.93 | I13: 0.9304408163 | J13: 0.9310551724 | K13: 0.9316758621 | L13: 0.9322745763 | M13: 0.93281 | N13: 0.9333472 | O13: 0.9339176471 | P13: 0.9345058824 | Q13: 0.9349906977 | R13: 0.93554375 | S13: 0.9361512987 | T13: 0.9367357143 | U13: 0.9372810811 | V13: 0.9378193939 | W13: 0.9383042424 | X13: 0.9387772727 | Y13: 0.9392318182 | Z13: 0.9396595166 | AA13: 0.9400824773 | AB13: 0.9405054381 | AC13: 0.9409199095 | AD13: 0.9413271493 | AE13: 0.9417343891 | AF13: 0.942141629 | AG13: 0.942545283 | AH13: 0.9429226415 | AI13: 0.9433 | AJ13: 0.9436773585 | AK13: 0.9440431746 | AL13: 0.944392381 | AM13: 0.9447415873 | AN13: 0.9450896552 | AO13: 0.9454344828 | AP13: 0.9457793103 | AQ13: 0.9461264984 | AR13: 0.9465050473 | AS13: 0.9468835962 | AT13: 0.9472621451 | AU13: 0.94758125 | AV13: 0.94789375 | AW13: 0.9482059259 | AX13: 0.9485022222 | AY13: 0.9487985185 | AZ13: 0.9495382586 | BA13: 0.9512203166 | BB13: 0.9529023747 | BC13: 0.9545844327 | BD13: 0.9562664908 | BE13: 0.9579485488 | BF13: 0.9596306069 | BG13: 0.9613126649 | BH13: 0.962994723 | BI13: 0.964676781 | BJ13: 0.9663588391 | BK13: 0.9680408971 | BL13: 0.9697229551 | BM13: 0.9714050132 | BN13: 0.9730870712 | BO13: 0.9747691293 | BP13: 0.9764511873 | BQ13: 0.9781332454 | BR13: 0.9798153034 | BS13: 0.9814973615 | BT13: 0.9831794195 | BU13: 0.9848614776 | BV13: 0.9865435356 | BW13: 0.9882255937 | BX13: 0.9899076517 | BY13: 0.9915897098 | BZ13: 0.9932717678 | CA13: 0.9949538259 | CB13: 0.9966358839 | CC13: 0.998317942
A14: 0.08 | B14: 0.92 | C14: 0.92 | D14: 0.92 | E14: 0.92 | F14: 0.92 | G14: 0.92 | H14: 0.92 | I14: 0.9206642857 | J14: 0.9213724138 | K14: 0.922062069 | L14: 0.9227423729 | M14: 0.923434 | N14: 0.9240968 | O14: 0.9247418301 | P14: 0.9253954248 | Q14: 0.9260860465 | R14: 0.92674375 | S14: 0.9273792208 | T14: 0.9280285714 | U14: 0.9286772973 | V14: 0.9293242424 | W14: 0.929930303 | X14: 0.9305279221 | Y14: 0.9311123377 | Z14: 0.9316365559 | AA14: 0.9321501511 | AB14: 0.9326637462 | AC14: 0.9331687783 | AD14: 0.9336665158 | AE14: 0.9341642534 | AF14: 0.934661991 | AG14: 0.935158221 | AH14: 0.9356433962 | AI14: 0.9361285714 | AJ14: 0.9366137466 | AK14: 0.9370822222 | AL14: 0.9375266667 | AM14: 0.9379711111 | AN14: 0.9384059561 | AO14: 0.9388134796 | AP14: 0.9392210031 | AQ14: 0.9396309148 | AR14: 0.9400725552 | AS14: 0.9405141956 | AT14: 0.940955836 | AU14: 0.94134375 | AV14: 0.9417256944 | AW14: 0.9421088889 | AX14: 0.9425533333 | AY14: 0.9429977778 | AZ14: 0.9438984169 | BA14: 0.9457684697 | BB14: 0.9476385224 | BC14: 0.9495085752 | BD14: 0.951378628 | BE14: 0.9532486807 | BF14: 0.9551187335 | BG14: 0.9569887863 | BH14: 0.9588588391 | BI14: 0.9607288918 | BJ14: 0.9625989446 | BK14: 0.9644689974 | BL14: 0.9663390501 | BM14: 0.9682091029 | BN14: 0.9700791557 | BO14: 0.9719492084 | BP14: 0.9738192612 | BQ14: 0.975689314 | BR14: 0.9775593668 | BS14: 0.9794294195 | BT14: 0.9812994723 | BU14: 0.9831695251 | BV14: 0.9850395778 | BW14: 0.9869096306 | BX14: 0.9887796834 | BY14: 0.9906497361 | BZ14: 0.9925197889 | CA14: 0.9943898417 | CB14: 0.9962598945 | CC14: 0.9981299472
A15: 0.09 | B15: 0.91 | C15: 0.91 | D15: 0.91 | E15: 0.91 | F15: 0.91 | G15: 0.91 | H15: 0.9100857143 | I15: 0.9109642857 | J15: 0.9116896552 | K15: 0.9124482759 | L15: 0.9132101695 | M15: 0.913996 | N15: 0.9147464 | O15: 0.9155143791 | P15: 0.9163640523 | Q15: 0.9171511628 | R15: 0.9179419643 | S15: 0.9187071429 | T15: 0.9194214286 | U15: 0.9201735135 | V15: 0.9209290909 | W15: 0.9216563636 | X15: 0.9223532468 | Y15: 0.9230025974 | Z15: 0.9236392749 | AA15: 0.924273716 | AB15: 0.9249081571 | AC15: 0.9255298643 | AD15: 0.926140724 | AE15: 0.9267515837 | AF15: 0.9273624434 | AG15: 0.92796469 | AH15: 0.9285037736 | AI15: 0.9290428571 | AJ15: 0.9295819407 | AK15: 0.9301342857 | AL15: 0.9307057143 | AM15: 0.9312771429 | AN15: 0.931838558 | AO15: 0.9323714734 | AP15: 0.9329043887 | AQ15: 0.9334353312 | AR15: 0.9339400631 | AS15: 0.934444795 | AT15: 0.9349495268 | AU15: 0.9354375 | AV15: 0.9359236111 | AW15: 0.9364103704 | AX15: 0.9369288889 | AY15: 0.9374474074 | AZ15: 0.9384564644 | BA15: 0.9405079156 | BB15: 0.9425593668 | BC15: 0.9446108179 | BD15: 0.9466622691 | BE15: 0.9487137203 | BF15: 0.9507651715 | BG15: 0.9528166227 | BH15: 0.9548680739 | BI15: 0.9569195251 | BJ15: 0.9589709763 | BK15: 0.9610224274 | BL15: 0.9630738786 | BM15: 0.9651253298 | BN15: 0.967176781 | BO15: 0.9692282322 | BP15: 0.9712796834 | BQ15: 0.9733311346 | BR15: 0.9753825858 | BS15: 0.9774340369 | BT15: 0.9794854881 | BU15: 0.9815369393 | BV15: 0.9835883905 | BW15: 0.9856398417 | BX15: 0.9876912929 | BY15: 0.9897427441 | BZ15: 0.9917941953 | CA15: 0.9938456464 | CB15: 0.9958970976 | CC15: 0.9979485488
A16: 0.1 | B16: 0.9 | C16: 0.9 | D16: 0.9 | E16: 0.9 | F16: 0.9 | G16: 0.9 | H16: 0.9003428571 | I16: 0.9012877551 | J16: 0.9021068966 | K16: 0.9029344828 | L16: 0.9037779661 | M16: 0.904596 | N16: 0.9054952 | O16: 0.9064385621 | P16: 0.9073535948 | Q16: 0.9082162791 | R16: 0.9090910714 | S16: 0.9099909091 | T16: 0.9109 | U16: 0.9117697297 | V16: 0.9126315152 | W16: 0.9134193939 | X16: 0.9142038961 | Y16: 0.9149831169 | Z16: 0.915741994 | AA16: 0.916497281 | AB16: 0.917252568 | AC16: 0.917978733 | AD16: 0.9186800905 | AE16: 0.919381448 | AF16: 0.9200828054 | AG16: 0.9207808625 | AH16: 0.921454717 | AI16: 0.9221285714 | AJ16: 0.9228024259 | AK16: 0.9234603175 | AL16: 0.9240952381 | AM16: 0.9247301587 | AN16: 0.9253711599 | AO16: 0.9260294671 | AP16: 0.9266877743 | AQ16: 0.9273419558 | AR16: 0.9279413249 | AS16: 0.928540694 | AT16: 0.9291400631 | AU16: 0.9297 | AV16: 0.9302555556 | AW16: 0.9308103704 | AX16: 0.9313288889 | AY16: 0.9318474074 | AZ16: 0.9329155673 | BA16: 0.935151715 | BB16: 0.9373878628 | BC16: 0.9396240106 | BD16: 0.9418601583 | BE16: 0.9440963061 | BF16: 0.9463324538 | BG16: 0.9485686016 | BH16: 0.9508047493 | BI16: 0.9530408971 | BJ16: 0.9552770449 | BK16: 0.9575131926 | BL16: 0.9597493404 | BM16: 0.9619854881 | BN16: 0.9642216359 | BO16: 0.9664577836 | BP16: 0.9686939314 | BQ16: 0.9709300792 | BR16: 0.9731662269 | BS16: 0.9754023747 | BT16: 0.9776385224 | BU16: 0.9798746702 | BV16: 0.9821108179 | BW16: 0.9843469657 | BX16: 0.9865831135 | BY16: 0.9888192612 | BZ16: 0.991055409 | CA16: 0.9932915567 | CB16: 0.9955277045 | CC16: 0.9977638522
A17: 0.11 | B17: 0.89 | C17: 0.89 | D17: 0.89 | E17: 0.89 | F17: 0.89 | G17: 0.89 | H17: 0.8905428571 | I17: 0.8916112245 | J17: 0.8925413793 | K17: 0.8935068966 | L17: 0.8943779661 | M17: 0.895258 | N17: 0.8962448 | O17: 0.8972869281 | P17: 0.8983326797 | Q17: 0.8993465116 | R17: 0.9003892857 | S17: 0.9013909091 | T17: 0.9023 | U17: 0.9032659459 | V17: 0.9042387879 | W17: 0.9052084848 | X17: 0.9061545455 | Y17: 0.9070636364 | Z17: 0.9079190332 | AA17: 0.9087649547 | AB17: 0.9096108761 | AC17: 0.9104520362 | AD17: 0.9112891403 | AE17: 0.9121262443 | AF17: 0.9129633484 | AG17: 0.9137938005 | AH17: 0.9145754717 | AI17: 0.9153571429 | AJ17: 0.916138814 | AK17: 0.9168993651 | AL17: 0.9176295238 | AM17: 0.9183596825 | AN17: 0.9190956113 | AO17: 0.9198479624 | AP17: 0.9206003135 | AQ17: 0.9213507886 | AR17: 0.9220763407 | AS17: 0.9228018927 | AT17: 0.9235274448 | AU17: 0.924225 | AV17: 0.9249194444 | AW17: 0.9256133333 | AX17: 0.92628 | AY17: 0.9269466667 | AZ17: 0.9281662269 | BA17: 0.930560686 | BB17: 0.9329551451 | BC17: 0.9353496042 | BD17: 0.9377440633 | BE17: 0.9401385224 | BF17: 0.9425329815 | BG17: 0.9449274406 | BH17: 0.9473218997 | BI17: 0.9497163588 | BJ17: 0.9521108179 | BK17: 0.954505277 | BL17: 0.9568997361 | BM17: 0.9592941953 | BN17: 0.9616886544 | BO17: 0.9640831135 | BP17: 0.9664775726 | BQ17: 0.9688720317 | BR17: 0.9712664908 | BS17: 0.9736609499 | BT17: 0.976055409 | BU17: 0.9784498681 | BV17: 0.9808443272 | BW17: 0.9832387863 | BX17: 0.9856332454 | BY17: 0.9880277045 | BZ17: 0.9904221636 | CA17: 0.9928166227 | CB17: 0.9952110818 | CC17: 0.9976055409
A18: 0.12 | B18: 0.88 | C18: 0.88 | D18: 0.88 | E18: 0.88 | F18: 0.88 | G18: 0.88 | H18: 0.8808428571 | I18: 0.8819346939 | J18: 0.8829586207 | K18: 0.8839931034 | L18: 0.8850135593 | M18: 0.88602 | N18: 0.8870944 | O18: 0.8882352941 | P18: 0.8894117647 | Q18: 0.8903813953 | R18: 0.8914383929 | S18: 0.8926025974 | T18: 0.8937714286 | U18: 0.8949102703 | V18: 0.8960412121 | W18: 0.8970715152 | X18: 0.8981051948 | Y18: 0.8991441558 | Z18: 0.900147432 | AA18: 0.9011444109 | AB18: 0.9021413897 | AC18: 0.903100905 | AD18: 0.9040285068 | AE18: 0.9049561086 | AF18: 0.9058837104 | AG18: 0.906809973 | AH18: 0.9077264151 | AI18: 0.9086428571 | AJ18: 0.9095592992 | AK18: 0.9104514286 | AL18: 0.9113085714 | AM18: 0.9121657143 | AN18: 0.9130282132 | AO18: 0.9139059561 | AP18: 0.9147836991 | AQ18: 0.915655205 | AR18: 0.9164438486 | AS18: 0.9172324921 | AT18: 0.9180211356 | AU18: 0.9187875 | AV18: 0.9195513889 | AW18: 0.9203162963 | AX18: 0.9211311111 | AY18: 0.9219459259 | AZ18: 0.923317942 | BA18: 0.9258740106 | BB18: 0.9284300792 | BC18: 0.9309861478 | BD18: 0.9335422164 | BE18: 0.936098285 | BF18: 0.9386543536 | BG18: 0.9412104222 | BH18: 0.9437664908 | BI18: 0.9463225594 | BJ18: 0.948878628 | BK18: 0.9514346966 | BL18: 0.9539907652 | BM18: 0.9565468338 | BN18: 0.9591029024 | BO18: 0.961658971 | BP18: 0.9642150396 | BQ18: 0.9667711082 | BR18: 0.9693271768 | BS18: 0.9718832454 | BT18: 0.974439314 | BU18: 0.9769953826 | BV18: 0.9795514512 | BW18: 0.9821075198 | BX18: 0.9846635884 | BY18: 0.987219657 | BZ18: 0.9897757256 | CA18: 0.9923317942 | CB18: 0.9948878628 | CC18: 0.9974439314
A19: 0.13 | B19: 0.87 | C19: 0.87 | D19: 0.87 | E19: 0.87 | F19: 0.87 | G19: 0.87 | H19: 0.8711 | I19: 0.8722581633 | J19: 0.8733758621 | K19: 0.8744793103 | L19: 0.8755813559 | M19: 0.876744 | N19: 0.877944 | O19: 0.8791111111 | P19: 0.8802222222 | Q19: 0.8814418605 | R19: 0.8826875 | S19: 0.8839584416 | T19: 0.8852571429 | U19: 0.8864583784 | V19: 0.8876484848 | W19: 0.8888606061 | X19: 0.8900558442 | Y19: 0.8912246753 | Z19: 0.8923501511 | AA19: 0.8934679758 | AB19: 0.8945858006 | AC19: 0.8956864253 | AD19: 0.8967723982 | AE19: 0.897858371 | AF19: 0.8989443439 | AG19: 0.9000229111 | AH19: 0.9010471698 | AI19: 0.9020714286 | AJ19: 0.9030956873 | AK19: 0.9041034921 | AL19: 0.905087619 | AM19: 0.906071746 | AN19: 0.9070363636 | AO19: 0.9079454545 | AP19: 0.9088545455 | AQ19: 0.9097706625 | AR19: 0.9107801262 | AS19: 0.9117895899 | AT19: 0.9127990536 | AU19: 0.9137125 | AV19: 0.9146152778 | AW19: 0.915517037 | AX19: 0.9163688889 | AY19: 0.9172207407 | AZ19: 0.9186675462 | BA19: 0.921378628 | BB19: 0.9240897098 | BC19: 0.9268007916 | BD19: 0.9295118734 | BE19: 0.9322229551 | BF19: 0.9349340369 | BG19: 0.9376451187 | BH19: 0.9403562005 | BI19: 0.9430672823 | BJ19: 0.9457783641 | BK19: 0.9484894459 | BL19: 0.9512005277 | BM19: 0.9539116095 | BN19: 0.9566226913 | BO19: 0.9593337731 | BP19: 0.9620448549 | BQ19: 0.9647559367 | BR19: 0.9674670185 | BS19: 0.9701781003 | BT19: 0.9728891821 | BU19: 0.9756002639 | BV19: 0.9783113456 | BW19: 0.9810224274 | BX19: 0.9837335092 | BY19: 0.986444591 | BZ19: 0.9891556728 | CA19: 0.9918667546 | CB19: 0.9945778364 | CC19: 0.9972889182
A20: 0.14 | B20: 0.86 | C20: 0.86 | D20: 0.86 | E20: 0.86 | F20: 0.86 | G20: 0.8601530612 | H20: 0.8615 | I20: 0.8626581633 | J20: 0.8637931034 | K20: 0.8649655172 | L20: 0.8662169492 | M20: 0.867444 | N20: 0.8686936 | O20: 0.8699594771 | P20: 0.8712013072 | Q20: 0.872572093 | R20: 0.8739857143 | S20: 0.8753584416 | T20: 0.8766571429 | U20: 0.8780508108 | V20: 0.8794533333 | W20: 0.8807866667 | X20: 0.8821064935 | Y20: 0.8834051948 | Z20: 0.8846528701 | AA20: 0.8858915408 | AB20: 0.8871302115 | AC20: 0.8883597285 | AD20: 0.889581448 | AE20: 0.8908031674 | AF20: 0.8920248869 | AG20: 0.8932358491 | AH20: 0.8943679245 | AI20: 0.8955 | AJ20: 0.8966320755 | AK20: 0.8977815873 | AL20: 0.8989561905 | AM20: 0.9001307937 | AN20: 0.901277116 | AO20: 0.9023429467 | AP20: 0.9034087774 | AQ20: 0.9044706625 | AR20: 0.9054801262 | AS20: 0.9064895899 | AT20: 0.9074990536 | AU20: 0.90863125 | AV20: 0.9097770833 | AW20: 0.9109192593 | AX20: 0.9118822222 | AY20: 0.9128451852 | AZ20: 0.9144129288 | BA20: 0.9172658311 | BB20: 0.9201187335 | BC20: 0.9229716359 | BD20: 0.9258245383 | BE20: 0.9286774406 | BF20: 0.931530343 | BG20: 0.9343832454 | BH20: 0.9372361478 | BI20: 0.9400890501 | BJ20: 0.9429419525 | BK20: 0.9457948549 | BL20: 0.9486477573 | BM20: 0.9515006596 | BN20: 0.954353562 | BO20: 0.9572064644 | BP20: 0.9600593668 | BQ20: 0.9629122691 | BR20: 0.9657651715 | BS20: 0.9686180739 | BT20: 0.9714709763 | BU20: 0.9743238786 | BV20: 0.977176781 | BW20: 0.9800296834 | BX20: 0.9828825858 | BY20: 0.9857354881 | BZ20: 0.9885883905 | CA20: 0.9914412929 | CB20: 0.9942941953 | CC20: 0.9971470976
A21: 0.15 | B21: 0.85 | C21: 0.85 | D21: 0.85 | E21: 0.85 | F21: 0.85 | G21: 0.8504530612 | H21: 0.8518571429 | I21: 0.8530816327 | J21: 0.8543103448 | K21: 0.8555517241 | L21: 0.8568169492 | M21: 0.858106 | N21: 0.8594928 | O21: 0.8609078431 | P21: 0.8622803922 | Q21: 0.8638023256 | R21: 0.8651875 | S21: 0.8665980519 | T21: 0.8682214286 | U21: 0.869747027 | V21: 0.8712581818 | W21: 0.8727127273 | X21: 0.8741571429 | Y21: 0.8755857143 | Z21: 0.8769812689 | AA21: 0.878370997 | AB21: 0.8797607251 | AC21: 0.8811330317 | AD21: 0.8824904977 | AE21: 0.8838479638 | AF21: 0.8852054299 | AG21: 0.8865552561 | AH21: 0.8878490566 | AI21: 0.8891428571 | AJ21: 0.8904366577 | AK21: 0.891707619 | AL21: 0.8929457143 | AM21: 0.8941838095 | AN21: 0.8954260188 | AO21: 0.8966799373 | AP21: 0.8979338558 | AQ21: 0.8991817035 | AR21: 0.9003488959 | AS21: 0.9015160883 | AT21: 0.9026832808 | AU21: 0.90389375 | AV21: 0.9051090278 | AW21: 0.9063214815 | AX21: 0.9073955556 | AY21: 0.9084696296 | AZ21: 0.9101583113 | BA21: 0.9131530343 | BB21: 0.9161477573 | BC21: 0.9191424802 | BD21: 0.9221372032 | BE21: 0.9251319261 | BF21: 0.9281266491 | BG21: 0.931121372 | BH21: 0.934116095 | BI21: 0.9371108179 | BJ21: 0.9401055409 | BK21: 0.9431002639 | BL21: 0.9460949868 | BM21: 0.9490897098 | BN21: 0.9520844327 | BO21: 0.9550791557 | BP21: 0.9580738786 | BQ21: 0.9610686016 | BR21: 0.9640633245 | BS21: 0.9670580475 | BT21: 0.9700527704 | BU21: 0.9730474934 | BV21: 0.9760422164 | BW21: 0.9790369393 | BX21: 0.9820316623 | BY21: 0.9850263852 | BZ21: 0.9880211082 | CA21: 0.9910158311 | CB21: 0.9940105541 | CC21: 0.997005277
A22: 0.16 | B22: 0.84 | C22: 0.84 | D22: 0.84 | E22: 0.84 | F22: 0.84 | G22: 0.8408530612 | H22: 0.8422571429 | I22: 0.8435816327 | J22: 0.8448275862 | K22: 0.846137931 | L22: 0.8474169492 | M22: 0.848768 | N22: 0.8502424 | O22: 0.8517803922 | P22: 0.8533490196 | Q22: 0.8549023256 | R22: 0.8564348214 | S22: 0.8580538961 | T22: 0.8598071429 | U22: 0.8614432432 | V22: 0.8630630303 | W22: 0.8646387879 | X22: 0.8662077922 | Y22: 0.8677662338 | Z22: 0.8693096677 | AA22: 0.8708504532 | AB22: 0.8723912387 | AC22: 0.873918552 | AD22: 0.8754343891 | AE22: 0.8769502262 | AF22: 0.8784660633 | AG22: 0.8799681941 | AH22: 0.8813698113 | AI22: 0.8827714286 | AJ22: 0.8841730458 | AK22: 0.8855857143 | AL22: 0.8870142857 | AM22: 0.8884428571 | AN22: 0.8898341693 | AO22: 0.8911194357 | AP22: 0.8924047022 | AQ22: 0.8936971609 | AR22: 0.8950851735 | AS22: 0.8964731861 | AT22: 0.8978611987 | AU22: 0.89909375 | AV22: 0.9003090278 | AW22: 0.9015274074 | AX22: 0.9028977778 | AY22: 0.9042681481 | AZ22: 0.9062005277 | BA22: 0.9093271768 | BB22: 0.9124538259 | BC22: 0.9155804749 | BD22: 0.918707124 | BE22: 0.9218337731 | BF22: 0.9249604222 | BG22: 0.9280870712 | BH22: 0.9312137203 | BI22: 0.9343403694 | BJ22: 0.9374670185 | BK22: 0.9405936675 | BL22: 0.9437203166 | BM22: 0.9468469657 | BN22: 0.9499736148 | BO22: 0.9531002639 | BP22: 0.9562269129 | BQ22: 0.959353562 | BR22: 0.9624802111 | BS22: 0.9656068602 | BT22: 0.9687335092 | BU22: 0.9718601583 | BV22: 0.9749868074 | BW22: 0.9781134565 | BX22: 0.9812401055 | BY22: 0.9843667546 | BZ22: 0.9874934037 | CA22: 0.9906200528 | CB22: 0.9937467018 | CC22: 0.9968733509
A23: 0.17 | B23: 0.83 | C23: 0.83 | D23: 0.83 | E23: 0.83 | F23: 0.83 | G23: 0.8313530612 | H23: 0.8327571429 | I23: 0.8340285714 | J23: 0.8354275862 | K23: 0.836737931 | L23: 0.8380847458 | M23: 0.839468 | N23: 0.840992 | O23: 0.8426045752 | P23: 0.8442385621 | Q23: 0.8459976744 | R23: 0.8477821429 | S23: 0.849525974 | T23: 0.8512142857 | U23: 0.8529875676 | V23: 0.854770303 | W23: 0.8565278788 | X23: 0.8582837662 | Y23: 0.860037013 | Z23: 0.8617380665 | AA23: 0.8634299094 | AB23: 0.8651217523 | AC23: 0.8667918552 | AD23: 0.8684434389 | AE23: 0.8700950226 | AF23: 0.8717466063 | AG23: 0.8733908356 | AH23: 0.8749811321 | AI23: 0.8765714286 | AJ23: 0.8781617251 | AK23: 0.8797377778 | AL23: 0.8812933333 | AM23: 0.8828488889 | AN23: 0.8843749216 | AO23: 0.8858169279 | AP23: 0.8872589342 | AQ23: 0.8887082019 | AR23: 0.8902539432 | AS23: 0.8917996845 | AT23: 0.8933454259 | AU23: 0.89440625 | AV23: 0.8954131944 | AW23: 0.8964266667 | AX23: 0.89776 | AY23: 0.8990933333 | AZ23: 0.901055409 | BA23: 0.904353562 | BB23: 0.907651715 | BC23: 0.9109498681 | BD23: 0.9142480211 | BE23: 0.9175461741 | BF23: 0.9208443272 | BG23: 0.9241424802 | BH23: 0.9274406332 | BI23: 0.9307387863 | BJ23: 0.9340369393 | BK23: 0.9373350923 | BL23: 0.9406332454 | BM23: 0.9439313984 | BN23: 0.9472295515 | BO23: 0.9505277045 | BP23: 0.9538258575 | BQ23: 0.9571240106 | BR23: 0.9604221636 | BS23: 0.9637203166 | BT23: 0.9670184697 | BU23: 0.9703166227 | BV23: 0.9736147757 | BW23: 0.9769129288 | BX23: 0.9802110818 | BY23: 0.9835092348 | BZ23: 0.9868073879 | CA23: 0.9901055409 | CB23: 0.9934036939 | CC23: 0.996701847
A24: 0.18 | B24: 0.82 | C24: 0.82 | D24: 0.82 | E24: 0.82 | F24: 0.8202322581 | G24: 0.8217714286 | H24: 0.8232571429 | I24: 0.8245285714 | J24: 0.8259448276 | K24: 0.8273241379 | L24: 0.828820339 | M24: 0.83033 | N24: 0.8318424 | O24: 0.8334287582 | P24: 0.8351281046 | Q24: 0.8371581395 | R24: 0.8390330357 | S24: 0.8408376623 | T24: 0.8427857143 | U24: 0.8447318919 | V24: 0.8466775758 | W24: 0.8486169697 | X24: 0.8505090909 | Y24: 0.8523272727 | Z24: 0.8541664653 | AA24: 0.8560093656 | AB24: 0.8578522659 | AC24: 0.8596773756 | AD24: 0.8614873303 | AE24: 0.8632972851 | AF24: 0.8651072398 | AG24: 0.8669070081 | AH24: 0.8686320755 | AI24: 0.8703571429 | AJ24: 0.8720822102 | AK24: 0.8737898413 | AL24: 0.875472381 | AM24: 0.8771549206 | AN24: 0.8788319749 | AO24: 0.8804934169 | AP24: 0.8821548589 | AQ24: 0.8837927445 | AR24: 0.8851176656 | AS24: 0.8864425868 | AT24: 0.8877675079 | AU24: 0.88930625 | AV24: 0.89086875 | AW24: 0.8924296296 | AX24: 0.8939111111 | AY24: 0.8953925926 | AZ24: 0.8974934037 | BA24: 0.9009102902 | BB24: 0.9043271768 | BC24: 0.9077440633 | BD24: 0.9111609499 | BE24: 0.9145778364 | BF24: 0.917994723 | BG24: 0.9214116095 | BH24: 0.924828496 | BI24: 0.9282453826 | BJ24: 0.9316622691 | BK24: 0.9350791557 | BL24: 0.9384960422 | BM24: 0.9419129288 | BN24: 0.9453298153 | BO24: 0.9487467018 | BP24: 0.9521635884 | BQ24: 0.9555804749 | BR24: 0.9589973615 | BS24: 0.962414248 | BT24: 0.9658311346 | BU24: 0.9692480211 | BV24: 0.9726649077 | BW24: 0.9760817942 | BX24: 0.9794986807 | BY24: 0.9829155673 | BZ24: 0.9863324538 | CA24: 0.9897493404 | CB24: 0.9931662269 | CC24: 0.9965831135
A25: 0.19 | B25: 0.81 | C25: 0.81 | D25: 0.81 | E25: 0.81 | F25: 0.8108258065 | G25: 0.8123346939 | H25: 0.8137571429 | I25: 0.815105102 | J25: 0.816462069 | K25: 0.8179103448 | L25: 0.8194881356 | M25: 0.82103 | N25: 0.8226912 | O25: 0.8245013072 | P25: 0.826396732 | Q25: 0.828327907 | R25: 0.8301821429 | S25: 0.8320935065 | T25: 0.8341714286 | U25: 0.8363724324 | V25: 0.83858 | W25: 0.84058 | X25: 0.8425850649 | Y25: 0.8445980519 | Z25: 0.846594864 | AA25: 0.8485888218 | AB25: 0.8505827795 | AC25: 0.8525628959 | AD25: 0.8545312217 | AE25: 0.8564995475 | AF25: 0.8584678733 | AG25: 0.8604264151 | AH25: 0.8623132075 | AI25: 0.8642 | AJ25: 0.8660867925 | AK25: 0.8679288889 | AL25: 0.8697066667 | AM25: 0.8714844444 | AN25: 0.8732645768 | AO25: 0.8750514107 | AP25: 0.8768382445 | AQ25: 0.8786104101 | AR25: 0.8801876972 | AS25: 0.8817649842 | AT25: 0.8833422713 | AU25: 0.88496875 | AV25: 0.8866006944 | AW25: 0.8882362963 | AX25: 0.8900511111 | AY25: 0.8918659259 | AZ25: 0.8942282322 | BA25: 0.8977539578 | BB25: 0.9012796834 | BC25: 0.904805409 | BD25: 0.9083311346 | BE25: 0.9118568602 | BF25: 0.9153825858 | BG25: 0.9189083113 | BH25: 0.9224340369 | BI25: 0.9259597625 | BJ25: 0.9294854881 | BK25: 0.9330112137 | BL25: 0.9365369393 | BM25: 0.9400626649 | BN25: 0.9435883905 | BO25: 0.9471141161 | BP25: 0.9506398417 | BQ25: 0.9541655673 | BR25: 0.9576912929 | BS25: 0.9612170185 | BT25: 0.9647427441 | BU25: 0.9682684697 | BV25: 0.9717941953 | BW25: 0.9753199208 | BX25: 0.9788456464 | BY25: 0.982371372 | BZ25: 0.9858970976 | CA25: 0.9894228232 | CB25: 0.9929485488 | CC25: 0.9964742744
A26: 0.2 | B26: 0.8 | C26: 0.8 | D26: 0.8 | E26: 0.8 | F26: 0.8013322581 | G26: 0.8028714286 | H26: 0.8042571429 | I26: 0.8056285714 | J26: 0.807062069 | K26: 0.8085103448 | L26: 0.8101559322 | M26: 0.811916 | N26: 0.813592 | O26: 0.8153254902 | P26: 0.8172862745 | Q26: 0.8192930233 | R26: 0.8214767857 | S26: 0.8237214286 | T26: 0.8258642857 | U26: 0.8281205405 | V26: 0.830389697 | W26: 0.8326321212 | X26: 0.834861039 | Y26: 0.8370688312 | Z26: 0.8392232628 | AA26: 0.8413682779 | AB26: 0.8435132931 | AC26: 0.8456484163 | AD26: 0.8477751131 | AE26: 0.84990181 | AF26: 0.8520285068 | AG26: 0.8541393531 | AH26: 0.8561339623 | AI26: 0.8581285714 | AJ26: 0.8601231806 | AK26: 0.8620679365 | AL26: 0.8639409524 | AM26: 0.8658139683 | AN26: 0.8676971787 | AO26: 0.8696094044 | AP26: 0.8715216301 | AQ26: 0.8734324921 | AR26: 0.8753252366 | AS26: 0.8772179811 | AT26: 0.8791107256 | AU26: 0.88101875 | AV26: 0.8829284722 | AW26: 0.8848333333 | AX26: 0.8865 | AY26: 0.8881666667 | AZ26: 0.8904683377 | BA26: 0.8941193931 | BB26: 0.8977704485 | BC26: 0.901421504 | BD26: 0.9050725594 | BE26: 0.9087236148 | BF26: 0.9123746702 | BG26: 0.9160257256 | BH26: 0.919676781 | BI26: 0.9233278364 | BJ26: 0.9269788918 | BK26: 0.9306299472 | BL26: 0.9342810026 | BM26: 0.937932058 | BN26: 0.9415831135 | BO26: 0.9452341689 | BP26: 0.9488852243 | BQ26: 0.9525362797 | BR26: 0.9561873351 | BS26: 0.9598383905 | BT26: 0.9634894459 | BU26: 0.9671405013 | BV26: 0.9707915567 | BW26: 0.9744426121 | BX26: 0.9780936675 | BY26: 0.981744723 | BZ26: 0.9853957784 | CA26: 0.9890468338 | CB26: 0.9926978892 | CC26: 0.9963489446
A27: 0.21 | B27: 0.79 | C27: 0.79 | D27: 0.79 | E27: 0.79 | F27: 0.7913483871 | G27: 0.7934530612 | H27: 0.7949571429 | I27: 0.796305102 | J27: 0.7976965517 | K27: 0.7992827586 | L27: 0.8007525424 | M27: 0.80254 | N27: 0.8044904 | O27: 0.8064738562 | P27: 0.8085653595 | Q27: 0.8106581395 | R27: 0.8127294643 | S27: 0.8150168831 | T27: 0.8176142857 | U27: 0.8199686486 | V27: 0.8222969697 | W27: 0.8247212121 | X27: 0.8270863636 | Y27: 0.8293590909 | Z27: 0.8317030211 | AA27: 0.8340595166 | AB27: 0.8364160121 | AC27: 0.8387217195 | AD27: 0.8409841629 | AE27: 0.8432466063 | AF27: 0.8455090498 | AG27: 0.8477587601 | AH27: 0.8499150943 | AI27: 0.8520714286 | AJ27: 0.8542277628 | AK27: 0.8563590476 | AL27: 0.8584542857 | AM27: 0.8605495238 | AN27: 0.8626216301 | AO27: 0.8646278997 | AP27: 0.8666341693 | AQ27: 0.8686479495 | AR27: 0.8707615142 | AS27: 0.8728750789 | AT27: 0.8749886435 | AU27: 0.8770125 | AV27: 0.8790263889 | AW27: 0.8810385185 | AX27: 0.8829644444 | AY27: 0.8848903704 | AZ27: 0.8874010554 | BA27: 0.8911543536 | BB27: 0.8949076517 | BC27: 0.8986609499 | BD27: 0.902414248 | BE27: 0.9061675462 | BF27: 0.9099208443 | BG27: 0.9136741425 | BH27: 0.9174274406 | BI27: 0.9211807388 | BJ27: 0.9249340369 | BK27: 0.9286873351 | BL27: 0.9324406332 | BM27: 0.9361939314 | BN27: 0.9399472296 | BO27: 0.9437005277 | BP27: 0.9474538259 | BQ27: 0.951207124 | BR27: 0.9549604222 | BS27: 0.9587137203 | BT27: 0.9624670185 | BU27: 0.9662203166 | BV27: 0.9699736148 | BW27: 0.9737269129 | BX27: 0.9774802111 | BY27: 0.9812335092 | BZ27: 0.9849868074 | CA27: 0.9887401055 | CB27: 0.9924934037 | CC27: 0.9962467018
A28: 0.22 | B28: 0.78 | C28: 0.78 | D28: 0.78 | E28: 0.7801134146 | F28: 0.7819354839 | G28: 0.7837346939 | H28: 0.7855 | I28: 0.7869285714 | J28: 0.7883793103 | K28: 0.7898965517 | L28: 0.7916237288 | M28: 0.793292 | N28: 0.7951896 | O28: 0.7973222222 | P28: 0.7995444444 | Q28: 0.8018534884 | R28: 0.8041767857 | S28: 0.8066168831 | T28: 0.8092142857 | U28: 0.811712973 | V28: 0.8142090909 | W28: 0.8169363636 | X28: 0.819537013 | Y28: 0.8219396104 | Z28: 0.8244314199 | AA28: 0.8269389728 | AB28: 0.8294465257 | AC28: 0.8318950226 | AD28: 0.8342932127 | AE28: 0.8366914027 | AF28: 0.8390895928 | AG28: 0.8414781671 | AH28: 0.8437962264 | AI28: 0.8461142857 | AJ28: 0.848432345 | AK28: 0.850724127 | AL28: 0.8529780952 | AM28: 0.8552320635 | AN28: 0.8574868339 | AO28: 0.8597438871 | AP28: 0.8620009404 | AQ28: 0.8642479495 | AR28: 0.8663615142 | AS28: 0.8684750789 | AT28: 0.8705886435 | AU28: 0.87276875 | AV28: 0.87495625 | AW28: 0.8771392593 | AX28: 0.8791022222 | AY28: 0.8810651852 | AZ28: 0.8836411609 | BA28: 0.8875197889 | BB28: 0.8913984169 | BC28: 0.8952770449 | BD28: 0.8991556728 | BE28: 0.9030343008 | BF28: 0.9069129288 | BG28: 0.9107915567 | BH28: 0.9146701847 | BI28: 0.9185488127 | BJ28: 0.9224274406 | BK28: 0.9263060686 | BL28: 0.9301846966 | BM28: 0.9340633245 | BN28: 0.9379419525 | BO28: 0.9418205805 | BP28: 0.9456992084 | BQ28: 0.9495778364 | BR28: 0.9534564644 | BS28: 0.9573350923 | BT28: 0.9612137203 | BU28: 0.9650923483 | BV28: 0.9689709763 | BW28: 0.9728496042 | BX28: 0.9767282322 | BY28: 0.9806068602 | BZ28: 0.9844854881 | CA28: 0.9883641161 | CB28: 0.9922427441 | CC28: 0.996121372
A29: 0.23 | B29: 0.77 | C29: 0.77 | D29: 0.77 | E29: 0.7708134146 | F29: 0.7725354839 | G29: 0.7744163265 | H29: 0.7761142857 | I29: 0.7776285714 | J29: 0.7790965517 | K29: 0.7806827586 | L29: 0.7823559322 | M29: 0.784178 | N29: 0.7862888 | O29: 0.7884254902 | P29: 0.7903862745 | Q29: 0.7928488372 | R29: 0.7955714286 | S29: 0.7983168831 | T29: 0.8009142857 | U29: 0.8036535135 | V29: 0.8064090909 | W29: 0.8091363636 | X29: 0.8118383117 | Y29: 0.8145006494 | Z29: 0.8171084592 | AA29: 0.8197066465 | AB29: 0.8223048338 | AC29: 0.8249049774 | AD29: 0.8275067873 | AE29: 0.8301085973 | AF29: 0.8327104072 | AG29: 0.8352975741 | AH29: 0.8377773585 | AI29: 0.8402571429 | AJ29: 0.8427369272 | AK29: 0.8451892063 | AL29: 0.8476019048 | AM29: 0.8500146032 | AN29: 0.8524112853 | AO29: 0.8547623824 | AP29: 0.8571134796 | AQ29: 0.8594700315 | AR29: 0.8618990536 | AS29: 0.8643280757 | AT29: 0.8667570978 | AU29: 0.8689375 | AV29: 0.8710902778 | AW29: 0.8732474074 | AX29: 0.8756177778 | AY29: 0.8779881481 | AZ29: 0.8808707124 | BA29: 0.8848416887 | BB29: 0.8888126649 | BC29: 0.8927836412 | BD29: 0.8967546174 | BE29: 0.9007255937 | BF29: 0.9046965699 | BG29: 0.9086675462 | BH29: 0.9126385224 | BI29: 0.9166094987 | BJ29: 0.9205804749 | BK29: 0.9245514512 | BL29: 0.9285224274 | BM29: 0.9324934037 | BN29: 0.9364643799 | BO29: 0.9404353562 | BP29: 0.9444063325 | BQ29: 0.9483773087 | BR29: 0.952348285 | BS29: 0.9563192612 | BT29: 0.9602902375 | BU29: 0.9642612137 | BV29: 0.96823219 | BW29: 0.9722031662 | BX29: 0.9761741425 | BY29: 0.9801451187 | BZ29: 0.984116095 | CA29: 0.9880870712 | CB29: 0.9920580475 | CC29: 0.9960290237
A30: 0.24 | B30: 0.76 | C30: 0.76 | D30: 0.76 | E30: 0.7613780488 | F30: 0.7632354839 | G30: 0.7651163265 | H30: 0.7668714286 | I30: 0.7683285714 | J30: 0.7698310345 | K30: 0.7715551724 | L30: 0.7731881356 | M30: 0.775164 | N30: 0.77724 | O30: 0.7793947712 | P30: 0.7818130719 | Q30: 0.7844139535 | R30: 0.7871223214 | S30: 0.7898727273 | T30: 0.7926 | U30: 0.7956421622 | V30: 0.7987042424 | W30: 0.801310303 | X30: 0.8040649351 | Y30: 0.8070519481 | Z30: 0.8098882175 | AA30: 0.8126978852 | AB30: 0.8155075529 | AC30: 0.8183027149 | AD30: 0.8210855204 | AE30: 0.8238683258 | AF30: 0.8266511312 | AG30: 0.8294105121 | AH30: 0.8319981132 | AI30: 0.8345857143 | AJ30: 0.8371733154 | AK30: 0.8397542857 | AL30: 0.8423257143 | AM30: 0.8448971429 | AN30: 0.847476489 | AO30: 0.8500783699 | AP30: 0.8526802508 | AQ30: 0.8552678233 | AR30: 0.8576652997 | AS30: 0.860062776 | AT30: 0.8624602524 | AU30: 0.86491875 | AV30: 0.8673840278 | AW30: 0.8698466667 | AX30: 0.87218 | AY30: 0.8745133333 | AZ30: 0.8774076517 | BA30: 0.8814940633 | BB30: 0.8855804749 | BC30: 0.8896668865 | BD30: 0.8937532982 | BE30: 0.8978397098 | BF30: 0.9019261214 | BG30: 0.906012533 | BH30: 0.9100989446 | BI30: 0.9141853562 | BJ30: 0.9182717678 | BK30: 0.9223581794 | BL30: 0.926444591 | BM30: 0.9305310026 | BN30: 0.9346174142 | BO30: 0.9387038259 | BP30: 0.9427902375 | BQ30: 0.9468766491 | BR30: 0.9509630607 | BS30: 0.9550494723 | BT30: 0.9591358839 | BU30: 0.9632222955 | BV30: 0.9673087071 | BW30: 0.9713951187 | BX30: 0.9754815303 | BY30: 0.979567942 | BZ30: 0.9836543536 | CA30: 0.9877407652 | CB30: 0.9918271768 | CC30: 0.9959135884
A31: 0.25 | B31: 0.75 | C31: 0.75 | D31: 0.7501833333 | E31: 0.7519780488 | F31: 0.7538387097 | G31: 0.7558163265 | H31: 0.7575714286 | I31: 0.7592285714 | J31: 0.7607310345 | K31: 0.7624551724 | L31: 0.7642237288 | M31: 0.76614 | N31: 0.7682888 | O31: 0.7706431373 | P31: 0.7731921569 | Q31: 0.7760093023 | R31: 0.7789205357 | S31: 0.7817448052 | T31: 0.7844071429 | U31: 0.7874902703 | V31: 0.7906212121 | W31: 0.7936515152 | X31: 0.7967409091 | Y31: 0.7999227273 | Z31: 0.8028909366 | AA31: 0.8058214502 | AB31: 0.8087519637 | AC31: 0.8116882353 | AD31: 0.8146294118 | AE31: 0.8175705882 | AF31: 0.8205117647 | AG31: 0.8234266846 | AH31: 0.8261490566 | AI31: 0.8288714286 | AJ31: 0.8315938005 | AK31: 0.8343063492 | AL31: 0.8370047619 | AM31: 0.8397031746 | AN31: 0.8424090909 | AO31: 0.8451363636 | AP31: 0.8478636364 | AQ31: 0.8505766562 | AR31: 0.8531003155 | AS31: 0.8556239748 | AT31: 0.8581476341 | AU31: 0.86080625 | AV31: 0.8634798611 | AW31: 0.8661488889 | AX31: 0.8685933333 | AY31: 0.8710377778 | AZ31: 0.8740435356 | BA31: 0.8782420844 | BB31: 0.8824406332 | BC31: 0.8866391821 | BD31: 0.8908377309 | BE31: 0.8950362797 | BF31: 0.8992348285 | BG31: 0.9034333773 | BH31: 0.9076319261 | BI31: 0.9118304749 | BJ31: 0.9160290237 | BK31: 0.9202275726 | BL31: 0.9244261214 | BM31: 0.9286246702 | BN31: 0.932823219 | BO31: 0.9370217678 | BP31: 0.9412203166 | BQ31: 0.9454188654 | BR31: 0.9496174142 | BS31: 0.9538159631 | BT31: 0.9580145119 | BU31: 0.9622130607 | BV31: 0.9664116095 | BW31: 0.9706101583 | BX31: 0.9748087071 | BY31: 0.9790072559 | BZ31: 0.9832058047 | CA31: 0.9874043536 | CB31: 0.9916029024 | CC31: 0.9958014512
A32: 0.26 | B32: 0.74 | C32: 0.74 | D32: 0.7408324074 | E32: 0.7425682927 | F32: 0.7445419355 | G32: 0.7465346939 | H32: 0.7483714286 | I32: 0.750122449 | J32: 0.7518448276 | K32: 0.7532241379 | L32: 0.7551271186 | M32: 0.75714 | N32: 0.7594376 | O32: 0.7618705882 | P32: 0.7642235294 | Q32: 0.7673348837 | R32: 0.7703223214 | S32: 0.7732681818 | T32: 0.77645 | U32: 0.7795421622 | V32: 0.7826357576 | W32: 0.786029697 | X32: 0.7893155844 | Y32: 0.7924324675 | Z32: 0.7957247734 | AA32: 0.7990480363 | AB32: 0.8023712991 | AC32: 0.8055004525 | AD32: 0.8084642534 | AE32: 0.8114280543 | AF32: 0.8143918552 | AG32: 0.8173493261 | AH32: 0.8202603774 | AI32: 0.8231714286 | AJ32: 0.8260824798 | AK32: 0.8289844444 | AL32: 0.8318733333 | AM32: 0.8347622222 | AN32: 0.8376253918 | AO32: 0.8404153605 | AP32: 0.8432053292 | AQ32: 0.84599653 | AR32: 0.8488041009 | AS32: 0.8516116719 | AT32: 0.8544192429 | AU32: 0.8571375 | AV32: 0.8598458333 | AW32: 0.8625533333 | AX32: 0.86522 | AY32: 0.8678866667 | AZ32: 0.8710751979 | BA32: 0.8753726913 | BB32: 0.8796701847 | BC32: 0.8839676781 | BD32: 0.8882651715 | BE32: 0.8925626649 | BF32: 0.8968601583 | BG32: 0.9011576517 | BH32: 0.9054551451 | BI32: 0.9097526385 | BJ32: 0.9140501319 | BK32: 0.9183476253 | BL32: 0.9226451187 | BM32: 0.9269426121 | BN32: 0.9312401055 | BO32: 0.9355375989 | BP32: 0.9398350923 | BQ32: 0.9441325858 | BR32: 0.9484300792 | BS32: 0.9527275726 | BT32: 0.957025066 | BU32: 0.9613225594 | BV32: 0.9656200528 | BW32: 0.9699175462 | BX32: 0.9742150396 | BY32: 0.978512533 | BZ32: 0.9828100264 | CA32: 0.9871075198 | CB32: 0.9914050132 | CC32: 0.9957025066
A33: 0.27 | B33: 0.73 | C33: 0.73 | D33: 0.7312814815 | E33: 0.7332329268 | F33: 0.7351419355 | G33: 0.7372979592 | H33: 0.7391285714 | I33: 0.740922449 | J33: 0.7426965517 | K33: 0.7442827586 | L33: 0.7462271186 | M33: 0.748302 | N33: 0.7505384 | O33: 0.7529915033 | P33: 0.7556712418 | Q33: 0.7586395349 | R33: 0.7618660714 | S33: 0.765224026 | T33: 0.7685357143 | U33: 0.7717864865 | V33: 0.7750430303 | W33: 0.7786187879 | X33: 0.7820155844 | Y33: 0.7851324675 | Z33: 0.788578852 | AA33: 0.7920833837 | AB33: 0.7955879154 | AC33: 0.7988859729 | AD33: 0.8020081448 | AE33: 0.8051303167 | AF33: 0.8082524887 | AG33: 0.8113654987 | AH33: 0.8144113208 | AI33: 0.8174571429 | AJ33: 0.820502965 | AK33: 0.8235625397 | AL33: 0.8266419048 | AM33: 0.8297212698 | AN33: 0.8327498433 | AO33: 0.8356338558 | AP33: 0.8385178683 | AQ33: 0.8414097792 | AR33: 0.8444066246 | AS33: 0.84740347 | AT33: 0.8504003155 | AU33: 0.8532 | AV33: 0.8559777778 | AW33: 0.8587459259 | AX33: 0.8610422222 | AY33: 0.8633385185 | AZ33: 0.8663258575 | BA33: 0.8707816623 | BB33: 0.875237467 | BC33: 0.8796932718 | BD33: 0.8841490765 | BE33: 0.8886048813 | BF33: 0.893060686 | BG33: 0.8975164908 | BH33: 0.9019722955 | BI33: 0.9064281003 | BJ33: 0.910883905 | BK33: 0.9153397098 | BL33: 0.9197955145 | BM33: 0.9242513193 | BN33: 0.928707124 | BO33: 0.9331629288 | BP33: 0.9376187335 | BQ33: 0.9420745383 | BR33: 0.946530343 | BS33: 0.9509861478 | BT33: 0.9554419525 | BU33: 0.9598977573 | BV33: 0.964353562 | BW33: 0.9688093668 | BX33: 0.9732651715 | BY33: 0.9777209763 | BZ33: 0.982176781 | CA33: 0.9866325858 | CB33: 0.9910883905 | CC33: 0.9955441953
A34: 0.28 | B34: 0.72 | C34: 0.72 | D34: 0.721325 | E34: 0.7237426829 | F34: 0.7259387097 | G34: 0.7279979592 | H34: 0.7299714286 | I34: 0.731822449 | J34: 0.7337344828 | K34: 0.7358724138 | L34: 0.7379271186 | M34: 0.739754 | N34: 0.741888 | O34: 0.7444398693 | P34: 0.7472503268 | Q34: 0.7504348837 | R34: 0.7534714286 | S34: 0.7567194805 | T34: 0.7604857143 | U34: 0.7639308108 | V34: 0.7673381818 | W34: 0.7707927273 | X34: 0.7743435065 | Y34: 0.7780448052 | Z34: 0.781681571 | AA34: 0.7853069486 | AB34: 0.7889323263 | AC34: 0.7923714932 | AD34: 0.7956520362 | AE34: 0.7989325792 | AF34: 0.8022131222 | AG34: 0.8054849057 | AH34: 0.8086924528 | AI34: 0.8119 | AJ34: 0.8151075472 | AK34: 0.8183146032 | AL34: 0.8215209524 | AM34: 0.8247273016 | AN34: 0.8279068966 | AO34: 0.8310103448 | AP34: 0.8341137931 | AQ34: 0.8372141956 | AR34: 0.8402741325 | AS34: 0.8433340694 | AT34: 0.8463940063 | AU34: 0.84948125 | AV34: 0.8525715278 | AW34: 0.8556496296 | AX34: 0.8581311111 | AY34: 0.8606125926 | AZ34: 0.8637532982 | BA34: 0.8682948549 | BB34: 0.8728364116 | BC34: 0.8773779683 | BD34: 0.8819195251 | BE34: 0.8864610818 | BF34: 0.8910026385 | BG34: 0.8955441953 | BH34: 0.900085752 | BI34: 0.9046273087 | BJ34: 0.9091688654 | BK34: 0.9137104222 | BL34: 0.9182519789 | BM34: 0.9227935356 | BN34: 0.9273350923 | BO34: 0.9318766491 | BP34: 0.9364182058 | BQ34: 0.9409597625 | BR34: 0.9455013193 | BS34: 0.950042876 | BT34: 0.9545844327 | BU34: 0.9591259894 | BV34: 0.9636675462 | BW34: 0.9682091029 | BX34: 0.9727506596 | BY34: 0.9772922164 | BZ34: 0.9818337731 | CA34: 0.9863753298 | CB34: 0.9909168865 | CC34: 0.9954584433
A35: 0.29 | B35: 0.71 | C35: 0.71 | D35: 0.7119212963 | E35: 0.7144329268 | F35: 0.7166419355 | G35: 0.7187979592 | H35: 0.7208285714 | I35: 0.7227459184 | J35: 0.7247172414 | K35: 0.7267862069 | L35: 0.7290983051 | M35: 0.731426 | N35: 0.7334408 | O35: 0.7357607843 | P35: 0.7388980392 | Q35: 0.7422 | R35: 0.7453696429 | S35: 0.7486357143 | T35: 0.7522071429 | U35: 0.7560637838 | V35: 0.7599430303 | W35: 0.7635187879 | X35: 0.7673714286 | Y35: 0.7716571429 | Z35: 0.775278852 | AA35: 0.7787833837 | AB35: 0.7822879154 | AC35: 0.7857570136 | AD35: 0.7891959276 | AE35: 0.7926348416 | AF35: 0.7960737557 | AG35: 0.7995075472 | AH35: 0.8029037736 | AI35: 0.8063 | AJ35: 0.8096962264 | AK35: 0.8130666667 | AL35: 0.8164 | AM35: 0.8197333333 | AN35: 0.8230557994 | AO35: 0.8263473354 | AP35: 0.8296388715 | AQ35: 0.8329208202 | AR35: 0.8360753943 | AS35: 0.8392299685 | AT35: 0.8423845426 | AU35: 0.8452625 | AV35: 0.8481097222 | AW35: 0.8509637037 | AX35: 0.8541488889 | AY35: 0.8573340741 | AZ35: 0.8609828496 | BA35: 0.8656167546 | BB35: 0.8702506596 | BC35: 0.8748845646 | BD35: 0.8795184697 | BE35: 0.8841523747 | BF35: 0.8887862797 | BG35: 0.8934201847 | BH35: 0.8980540897 | BI35: 0.9026879947 | BJ35: 0.9073218997 | BK35: 0.9119558047 | BL35: 0.9165897098 | BM35: 0.9212236148 | BN35: 0.9258575198 | BO35: 0.9304914248 | BP35: 0.9351253298 | BQ35: 0.9397592348 | BR35: 0.9443931398 | BS35: 0.9490270449 | BT35: 0.9536609499 | BU35: 0.9582948549 | BV35: 0.9629287599 | BW35: 0.9675626649 | BX35: 0.9721965699 | BY35: 0.9768304749 | BZ35: 0.9814643799 | CA35: 0.986098285 | CB35: 0.99073219 | CC35: 0.995366095
A36: 0.3 | B36: 0.7 | C36: 0.7004213904 | D36: 0.7025722222 | E36: 0.7050329268 | F36: 0.7073451613 | G36: 0.7096795918 | H36: 0.7116714286 | I36: 0.7136928571 | J36: 0.7158344828 | K36: 0.7179724138 | L36: 0.7203661017 | M36: 0.722788 | N36: 0.7255352 | O36: 0.7282705882 | P36: 0.7306235294 | Q36: 0.7336046512 | R36: 0.7370625 | S36: 0.7407915584 | T36: 0.7444928571 | U36: 0.7482675676 | V36: 0.7520939394 | W36: 0.7569424242 | X36: 0.7612928571 | Y36: 0.7648642857 | Z36: 0.7684558912 | AA36: 0.7720510574 | AB36: 0.7756462236 | AC36: 0.7792547511 | AD36: 0.7828746606 | AE36: 0.7864945701 | AF36: 0.7901144796 | AG36: 0.7937237197 | AH36: 0.797254717 | AI36: 0.8007857143 | AJ36: 0.8043167116 | AK36: 0.8078447619 | AL36: 0.8113685714 | AM36: 0.814892381 | AN36: 0.8183802508 | AO36: 0.8217658307 | AP36: 0.8251514107 | AQ36: 0.828518612 | AR36: 0.8316416404 | AS36: 0.8347646688 | AT36: 0.8378876972 | AU36: 0.8412625 | AV36: 0.8446652778 | AW36: 0.8480622222 | AX36: 0.8511733333 | AY36: 0.8542844444 | AZ36: 0.8579155673 | BA36: 0.862651715 | BB36: 0.8673878628 | BC36: 0.8721240106 | BD36: 0.8768601583 | BE36: 0.8815963061 | BF36: 0.8863324538 | BG36: 0.8910686016 | BH36: 0.8958047493 | BI36: 0.9005408971 | BJ36: 0.9052770449 | BK36: 0.9100131926 | BL36: 0.9147493404 | BM36: 0.9194854881 | BN36: 0.9242216359 | BO36: 0.9289577836 | BP36: 0.9336939314 | BQ36: 0.9384300792 | BR36: 0.9431662269 | BS36: 0.9479023747 | BT36: 0.9526385224 | BU36: 0.9573746702 | BV36: 0.9621108179 | BW36: 0.9668469657 | BX36: 0.9715831135 | BY36: 0.9763192612 | BZ36: 0.981055409 | CA36: 0.9857915567 | CB36: 0.9905277045 | CC36: 0.9952638522
A37: 0.31 | B37: 0.69 | C37: 0.6910213904 | D37: 0.6931722222 | E37: 0.6956878049 | F37: 0.6980483871 | G37: 0.7004795918 | H37: 0.7026285714 | I37: 0.7046163265 | J37: 0.7068517241 | K37: 0.7090586207 | L37: 0.7113983051 | M37: 0.714036 | N37: 0.716836 | O37: 0.7197607843 | P37: 0.7228980392 | Q37: 0.726655814 | R37: 0.729775 | S37: 0.7333220779 | T37: 0.7382571429 | U37: 0.7421675676 | V37: 0.7459551515 | W37: 0.7498339394 | X37: 0.7537194805 | Y37: 0.7576155844 | Z37: 0.7614356495 | AA37: 0.7652422961 | AB37: 0.7690489426 | AC37: 0.7728402715 | AD37: 0.776618552 | AE37: 0.7803968326 | AF37: 0.7841751131 | AG37: 0.7879431267 | AH37: 0.7916358491 | AI37: 0.7953285714 | AJ37: 0.7990212938 | AK37: 0.8027098413 | AL37: 0.806392381 | AM37: 0.8100749206 | AN37: 0.8137128527 | AO37: 0.8172238245 | AP37: 0.8207347962 | AQ37: 0.8242318612 | AR37: 0.827544164 | AS37: 0.8308564669 | AT37: 0.8341687697 | AU37: 0.83771875 | AV37: 0.8412951389 | AW37: 0.8448651852 | AX37: 0.8481244444 | AY37: 0.8513837037 | AZ37: 0.8551451187 | BA37: 0.8599736148 | BB37: 0.8648021108 | BC37: 0.8696306069 | BD37: 0.8744591029 | BE37: 0.8792875989 | BF37: 0.884116095 | BG37: 0.888944591 | BH37: 0.8937730871 | BI37: 0.8986015831 | BJ37: 0.9034300792 | BK37: 0.9082585752 | BL37: 0.9130870712 | BM37: 0.9179155673 | BN37: 0.9227440633 | BO37: 0.9275725594 | BP37: 0.9324010554 | BQ37: 0.9372295515 | BR37: 0.9420580475 | BS37: 0.9468865435 | BT37: 0.9517150396 | BU37: 0.9565435356 | BV37: 0.9613720317 | BW37: 0.9662005277 | BX37: 0.9710290237 | BY37: 0.9758575198 | BZ37: 0.9806860158 | CA37: 0.9855145119 | CB37: 0.9903430079 | CC37: 0.995171504
A38: 0.32 | B38: 0.680084492 | C38: 0.6817957219 | D38: 0.6836796296 | E38: 0.6862268293 | F38: 0.6889451613 | G38: 0.6913612245 | H38: 0.6936285714 | I38: 0.6957163265 | J38: 0.6979862069 | K38: 0.7003310345 | L38: 0.7027661017 | M38: 0.70556 | N38: 0.708436 | O38: 0.7114333333 | P38: 0.7147666667 | Q38: 0.7184906977 | R38: 0.7222625 | S38: 0.7262149351 | T38: 0.7304357143 | U38: 0.7345562162 | V38: 0.7386624242 | W38: 0.7427230303 | X38: 0.7466435065 | Y38: 0.7503448052 | Z38: 0.7543410876 | AA38: 0.758389426 | AB38: 0.7624377644 | AC38: 0.7664257919 | AD38: 0.7703624434 | AE38: 0.774299095 | AF38: 0.7782357466 | AG38: 0.7821625337 | AH38: 0.7860169811 | AI38: 0.7898714286 | AJ38: 0.793725876 | AK38: 0.7975619048 | AL38: 0.8013714286 | AM38: 0.8051809524 | AN38: 0.8089291536 | AO38: 0.8125028213 | AP38: 0.816076489 | AQ38: 0.819662776 | AR38: 0.8234167192 | AS38: 0.8271706625 | AT38: 0.8309246057 | AU38: 0.834425 | AV38: 0.8378972222 | AW38: 0.8413740741 | AX38: 0.8450777778 | AY38: 0.8487814815 | AZ38: 0.8528693931 | BA38: 0.8577737467 | BB38: 0.8626781003 | BC38: 0.8675824538 | BD38: 0.8724868074 | BE38: 0.8773911609 | BF38: 0.8822955145 | BG38: 0.8871998681 | BH38: 0.8921042216 | BI38: 0.8970085752 | BJ38: 0.9019129288 | BK38: 0.9068172823 | BL38: 0.9117216359 | BM38: 0.9166259894 | BN38: 0.921530343 | BO38: 0.9264346966 | BP38: 0.9313390501 | BQ38: 0.9362434037 | BR38: 0.9411477573 | BS38: 0.9460521108 | BT38: 0.9509564644 | BU38: 0.9558608179 | BV38: 0.9607651715 | BW38: 0.9656695251 | BX38: 0.9705738786 | BY38: 0.9754782322 | BZ38: 0.9803825858 | CA38: 0.9852869393 | CB38: 0.9901912929 | CC38: 0.9950956464
A39: 0.33 | B39: 0.6707631016 | C39: 0.6724208556 | D39: 0.6742796296 | E39: 0.6768817073 | F39: 0.6797483871 | G39: 0.6822612245 | H39: 0.6846857143 | I39: 0.6868397959 | J39: 0.6892206897 | K39: 0.6917034483 | L39: 0.6941661017 | M39: 0.696836 | N39: 0.699884 | O39: 0.7031575163 | P39: 0.7065562092 | Q39: 0.7104860465 | R39: 0.7142642857 | S39: 0.7181428571 | T39: 0.7224285714 | U39: 0.7265562162 | V39: 0.7306745455 | W39: 0.7350381818 | X39: 0.7393461039 | Y39: 0.7435668831 | Z39: 0.7477438066 | AA39: 0.7519129909 | AB39: 0.7560821752 | AC39: 0.760199095 | AD39: 0.7642714932 | AE39: 0.7683438914 | AF39: 0.7724162896 | AG39: 0.7764819407 | AH39: 0.7804981132 | AI39: 0.7845142857 | AJ39: 0.7885304582 | AK39: 0.7925269841 | AL39: 0.7964952381 | AM39: 0.8004634921 | AN39: 0.804369906 | AO39: 0.8081003135 | AP39: 0.811830721 | AQ39: 0.8155694006 | AR39: 0.8194179811 | AS39: 0.8232665615 | AT39: 0.827115142 | AU39: 0.8308125 | AV39: 0.8344930556 | AW39: 0.8381762963 | AX39: 0.8419911111 | AY39: 0.8458059259 | AZ39: 0.85 | BA39: 0.855 | BB39: 0.86 | BC39: 0.865 | BD39: 0.87 | BE39: 0.875 | BF39: 0.88 | BG39: 0.885 | BH39: 0.89 | BI39: 0.895 | BJ39: 0.9 | BK39: 0.905 | BL39: 0.91 | BM39: 0.915 | BN39: 0.92 | BO39: 0.925 | BP39: 0.93 | BQ39: 0.935 | BR39: 0.94 | BS39: 0.945 | BT39: 0.95 | BU39: 0.955 | BV39: 0.96 | BW39: 0.965 | BX39: 0.97 | BY39: 0.975 | BZ39: 0.98 | CA39: 0.985 | CB39: 0.99 | CC39: 0.995
A40: 0.34 | B40: 0.6605625668 | C40: 0.662968984 | D40: 0.6652287037 | E40: 0.6677719512 | F40: 0.6706516129 | G40: 0.6732612245 | H40: 0.6757571429 | I40: 0.6780397959 | J40: 0.6804206897 | K40: 0.6829034483 | L40: 0.6855694915 | M40: 0.688336 | N40: 0.6915328 | O40: 0.6950058824 | P40: 0.6985352941 | Q40: 0.7020953488 | R40: 0.7060571429 | S40: 0.7104545455 | T40: 0.715 | U40: 0.7192524324 | V40: 0.7234818182 | W40: 0.7280272727 | X40: 0.7324714286 | Y40: 0.7367571429 | Z40: 0.7409951662 | AA40: 0.7452247734 | AB40: 0.7494543807 | AC40: 0.7537090498 | AD40: 0.7579850679 | AE40: 0.762261086 | AF40: 0.7665371041 | AG40: 0.7708013477 | AH40: 0.7749792453 | AI40: 0.7791571429 | AJ40: 0.7833350404 | AK40: 0.7874790476 | AL40: 0.7915742857 | AM40: 0.7956695238 | AN40: 0.7997351097 | AO40: 0.8037163009 | AP40: 0.8076974922 | AQ40: 0.8116782334 | AR40: 0.8156529968 | AS40: 0.8196277603 | AT40: 0.8236025237 | AU40: 0.827375 | AV40: 0.831125 | AW40: 0.8348792593 | AX40: 0.8388422222 | AY40: 0.8428051852 | AZ40: 0.8471306069 | BA40: 0.8522262533 | BB40: 0.8573218997 | BC40: 0.8624175462 | BD40: 0.8675131926 | BE40: 0.8726088391 | BF40: 0.8777044855 | BG40: 0.8828001319 | BH40: 0.8878957784 | BI40: 0.8929914248 | BJ40: 0.8980870712 | BK40: 0.9031827177 | BL40: 0.9082783641 | BM40: 0.9133740106 | BN40: 0.918469657 | BO40: 0.9235653034 | BP40: 0.9286609499 | BQ40: 0.9337565963 | BR40: 0.9388522427 | BS40: 0.9439478892 | BT40: 0.9490435356 | BU40: 0.9541391821 | BV40: 0.9592348285 | BW40: 0.9643304749 | BX40: 0.9694261214 | BY40: 0.9745217678 | BZ40: 0.9796174142 | CA40: 0.9847130607 | CB40: 0.9898087071 | CC40: 0.9949043536
A41: 0.35 | B41: 0.6511839572 | C41: 0.6536438503 | D41: 0.6560759259 | E41: 0.6587170732 | F41: 0.6616516129 | G41: 0.6643428571 | H41: 0.6668428571 | I41: 0.6693632653 | J41: 0.6718034483 | K41: 0.6742172414 | L41: 0.6770050847 | M41: 0.679898 | N41: 0.6831328 | O41: 0.6866058824 | P41: 0.6901352941 | Q41: 0.6940860465 | R41: 0.6983553571 | S41: 0.7027987013 | T41: 0.7072142857 | U41: 0.7118372973 | V41: 0.7164769697 | W41: 0.7209012121 | X41: 0.7253220779 | Y41: 0.7297376623 | Z41: 0.7342006042 | AA41: 0.7386719033 | AB41: 0.7431432024 | AC41: 0.7475945701 | AD41: 0.7520289593 | AE41: 0.7564633484 | AF41: 0.7608977376 | AG41: 0.7653175202 | AH41: 0.7696301887 | AI41: 0.7739428571 | AJ41: 0.7782555256 | AK41: 0.7825311111 | AL41: 0.7867533333 | AM41: 0.7909755556 | AN41: 0.7951840125 | AO41: 0.7993532915 | AP41: 0.8035225705 | AQ41: 0.8076826498 | AR41: 0.8117205047 | AS41: 0.8157583596 | AT41: 0.8197962145 | AU41: 0.8238875 | AV41: 0.8279847222 | AW41: 0.8320777778 | AX41: 0.8359666667 | AY41: 0.8398555556 | AZ41: 0.8441622691 | BA41: 0.8493568602 | BB41: 0.8545514512 | BC41: 0.8597460422 | BD41: 0.8649406332 | BE41: 0.8701352243 | BF41: 0.8753298153 | BG41: 0.8805244063 | BH41: 0.8857189974 | BI41: 0.8909135884 | BJ41: 0.8961081794 | BK41: 0.9013027704 | BL41: 0.9064973615 | BM41: 0.9116919525 | BN41: 0.9168865435 | BO41: 0.9220811346 | BP41: 0.9272757256 | BQ41: 0.9324703166 | BR41: 0.9376649077 | BS41: 0.9428594987 | BT41: 0.9480540897 | BU41: 0.9532486807 | BV41: 0.9584432718 | BW41: 0.9636378628 | BX41: 0.9688324538 | BY41: 0.9740270449 | BZ41: 0.9792216359 | CA41: 0.9844162269 | CB41: 0.9896108179 | CC41: 0.994805409
A42: 0.36 | B42: 0.6422770053 | C42: 0.6444695187 | D42: 0.646825 | E42: 0.6496268293 | F42: 0.6525548387 | G42: 0.6554244898 | H42: 0.658 | I42: 0.6604102041 | J42: 0.6630551724 | K42: 0.6656758621 | L42: 0.668640678 | M42: 0.67166 | N42: 0.6748336 | O42: 0.6783267974 | P42: 0.6821830065 | Q42: 0.6862511628 | R42: 0.6905553571 | S42: 0.6950545455 | T42: 0.6996 | U42: 0.7041891892 | V42: 0.7087963636 | W42: 0.7137054545 | X42: 0.7184980519 | Y42: 0.7231084416 | Z42: 0.7277033233 | AA42: 0.7322954683 | AB42: 0.7368876133 | AC42: 0.7414800905 | AD42: 0.7460728507 | AE42: 0.7506656109 | AF42: 0.755258371 | AG42: 0.7598336927 | AH42: 0.7642811321 | AI42: 0.7687285714 | AJ42: 0.7731760108 | AK42: 0.7776092063 | AL42: 0.7820219048 | AM42: 0.7864346032 | AN42: 0.7908166144 | AO42: 0.7951112853 | AP42: 0.7994059561 | AQ42: 0.8036958991 | AR42: 0.8079230284 | AS42: 0.8121501577 | AT42: 0.8163772871 | AU42: 0.82051875 | AV42: 0.8246506944 | AW42: 0.8287822222 | AX42: 0.8328933333 | AY42: 0.8370044444 | AZ42: 0.8414907652 | BA42: 0.8467744063 | BB42: 0.8520580475 | BC42: 0.8573416887 | BD42: 0.8626253298 | BE42: 0.867908971 | BF42: 0.8731926121 | BG42: 0.8784762533 | BH42: 0.8837598945 | BI42: 0.8890435356 | BJ42: 0.8943271768 | BK42: 0.8996108179 | BL42: 0.9048944591 | BM42: 0.9101781003 | BN42: 0.9154617414 | BO42: 0.9207453826 | BP42: 0.9260290237 | BQ42: 0.9313126649 | BR42: 0.9365963061 | BS42: 0.9418799472 | BT42: 0.9471635884 | BU42: 0.9524472296 | BV42: 0.9577308707 | BW42: 0.9630145119 | BX42: 0.968298153 | BY42: 0.9735817942 | BZ42: 0.9788654354 | CA42: 0.9841490765 | CB42: 0.9894327177 | CC42: 0.9947163588
A43: 0.37 | B43: 0.6331770053 | C43: 0.6353695187 | D43: 0.6376759259 | E43: 0.6403719512 | F43: 0.6435580645 | G43: 0.6466061224 | H43: 0.6492571429 | I43: 0.6518336735 | J43: 0.6545724138 | K43: 0.657262069 | L43: 0.6601728814 | M43: 0.663408 | N43: 0.6667832 | O43: 0.6703751634 | P43: 0.6743620915 | Q43: 0.6785162791 | R43: 0.6827080357 | S43: 0.68725 | T43: 0.69225 | U43: 0.6970335135 | V43: 0.7017987879 | W43: 0.7067684848 | X43: 0.7115980519 | Y43: 0.7162084416 | Z43: 0.7210344411 | AA43: 0.7258984894 | AB43: 0.7307625378 | AC43: 0.7355533937 | AD43: 0.7402819005 | AE43: 0.7450104072 | AF43: 0.749738914 | AG43: 0.7544563342 | AH43: 0.7590924528 | AI43: 0.7637285714 | AJ43: 0.76836469 | AK43: 0.772948254 | AL43: 0.7774561905 | AM43: 0.781964127 | AN43: 0.7864410658 | AO43: 0.7908297806 | AP43: 0.7952184953 | AQ43: 0.7996069401 | AR43: 0.8039917981 | AS43: 0.8083766562 | AT43: 0.8127615142 | AU43: 0.8171375 | AV43: 0.8215125 | AW43: 0.8258733333 | AX43: 0.82954 | AY43: 0.8332066667 | AZ43: 0.8374340369 | BA43: 0.8428529024 | BB43: 0.8482717678 | BC43: 0.8536906332 | BD43: 0.8591094987 | BE43: 0.8645283641 | BF43: 0.8699472296 | BG43: 0.875366095 | BH43: 0.8807849604 | BI43: 0.8862038259 | BJ43: 0.8916226913 | BK43: 0.8970415567 | BL43: 0.9024604222 | BM43: 0.9078792876 | BN43: 0.913298153 | BO43: 0.9187170185 | BP43: 0.9241358839 | BQ43: 0.9295547493 | BR43: 0.9349736148 | BS43: 0.9403924802 | BT43: 0.9458113456 | BU43: 0.9512302111 | BV43: 0.9566490765 | BW43: 0.962067942 | BX43: 0.9674868074 | BY43: 0.9729056728 | BZ43: 0.9783245383 | CA43: 0.9837434037 | CB43: 0.9891622691 | CC43: 0.9945811346
A44: 0.38 | B44: 0.6242197861 | C44: 0.6265192513 | D44: 0.6287777778 | E44: 0.6314268293 | F44: 0.6346612903 | G44: 0.6378061224 | H44: 0.6406142857 | I44: 0.6432571429 | J44: 0.6461068966 | K44: 0.6489344828 | L44: 0.651940678 | M44: 0.655208 | N44: 0.658732 | O44: 0.6624509804 | P44: 0.666372549 | Q44: 0.6707767442 | R44: 0.6751080357 | S44: 0.6795941558 | T44: 0.6844642857 | U44: 0.6896664865 | V44: 0.6948939394 | W44: 0.6997424242 | X44: 0.7046753247 | Y44: 0.7097402597 | Z44: 0.7146601208 | AA44: 0.7195543807 | AB44: 0.7244486405 | AC44: 0.7293633484 | AD44: 0.7342954751 | AE44: 0.7392276018 | AF44: 0.7441597285 | AG44: 0.7490757412 | AH44: 0.7538735849 | AI44: 0.7586714286 | AJ44: 0.7634692722 | AK44: 0.7682003175 | AL44: 0.7728352381 | AM44: 0.7774701587 | AN44: 0.7820736677 | AO44: 0.7865877743 | AP44: 0.7911018809 | AQ44: 0.7956179811 | AR44: 0.8001605678 | AS44: 0.8047031546 | AT44: 0.8092457413 | AU44: 0.81373125 | AV44: 0.8182104167 | AW44: 0.822682963 | AX44: 0.8268311111 | AY44: 0.8309792593 | AZ44: 0.8355540897 | BA44: 0.8410356201 | BB44: 0.8465171504 | BC44: 0.8519986807 | BD44: 0.8574802111 | BE44: 0.8629617414 | BF44: 0.8684432718 | BG44: 0.8739248021 | BH44: 0.8794063325 | BI44: 0.8848878628 | BJ44: 0.8903693931 | BK44: 0.8958509235 | BL44: 0.9013324538 | BM44: 0.9068139842 | BN44: 0.9122955145 | BO44: 0.9177770449 | BP44: 0.9232585752 | BQ44: 0.9287401055 | BR44: 0.9342216359 | BS44: 0.9397031662 | BT44: 0.9451846966 | BU44: 0.9506662269 | BV44: 0.9561477573 | BW44: 0.9616292876 | BX44: 0.9671108179 | BY44: 0.9725923483 | BZ44: 0.9780738786 | CA44: 0.983555409 | CB44: 0.9890369393 | CC44: 0.9945184697
A45: 0.39 | B45: 0.6150411765 | C45: 0.6173941176 | D45: 0.6197759259 | E45: 0.6225268293 | F45: 0.6259612903 | G45: 0.6290244898 | H45: 0.6319571429 | I45: 0.6347571429 | J45: 0.6376413793 | K45: 0.6406068966 | L45: 0.6437084746 | M45: 0.647132 | N45: 0.6506328 | O45: 0.6543960784 | P45: 0.6587098039 | Q45: 0.6629813953 | R45: 0.6675026786 | S45: 0.67235 | T45: 0.67735 | U45: 0.6825183784 | V45: 0.6877084848 | W45: 0.6929206061 | X45: 0.6981006494 | Y45: 0.7032305195 | Z45: 0.7082885196 | AA45: 0.7133338369 | AB45: 0.7183791541 | AC45: 0.7234244344 | AD45: 0.7284696833 | AE45: 0.7335149321 | AF45: 0.738560181 | AG45: 0.7435951482 | AH45: 0.748554717 | AI45: 0.7535142857 | AJ45: 0.7584738544 | AK45: 0.763352381 | AL45: 0.7681142857 | AM45: 0.7728761905 | AN45: 0.7776388715 | AO45: 0.7824037618 | AP45: 0.787168652 | AQ45: 0.7919223975 | AR45: 0.7965280757 | AS45: 0.8011337539 | AT45: 0.8057394322 | AU45: 0.81010625 | AV45: 0.8144465278 | AW45: 0.8187933333 | AX45: 0.82346 | AY45: 0.8281266667 | AZ45: 0.8330804749 | BA45: 0.8386444591 | BB45: 0.8442084433 | BC45: 0.8497724274 | BD45: 0.8553364116 | BE45: 0.8609003958 | BF45: 0.8664643799 | BG45: 0.8720283641 | BH45: 0.8775923483 | BI45: 0.8831563325 | BJ45: 0.8887203166 | BK45: 0.8942843008 | BL45: 0.899848285 | BM45: 0.9054122691 | BN45: 0.9109762533 | BO45: 0.9165402375 | BP45: 0.9221042216 | BQ45: 0.9276682058 | BR45: 0.93323219 | BS45: 0.9387961741 | BT45: 0.9443601583 | BU45: 0.9499241425 | BV45: 0.9554881266 | BW45: 0.9610521108 | BX45: 0.966616095 | BY45: 0.9721800792 | BZ45: 0.9777440633 | CA45: 0.9833080475 | CB45: 0.9888720317 | CC45: 0.9944360158
A46: 0.4 | B46: 0.6058839572 | C46: 0.6083438503 | D46: 0.6107759259 | E46: 0.6136365854 | F46: 0.6171580645 | G46: 0.6202877551 | H46: 0.6234571429 | I46: 0.6263571429 | J46: 0.6292931034 | K46: 0.6324655172 | L46: 0.6356762712 | M46: 0.638946 | N46: 0.6426304 | O46: 0.6466960784 | P46: 0.6510098039 | Q46: 0.6555418605 | R46: 0.6602517857 | S46: 0.6652058442 | T46: 0.6703357143 | U46: 0.6756145946 | V46: 0.6809133333 | W46: 0.6862466667 | X46: 0.6915006494 | Y46: 0.6966305195 | Z46: 0.7018682779 | AA46: 0.7071250755 | AB46: 0.7123818731 | AC46: 0.7176588235 | AD46: 0.7229529412 | AE46: 0.7282470588 | AF46: 0.7335411765 | AG46: 0.7387983827 | AH46: 0.7437849057 | AI46: 0.7487714286 | AJ46: 0.7537579515 | AK46: 0.7587174603 | AL46: 0.7636380952 | AM46: 0.7685587302 | AN46: 0.7734551724 | AO46: 0.7782827586 | AP46: 0.7831103448 | AQ46: 0.7879378549 | AR46: 0.7927643533 | AS46: 0.7975908517 | AT46: 0.8024173502 | AU46: 0.80699375 | AV46: 0.8115423611 | AW46: 0.8160918519 | AX46: 0.8206844444 | AY46: 0.825277037 | AZ46: 0.8302110818 | BA46: 0.8358707124 | BB46: 0.841530343 | BC46: 0.8471899736 | BD46: 0.8528496042 | BE46: 0.8585092348 | BF46: 0.8641688654 | BG46: 0.869828496 | BH46: 0.8754881266 | BI46: 0.8811477573 | BJ46: 0.8868073879 | BK46: 0.8924670185 | BL46: 0.8981266491 | BM46: 0.9037862797 | BN46: 0.9094459103 | BO46: 0.9151055409 | BP46: 0.9207651715 | BQ46: 0.9264248021 | BR46: 0.9320844327 | BS46: 0.9377440633 | BT46: 0.9434036939 | BU46: 0.9490633245 | BV46: 0.9547229551 | BW46: 0.9603825858 | BX46: 0.9660422164 | BY46: 0.971701847 | BZ46: 0.9773614776 | CA46: 0.9830211082 | CB46: 0.9886807388 | CC46: 0.9943403694
A47: 0.41 | B47: 0.5968839572 | C47: 0.5993438503 | D47: 0.6018740741 | E47: 0.6048365854 | F47: 0.6083645161 | G47: 0.6117693878 | H47: 0.6148857143 | I47: 0.6179040816 | J47: 0.6210103448 | K47: 0.6242517241 | L47: 0.6276118644 | M47: 0.631008 | N47: 0.6348296 | O47: 0.6389960784 | P47: 0.6433098039 | Q47: 0.6481023256 | R47: 0.6530008929 | S47: 0.6580616883 | T47: 0.6633214286 | U47: 0.6686145946 | V47: 0.6739278788 | W47: 0.6796248485 | X47: 0.685125974 | Y47: 0.6903207792 | Z47: 0.6956966767 | AA47: 0.7011045317 | AB47: 0.7065123867 | AC47: 0.7119321267 | AD47: 0.717361991 | AE47: 0.7227918552 | AF47: 0.7282217195 | AG47: 0.7336113208 | AH47: 0.7387056604 | AI47: 0.7438 | AJ47: 0.7488943396 | AK47: 0.7539695238 | AL47: 0.7590171429 | AM47: 0.7640647619 | AN47: 0.7690959248 | AO47: 0.7740802508 | AP47: 0.7790645768 | AQ47: 0.7840466877 | AR47: 0.7889993691 | AS47: 0.7939520505 | AT47: 0.7989047319 | AU47: 0.80365 | AV47: 0.8083722222 | AW47: 0.813097037 | AX47: 0.8179488889 | AY47: 0.8228007407 | AZ47: 0.8279353562 | BA47: 0.8336708443 | BB47: 0.8394063325 | BC47: 0.8451418206 | BD47: 0.8508773087 | BE47: 0.8566127968 | BF47: 0.862348285 | BG47: 0.8680837731 | BH47: 0.8738192612 | BI47: 0.8795547493 | BJ47: 0.8852902375 | BK47: 0.8910257256 | BL47: 0.8967612137 | BM47: 0.9024967018 | BN47: 0.90823219 | BO47: 0.9139676781 | BP47: 0.9197031662 | BQ47: 0.9254386544 | BR47: 0.9311741425 | BS47: 0.9369096306 | BT47: 0.9426451187 | BU47: 0.9483806069 | BV47: 0.954116095 | BW47: 0.9598515831 | BX47: 0.9655870712 | BY47: 0.9713225594 | BZ47: 0.9770580475 | CA47: 0.9827935356 | CB47: 0.9885290237 | CC47: 0.9942645119
A48: 0.42 | B48: 0.5877481283 | C48: 0.5903684492 | D48: 0.5930722222 | E48: 0.5961365854 | F48: 0.5997741935 | G48: 0.6033061224 | H48: 0.6064285714 | I48: 0.609627551 | J48: 0.6128448276 | K48: 0.6162241379 | L48: 0.619679661 | M48: 0.623232 | N48: 0.6271792 | O48: 0.6314686275 | P48: 0.6359784314 | Q48: 0.6407372093 | R48: 0.64565 | S48: 0.6508454545 | T48: 0.6563 | U48: 0.661807027 | V48: 0.6673327273 | W48: 0.6731509091 | X48: 0.6788019481 | Y48: 0.6841915584 | Z48: 0.6896480363 | AA48: 0.6951163142 | AB48: 0.7005845921 | AC48: 0.7061176471 | AD48: 0.7117058824 | AE48: 0.7172941176 | AF48: 0.7228823529 | AG48: 0.7284274933 | AH48: 0.7336566038 | AI48: 0.7388857143 | AJ48: 0.7441148248 | AK48: 0.7493346032 | AL48: 0.7545409524 | AM48: 0.7597473016 | AN48: 0.7649285266 | AO48: 0.7700382445 | AP48: 0.7751479624 | AQ48: 0.7802444795 | AR48: 0.7851656151 | AS48: 0.7900867508 | AT48: 0.7950078864 | AU48: 0.8 | AV48: 0.805 | AW48: 0.81 | AX48: 0.815 | AY48: 0.82 | AZ48: 0.8252638522 | BA48: 0.8310883905 | BB48: 0.8369129288 | BC48: 0.842737467 | BD48: 0.8485620053 | BE48: 0.8543865435 | BF48: 0.8602110818 | BG48: 0.8660356201 | BH48: 0.8718601583 | BI48: 0.8776846966 | BJ48: 0.8835092348 | BK48: 0.8893337731 | BL48: 0.8951583113 | BM48: 0.9009828496 | BN48: 0.9068073879 | BO48: 0.9126319261 | BP48: 0.9184564644 | BQ48: 0.9242810026 | BR48: 0.9301055409 | BS48: 0.9359300792 | BT48: 0.9417546174 | BU48: 0.9475791557 | BV48: 0.9534036939 | BW48: 0.9592282322 | BX48: 0.9650527704 | BY48: 0.9708773087 | BZ48: 0.976701847 | CA48: 0.9825263852 | CB48: 0.9883509235 | CC48: 0.9941754617
A49: 0.43 | B49: 0.5788983957 | C49: 0.581144385 | D49: 0.5839666667 | E49: 0.5873914634 | F49: 0.5911774194 | G49: 0.5950510204 | H49: 0.5981857143 | I49: 0.6014040816 | J49: 0.6045793103 | K49: 0.6080965517 | L49: 0.6118508475 | M49: 0.615532 | N49: 0.6195784 | O49: 0.6239686275 | P49: 0.6284784314 | Q49: 0.6333674419 | R49: 0.6385464286 | S49: 0.6438896104 | T49: 0.6492142857 | U49: 0.6549956757 | V49: 0.6608254545 | W49: 0.6664618182 | X49: 0.6721792208 | Y49: 0.6780233766 | Z49: 0.6836250755 | AA49: 0.6891839879 | AB49: 0.6947429003 | AC49: 0.700378733 | AD49: 0.7060800905 | AE49: 0.711781448 | AF49: 0.7174828054 | AG49: 0.7231501348 | AH49: 0.7285679245 | AI49: 0.7339857143 | AJ49: 0.739403504 | AK49: 0.7447866667 | AL49: 0.75012 | AM49: 0.7554533333 | AN49: 0.7607611285 | AO49: 0.7659962382 | AP49: 0.771231348 | AQ49: 0.7764599369 | AR49: 0.7816018927 | AS49: 0.7867438486 | AT49: 0.7918858044 | AU49: 0.7969625 | AV49: 0.8020319444 | AW49: 0.8071022222 | AX49: 0.8122133333 | AY49: 0.8173244444 | AZ49: 0.8226912929 | BA49: 0.8286015831 | BB49: 0.8345118734 | BC49: 0.8404221636 | BD49: 0.8463324538 | BE49: 0.8522427441 | BF49: 0.8581530343 | BG49: 0.8640633245 | BH49: 0.8699736148 | BI49: 0.875883905 | BJ49: 0.8817941953 | BK49: 0.8877044855 | BL49: 0.8936147757 | BM49: 0.899525066 | BN49: 0.9054353562 | BO49: 0.9113456464 | BP49: 0.9172559367 | BQ49: 0.9231662269 | BR49: 0.9290765172 | BS49: 0.9349868074 | BT49: 0.9408970976 | BU49: 0.9468073879 | BV49: 0.9527176781 | BW49: 0.9586279683 | BX49: 0.9645382586 | BY49: 0.9704485488 | BZ49: 0.9763588391 | CA49: 0.9822691293 | CB49: 0.9881794195 | CC49: 0.9940897098
A50: 0.44 | B50: 0.5701197861 | C50: 0.5724192513 | D50: 0.5753648148 | E50: 0.5788365854 | F50: 0.5826741935 | G50: 0.5866142857 | H50: 0.5898857143 | I50: 0.5930214286 | J50: 0.5965965517 | K50: 0.6001827586 | L50: 0.6040186441 | M50: 0.607856 | N50: 0.612028 | O50: 0.6165411765 | P50: 0.6212470588 | Q50: 0.6262976744 | R50: 0.6314482143 | S50: 0.6368292208 | T50: 0.6424785714 | U50: 0.6483437838 | V50: 0.6542351515 | W50: 0.6601139394 | X50: 0.6659538961 | Y50: 0.6717331169 | Z50: 0.6774791541 | AA50: 0.6832193353 | AB50: 0.6889595166 | AC50: 0.6947520362 | AD50: 0.7005891403 | AE50: 0.7064262443 | AF50: 0.7122633484 | AG50: 0.7180630728 | AH50: 0.7235886792 | AI50: 0.7291142857 | AJ50: 0.7346398922 | AK50: 0.7401387302 | AL50: 0.7455990476 | AM50: 0.7510593651 | AN50: 0.7565018809 | AO50: 0.7618937304 | AP50: 0.7672855799 | AQ50: 0.7726709779 | AR50: 0.7779706625 | AS50: 0.783270347 | AT50: 0.7885700315 | AU50: 0.79375625 | AV50: 0.7989298611 | AW50: 0.8041059259 | AX50: 0.8094022222 | AY50: 0.8146985185 | AZ50: 0.8202176781 | BA50: 0.8262104222 | BB50: 0.8322031662 | BC50: 0.8381959103 | BD50: 0.8441886544 | BE50: 0.8501813984 | BF50: 0.8561741425 | BG50: 0.8621668865 | BH50: 0.8681596306 | BI50: 0.8741523747 | BJ50: 0.8801451187 | BK50: 0.8861378628 | BL50: 0.8921306069 | BM50: 0.8981233509 | BN50: 0.904116095 | BO50: 0.9101088391 | BP50: 0.9161015831 | BQ50: 0.9220943272 | BR50: 0.9280870712 | BS50: 0.9340798153 | BT50: 0.9400725594 | BU50: 0.9460653034 | BV50: 0.9520580475 | BW50: 0.9580507916 | BX50: 0.9640435356 | BY50: 0.9700362797 | BZ50: 0.9760290237 | CA50: 0.9820217678 | CB50: 0.9880145119 | CC50: 0.9940072559
A51: 0.45 | B51: 0.5598262032 | C51: 0.5631417112 | D51: 0.566662963 | E51: 0.5702914634 | F51: 0.5741774194 | G51: 0.5782959184 | H51: 0.5817571429 | I51: 0.584944898 | J51: 0.5886310345 | K51: 0.5923551724 | L51: 0.5962864407 | M51: 0.60028 | N51: 0.6046272 | O51: 0.6092653595 | P51: 0.6140366013 | Q51: 0.6191627907 | R51: 0.6243482143 | S51: 0.629812987 | T51: 0.6356571429 | U51: 0.64164 | V51: 0.6476448485 | W51: 0.6537660606 | X51: 0.6597792208 | Y51: 0.6656233766 | Z51: 0.6715332326 | AA51: 0.6774546828 | AB51: 0.6833761329 | AC51: 0.6893131222 | AD51: 0.6952633484 | AE51: 0.7012135747 | AF51: 0.7071638009 | AG51: 0.7130792453 | AH51: 0.7187396226 | AI51: 0.7244 | AJ51: 0.7300603774 | AK51: 0.7357038095 | AL51: 0.7413228571 | AM51: 0.7469419048 | AN51: 0.7525018809 | AO51: 0.7578937304 | AP51: 0.7632855799 | AQ51: 0.7686842271 | AR51: 0.7741731861 | AS51: 0.7796621451 | AT51: 0.7851511041 | AU51: 0.790575 | AV51: 0.7959916667 | AW51: 0.8014051852 | AX51: 0.8066644444 | AY51: 0.8119237037 | AZ51: 0.8174472296 | BA51: 0.8235323219 | BB51: 0.8296174142 | BC51: 0.8357025066 | BD51: 0.8417875989 | BE51: 0.8478726913 | BF51: 0.8539577836 | BG51: 0.860042876 | BH51: 0.8661279683 | BI51: 0.8722130607 | BJ51: 0.878298153 | BK51: 0.8843832454 | BL51: 0.8904683377 | BM51: 0.8965534301 | BN51: 0.9026385224 | BO51: 0.9087236148 | BP51: 0.9148087071 | BQ51: 0.9208937995 | BR51: 0.9269788918 | BS51: 0.9330639842 | BT51: 0.9391490765 | BU51: 0.9452341689 | BV51: 0.9513192612 | BW51: 0.9574043536 | BX51: 0.9634894459 | BY51: 0.9695745383 | BZ51: 0.9756596306 | CA51: 0.981744723 | CB51: 0.9878298153 | CC51: 0.9939149077
A52: 0.46 | B52: 0.5514834225 | C52: 0.5546919786 | D52: 0.558162963 | E52: 0.5618463415 | F52: 0.565783871 | G52: 0.5700959184 | H52: 0.5737142857 | I52: 0.5769683673 | J52: 0.5807655172 | K52: 0.5846275862 | L52: 0.5886542373 | M52: 0.592804 | N52: 0.5973264 | O52: 0.6020895425 | P52: 0.6069261438 | Q52: 0.6122581395 | R52: 0.6175973214 | S52: 0.6231688312 | T52: 0.6291428571 | U52: 0.6350918919 | V52: 0.6410569697 | W52: 0.6474812121 | X52: 0.6537298701 | Y52: 0.6597038961 | Z52: 0.6659927492 | AA52: 0.6723371601 | AB52: 0.678681571 | AC52: 0.6847520362 | AD52: 0.6905891403 | AE52: 0.6964262443 | AF52: 0.7022633484 | AG52: 0.7080954178 | AH52: 0.713890566 | AI52: 0.7196857143 | AJ52: 0.7254808625 | AK52: 0.7312428571 | AL52: 0.7369571429 | AM52: 0.7426714286 | AN52: 0.7483507837 | AO52: 0.753930721 | AP52: 0.7595106583 | AQ52: 0.7650908517 | AR52: 0.7706744479 | AS52: 0.7762580442 | AT52: 0.7818416404 | AU52: 0.7874 | AV52: 0.7929555556 | AW52: 0.7985074074 | AX52: 0.8038777778 | AY52: 0.8092481481 | AZ52: 0.8148746702 | BA52: 0.8210455145 | BB52: 0.8272163588 | BC52: 0.8333872032 | BD52: 0.8395580475 | BE52: 0.8457288918 | BF52: 0.8518997361 | BG52: 0.8580705805 | BH52: 0.8642414248 | BI52: 0.8704122691 | BJ52: 0.8765831135 | BK52: 0.8827539578 | BL52: 0.8889248021 | BM52: 0.8950956464 | BN52: 0.9012664908 | BO52: 0.9074373351 | BP52: 0.9136081794 | BQ52: 0.9197790237 | BR52: 0.9259498681 | BS52: 0.9321207124 | BT52: 0.9382915567 | BU52: 0.9444624011 | BV52: 0.9506332454 | BW52: 0.9568040897 | BX52: 0.962974934 | BY52: 0.9691457784 | BZ52: 0.9753166227 | CA52: 0.981487467 | CB52: 0.9876583113 | CC52: 0.9938291557
A53: 0.47 | B53: 0.5433192513 | C53: 0.5463673797 | D53: 0.5496648148 | E53: 0.5533560976 | F53: 0.557483871 | G53: 0.5617959184 | H53: 0.5659571429 | I53: 0.5690918367 | J53: 0.5729827586 | K53: 0.5769137931 | L53: 0.5810898305 | M53: 0.585428 | N53: 0.5899768 | O53: 0.5948104575 | P53: 0.5999738562 | Q53: 0.6053581395 | R53: 0.6108446429 | S53: 0.6165967532 | T53: 0.6226357143 | U53: 0.6287362162 | V53: 0.6348618182 | W53: 0.6414072727 | X53: 0.6477551948 | Y53: 0.6537941558 | Z53: 0.660118429 | AA53: 0.6664930514 | AB53: 0.6728676737 | AC53: 0.679061991 | AD53: 0.6851027149 | AE53: 0.6911434389 | AF53: 0.6971841629 | AG53: 0.7032083558 | AH53: 0.7091113208 | AI53: 0.7150142857 | AJ53: 0.7209172507 | AK53: 0.7268079365 | AL53: 0.7326809524 | AM53: 0.7385539683 | AN53: 0.7443915361 | AO53: 0.7501282132 | AP53: 0.7558648903 | AQ53: 0.7615952681 | AR53: 0.7672419558 | AS53: 0.7728886435 | AT53: 0.7785353312 | AU53: 0.784225 | AV53: 0.7899194444 | AW53: 0.7956088889 | AX53: 0.8010533333 | AY53: 0.8064977778 | AZ53: 0.8122031662 | BA53: 0.8184630607 | BB53: 0.8247229551 | BC53: 0.8309828496 | BD53: 0.8372427441 | BE53: 0.8435026385 | BF53: 0.849762533 | BG53: 0.8560224274 | BH53: 0.8622823219 | BI53: 0.8685422164 | BJ53: 0.8748021108 | BK53: 0.8810620053 | BL53: 0.8873218997 | BM53: 0.8935817942 | BN53: 0.8998416887 | BO53: 0.9061015831 | BP53: 0.9123614776 | BQ53: 0.918621372 | BR53: 0.9248812665 | BS53: 0.9311411609 | BT53: 0.9374010554 | BU53: 0.9436609499 | BV53: 0.9499208443 | BW53: 0.9561807388 | BX53: 0.9624406332 | BY53: 0.9687005277 | BZ53: 0.9749604222 | CA53: 0.9812203166 | CB53: 0.9874802111 | CC53: 0.9937401055
A54: 0.48 | B54: 0.5347406417 | C54: 0.537842246 | D54: 0.5412138889 | E54: 0.5450109756 | F54: 0.5491870968 | G54: 0.553677551 | H54: 0.5579 | I54: 0.5612387755 | J54: 0.5653172414 | K54: 0.5693862069 | L54: 0.5737254237 | M54: 0.57819 | N54: 0.582876 | O54: 0.5878346405 | P54: 0.5930633987 | Q54: 0.5985883721 | R54: 0.60419375 | S54: 0.6100805195 | T54: 0.6163142857 | U54: 0.6225324324 | V54: 0.6287593939 | W54: 0.6352442424 | X54: 0.6416818182 | Y54: 0.6480454545 | Z54: 0.6544697885 | AA54: 0.6609048338 | AB54: 0.6673398792 | AC54: 0.6736352941 | AD54: 0.6798117647 | AE54: 0.6859882353 | AF54: 0.6921647059 | AG54: 0.6983245283 | AH54: 0.7043622642 | AI54: 0.7104 | AJ54: 0.7164377358 | AK54: 0.7224469841 | AL54: 0.7284152381 | AM54: 0.7343834921 | AN54: 0.7403241379 | AO54: 0.7461862069 | AP54: 0.7520482759 | AQ54: 0.7579041009 | AR54: 0.7636769716 | AS54: 0.7694498423 | AT54: 0.7752227129 | AU54: 0.78101875 | AV54: 0.7868173611 | AW54: 0.7926133333 | AX54: 0.79828 | AY54: 0.8039466667 | AZ54: 0.809828496 | BA54: 0.8161675462 | BB54: 0.8225065963 | BC54: 0.8288456464 | BD54: 0.8351846966 | BE54: 0.8415237467 | BF54: 0.8478627968 | BG54: 0.854201847 | BH54: 0.8605408971 | BI54: 0.8668799472 | BJ54: 0.8732189974 | BK54: 0.8795580475 | BL54: 0.8858970976 | BM54: 0.8922361478 | BN54: 0.8985751979 | BO54: 0.904914248 | BP54: 0.9112532982 | BQ54: 0.9175923483 | BR54: 0.9239313984 | BS54: 0.9302704485 | BT54: 0.9366094987 | BU54: 0.9429485488 | BV54: 0.9492875989 | BW54: 0.9556266491 | BX54: 0.9619656992 | BY54: 0.9683047493 | BZ54: 0.9746437995 | CA54: 0.9809828496 | CB54: 0.9873218997 | CC54: 0.9936609499
A55: 0.49 | B55: 0.5259834225 | C55: 0.5291919786 | D55: 0.532712037 | E55: 0.5367207317 | F55: 0.5409903226 | G55: 0.5456591837 | H55: 0.5500571429 | I55: 0.554027551 | J55: 0.5575034483 | K55: 0.5619172414 | L55: 0.5663932203 | M55: 0.570952 | N55: 0.5757752 | O55: 0.5808830065 | P55: 0.5862424837 | Q55: 0.5919186047 | R55: 0.5976428571 | S55: 0.6035246753 | T55: 0.6096285714 | U55: 0.6161210811 | V55: 0.6226569697 | W55: 0.6290812121 | X55: 0.6356337662 | Y55: 0.642387013 | Z55: 0.6489468278 | AA55: 0.6554725076 | AB55: 0.6619981873 | AC55: 0.6683963801 | AD55: 0.6746859729 | AE55: 0.6809755656 | AF55: 0.6872651584 | AG55: 0.6935374663 | AH55: 0.6996830189 | AI55: 0.7058285714 | AJ55: 0.711974124 | AK55: 0.7180990476 | AL55: 0.7241942857 | AM55: 0.7302895238 | AN55: 0.7363567398 | AO55: 0.7423442006 | AP55: 0.7483316614 | AQ55: 0.7543173502 | AR55: 0.7602794953 | AS55: 0.7662416404 | AT55: 0.7722037855 | AU55: 0.77805 | AV55: 0.7838833333 | AW55: 0.7897125926 | AX55: 0.7953422222 | AY55: 0.8009718519 | AZ55: 0.8068601583 | BA55: 0.813298153 | BB55: 0.8197361478 | BC55: 0.8261741425 | BD55: 0.8326121372 | BE55: 0.8390501319 | BF55: 0.8454881266 | BG55: 0.8519261214 | BH55: 0.8583641161 | BI55: 0.8648021108 | BJ55: 0.8712401055 | BK55: 0.8776781003 | BL55: 0.884116095 | BM55: 0.8905540897 | BN55: 0.8969920844 | BO55: 0.9034300792 | BP55: 0.9098680739 | BQ55: 0.9163060686 | BR55: 0.9227440633 | BS55: 0.929182058 | BT55: 0.9356200528 | BU55: 0.9420580475 | BV55: 0.9484960422 | BW55: 0.9549340369 | BX55: 0.9613720317 | BY55: 0.9678100264 | BZ55: 0.9742480211 | CA55: 0.9806860158 | CB55: 0.9871240106 | CC55: 0.9935620053
A56: 0.5 | B56: 0.5176834225 | C56: 0.5208919786 | D56: 0.5242157407 | E56: 0.528295122 | F56: 0.5328967742 | G56: 0.537677551 | H56: 0.5421714286 | I56: 0.5462744898 | J56: 0.549937931 | K56: 0.5544896552 | L56: 0.5589254237 | M56: 0.5637 | N56: 0.5687744 | O56: 0.5739830065 | P56: 0.5793424837 | Q56: 0.5852790698 | R56: 0.5912410714 | S56: 0.5972805195 | T56: 0.6035142857 | U56: 0.6101172973 | V56: 0.6167593939 | W56: 0.6232442424 | X56: 0.6300616883 | Y56: 0.6373993506 | Z56: 0.643918429 | AA56: 0.6502930514 | AB56: 0.6566676737 | AC56: 0.6630452489 | AD56: 0.6694253394 | AE56: 0.6758054299 | AF56: 0.6821855204 | AG56: 0.6885601078 | AH56: 0.6948943396 | AI56: 0.7012285714 | AJ56: 0.7075628032 | AK56: 0.7138511111 | AL56: 0.7200733333 | AM56: 0.7262955556 | AN56: 0.7324811912 | AO56: 0.7385626959 | AP56: 0.7446442006 | AQ56: 0.750726183 | AR56: 0.756814511 | AS56: 0.7629028391 | AT56: 0.7689911672 | AU56: 0.77494375 | AV56: 0.78088125 | AW56: 0.7868155556 | AX56: 0.7925933333 | AY56: 0.7983711111 | AZ56: 0.8043865435 | BA56: 0.8109069921 | BB56: 0.8174274406 | BC56: 0.8239478892 | BD56: 0.8304683377 | BE56: 0.8369887863 | BF56: 0.8435092348 | BG56: 0.8500296834 | BH56: 0.8565501319 | BI56: 0.8630705805 | BJ56: 0.869591029 | BK56: 0.8761114776 | BL56: 0.8826319261 | BM56: 0.8891523747 | BN56: 0.8956728232 | BO56: 0.9021932718 | BP56: 0.9087137203 | BQ56: 0.9152341689 | BR56: 0.9217546174 | BS56: 0.928275066 | BT56: 0.9347955145 | BU56: 0.9413159631 | BV56: 0.9478364116 | BW56: 0.9543568602 | BX56: 0.9608773087 | BY56: 0.9673977573 | BZ56: 0.9739182058 | CA56: 0.9804386544 | CB56: 0.9869591029 | CC56: 0.9934795515
A57: 0.51 | B57: 0.509068984 | C57: 0.5124914439 | D57: 0.5160138889 | E57: 0.5201402439 | F57: 0.5248967742 | G57: 0.5297591837 | H57: 0.5344857143 | I57: 0.538644898 | J57: 0.5425551724 | K57: 0.5471758621 | L57: 0.5517610169 | M57: 0.556724 | N57: 0.5618744 | O57: 0.5671797386 | P57: 0.5728006536 | Q57: 0.5787139535 | R57: 0.5847883929 | S57: 0.5910084416 | T57: 0.5973071429 | U57: 0.6040616216 | V57: 0.6108933333 | W57: 0.6182266667 | X57: 0.6253084416 | Y57: 0.6319967532 | Z57: 0.6384954683 | AA57: 0.6449607251 | AB57: 0.6514259819 | AC57: 0.6579063348 | AD57: 0.6643995475 | AE57: 0.6708927602 | AF57: 0.6773859729 | AG57: 0.6838730458 | AH57: 0.6903150943 | AI57: 0.6967571429 | AJ57: 0.7031991914 | AK57: 0.7096031746 | AL57: 0.715952381 | AM57: 0.7223015873 | AN57: 0.7286137931 | AO57: 0.7348206897 | AP57: 0.7410275862 | AQ57: 0.7472350158 | AR57: 0.7534495268 | AS57: 0.7596640379 | AT57: 0.7658785489 | AU57: 0.7719375 | AV57: 0.7779791667 | AW57: 0.7840177778 | AX57: 0.7899066667 | AY57: 0.7957955556 | AZ57: 0.8019129288 | BA57: 0.8085158311 | BB57: 0.8151187335 | BC57: 0.8217216359 | BD57: 0.8283245383 | BE57: 0.8349274406 | BF57: 0.841530343 | BG57: 0.8481332454 | BH57: 0.8547361478 | BI57: 0.8613390501 | BJ57: 0.8679419525 | BK57: 0.8745448549 | BL57: 0.8811477573 | BM57: 0.8877506596 | BN57: 0.894353562 | BO57: 0.9009564644 | BP57: 0.9075593668 | BQ57: 0.9141622691 | BR57: 0.9207651715 | BS57: 0.9273680739 | BT57: 0.9339709763 | BU57: 0.9405738786 | BV57: 0.947176781 | BW57: 0.9537796834 | BX57: 0.9603825858 | BY57: 0.9669854881 | BZ57: 0.9735883905 | CA57: 0.9801912929 | CB57: 0.9867941953 | CC57: 0.9933970976
A58: 0.52 | B58: 0.5006117647 | C58: 0.5041411765 | D58: 0.507812037 | E58: 0.512095122 | F58: 0.5169967742 | G58: 0.522022449 | H58: 0.5268428571 | I58: 0.5310918367 | J58: 0.5351724138 | K58: 0.539862069 | L58: 0.5451389831 | M58: 0.54999 | N58: 0.554924 | O58: 0.5603764706 | P58: 0.5662588235 | Q58: 0.5721488372 | R58: 0.5783848214 | S58: 0.5851435065 | T58: 0.5922214286 | U58: 0.5990616216 | V58: 0.6058763636 | W58: 0.6127854545 | X58: 0.6195577922 | Y58: 0.6261162338 | Z58: 0.6328009063 | AA58: 0.639507855 | AB58: 0.6462148036 | AC58: 0.6528674208 | AD58: 0.6594737557 | AE58: 0.6660800905 | AF58: 0.6726864253 | AG58: 0.6792924528 | AH58: 0.6858962264 | AI58: 0.6925 | AJ58: 0.6991037736 | AK58: 0.7056161905 | AL58: 0.7119971429 | AM58: 0.7183780952 | AN58: 0.7247382445 | AO58: 0.731039185 | AP58: 0.7373401254 | AQ58: 0.7436438486 | AR58: 0.7499845426 | AS58: 0.7563252366 | AT58: 0.7626659306 | AU58: 0.7688 | AV58: 0.7749111111 | AW58: 0.7810237037 | AX58: 0.7872088889 | AY58: 0.7933940741 | AZ58: 0.7997361478 | BA58: 0.8064116095 | BB58: 0.8130870712 | BC58: 0.819762533 | BD58: 0.8264379947 | BE58: 0.8331134565 | BF58: 0.8397889182 | BG58: 0.8464643799 | BH58: 0.8531398417 | BI58: 0.8598153034 | BJ58: 0.8664907652 | BK58: 0.8731662269 | BL58: 0.8798416887 | BM58: 0.8865171504 | BN58: 0.8931926121 | BO58: 0.8998680739 | BP58: 0.9065435356 | BQ58: 0.9132189974 | BR58: 0.9198944591 | BS58: 0.9265699208 | BT58: 0.9332453826 | BU58: 0.9399208443 | BV58: 0.9465963061 | BW58: 0.9532717678 | BX58: 0.9599472296 | BY58: 0.9666226913 | BZ58: 0.973298153 | CA58: 0.9799736148 | CB58: 0.9866490765 | CC58: 0.9933245383
A59: 0.53 | B59: 0.4921759358 | C59: 0.4958657754 | D59: 0.4996611111 | E59: 0.50405 | F59: 0.5090935484 | G59: 0.5142673469 | H59: 0.5191 | I59: 0.5238265306 | J59: 0.5286724138 | K59: 0.533362069 | L59: 0.5383 | M59: 0.543114 | N59: 0.5482232 | O59: 0.5539699346 | P59: 0.5603751634 | Q59: 0.566544186 | R59: 0.5725410714 | S59: 0.5789993506 | T59: 0.5862071429 | U59: 0.5931578378 | V59: 0.6000787879 | W59: 0.6070484848 | X59: 0.6139337662 | Y59: 0.620687013 | Z59: 0.6274779456 | AA59: 0.6342755287 | AB59: 0.6410731118 | AC59: 0.647840724 | AD59: 0.6545828054 | AE59: 0.6613248869 | AF59: 0.6680669683 | AG59: 0.6748021563 | AH59: 0.6814867925 | AI59: 0.6881714286 | AJ59: 0.6948560647 | AK59: 0.701468254 | AL59: 0.7079761905 | AM59: 0.714484127 | AN59: 0.7209708464 | AO59: 0.7273971787 | AP59: 0.733823511 | AQ59: 0.7402504732 | AR59: 0.7466858044 | AS59: 0.7531211356 | AT59: 0.7595564669 | AU59: 0.76579375 | AV59: 0.7720090278 | AW59: 0.7782266667 | AX59: 0.78456 | AY59: 0.7908933333 | AZ59: 0.7973614776 | BA59: 0.804116095 | BB59: 0.8108707124 | BC59: 0.8176253298 | BD59: 0.8243799472 | BE59: 0.8311345646 | BF59: 0.8378891821 | BG59: 0.8446437995 | BH59: 0.8513984169 | BI59: 0.8581530343 | BJ59: 0.8649076517 | BK59: 0.8716622691 | BL59: 0.8784168865 | BM59: 0.885171504 | BN59: 0.8919261214 | BO59: 0.8986807388 | BP59: 0.9054353562 | BQ59: 0.9121899736 | BR59: 0.918944591 | BS59: 0.9256992084 | BT59: 0.9324538259 | BU59: 0.9392084433 | BV59: 0.9459630607 | BW59: 0.9527176781 | BX59: 0.9594722955 | BY59: 0.9662269129 | BZ59: 0.9729815303 | CA59: 0.9797361478 | CB59: 0.9864907652 | CC59: 0.9932453826
A60: 0.54 | B60: 0.4840545455 | C60: 0.4876909091 | D60: 0.4915592593 | E60: 0.4961597561 | F60: 0.5012967742 | G60: 0.5065673469 | H60: 0.5116571429 | I60: 0.5163795918 | J60: 0.5211758621 | K60: 0.5262793103 | L60: 0.5309610169 | M60: 0.536544 | N60: 0.5419752 | O60: 0.5475183007 | P60: 0.5540542484 | Q60: 0.5603093023 | R60: 0.5667339286 | S60: 0.5734318182 | T60: 0.58025 | U60: 0.5873021622 | V60: 0.5943812121 | W60: 0.6014115152 | X60: 0.6083337662 | Y60: 0.615087013 | Z60: 0.6220320242 | AA60: 0.6290108761 | AB60: 0.6359897281 | AC60: 0.6428895928 | AD60: 0.6497221719 | AE60: 0.6565547511 | AF60: 0.6633873303 | AG60: 0.6702183288 | AH60: 0.6770377358 | AI60: 0.6838571429 | AJ60: 0.6906765499 | AK60: 0.6974073016 | AL60: 0.7040104762 | AM60: 0.7106136508 | AN60: 0.7172034483 | AO60: 0.7237551724 | AP60: 0.7303068966 | AQ60: 0.7368548896 | AR60: 0.7433533123 | AS60: 0.749851735 | AT60: 0.7563501577 | AU60: 0.76278125 | AV60: 0.7692048611 | AW60: 0.7756281481 | AX60: 0.7820355556 | AY60: 0.788442963 | AZ60: 0.7949868074 | BA60: 0.8018205805 | BB60: 0.8086543536 | BC60: 0.8154881266 | BD60: 0.8223218997 | BE60: 0.8291556728 | BF60: 0.8359894459 | BG60: 0.842823219 | BH60: 0.8496569921 | BI60: 0.8564907652 | BJ60: 0.8633245383 | BK60: 0.8701583113 | BL60: 0.8769920844 | BM60: 0.8838258575 | BN60: 0.8906596306 | BO60: 0.8974934037 | BP60: 0.9043271768 | BQ60: 0.9111609499 | BR60: 0.917994723 | BS60: 0.924828496 | BT60: 0.9316622691 | BU60: 0.9384960422 | BV60: 0.9453298153 | BW60: 0.9521635884 | BX60: 0.9589973615 | BY60: 0.9658311346 | BZ60: 0.9726649077 | CA60: 0.9794986807 | CB60: 0.9863324538 | CC60: 0.9931662269
A61: 0.55 | B61: 0.475840107 | C61: 0.4796903743 | D61: 0.4836592593 | E61: 0.4883146341 | F61: 0.4936 | G61: 0.4990489796 | H61: 0.5041571429 | I61: 0.5092030612 | J61: 0.5141103448 | K61: 0.5193517241 | L61: 0.5246033898 | M61: 0.530072 | N61: 0.5357216 | O61: 0.5415490196 | P61: 0.547627451 | Q61: 0.5540046512 | R61: 0.5606321429 | S61: 0.5674876623 | T61: 0.5744357143 | U61: 0.5815502703 | V61: 0.5886787879 | W61: 0.5956484848 | X61: 0.6026603896 | Y61: 0.6097383117 | Z61: 0.6168347432 | AA61: 0.6239344411 | AB61: 0.631034139 | AC61: 0.6380506787 | AD61: 0.6449963801 | AE61: 0.6519420814 | AF61: 0.6588877828 | AG61: 0.6658280323 | AH61: 0.6727283019 | AI61: 0.6796285714 | AJ61: 0.686528841 | AK61: 0.6933593651 | AL61: 0.7000895238 | AM61: 0.7068196825 | AN61: 0.7135278997 | AO61: 0.7201736677 | AP61: 0.7268194357 | AQ61: 0.7334637224 | AR61: 0.7400883281 | AS61: 0.7467129338 | AT61: 0.7533375394 | AU61: 0.75984375 | AV61: 0.7663368056 | AW61: 0.7728296296 | AX61: 0.7793111111 | AY61: 0.7857925926 | AZ61: 0.792414248 | BA61: 0.7993337731 | BB61: 0.8062532982 | BC61: 0.8131728232 | BD61: 0.8200923483 | BE61: 0.8270118734 | BF61: 0.8339313984 | BG61: 0.8408509235 | BH61: 0.8477704485 | BI61: 0.8546899736 | BJ61: 0.8616094987 | BK61: 0.8685290237 | BL61: 0.8754485488 | BM61: 0.8823680739 | BN61: 0.8892875989 | BO61: 0.896207124 | BP61: 0.9031266491 | BQ61: 0.9100461741 | BR61: 0.9169656992 | BS61: 0.9238852243 | BT61: 0.9308047493 | BU61: 0.9377242744 | BV61: 0.9446437995 | BW61: 0.9515633245 | BX61: 0.9584828496 | BY61: 0.9654023747 | BZ61: 0.9723218997 | CA61: 0.9792414248 | CB61: 0.9861609499 | CC61: 0.9930804749
A62: 0.56 | B62: 0.4676614973 | C62: 0.4715652406 | D62: 0.4757064815 | E62: 0.4805695122 | F62: 0.4859064516 | G62: 0.4915489796 | H62: 0.4968571429 | I62: 0.5018969388 | J62: 0.5071275862 | K62: 0.512437931 | L62: 0.5178389831 | M62: 0.52331 | N62: 0.52912 | O62: 0.5351973856 | P62: 0.5414065359 | Q62: 0.5478046512 | R62: 0.55448125 | S62: 0.5614155844 | T62: 0.5684285714 | U62: 0.5755502703 | V62: 0.5826957576 | W62: 0.590089697 | X62: 0.5973857143 | Y62: 0.6045285714 | Z62: 0.6116347432 | AA62: 0.6187344411 | AB62: 0.625834139 | AC62: 0.6329361991 | AD62: 0.6400402715 | AE62: 0.6471443439 | AF62: 0.6542484163 | AG62: 0.6613409704 | AH62: 0.6683490566 | AI62: 0.6753571429 | AJ62: 0.6823652291 | AK62: 0.6892984127 | AL62: 0.6961238095 | AM62: 0.7029492063 | AN62: 0.7097605016 | AO62: 0.7165316614 | AP62: 0.7233028213 | AQ62: 0.7300747634 | AR62: 0.7368570978 | AS62: 0.7436394322 | AT62: 0.7504217666 | AU62: 0.7570375 | AV62: 0.7636347222 | AW62: 0.7702318519 | AX62: 0.7768244444 | AY62: 0.783417037 | AZ62: 0.7901385224 | BA62: 0.797133905 | BB62: 0.8041292876 | BC62: 0.8111246702 | BD62: 0.8181200528 | BE62: 0.8251154354 | BF62: 0.8321108179 | BG62: 0.8391062005 | BH62: 0.8461015831 | BI62: 0.8530969657 | BJ62: 0.8600923483 | BK62: 0.8670877309 | BL62: 0.8740831135 | BM62: 0.881078496 | BN62: 0.8880738786 | BO62: 0.8950692612 | BP62: 0.9020646438 | BQ62: 0.9090600264 | BR62: 0.916055409 | BS62: 0.9230507916 | BT62: 0.9300461741 | BU62: 0.9370415567 | BV62: 0.9440369393 | BW62: 0.9510323219 | BX62: 0.9580277045 | BY62: 0.9650230871 | BZ62: 0.9720184697 | CA62: 0.9790138522 | CB62: 0.9860092348 | CC62: 0.9930046174
A63: 0.57 | B63: 0.4586251337 | C63: 0.4634379679 | D63: 0.4680064815 | E63: 0.4729243902 | F63: 0.4784096774 | G63: 0.4841489796 | H63: 0.4896142857 | I63: 0.4948204082 | J63: 0.5001448276 | K63: 0.5055241379 | L63: 0.5111423729 | M63: 0.516772 | N63: 0.5226696 | O63: 0.5288699346 | P63: 0.5352751634 | Q63: 0.5417697674 | R63: 0.5485794643 | S63: 0.5555876623 | T63: 0.5625357143 | U63: 0.5698427027 | V63: 0.5771957576 | W63: 0.584589697 | X63: 0.5919616883 | Y63: 0.5992993506 | Z63: 0.6065374622 | AA63: 0.613758006 | AB63: 0.6209785498 | AC63: 0.6281972851 | AD63: 0.6354144796 | AE63: 0.6426316742 | AF63: 0.6498488688 | AG63: 0.6570506739 | AH63: 0.6641396226 | AI63: 0.6712285714 | AJ63: 0.6783175202 | AK63: 0.6853504762 | AL63: 0.6923028571 | AM63: 0.6992552381 | AN63: 0.706184953 | AO63: 0.7130501567 | AP63: 0.7199153605 | AQ63: 0.7267791798 | AR63: 0.7336246057 | AS63: 0.7404700315 | AT63: 0.7473154574 | AU63: 0.7540625 | AV63: 0.7607986111 | AW63: 0.7675340741 | AX63: 0.7742377778 | AY63: 0.7809414815 | AZ63: 0.7877638522 | BA63: 0.7948383905 | BB63: 0.8019129288 | BC63: 0.808987467 | BD63: 0.8160620053 | BE63: 0.8231365435 | BF63: 0.8302110818 | BG63: 0.8372856201 | BH63: 0.8443601583 | BI63: 0.8514346966 | BJ63: 0.8585092348 | BK63: 0.8655837731 | BL63: 0.8726583113 | BM63: 0.8797328496 | BN63: 0.8868073879 | BO63: 0.8938819261 | BP63: 0.9009564644 | BQ63: 0.9080310026 | BR63: 0.9151055409 | BS63: 0.9221800792 | BT63: 0.9292546174 | BU63: 0.9363291557 | BV63: 0.9434036939 | BW63: 0.9504782322 | BX63: 0.9575527704 | BY63: 0.9646273087 | BZ63: 0.971701847 | CA63: 0.9787763852 | CB63: 0.9858509235 | CC63: 0.9929254617
A64: 0.58 | B64: 0.4510609626 | C64: 0.455713369 | D64: 0.4603046296 | E64: 0.4653792683 | F64: 0.4710096774 | G64: 0.4765857143 | H64: 0.4825142857 | I64: 0.4878204082 | J64: 0.4931965517 | K64: 0.4987827586 | L64: 0.5045779661 | M64: 0.510396 | N64: 0.5164192 | O64: 0.5227183007 | P64: 0.5292542484 | Q64: 0.5358348837 | R64: 0.5427776786 | S64: 0.5499155844 | T64: 0.5569285714 | U64: 0.5642908108 | V64: 0.5717030303 | W64: 0.5792787879 | X64: 0.586787013 | Y64: 0.5941896104 | Z64: 0.6015145015 | AA64: 0.6088256798 | AB64: 0.616136858 | AC64: 0.623458371 | AD64: 0.6307886878 | AE64: 0.6381190045 | AF64: 0.6454493213 | AG64: 0.6527603774 | AH64: 0.6599301887 | AI64: 0.6671 | AJ64: 0.6742698113 | AK64: 0.6813895238 | AL64: 0.6884371429 | AM64: 0.6954847619 | AN64: 0.7025094044 | AO64: 0.709468652 | AP64: 0.7164278997 | AQ64: 0.7233880126 | AR64: 0.7303596215 | AS64: 0.7373312303 | AT64: 0.7443028391 | AU64: 0.75115625 | AV64: 0.7579965278 | AW64: 0.764837037 | AX64: 0.7716888889 | AY64: 0.7785407407 | AZ64: 0.7854881266 | BA64: 0.7926385224 | BB64: 0.7997889182 | BC64: 0.806939314 | BD64: 0.8140897098 | BE64: 0.8212401055 | BF64: 0.8283905013 | BG64: 0.8355408971 | BH64: 0.8426912929 | BI64: 0.8498416887 | BJ64: 0.8569920844 | BK64: 0.8641424802 | BL64: 0.871292876 | BM64: 0.8784432718 | BN64: 0.8855936675 | BO64: 0.8927440633 | BP64: 0.8998944591 | BQ64: 0.9070448549 | BR64: 0.9141952507 | BS64: 0.9213456464 | BT64: 0.9284960422 | BU64: 0.935646438 | BV64: 0.9427968338 | BW64: 0.9499472296 | BX64: 0.9570976253 | BY64: 0.9642480211 | BZ64: 0.9713984169 | CA64: 0.9785488127 | CB64: 0.9856992084 | CC64: 0.9928496042
A65: 0.59 | B65: 0.4433465241 | C65: 0.4482128342 | D65: 0.4528064815 | E65: 0.4578341463 | F65: 0.4635193548 | G65: 0.4694673469 | H65: 0.4753142857 | I65: 0.4807673469 | J65: 0.4863482759 | K65: 0.4921413793 | L65: 0.4981135593 | M65: 0.504058 | N65: 0.5102184 | O65: 0.5166424837 | P65: 0.5232437908 | Q65: 0.5299651163 | R65: 0.5368303571 | S65: 0.5439831169 | T65: 0.5513857143 | U65: 0.558887027 | V65: 0.5664054545 | W65: 0.5740418182 | X65: 0.5816376623 | Y65: 0.5891701299 | Z65: 0.5965915408 | AA65: 0.6039933535 | AB65: 0.6113951662 | AC65: 0.6188438914 | AD65: 0.6263325792 | AE65: 0.633821267 | AF65: 0.6413099548 | AG65: 0.6487603774 | AH65: 0.6559301887 | AI65: 0.6631 | AJ65: 0.6702698113 | AK65: 0.6774415873 | AL65: 0.6846161905 | AM65: 0.6917907937 | AN65: 0.6989420063 | AO65: 0.7060266458 | AP65: 0.7131112853 | AQ65: 0.720192429 | AR65: 0.7272271293 | AS65: 0.7342618297 | AT65: 0.74129653 | AU65: 0.74828125 | AV65: 0.7552604167 | AW65: 0.7622392593 | AX65: 0.7692022222 | AY65: 0.7761651852 | AZ65: 0.7832124011 | BA65: 0.7904386544 | BB65: 0.7976649077 | BC65: 0.8048911609 | BD65: 0.8121174142 | BE65: 0.8193436675 | BF65: 0.8265699208 | BG65: 0.8337961741 | BH65: 0.8410224274 | BI65: 0.8482486807 | BJ65: 0.855474934 | BK65: 0.8627011873 | BL65: 0.8699274406 | BM65: 0.8771536939 | BN65: 0.8843799472 | BO65: 0.8916062005 | BP65: 0.8988324538 | BQ65: 0.9060587071 | BR65: 0.9132849604 | BS65: 0.9205112137 | BT65: 0.927737467 | BU65: 0.9349637203 | BV65: 0.9421899736 | BW65: 0.9494162269 | BX65: 0.9566424802 | BY65: 0.9638687335 | BZ65: 0.9710949868 | CA65: 0.9783212401 | CB65: 0.9855474934 | CC65: 0.9927737467
A66: 0.6 | B66: 0.4353181818 | C66: 0.4398636364 | D66: 0.4448953704 | E66: 0.4505341463 | F66: 0.4563193548 | G66: 0.4623489796 | H66: 0.4683285714 | I66: 0.4739908163 | J66: 0.4796827586 | K66: 0.4856137931 | L66: 0.4916813559 | M66: 0.497782 | N66: 0.5040184 | O66: 0.5104666667 | P66: 0.5171333333 | Q66: 0.5240604651 | R66: 0.5311285714 | S66: 0.538411039 | T66: 0.5458785714 | U66: 0.553387027 | V66: 0.5609127273 | W66: 0.5687309091 | X66: 0.576462987 | Y66: 0.5840603896 | Z66: 0.5916199396 | AA66: 0.5991728097 | AB66: 0.6067256798 | AC66: 0.6142927602 | AD66: 0.6218719457 | AE66: 0.6294511312 | AF66: 0.6370303167 | AG66: 0.6445700809 | AH66: 0.6518207547 | AI66: 0.6590714286 | AJ66: 0.6663221024 | AK66: 0.6735936508 | AL66: 0.6808952381 | AM66: 0.6881968254 | AN66: 0.6954583072 | AO66: 0.7026056426 | AP66: 0.7097529781 | AQ66: 0.7169012618 | AR66: 0.7240621451 | AS66: 0.7312230284 | AT66: 0.7383839117 | AU66: 0.745475 | AV66: 0.7525583333 | AW66: 0.7596407407 | AX66: 0.7666777778 | AY66: 0.7737148148 | AZ66: 0.7808377309 | BA66: 0.7881431398 | BB66: 0.7954485488 | BC66: 0.8027539578 | BD66: 0.8100593668 | BE66: 0.8173647757 | BF66: 0.8246701847 | BG66: 0.8319755937 | BH66: 0.8392810026 | BI66: 0.8465864116 | BJ66: 0.8538918206 | BK66: 0.8611972296 | BL66: 0.8685026385 | BM66: 0.8758080475 | BN66: 0.8831134565 | BO66: 0.8904188654 | BP66: 0.8977242744 | BQ66: 0.9050296834 | BR66: 0.9123350923 | BS66: 0.9196405013 | BT66: 0.9269459103 | BU66: 0.9342513193 | BV66: 0.9415567282 | BW66: 0.9488621372 | BX66: 0.9561675462 | BY66: 0.9634729551 | BZ66: 0.9707783641 | CA66: 0.9780837731 | CB66: 0.9853891821 | CC66: 0.992694591
A67: 0.61 | B67: 0.4280967914 | C67: 0.4325887701 | D67: 0.4375953704 | E67: 0.4432341463 | F67: 0.4491225806 | G67: 0.4553306122 | H67: 0.4614857143 | I67: 0.4672377551 | J67: 0.4731172414 | K67: 0.4791862069 | L67: 0.4853491525 | M67: 0.491544 | N67: 0.4979176 | O67: 0.5045392157 | P67: 0.5114019608 | Q67: 0.5184255814 | R67: 0.5255285714 | S67: 0.5328948052 | T67: 0.5405571429 | U67: 0.5481351351 | V67: 0.5557175758 | W67: 0.5636569697 | X67: 0.571462987 | Y67: 0.5790603896 | Z67: 0.5866969789 | AA67: 0.5943404834 | AB67: 0.6019839879 | AC67: 0.609641629 | AD67: 0.6173113122 | AE67: 0.6249809955 | AF67: 0.6326506787 | AG67: 0.6402862534 | AH67: 0.6476716981 | AI67: 0.6550571429 | AJ67: 0.6624425876 | AK67: 0.6698196825 | AL67: 0.6771847619 | AM67: 0.6845498413 | AN67: 0.6918909091 | AO67: 0.6991636364 | AP67: 0.7064363636 | AQ67: 0.7137078864 | AR67: 0.7209634069 | AS67: 0.7282189274 | AT67: 0.7354744479 | AU67: 0.74266875 | AV67: 0.74985625 | AW67: 0.757042963 | AX67: 0.7641911111 | AY67: 0.7713392593 | AZ67: 0.7785620053 | BA67: 0.7859432718 | BB67: 0.7933245383 | BC67: 0.8007058047 | BD67: 0.8080870712 | BE67: 0.8154683377 | BF67: 0.8228496042 | BG67: 0.8302308707 | BH67: 0.8376121372 | BI67: 0.8449934037 | BJ67: 0.8523746702 | BK67: 0.8597559367 | BL67: 0.8671372032 | BM67: 0.8745184697 | BN67: 0.8818997361 | BO67: 0.8892810026 | BP67: 0.8966622691 | BQ67: 0.9040435356 | BR67: 0.9114248021 | BS67: 0.9188060686 | BT67: 0.9261873351 | BU67: 0.9335686016 | BV67: 0.9409498681 | BW67: 0.9483311346 | BX67: 0.9557124011 | BY67: 0.9630936675 | BZ67: 0.970474934 | CA67: 0.9778562005 | CB67: 0.985237467 | CC67: 0.9926187335
A68: 0.62 | B68: 0.4206395722 | C68: 0.4252385027 | D68: 0.4302953704 | E68: 0.4359890244 | F68: 0.4420258065 | G68: 0.4483306122 | H68: 0.4546428571 | I68: 0.4605846939 | J68: 0.4666344828 | K68: 0.4727724138 | L68: 0.4790847458 | M68: 0.485406 | N68: 0.4919168 | O68: 0.4986875817 | P68: 0.5056810458 | Q68: 0.5127906977 | R68: 0.5200267857 | S68: 0.5275227273 | T68: 0.53525 | U68: 0.5429313514 | V68: 0.55062 | W68: 0.55862 | X68: 0.5665136364 | Y68: 0.5742409091 | Z68: 0.5819740181 | AA68: 0.5897081571 | AB68: 0.5974422961 | AC68: 0.6051660633 | AD68: 0.6128809955 | AE68: 0.6205959276 | AF68: 0.6283108597 | AG68: 0.6360024259 | AH68: 0.6435226415 | AI68: 0.6510428571 | AJ68: 0.6585630728 | AK68: 0.6660587302 | AL68: 0.6735190476 | AM68: 0.6809793651 | AN68: 0.6884153605 | AO68: 0.6957821317 | AP68: 0.7031489028 | AQ68: 0.710514511 | AR68: 0.7178646688 | AS68: 0.7252148265 | AT68: 0.7325649842 | AU68: 0.73989375 | AV68: 0.7472201389 | AW68: 0.7545437037 | AX68: 0.7617288889 | AY68: 0.7689140741 | AZ68: 0.7761873351 | BA68: 0.7836477573 | BB68: 0.7911081794 | BC68: 0.7985686016 | BD68: 0.8060290237 | BE68: 0.8134894459 | BF68: 0.8209498681 | BG68: 0.8284102902 | BH68: 0.8358707124 | BI68: 0.8433311346 | BJ68: 0.8507915567 | BK68: 0.8582519789 | BL68: 0.8657124011 | BM68: 0.8731728232 | BN68: 0.8806332454 | BO68: 0.8880936675 | BP68: 0.8955540897 | BQ68: 0.9030145119 | BR68: 0.910474934 | BS68: 0.9179353562 | BT68: 0.9253957784 | BU68: 0.9328562005 | BV68: 0.9403166227 | BW68: 0.9477770449 | BX68: 0.955237467 | BY68: 0.9626978892 | BZ68: 0.9701583113 | CA68: 0.9776187335 | CB68: 0.9850791557 | CC68: 0.9925395778
A69: 0.63 | B69: 0.4133395722 | C69: 0.4179385027 | D69: 0.4230444444 | E69: 0.4288987805 | F69: 0.4353096774 | G69: 0.4414571429 | H69: 0.448 | I69: 0.4539316327 | J69: 0.4601862069 | K69: 0.4665310345 | L69: 0.4729525424 | M69: 0.479368 | N69: 0.486016 | O69: 0.4929359477 | P69: 0.5000601307 | Q69: 0.507255814 | R69: 0.5145758929 | S69: 0.5221227273 | T69: 0.52985 | U69: 0.5376756757 | V69: 0.5455248485 | W69: 0.5536460606 | X69: 0.5616642857 | Y69: 0.5695214286 | Z69: 0.5773510574 | AA69: 0.5851758308 | AB69: 0.5930006042 | AC69: 0.6008149321 | AD69: 0.608620362 | AE69: 0.6164257919 | AF69: 0.6242312217 | AG69: 0.6320121294 | AH69: 0.6396132075 | AI69: 0.6472142857 | AJ69: 0.6548153639 | AK69: 0.6623847619 | AL69: 0.6699085714 | AM69: 0.677432381 | AN69: 0.6849398119 | AO69: 0.692400627 | AP69: 0.699861442 | AQ69: 0.7073233438 | AR69: 0.7147996845 | AS69: 0.7222760252 | AT69: 0.7297523659 | AU69: 0.73715625 | AV69: 0.7445520833 | AW69: 0.7519459259 | AX69: 0.7592422222 | AY69: 0.7665385185 | AZ69: 0.7739116095 | BA69: 0.7814478892 | BB69: 0.7889841689 | BC69: 0.7965204485 | BD69: 0.8040567282 | BE69: 0.8115930079 | BF69: 0.8191292876 | BG69: 0.8266655673 | BH69: 0.834201847 | BI69: 0.8417381266 | BJ69: 0.8492744063 | BK69: 0.856810686 | BL69: 0.8643469657 | BM69: 0.8718832454 | BN69: 0.8794195251 | BO69: 0.8869558047 | BP69: 0.8944920844 | BQ69: 0.9020283641 | BR69: 0.9095646438 | BS69: 0.9171009235 | BT69: 0.9246372032 | BU69: 0.9321734828 | BV69: 0.9397097625 | BW69: 0.9472460422 | BX69: 0.9547823219 | BY69: 0.9623186016 | BZ69: 0.9698548813 | CA69: 0.9773911609 | CB69: 0.9849274406 | CC69: 0.9924637203
A70: 0.64 | B70: 0.4058465241 | C70: 0.4107128342 | D70: 0.4159935185 | E70: 0.4219536585 | F70: 0.4285096774 | G70: 0.4347387755 | H70: 0.4411571429 | I70: 0.447455102 | J70: 0.4538206897 | K70: 0.4603034483 | L70: 0.466820339 | M70: 0.473392 | N70: 0.4801656 | O70: 0.4871843137 | P70: 0.4944392157 | Q70: 0.5017860465 | R70: 0.509225 | S70: 0.5168506494 | T70: 0.5246428571 | U70: 0.53262 | V70: 0.5406272727 | W70: 0.5488090909 | X70: 0.5568896104 | Y70: 0.5648116883 | Z70: 0.5727024169 | AA70: 0.5805876133 | AB70: 0.5884728097 | AC70: 0.5963638009 | AD70: 0.6042597285 | AE70: 0.6121556561 | AF70: 0.6200515837 | AG70: 0.6279218329 | AH70: 0.6356037736 | AI70: 0.6432857143 | AJ70: 0.650967655 | AK70: 0.6586368254 | AL70: 0.666287619 | AM70: 0.6739384127 | AN70: 0.6815642633 | AO70: 0.6891191223 | AP70: 0.6966739812 | AQ70: 0.7042277603 | AR70: 0.7117671924 | AS70: 0.7193066246 | AT70: 0.7268460568 | AU70: 0.73435 | AV70: 0.74185 | AW70: 0.7493466667 | AX70: 0.75668 | AY70: 0.7640133333 | AZ70: 0.7714379947 | BA70: 0.7790567282 | BB70: 0.7866754617 | BC70: 0.7942941953 | BD70: 0.8019129288 | BE70: 0.8095316623 | BF70: 0.8171503958 | BG70: 0.8247691293 | BH70: 0.8323878628 | BI70: 0.8400065963 | BJ70: 0.8476253298 | BK70: 0.8552440633 | BL70: 0.8628627968 | BM70: 0.8704815303 | BN70: 0.8781002639 | BO70: 0.8857189974 | BP70: 0.8933377309 | BQ70: 0.9009564644 | BR70: 0.9085751979 | BS70: 0.9161939314 | BT70: 0.9238126649 | BU70: 0.9314313984 | BV70: 0.9390501319 | BW70: 0.9466688654 | BX70: 0.9542875989 | BY70: 0.9619063325 | BZ70: 0.969525066 | CA70: 0.9771437995 | CB70: 0.984762533 | CC70: 0.9923812665
A71: 0.65 | B71: 0.3989037433 | C71: 0.4036631016 | D71: 0.4089425926 | E71: 0.4149536585 | F71: 0.4217129032 | G71: 0.4281204082 | H71: 0.4346142857 | I71: 0.441055102 | J71: 0.4474724138 | K71: 0.454162069 | L71: 0.4608559322 | M71: 0.467554 | N71: 0.4744648 | O71: 0.4816084967 | P71: 0.4889287582 | Q71: 0.4964162791 | R71: 0.5039741071 | S71: 0.5117064935 | T71: 0.5196285714 | U71: 0.5276681081 | V71: 0.5357272727 | W71: 0.5439090909 | X71: 0.5520402597 | Y71: 0.5600922078 | Z71: 0.568105136 | AA71: 0.5761111782 | AB71: 0.5841172205 | AC71: 0.5921004525 | AD71: 0.6000642534 | AE71: 0.6080280543 | AF71: 0.6159918552 | AG71: 0.6239347709 | AH71: 0.6317245283 | AI71: 0.6395142857 | AJ71: 0.6473040431 | AK71: 0.6550628571 | AL71: 0.6627771429 | AM71: 0.6704914286 | AN71: 0.6781887147 | AO71: 0.6858376176 | AP71: 0.6934865204 | AQ71: 0.7011365931 | AR71: 0.7088022082 | AS71: 0.7164678233 | AT71: 0.7241334385 | AU71: 0.7317125 | AV71: 0.7392819444 | AW71: 0.7468496296 | AX71: 0.7543311111 | AY71: 0.7618125926 | AZ71: 0.7693601583 | BA71: 0.777048153 | BB71: 0.7847361478 | BC71: 0.7924241425 | BD71: 0.8001121372 | BE71: 0.8078001319 | BF71: 0.8154881266 | BG71: 0.8231761214 | BH71: 0.8308641161 | BI71: 0.8385521108 | BJ71: 0.8462401055 | BK71: 0.8539281003 | BL71: 0.861616095 | BM71: 0.8693040897 | BN71: 0.8769920844 | BO71: 0.8846800792 | BP71: 0.8923680739 | BQ71: 0.9000560686 | BR71: 0.9077440633 | BS71: 0.915432058 | BT71: 0.9231200528 | BU71: 0.9308080475 | BV71: 0.9384960422 | BW71: 0.9461840369 | BX71: 0.9538720317 | BY71: 0.9615600264 | BZ71: 0.9692480211 | CA71: 0.9769360158 | CB71: 0.9846240106 | CC71: 0.9923120053
A72: 0.66 | B72: 0.3916893048 | C72: 0.3966625668 | D72: 0.4020425926 | E72: 0.4081634146 | F72: 0.415016129 | G72: 0.4216020408 | H72: 0.4282142857 | I72: 0.4347785714 | J72: 0.4412896552 | K72: 0.4480482759 | L72: 0.4548915254 | M72: 0.461778 | N72: 0.4688144 | O72: 0.4760568627 | P72: 0.4835078431 | Q72: 0.4910813953 | R72: 0.4987232143 | S72: 0.5065623377 | T72: 0.5146142857 | U72: 0.5227643243 | V72: 0.530929697 | W72: 0.5391721212 | X72: 0.5473909091 | Y72: 0.5555727273 | Z72: 0.5637848943 | AA72: 0.5720024169 | AB72: 0.5802199396 | AC72: 0.5882882353 | AD72: 0.5962294118 | AE72: 0.6041705882 | AF72: 0.6121117647 | AG72: 0.6200444744 | AH72: 0.6279150943 | AI72: 0.6357857143 | AJ72: 0.6436563342 | AK72: 0.6515019048 | AL72: 0.6593114286 | AM72: 0.6671209524 | AN72: 0.6749050157 | AO72: 0.6826166144 | AP72: 0.6903282132 | AQ72: 0.6980410095 | AR72: 0.7057697161 | AS72: 0.7134984227 | AT72: 0.7212271293 | AU72: 0.72890625 | AV72: 0.7365798611 | AW72: 0.7442525926 | AX72: 0.7518822222 | AY72: 0.7595118519 | AZ72: 0.7671833773 | BA72: 0.7749439314 | BB72: 0.7827044855 | BC72: 0.7904650396 | BD72: 0.7982255937 | BE72: 0.8059861478 | BF72: 0.8137467018 | BG72: 0.8215072559 | BH72: 0.82926781 | BI72: 0.8370283641 | BJ72: 0.8447889182 | BK72: 0.8525494723 | BL72: 0.8603100264 | BM72: 0.8680705805 | BN72: 0.8758311346 | BO72: 0.8835916887 | BP72: 0.8913522427 | BQ72: 0.8991127968 | BR72: 0.9068733509 | BS72: 0.914633905 | BT72: 0.9223944591 | BU72: 0.9301550132 | BV72: 0.9379155673 | BW72: 0.9456761214 | BX72: 0.9534366755 | BY72: 0.9611972296 | BZ72: 0.9689577836 | CA72: 0.9767183377 | CB72: 0.9844788918 | CC72: 0.9922394459
A73: 0.67 | B73: 0.3848320856 | C73: 0.3899122995 | D73: 0.3952935185 | E73: 0.4013634146 | F73: 0.4083225806 | G73: 0.4149387755 | H73: 0.4218285714 | I73: 0.4285489796 | J73: 0.4353068966 | K73: 0.4421344828 | L73: 0.449059322 | M73: 0.45604 | N73: 0.4632136 | O73: 0.4706052288 | P73: 0.4781869281 | Q73: 0.4858465116 | R73: 0.4936214286 | S73: 0.5015623377 | T73: 0.5096142857 | U73: 0.5178605405 | V73: 0.5261345455 | W73: 0.5344981818 | X73: 0.5427909091 | Y73: 0.5509727273 | Z73: 0.5592619335 | AA73: 0.5675700906 | AB73: 0.5758782477 | AC73: 0.5840371041 | AD73: 0.5920687783 | AE73: 0.6001004525 | AF73: 0.6081321267 | AG73: 0.6161541779 | AH73: 0.6241056604 | AI73: 0.6320571429 | AJ73: 0.6400086253 | AK73: 0.6479409524 | AL73: 0.6558457143 | AM73: 0.6637504762 | AN73: 0.6716294671 | AO73: 0.6794351097 | AP73: 0.6872407524 | AQ73: 0.6950476341 | AR73: 0.7028709779 | AS73: 0.7106943218 | AT73: 0.7185176656 | AU73: 0.72626875 | AV73: 0.7340118056 | AW73: 0.7417548148 | AX73: 0.7494955556 | AY73: 0.7572362963 | AZ73: 0.7650065963 | BA73: 0.7728397098 | BB73: 0.7806728232 | BC73: 0.7885059367 | BD73: 0.7963390501 | BE73: 0.8041721636 | BF73: 0.812005277 | BG73: 0.8198383905 | BH73: 0.827671504 | BI73: 0.8355046174 | BJ73: 0.8433377309 | BK73: 0.8511708443 | BL73: 0.8590039578 | BM73: 0.8668370712 | BN73: 0.8746701847 | BO73: 0.8825032982 | BP73: 0.8903364116 | BQ73: 0.8981695251 | BR73: 0.9060026385 | BS73: 0.913835752 | BT73: 0.9216688654 | BU73: 0.9295019789 | BV73: 0.9373350923 | BW73: 0.9451682058 | BX73: 0.9530013193 | BY73: 0.9608344327 | BZ73: 0.9686675462 | CA73: 0.9765006596 | CB73: 0.9843337731 | CC73: 0.9921668865
